Workbook

Sheet Contents
A1: 80 | M1: ESC USE ONLY
D2: ESSENTIAL SERVICES COMMISSION
D3: Water Price Review - 2021
D4: Financial Model Template
B7: Table of Contents | F7: Water Business: | H7: =+N24 -> Melbourne Water | I7: =+O24 -> MW
B8: Section & Sheet Titles | F8: Regulatory Period: | H8: 2021-22 to 2025-26 (Fifth) | N8: [Decision] | O8: [Month] | P8: [Year] | Q8: [Version]
F9: Model Name: | H9: =I7&"_Price Review Template_"&O9&P9&Q9 -> MW_Price Review Template_Mar2021 - v1 | N9: Draft | O9: Mar | P9: 2021 | Q9: - v1 | R9: << Select
B10: 1 | C10: ='Model Quality Check'!B1 -> Model Quality Check | F10: Decision type: | H10: =+N9&" Decision" -> Draft Decision | N10: Draft | O10: Jan | P10: 2016 | Q10: - v1
B11: =B10+1 -> 2 | C11: =KeyAssumptionsPriceControl_FO!B1 -> Key Assumptions Price Control | N11: Final | O11: Feb | P11: 2017 | Q11: - v1.2
B12: =B11+1 -> 3 | C12: =Expenditure_Detail!B1 -> Expenditure - Detail | F12: Model Key: | O12: Mar | P12: 2018 | Q12: - v3
B13: 4 | C13: =Opex_FO_Summary!B1 -> Operating Expenditure - Forecast - Summary | O13: Apr | P13: 2019 | Q13: - v3.1
B14: 5 | C14: ='Opex_FO_W&S'!B1 -> Operating Expenditure - Forecast - Water & Sewerage (W&S) | G14: BLUE | H14: =+I7&" - DATA INPUT CELL" -> MW - DATA INPUT CELL | O14: May | P14: 2020 | Q14: - v4
B15: 6 | C15: ='Opex_FO_W&D'!B1 -> Operating Expenditure - Forecast - Waterways & Drainage (W&D) | O15: Jun | P15: 2021 | Q15: - v4.1
B16: 7 | C16: =Opex_Breakdown!B1 -> Operating Expenditure - Breakdown | G16: YELLOW | H16: NOTES / INSTRUCTIONS | O16: Jul | Q16: - v5
B17: 8 | C17: ='Capex_FO input'!B1 -> Capital Expenditure - Forecast Input | O17: Aug | Q17: - v5.1
B18: 9 | C18: =Capex_FO_AC!B1 -> Capital Expenditure - Asset Category Breakdown | G18: GREY | H18: MODEL PARAMETERS / ASSUMPTIONS | O18: Sep | Q18: - v6
B19: 10 | C19: =ExpSummary_FO!B1 -> Expenditure Summary | O19: Oct | Q19: - v6.1
B20: 11 | C20: =RollForward_FO!B1 -> Rolled forward regulatory asset base (RAB) | G20: WHITE | H20: FORMULA / HARDCODED VALUES | O20: Nov | Q20: - v7
B21: 12 | C21: =PrevPerAdj_FO!B1 -> Previous period adjustments | O21: Dec | Q21: - v7.1
B22: 13 | C22: =RevenuePriceCap_FO!C1 -> Revenue forecast (price caps) | G22: ORANGE | H22: FORMULA DIFFERENT TO ADJACENT CELL
B23: 14 | C23: Revenue forecast (tariff basket) | N23: [Business]
B24: 15 | C24: =NotPres_FO!B1 -> Non Prescribed Services | G24: GREEN | H24: DATA FROM 2016 DECISION OR PERFORMANCE REPORT | N24: Melbourne Water | O24: =+VLOOKUP(N24,N25:O42,2,FALSE) -> MW
B25: 16 | C25: ='Finance&Tax_FO'!B1 -> Cash, debt and tax assumptions | N25: Barwon Water | O25: BW
B26: 17 | C26: ='Rev&RAV_FO'!B1 -> Revenue requirement detail | G26: RED | H26: ERROR CHECK | N26: Central Highlands Water | O26: CHW
B27: 18 | C27: =Indicators_FO!B1 -> Financial indicators | N27: City West Water | O27: CWW
B28: 19 | C28: =Outcomes!B1 -> Outcomes | N28: Coliban Water | O28: CW
B29: 20 | C29: ='GSL (not applicable)'!B1&" "&"[NOT APPLICABLE]" -> Guaranteed Service Levels (GSL) [NOT APPLICABLE] | N29: East Gippsland Water | O29: EGW
B30: 21 | C30: Dashboard - Pricing | N30: Gippsland Water | O30: CGW
B31: 22 | C31: Dashboard - Opex | N31: Goulburn Valley Water | O31: GVW
B32: 23 | C32: Dashboard - Capex | N32: GWM Water | O32: GWMW | P32: diff model
B33: 24 | C33: Dashboard - Data | N33: Lower Murray Water - Urban | O33: LMW-U | P33: diff model
N34: Lower Murray Water - Rural | O34: LMW-R
N35: North East Water | O35: NEW
N36: South East Water | O36: SEW
N37: South Gippsland Water | O37: SGW
N38: Melbourne Water | O38: MW
N39: Wannon Water | O39: WNW
N40: Western Water | O40: WW
N41: Westernport Water | O41: WPW
N42: Yarra Valley Water | O42: YVW

Sheet Model Quality Check
A1: 80 | B1: Model Quality Check
B2: =Model_Name -> Melbourne Water
B3: Go to Table of Contents
K4: FIRST REG PERIOD | O4: SECOND REG PERIOD | S4: THIRD REG PERIOD | W4: FOURTH REG PERIOD | AB4: FIFTH REG PERIOD | AG4: SIXTH REG PERIOD
F6: Straight Line | J6: 2006 | K6: 2007 | L6: 2008 | M6: 2009 | N6: 2010 | O6: 2011 | P6: 2012 | Q6: 2013 | R6: 2014 | S6: 2015 | T6: 2016 | U6: 2017 | V6: 2018 | W6: 2019 | X6: 2020 | Y6: 2021 | Z6: 2022 | AA6: 2023 | AB6: 2024 | AC6: 2025 | AD6: 2026 | AE6: 2027 | AF6: 2028 | AG6: 2029 | AH6: 2030 | AI6: 2031
F7: Declining Balance | J7: =+CONCATENATE(J6-1,"-",RIGHT(J6,2)) -> 2005-06 | K7: 2006-07 | L7: 2007-08 | M7: 2008-09 | N7: 2009-10 | O7: 2010-11 | P7: 2011-12 | Q7: 2012-13 | R7: 2013-14 | S7: 2014-15 | T7: 2015-16 | U7: 2016-17 | V7: 2017-18 | W7: =+CONCATENATE(W6-1,"-",RIGHT(W6,2)) -> 2018-19 | X7: =+CONCATENATE(X6-1,"-",RIGHT(X6,2)) -> 2019-20 | Y7: =+CONCATENATE(Y6-1,"-",RIGHT(Y6,2)) -> 2020-21 | Z7: =+CONCATENATE(Z6-1,"-",RIGHT(Z6,2)) -> 2021-22 | AA7: 2022-23 | AB7: 2023-24 | AC7: 2024-25 | AD7: 2025-26 | AE7: 2026-27 | AF7: 2027-28 | AG7: 2028-29 | AH7: 2029-30 | AI7: 2030-31
D9: Model ready for submission: | I9: =IF(AND(Y13=Z16=AA16=AB16=AC16=AD16=AE16=AF16=AG16=AH16=AI16=Z19=AA19=AB19=AC19=AD19=AE19=AF19=AG19=AH19=AI19=T21=U21=V21=W21=X21=Y21=Z21=AA21=AB21=AC21=AD21=AE21=AF21=AG21=AH21=AI21=Z24=AA24=AB24=AC24=AD24=AE24=AF24=AG24=AH24=AI24=Z27=AA27=AB27=AC27=AD27=AE27=AF27=AG27=AH27=AI27=T37=U37=V37=W37=X37=Y37=Z37=AA37=AB37=AC37=AD37=AE37=AF37=AG37=AH37=AI37=T44=U44=V44=W44=X44=Y44=Z44=AA44=AB44=AC44=AD44=AE44=AF44=AG44=AH44=AI44=T47=U47=V47=W47=X47=Y47=Z47=AA47=AB47=AC47=AD47=AE47=AF47=AG47=AH47=AI47,Y30=TRUE,Y33="TRUE",Y35="TRUE",Y40="TRUE",Y42="TRUE"),"YES","NO") -> YES | R9: (If No, please ensure that the error check is corrected at the source)
E12: 1. | F12: KeyAssumptionsPriceControl_FO
G13: March quarter annual CPI | Y13: =ISNUMBER(KeyAssumptionsPriceControl_FO!Z13) -> TRUE
E15: 2. | F15: Opex_FO
G16: Reconciliation to 'Opex_Breakdown' tab row 37 | Z16: =Opex_FO_Summary!AA91 -> TRUE | AA16: =Opex_FO_Summary!AB91 -> TRUE | AB16: =Opex_FO_Summary!AC91 -> TRUE | AC16: =Opex_FO_Summary!AD91 -> TRUE | AD16: =Opex_FO_Summary!AE91 -> TRUE | AE16: =Opex_FO_Summary!AF91 -> TRUE | AF16: =Opex_FO_Summary!AG91 -> TRUE | AG16: =Opex_FO_Summary!AH91 -> TRUE | AH16: =Opex_FO_Summary!AI91 -> TRUE | AI16: =Opex_FO_Summary!AJ91 -> TRUE
E18: 3. | F18: Opex_Breakdown
G19: Reconciliation to 'Opex_FO' tab row 92 | Z19: =Opex_Breakdown!AA39 -> TRUE | AA19: =Opex_Breakdown!AB39 -> TRUE | AB19: =Opex_Breakdown!AC39 -> TRUE | AC19: =Opex_Breakdown!AD39 -> TRUE | AD19: =Opex_Breakdown!AE39 -> TRUE | AE19: =Opex_Breakdown!AF39 -> TRUE | AF19: =Opex_Breakdown!AG39 -> TRUE | AG19: =Opex_Breakdown!AH39 -> TRUE | AH19: =Opex_Breakdown!AI39 -> TRUE | AI19: =Opex_Breakdown!AJ39 -> TRUE
G21: Reconciliation of Opex by service and function | T21: =Opex_Breakdown!U25 -> TRUE | U21: =Opex_Breakdown!V25 -> TRUE | V21: =Opex_Breakdown!W25 -> TRUE | W21: =Opex_Breakdown!X25 -> TRUE | X21: =Opex_Breakdown!Y25 -> TRUE | Y21: =Opex_Breakdown!Z25 -> TRUE | Z21: =Opex_Breakdown!AA25 -> TRUE | AA21: =Opex_Breakdown!AB25 -> TRUE | AB21: =Opex_Breakdown!AC25 -> TRUE | AC21: =Opex_Breakdown!AD25 -> TRUE | AD21: =Opex_Breakdown!AE25 -> TRUE | AE21: =Opex_Breakdown!AF25 -> TRUE | AF21: =Opex_Breakdown!AG25 -> TRUE | AG21: =Opex_Breakdown!AH25 -> TRUE | AH21: =Opex_Breakdown!AI25 -> TRUE | AI21: =Opex_Breakdown!AJ25 -> TRUE
E23: 4. | F23: Capex_FO input
G24: Reconciliation of total prescribed capex between cost driver and capital type | Z24: ='Capex_FO input'!D26 -> TRUE | AA24: ='Capex_FO input'!E26 -> TRUE | AB24: ='Capex_FO input'!F26 -> TRUE | AC24: ='Capex_FO input'!G26 -> TRUE | AD24: ='Capex_FO input'!H26 -> TRUE | AE24: ='Capex_FO input'!I26 -> TRUE | AF24: ='Capex_FO input'!J26 -> TRUE | AG24: ='Capex_FO input'!K26 -> TRUE | AH24: ='Capex_FO input'!L26 -> TRUE | AI24: ='Capex_FO input'!M26 -> TRUE
E26: 5. | F26: Capex_FO_AC
G27: Reconciliation to 'Capex_FO input' tab row 29 | Z27: =Capex_FO_AC!AA31 -> TRUE | AA27: =Capex_FO_AC!AB31 -> TRUE | AB27: =Capex_FO_AC!AC31 -> TRUE | AC27: =Capex_FO_AC!AD31 -> TRUE | AD27: =Capex_FO_AC!AE31 -> TRUE | AE27: =Capex_FO_AC!AF31 -> TRUE | AF27: =Capex_FO_AC!AG31 -> TRUE | AG27: =Capex_FO_AC!AH31 -> TRUE | AH27: =Capex_FO_AC!AI31 -> TRUE | AI27: =Capex_FO_AC!AJ31 -> TRUE
E29: 6. | F29: RollForward_FO
G30: Reconciliation of existing assets book value to RAB | Y30: =ROUND(RollForward_FO!G84,2)=ROUND(RollForward_FO!G82,2) -> TRUE
E32: 7. | F32: RevenuePriceCap_FO
G33: Price control - Fourth period | Y33: =IF(KeyAssumptionsPriceControl_FO!I47=1,IF(RevenuePriceCap_FO!AB34="PRICE CONTROL OK","TRUE","FALSE"),"TRUE") -> TRUE | Z33: =IF(KeyAssumptionsPriceControl_FO!I47=1,RevenuePriceCap_FO!AB34,"") -> PRICE CONTROL OK
G35: Price control - Fifth period | Y35: =IF(KeyAssumptionsPriceControl_FO!I47=1,IF(RevenuePriceCap_FO!AG34="PRICE CONTROL OK","TRUE","FALSE"),"TRUE") -> TRUE | Z35: =IF(KeyAssumptionsPriceControl_FO!I47=1,RevenuePriceCap_FO!AG34,"") -> PRICE CONTROL OK
G37: Tariff revenue reconciliation | T37: =RevenuePriceCap_FO!U458 -> TRUE | U37: =RevenuePriceCap_FO!V458 -> TRUE | V37: =RevenuePriceCap_FO!W458 -> TRUE | W37: =RevenuePriceCap_FO!X458 -> TRUE | X37: =RevenuePriceCap_FO!Y458 -> TRUE | Y37: =RevenuePriceCap_FO!Z458 -> TRUE | Z37: =RevenuePriceCap_FO!AA458 -> TRUE | AA37: =RevenuePriceCap_FO!AB458 -> TRUE | AB37: =RevenuePriceCap_FO!AC458 -> TRUE | AC37: =RevenuePriceCap_FO!AD458 -> TRUE | AD37: =RevenuePriceCap_FO!AE458 -> TRUE | AE37: =RevenuePriceCap_FO!AF458 -> TRUE | AF37: =RevenuePriceCap_FO!AG458 -> TRUE | AG37: =RevenuePriceCap_FO!AH458 -> TRUE | AH37: =RevenuePriceCap_FO!AI458 -> TRUE | AI37: =RevenuePriceCap_FO!AJ458 -> TRUE
E39: 8. | F39: RevenueTariffBasket_FO
G40: Price control - Fourth period | Y40: =IF(KeyAssumptionsPriceControl_FO!I47=2,IF(RevenueTariffBasket_FO!AB34="PRICE CONTROL OK","TRUE","FALSE"),"TRUE") -> TRUE | Z40: =IF(KeyAssumptionsPriceControl_FO!I47=2,RevenueTariffBasket_FO!AB34,"") -> 
G42: Price control - Fifth period | Y42: =IF(KeyAssumptionsPriceControl_FO!I47=2,IF(RevenueTariffBasket_FO!AG34="PRICE CONTROL OK","TRUE","FALSE"),"TRUE") -> TRUE | Z42: =IF(KeyAssumptionsPriceControl_FO!I47=2,RevenueTariffBasket_FO!AG34,"") -> 
G44: Tariff revenue reconciliation | T44: =RevenueTariffBasket_FO!U458 -> TRUE | U44: =RevenueTariffBasket_FO!V458 -> TRUE | V44: =RevenueTariffBasket_FO!W458 -> TRUE | W44: =RevenueTariffBasket_FO!X458 -> TRUE | X44: =RevenueTariffBasket_FO!Y458 -> TRUE | Y44: =RevenueTariffBasket_FO!Z458 -> TRUE | Z44: =RevenueTariffBasket_FO!AA458 -> TRUE | AA44: =RevenueTariffBasket_FO!AB458 -> TRUE | AB44: =RevenueTariffBasket_FO!AC458 -> TRUE | AC44: =RevenueTariffBasket_FO!AD458 -> TRUE | AD44: =RevenueTariffBasket_FO!AE458 -> TRUE | AE44: =RevenueTariffBasket_FO!AF458 -> TRUE | AF44: =RevenueTariffBasket_FO!AG458 -> TRUE | AG44: =RevenueTariffBasket_FO!AH458 -> TRUE | AH44: =RevenueTariffBasket_FO!AI458 -> TRUE | AI44: =RevenueTariffBasket_FO!AJ458 -> TRUE
E46: 9. | F46: Rev&RAV_FO
G47: Rolled forward RAV reconciliation | T47: ='Rev&RAV_FO'!U80 -> TRUE | U47: ='Rev&RAV_FO'!V80 -> TRUE | V47: ='Rev&RAV_FO'!W80 -> TRUE | W47: ='Rev&RAV_FO'!X80 -> TRUE | X47: ='Rev&RAV_FO'!Y80 -> TRUE | Y47: ='Rev&RAV_FO'!Z80 -> TRUE | Z47: ='Rev&RAV_FO'!AA80 -> TRUE | AA47: ='Rev&RAV_FO'!AB80 -> TRUE | AB47: ='Rev&RAV_FO'!AC80 -> TRUE | AC47: ='Rev&RAV_FO'!AD80 -> TRUE | AD47: ='Rev&RAV_FO'!AE80 -> TRUE | AE47: ='Rev&RAV_FO'!AF80 -> TRUE | AF47: ='Rev&RAV_FO'!AG80 -> TRUE | AG47: ='Rev&RAV_FO'!AH80 -> TRUE | AH47: ='Rev&RAV_FO'!AI80 -> TRUE | AI47: ='Rev&RAV_FO'!AJ80 -> TRUE

Sheet Adjustments Log
M2: ESC Review Legend:
M4: Tab colours:
M5: No data issues/errors on high-level review
M6: Data issues/errors not yet resolved
M7: Data issues/errors have been resolved
M8: Draft decision adjustments
M9: Final decision adjustments
M11: Cell colours:
M12: 2020-11-13 | N12: 4.36PM | O12: Updated based on model V1
M13: 2020-12-11 | N13: 10.55AM | O13: Updated based on model V2
M14: 2020-12-15 | N14: 3.11PM | O14: Updated based on model V3
O15: Updated based on model V4
M16: Draft decision adjustments
M17: MW's adjustments in response to Draft Decision
M18: Final decision adjustments
A19: 1 | B19: Operating expenditure
B20: $m, 01/01/21
C22: 2019-20 | D22: 2020-21 | E22: 2021-22 | F22: 2022-23 | G22: 2023-24 | H22: 2024-25 | I22: 2025-26 | J22: 5-Yr Total | L22: 3-Yr Total
B23: Proposed - controllable operating expenditure | C23: 387.2815684 | D23: 396.8609091 | E23: 387.5433775 | F23: 385.5025957 | G23: 386.9523601 | H23: 392.58118 | I23: 396.8277528 | J23: =SUM(E23:I23) -> 1949.407266 | L23: =SUM(E23:G23) -> 1159.998333
B24: MW corrections:
B25: Cost of pumping desal water from Cardinia to Silvan | C25: 2.867445288 | D25: 0 | E25: 0 | F25: 0 | G25: 0 | H25: 0 | I25: 0 | J25: =SUM(E25:I25) -> 0 | L25: =SUM(E25:G25) -> 0 | M25: Model error correction: these adjustments relate to a discrepancy identified between reg accounts and pricing model.
B26: Difference in Desal Contract Cost | C26: 6.073444755 | D26: 0 | E26: 0 | F26: 0 | G26: 0 | H26: 0 | I26: 0 | J26: 0 | L26: =SUM(E26:G26) -> 0
B27: Adjustment reflecting final statutory accounts/regulatory accounts | C27: -0.9423330703 | D27: 0 | E27: 0 | F27: 0 | G27: 0 | H27: 0 | I27: 0 | J27: 0 | L27: =SUM(E27:G27) -> 0
B28: DD adjustments:
B29: Base year adjustment - W&S | E29: -1.94508454 | F29: -1.944111998 | G29: -1.943139942 | H29: -1.942168372 | I29: -1.941197288 | J29: -9.715702141 | L29: =SUM(E29:G29) -> -5.832336481
B30: Base year adjustment - W&D | E30: -0.4784618697 | F30: -0.4782226388 | G30: -0.4779835275 | H30: -0.4777445357 | I30: -0.4775056634 | J30: -2.389918235 | L30: -1.434668036 | S30: 2021-22 | T30: 2022-23 | U30: 2023-24 | V30: 2024-25 | W30: 2025-26 | X30: 5-Yr Total
B31: Growth rate adjustment to baseline - W&S | E31: -0.3 | F31: -0.61 | G31: -0.91 | H31: -1.21 | I31: -1.51 | J31: -4.54 | L31: -1.82 | R31: Growth rate adjustment to baseline (W&S + W&D) | S31: -0.5151616599 | T31: -1.029035416 | U31: -1.541623972 | V31: -2.052930027 | W31: -2.562956276 | X31: =SUM(S31:W31) -> -7.701707351
B32: Growth rate adjustment to baseline - W&D | E32: =S31-E31 -> -0.2151616599 | F32: =T31-F31 -> -0.4190354156 | G32: =U31-G31 -> -0.6316239717 | H32: =V31-H31 -> -0.8429300274 | I32: =W31-I31 -> -1.052956276 | J32: -3.161707351 | L32: -1.265821047
B33: W&D service increase | E33: -4.4 | F33: -4.4 | G33: -4.4 | H33: -4.4 | I33: -4.4 | J33: -22 | L33: -13.2
B35: Total adjustments | C35: =SUM(C25:C34) -> 7.998556972 | D35: 0 | E35: -7.33870807 | F35: -7.851370053 | G35: -8.362747441 | H35: -8.872842935 | I35: -9.381659228 | J35: -41.80732773 | L35: -23.55282556
B36: Draft decision - controllable operating expenditure | C36: =C23+C35 -> 395.2801254 | D36: 396.8609091 | E36: 380.2046695 | F36: 377.6512256 | G36: 378.5896127 | H36: 383.7083371 | I36: 387.4460935 | J36: 1907.599938 | L36: 1136.445508
B38: Proposed - non-controllable operating expenditure | C38: 621.3091601 | D38: 575.1843866 | E38: 523.6629829 | F38: 515.7993448 | G38: 503.5214536 | H38: 487.5875514 | I38: 474.4001382 | J38: 2504.971471 | L38: 1542.983781
B39: MW corrections:
B40: 125GL Desal Water Order costs | C40: 64.77938274 | D40: 0 | E40: 0 | F40: 0 | G40: 0 | H40: 0 | I40: 0 | J40: =SUM(E40:I40) -> 0 | L40: =SUM(E40:G40) -> 0 | M40: Model error correction: this adjustment relates to a discrepancy identified between reg accounts and pricing model.
B41: DD adjustments:
B42: =B132 -> Reversal of "catch-up principal paid down" amounts | C42: 0 | D42: 0 | E42: 37.12300285 | F42: 37.12300285 | G42: 37.12300285 | H42: 37.12300285 | I42: 37.12300285 | J42: 185.6150142 | L42: 111.3690085
B43: Revised VDP operating costs from DELWP (22 Jan 2021) | C43: 0 | D43: -5.05478033 | E43: -2.589215926 | F43: -2.536075126 | G43: -2.52473387 | H43: -2.571755925 | I43: -2.575807152 | J43: -12.797588 | L43: -7.650024922
B44: Essential Services Commission licence fees | C44: 0 | D44: 0.6648050597 | E44: 0.3319780543 | F44: 0.3319780383 | G44: 0.9069595059 | H44: 0.3319780623 | I44: 0.3319780445 | J44: =SUM(E44:I44) -> 2.234871705 | L44: 1.570915598
B45: Department of Human Services licence fees | C45: 0 | D45: -0.03759042832 | E45: 0.021880166 | F45: 0.02188017139 | G45: 0.02188017069 | H45: 0.02188016841 | I45: 0.0218801693 | J45: =SUM(E45:I45) -> 0.1094008458 | L45: 0.06564050807
B46: Environment Protection Authority licence fees | C46: 0 | D46: -0.3347784395 | E46: 0.02962916824 | F46: 0.03517004331 | G46: 0.0407337674 | H46: 0.0463204888 | I46: 0.04632047834 | J46: =SUM(E46:I46) -> 0.1981739461 | L46: 0.105532979
B47: Environment Contribution (W&D) | C47: 0 | D47: 0.9274887642 | E47: 0.02253036649 | F47: 0.02584228292 | G47: 0.03117821961 | H47: 0.01408164361 | I47: 0.01949157372 | J47: =SUM(E47:I47) -> 0.1131240863 | L47: 0.07955086901
C48: 0 | D48: 0 | E48: 0 | F48: 0 | G48: 0 | H48: 0 | I48: 0 | J48: 0 | L48: 0
B49: Total DD adjustments | C49: =SUM(C40:C48) -> 64.77938274 | D49: =SUM(D40:D48) -> -3.834855374 | E49: 34.93980468 | F49: 35.00179826 | G49: 35.59902064 | H49: 34.96550729 | I49: 34.96686596 | J49: 175.4729968 | L49: =SUM(E49:G49) -> 105.5406236
B50: Draft decision - non-controllable operating expenditure | C50: =C38+C49 -> 686.0885428 | D50: =D38+D49 -> 571.3495313 | E50: 558.6027876 | F50: 550.801143 | G50: 539.1204742 | H50: 522.5530586 | I50: 509.3670041 | J50: 2680.444468 | L50: =SUM(E50:G50) -> 1648.524405
B52: Proposed - total operating expenditure | C52: =C23+C38 -> 1008.590729 | D52: 972.0452957 | E52: 911.2063605 | F52: 901.3019404 | G52: 890.4738137 | H52: 880.1687313 | I52: 871.2278909 | J52: 4454.378737 | L52: =SUM(E52:G52) -> 2702.982115
B53: Total DD adjustments | C53: =C35+C49 -> 72.77793971 | D53: -3.834855374 | E53: 27.60109661 | F53: 27.15042821 | G53: 27.2362732 | H53: 26.09266435 | I53: 25.58520673 | J53: 133.6656691 | L53: =SUM(E53:G53) -> 81.98779802
B54: Draft decision - total operating expenditure | C54: =SUM(C52:C53) -> 1081.368668 | D54: 968.2104404 | E54: 938.8074571 | F54: 928.4523687 | G54: 917.7100869 | H54: 906.2613957 | I54: 896.8130977 | J54: 4588.044406 | L54: =SUM(E54:G54) -> 2784.969913
B56: Check | C56: =C54-ExpSummary_FO!Y15 -> 0 | D56: =D54-ExpSummary_FO!Z15 -> 0 | E56: =E54-ExpSummary_FO!AA15 -> -4.6106432 | F56: =F54-ExpSummary_FO!AB15 -> -3.875209594 | G56: =G54-ExpSummary_FO!AC15 -> -4.505119174 | H56: =H54-ExpSummary_FO!AD15 -> -3.605721936 | I56: =I54-ExpSummary_FO!AE15 -> -3.534137872 | J56: =SUM(E56:I56) -> -20.13083178
B58: W&D service increase - Melbourne Water's response | E58: ='Opex_FO_W&D'!AA61+'Opex_FO_W&D'!AA62 -> -0.15616 | F58: ='Opex_FO_W&D'!AB61+'Opex_FO_W&D'!AB62 -> -0.16 | G58: ='Opex_FO_W&D'!AC61+'Opex_FO_W&D'!AC62 -> -0.1545 | H58: ='Opex_FO_W&D'!AD61+'Opex_FO_W&D'!AD62 -> -0.15631 | I58: ='Opex_FO_W&D'!AE61+'Opex_FO_W&D'!AE62 -> -0.15631 | J58: =SUM(E58:I58) -> -0.78328 | M58: Refer to document for breakdown (section 5, Operating expenditure)
B59: W&D service increase - ESC Draft Decision | E59: =E33 -> -4.4 | F59: =F33 -> -4.4 | G59: -4.4 | H59: -4.4 | I59: -4.4 | J59: =SUM(E59:I59) -> -22
B60: Variance | E60: =E59-E58 -> -4.24384 | F60: =F59-F58 -> -4.24 | G60: -4.2455 | H60: -4.24369 | I60: -4.24369 | J60: -21.21672
B62: Base year adjustment - W&S - Melbourne Water's response | E62: =-(0.63+0.52) -> -1.15 | F62: =-(0.63+0.52) -> -1.15 | G62: -1.15 | H62: -1.15 | I62: -1.15 | J62: =SUM(E62:I62) -> -5.75 | M62: Refer to document for breakdown (section 5, Operating expenditure)
B63: Base year adjustment - W&S - ESC Draft Decision | E63: =E29 -> -1.94508454 | F63: =F29 -> -1.944111998 | G63: -1.943139942 | H63: -1.942168372 | I63: -1.941197288 | J63: =SUM(E63:I63) -> -9.715702141
B64: Variance | E64: =E63-E62 -> -0.7950845405 | F64: =F63-F62 -> -0.7941119982 | G64: -0.7931399422 | H64: -0.7921683722 | I64: -0.791197288 | J64: -3.965702141
B66: Benchmark Energy adjustment - Melbourne Water's response | E66: ='Opex_FO_W&S'!AA60 -> -0.43 | F66: ='Opex_FO_W&S'!AB60 -> -1.16 | G66: ='Opex_FO_W&S'!AC60 -> -0.53 | H66: ='Opex_FO_W&S'!AD60 -> -1.43 | I66: ='Opex_FO_W&S'!AE60 -> -1.5 | J66: =SUM(E66:I66) -> -5.05 | M66: Refer to document for breakdown (section 4, Demand and section 5, Operating expenditure)
E67: =-E66 -> 0.43 | F67: =-F66 -> 1.16 | G67: 0.53 | H67: 1.43 | I67: 1.5 | J67: =SUM(E67:I67) -> 5.05
B69: Total variance | E69: =E60+E64+E67 -> -4.60892454 | F69: -3.874111998 | G69: -4.508639942 | H69: -3.605858372 | I69: -3.534887288 | J69: -20.13242214
B70: Reconciliation check | E70: =E69-E56 -> 0.001718659531 | F70: =F69-F56 -> 0.001097595401 | G70: -0.003520767787 | H70: -0.0001364361643 | I70: -0.0007494158503 | J70: =J69-J56 -> -0.001590364869
C71: 2019-20 | D71: 2020-21 | E71: 2021-22 | F71: 2022-23 | G71: 2023-24 | H71: 2024-25 | I71: 2025-26 | J71: Total
B72: Draft decision - controllable operating expenditure | C72: =C36 -> 395.2801254 | D72: 396.8609091 | E72: 380.2046695 | F72: 377.6512256 | G72: 378.5896127 | H72: 383.7083371 | I72: 387.4460935 | J72: =SUM(E72:I72) -> 1907.599938
B73: FD adjustments:
C74: 0 | D74: 0 | E74: =-E34 -> 0 | F74: =-F34 -> 0 | G74: =-G34 -> 0 | H74: =-H34 -> 0 | I74: =-I34 -> 0 | J74: =SUM(E74:I74) -> 0
B75: Total FD adjustments | C75: =SUM(C74:C74) -> 0 | D75: 0 | E75: 0 | F75: 0 | G75: 0 | H75: 0 | I75: 0 | J75: =SUM(E75:I75) -> 0
B76: Final decision - controllable operating expenditure | C76: =C72+C75 -> 395.2801254 | D76: 396.8609091 | E76: 380.2046695 | F76: 377.6512256 | G76: 378.5896127 | H76: 383.7083371 | I76: 387.4460935 | J76: =SUM(E76:I76) -> 1907.599938
B78: Draft decision - non-controllable operating expenditure | C78: =C50 -> 686.0885428 | D78: 571.3495313 | E78: 558.6027876 | F78: 550.801143 | G78: 539.1204742 | H78: 522.5530586 | I78: 509.3670041 | J78: =SUM(E78:I78) -> 2680.444468
B79: FD adjustments:
B80: Environment contribution | C80: 0 | D80: 0 | E80: 0 | F80: 0 | G80: 0 | H80: 0 | I80: 0 | J80: =SUM(E80:I80) -> 0
B81: Total FD adjustments | C81: =SUM(C80:C80) -> 0 | D81: 0 | E81: 0 | F81: 0 | G81: 0 | H81: 0 | I81: 0 | J81: =SUM(E81:I81) -> 0
B82: Final decision - non-controllable operating expenditure | C82: =C78+C81 -> 686.0885428 | D82: 571.3495313 | E82: 558.6027876 | F82: 550.801143 | G82: 539.1204742 | H82: 522.5530586 | I82: 509.3670041 | J82: =SUM(E82:I82) -> 2680.444468
B84: Draft decision - total operating expenditure | C84: =C72+C78 -> 1081.368668 | D84: 968.2104404 | E84: 938.8074571 | F84: 928.4523687 | G84: 917.7100869 | H84: 906.2613957 | I84: 896.8130977 | J84: =SUM(E84:I84) -> 4588.044406
B85: Total FD adjustments | C85: =C75+C81 -> 0 | D85: 0 | E85: 0 | F85: 0 | G85: 0 | H85: 0 | I85: 0 | J85: =SUM(E85:I85) -> 0
B86: Final decision - total operating expenditure | C86: =SUM(C84:C85) -> 1081.368668 | D86: 968.2104404 | E86: 938.8074571 | F86: 928.4523687 | G86: 917.7100869 | H86: 906.2613957 | I86: 896.8130977 | J86: =SUM(E86:I86) -> 4588.044406
B88: Check
A91: 2 | B91: Capital expenditure
B92: $m, 01/01/21
C94: 2019-20 | D94: 2020-21 | E94: 2021-22 | F94: 2022-23 | G94: 2023-24 | H94: 2024-25 | I94: 2025-26 | J94: =J22 -> 5-Yr Total | L94: 3-Yr Total
B95: Proposed - capital expenditure (gross) - includes desal | C95: 545.4389983 | D95: 456.0783585 | E95: 876.8211851 | F95: 1027.037333 | G95: 800.8301177 | H95: 779.1690272 | I95: 616.9454626 | J95: =SUM(E95:I95) -> 4100.803126 | L95: =SUM(E95:G95) -> 2704.688636
B96: Proposed - desal capitalisation | C96: =C140 -> 32.75280899 | D96: =D140 -> 32.75280899 | E96: 57.41006387 | F96: 67.04267187 | G96: 82.29180688 | H96: 91.80147546 | I96: 100.0391382 | J96: =SUM(E96:I96) -> 398.5851563 | L96: =SUM(E96:G96) -> 206.7445426
B97: Proposed - capital expenditure (gross) - excludes desal | C97: =C95-C96 -> 512.6861893 | D97: =D95-D96 -> 423.3255495 | E97: 819.4111212 | F97: 959.9946616 | G97: 718.5383108 | H97: 687.3675518 | I97: 516.9063244 | J97: =SUM(E97:I97) -> 3702.21797 | L97: 2497.944094
B98: DD adjustments: | L98: 0
B99: Model error correction to Diversions capex | C99: 0.01736881858 | D99: 0 | E99: 0 | F99: 0 | G99: 0 | H99: 0 | I99: 0 | J99: =SUM(E99:I99) -> 0 | L99: 0
B100: =B142 -> Reversal of "catch-up principal paid down" amounts | C100: =C142 -> 0 | D100: =D142 -> 0 | E100: -37.12300285 | F100: -37.12300285 | G100: -37.12300285 | H100: -37.12300285 | I100: -37.12300285 | J100: -185.6150142 | L100: -111.3690085
B101: Top 15 major projects | C101: 0 | D101: 0 | E101: -13.06 | F101: -21.86 | G101: -30.84 | H101: -6.92 | I101: 25.89 | J101: -46.79 | L101: -65.76
B102: Remainder of program | C102: 0 | D102: 0 | E102: -58.64704599 | F102: -53.97402163 | G102: -48.46351974 | H102: -45.77319325 | I102: -43.14221939 | J102: -250 | L102: -161.0845874
J103: 0 | L103: 0
B104: Total DD adjustments | C104: =SUM(C99:C103) -> 0.01736881858 | D104: 0 | E104: -108.8300488 | F104: -112.9570245 | G104: -116.4265226 | H104: -89.8161961 | I104: -54.37522223 | J104: -482.4050142 | L104: -338.2135959
B105: Draft decision - capital expenditure (gross) - includes desal | C105: =C95+C104 -> 545.4563671 | D105: 456.0783585 | E105: 767.9911362 | F105: 914.080309 | G105: 684.4035951 | H105: 689.3528311 | I105: 562.5702403 | J105: 3618.398112 | L105: 2366.47504
B106: Draft decision - desal capitalisation | C106: =C96+C100 -> 32.75280899 | D106: =D96+D100 -> 32.75280899 | E106: 20.28706102 | F106: 29.91966903 | G106: 45.16880403 | H106: 54.67847261 | I106: 62.91613534 | J106: 212.970142 | L106: 95.37553407
B107: Draft decision - capital expenditure (gross) - excludes desal | C107: =C105-C106 -> 512.7035581 | D107: =D105-D106 -> 423.3255495 | E107: 747.7040752 | F107: 884.16064 | G107: 639.2347911 | H107: 634.6743585 | I107: 499.654105 | J107: 3405.42797 | L107: 2271.099506
B109: Check | C109: =C105-ExpSummary_FO!Y19 -> 0 | D109: =D105-ExpSummary_FO!Z19 -> 0 | E109: =E105-ExpSummary_FO!AA19 -> -0.2770459858 | F109: =F105-ExpSummary_FO!AB19 -> -17.38402163 | G109: =G105-ExpSummary_FO!AC19 -> -2.873519743 | H109: =H105-ExpSummary_FO!AD19 -> -0.003193251201 | I109: =I105-ExpSummary_FO!AE19 -> -0.002219385617 | J109: =SUM(E109:I109) -> -20.54
B111: Top 15 major projects - Melbourne Water's response | E111: =-(2.92+2.42+0.35+7.09) -> -12.78 | F111: =-(9.78-0.01+1.7-6.99) -> -4.48 | G111: =-(0.67+2.18+25.22-0.1) -> -27.97 | H111: =-(8.62-1.7) -> -6.92 | I111: =0.32+25.57 -> 25.89 | J111: =SUM(E111:I111) -> -26.26 | M111: Refer to document for breakdown (section 6, Capital expenditure)
B112: Top 15 major projects - ESC Draft Decision | E112: =E101 -> -13.06 | F112: =F101 -> -21.86 | G112: -30.84 | H112: -6.92 | I112: 25.89 | J112: =SUM(E112:I112) -> -46.79
B113: Variance | E113: =E112-E111 -> -0.28 | F113: =F112-F111 -> -17.38 | G113: -2.87 | H113: 0 | I113: 0 | J113: =SUM(E113:I113) -> -20.53
B114: Reconciliation check | E114: =E113-E109 -> -0.0029540142 | F114: =F113-F109 -> 0.0040216348 | G114: 0.003519742582 | H114: 0.003193251201 | I114: 0.002219385617 | J114: 0.01
C116: 2019-20 | D116: 2020-21 | E116: 2021-22 | F116: 2022-23 | G116: 2023-24 | H116: 2024-25 | I116: 2025-26 | J116: Total
B117: Draft decision - capital expenditure (gross) | C117: =C105 -> 545.4563671 | D117: 456.0783585 | E117: 767.9911362 | F117: 914.080309 | G117: 684.4035951 | H117: 689.3528311 | I117: 562.5702403 | J117: =SUM(E117:I117) -> 3618.398112
B118: FD adjustments:
E119: =-E99 -> 0 | F119: =-F99 -> 0 | G119: =-G99 -> 0 | H119: =-H99 -> 0 | I119: =-I99 -> 0 | J119: =SUM(E119:I119) -> 0
B120: Total FD adjustments | C120: =SUM(C119:C119) -> 0 | D120: 0 | E120: 0 | F120: 0 | G120: 0 | H120: 0 | I120: 0 | J120: =SUM(E120:I120) -> 0
B121: Final decision - capital expenditure (gross) | C121: =C117+C120 -> 545.4563671 | D121: 456.0783585 | E121: 767.9911362 | F121: 914.080309 | G121: 684.4035951 | H121: 689.3528311 | I121: 562.5702403 | J121: =SUM(E121:I121) -> 3618.398112
B123: Check
A126: 3 | B126: Desalination security payments
B127: $m, 01/01/21
C129: 2019-20 | D129: 2020-21 | E129: 2021-22 | F129: 2022-23 | G129: 2023-24 | H129: 2024-25 | I129: 2025-26 | J129: =J94 -> 5-Yr Total | L129: =L94 -> 3-Yr Total
B130: Proposed - desal operating costs (opex) | C130: 658.2975645 | D130: 544.547191 | E130: 493.0801322 | F130: 485.2369197 | G130: 472.98117 | H130: 457.0466744 | I130: 443.8808773 | J130: =SUM(E130:I130) -> 2352.225774 | L130: =SUM(E130:G130) -> 1451.298222
B131: DD adjustments:
B132: Reversal of "catch-up principal paid down" amounts | C132: 0 | D132: 0 | E132: 37.12300285 | F132: 37.12300285 | G132: 37.12300285 | H132: 37.12300285 | I132: 37.12300285 | J132: =SUM(E132:I132) -> 185.6150142 | L132: =SUM(E132:G132) -> 111.3690085
B133: Revised VDP operating costs from DELWP (22 Jan 2021) | C133: 0 | D133: -5.05478033 | E133: -2.589215926 | F133: -2.536075126 | G133: -2.52473387 | H133: -2.571755925 | I133: -2.575807152 | J133: =SUM(E133:I133) -> -12.797588 | L133: =SUM(E133:G133) -> -7.650024922
J134: =SUM(E134:I134) -> 0 | L134: =SUM(E134:G134) -> 0
B135: Draft decision - desal operating costs (opex) | C135: =SUM(C130:C134) -> 658.2975645 | D135: 539.4924107 | E135: 527.6139191 | F135: 519.8238474 | G135: 507.579439 | H135: 491.5979213 | I135: 478.428073 | J135: =SUM(E135:I135) -> 2525.0432 | L135: =SUM(E135:G135) -> 1555.017205
B137: Check | C137: =C135-Opex_Breakdown!Y93 -> 0 | D137: =D135-Opex_Breakdown!Z93 -> 0 | E137: =E135-Opex_Breakdown!AA93 -> 0 | F137: =F135-Opex_Breakdown!AB93 -> 0 | G137: =G135-Opex_Breakdown!AC93 -> 0 | H137: =H135-Opex_Breakdown!AD93 -> 0 | I137: =I135-Opex_Breakdown!AE93 -> 0
C139: 2019-20 | D139: 2020-21 | E139: 2021-22 | F139: 2022-23 | G139: 2023-24 | H139: 2024-25 | I139: 2025-26 | J139: =J129 -> 5-Yr Total | L139: =L129 -> 3-Yr Total
B140: Proposed - desal capitalised costs (capex) | C140: 32.75280899 | D140: 32.75280899 | E140: 57.41006387 | F140: 67.04267187 | G140: 82.29180688 | H140: 91.80147546 | I140: 100.0391382 | J140: =SUM(E140:I140) -> 398.5851563 | L140: =SUM(E140:G140) -> 206.7445426
B141: DD adjustments:
B142: Reversal of "catch-up principal paid down" amounts | C142: 0 | D142: 0 | E142: =-E132 -> -37.12300285 | F142: =-F132 -> -37.12300285 | G142: =-G132 -> -37.12300285 | H142: =-H132 -> -37.12300285 | I142: =-I132 -> -37.12300285 | J142: =SUM(E142:I142) -> -185.6150142 | L142: =SUM(E142:G142) -> -111.3690085
J143: =SUM(E143:I143) -> 0 | L143: =SUM(E143:G143) -> 0
B144: Draft decision - desal capitalised costs (capex) | C144: =SUM(C140:C143) -> 32.75280899 | D144: 32.75280899 | E144: 20.28706102 | F144: 29.91966903 | G144: 45.16880403 | H144: 54.67847261 | I144: 62.91613534 | J144: =SUM(E144:I144) -> 212.970142 | L144: =SUM(E144:G144) -> 95.37553407
B146: Check | C146: =C144-Capex_FO_AC!Y69 -> 0 | D146: =D144-Capex_FO_AC!Z69 -> 0 | E146: =E144-Capex_FO_AC!AA69 -> 0 | F146: =F144-Capex_FO_AC!AB69 -> 0 | G146: =G144-Capex_FO_AC!AC69 -> 0 | H146: =H144-Capex_FO_AC!AD69 -> 0 | I146: =I144-Capex_FO_AC!AE69 -> 0
C148: 2019-20 | D148: 2020-21 | E148: 2021-22 | F148: 2022-23 | G148: 2023-24 | H148: 2024-25 | I148: 2025-26 | J148: =J139 -> 5-Yr Total | L148: =L139 -> 3-Yr Total
B149: Proposed - total desal costs (opex + capex) | C149: =C130+C140 -> 691.0503735 | D149: 577.3 | E149: 550.4901961 | F149: 552.2795915 | G149: 555.2729769 | H149: 548.8481498 | I149: 543.9200155 | J149: =SUM(E149:I149) -> 2750.81093 | L149: =SUM(E149:G149) -> 1658.042764
B150: Total DD adjustments | C150: =SUM(C132:C134,C142:C143) -> 0 | D150: -5.05478033 | E150: -2.589215926 | F150: -2.536075126 | G150: -2.52473387 | H150: -2.571755925 | I150: -2.575807152 | J150: =SUM(E150:I150) -> -12.797588 | L150: =SUM(E150:G150) -> -7.650024922
B151: Draft decision - total desal costs (opex + capex) | C151: =SUM(C149:C150) -> 691.0503735 | D151: 572.2452197 | E151: 547.9009802 | F151: 549.7435164 | G151: 552.748243 | H151: 546.2763939 | I151: 541.3442083 | J151: =SUM(E151:I151) -> 2738.013342 | L151: =SUM(E151:G151) -> 1650.39274
B153: Check | C153: =C137+C146 -> 0 | D153: 0 | E153: 0 | F153: 0 | G153: 0 | H153: 0 | I153: 0
C156: 2019-20 | D156: 2020-21 | E156: 2021-22 | F156: 2022-23 | G156: 2023-24 | H156: 2024-25 | I156: 2025-26 | J156: =J148 -> 5-Yr Total | L156: =L148 -> 3-Yr Total
B157: Desal costs from DELWP (nominal) | C157: 490.1887037 | D157: 577.3 | E157: 561.5 | F157: 576 | G157: 593.6 | H157: 601.4 | I157: 610.9 | J157: =SUM(E157:I157) -> 2943.4 | L157: =SUM(E157:G157) -> 1731.1
B159: MW's PROPOSAL:
B160: Inflation forecast - rate | C160: 0.01332149201 | D160: 0.02191060473 | E160: 0.02 | F160: 0.0225 | G160: 0.025 | H160: 0.025 | I160: 0.025 | M160: <<< 2019-20 and 2020-21 are actual inflation rates from RBA
B161: Inflation forecast - index | C161: 114.1 | D161: 116.6 | E161: =D161*(1+E160) -> 118.932 | F161: =E161*(1+F160) -> 121.60797 | G161: =F161*(1+G160) -> 124.6481692 | H161: =G161*(1+H160) -> 127.7643735 | I161: =H161*(1+I160) -> 130.9584828 | M161: <<< 2019-20 and 2020-21 are actual inflation rates from RBA
B163: $2020-21, real
B164: Desal costs (opex + capex) | C164: =C157/C161*$D$161 -> 500.9290347 | D164: =D157/D161*$D$161 -> 577.3 | E164: 550.4901961 | F164: 552.2795915 | G164: 555.2729769 | H164: 548.8481498 | I164: 543.9200155 | J164: =SUM(E164:I164) -> 2750.81093 | L164: =SUM(E164:G164) -> 1658.042764
B165: Desal operating costs (opex) | C165: =C164-C167 -> 468.1762257 | D165: =D130 -> 544.547191 | E165: 493.0801322 | F165: 485.2369197 | G165: 472.98117 | H165: 457.0466744 | I165: 443.8808773 | J165: =SUM(E165:I165) -> 2352.225774 | L165: =SUM(E165:G165) -> 1451.298222
B166: Desal water order costs (opex) | C166: =C130-C164 -> 157.3685298 | D166: 0 | E166: 0 | F166: 0 | G166: 0 | H166: 0 | I166: 0 | J166: =SUM(E166:I166) -> 0 | L166: =SUM(E166:G166) -> 0
B167: Desal capitalised costs (capex) | C167: =C140 -> 32.75280899 | D167: 32.75280899 | E167: 57.41006387 | F167: 67.04267187 | G167: 82.29180688 | H167: 91.80147546 | I167: 100.0391382 | J167: =SUM(E167:I167) -> 398.5851563 | L167: =SUM(E167:G167) -> 206.7445426
B169: Nominal
B170: Desal costs (opex + capex) | C170: =C171+C173 -> 490.1887037 | D170: =D171+D173 -> 577.3 | E170: 561.5 | F170: 576 | G170: 593.6 | H170: 601.4 | I170: 610.9 | J170: =SUM(E170:I170) -> 2943.4 | L170: =SUM(E170:G170) -> 1731.1
B171: Desal operating costs (opex) | C171: =C165/$D$161*C$161 -> 458.1381419 | D171: 544.547191 | E171: 502.9417349 | F171: 506.0778454 | G171: 505.628104 | H171: 500.8085935 | I171: 498.5417345 | J171: =SUM(E171:I171) -> 2513.998012 | L171: =SUM(E171:G171) -> 1514.647684
B172: Desal water order costs (opex) | C172: =C166/$D$161*C$161 -> 153.994419 | D172: 0 | E172: 0 | F172: 0 | G172: 0 | H172: 0 | I172: 0 | J172: =SUM(E172:I172) -> 0 | L172: =SUM(E172:G172) -> 0
B173: Desal capitalised costs (capex) | C173: =C167/$D$161*C$161 -> 32.0505618 | D173: 32.75280899 | E173: 58.55826514 | F173: 69.92215463 | G173: 87.97189598 | H173: 100.5914065 | I173: 112.3582655 | J173: =SUM(E173:I173) -> 429.4019878 | L173: =SUM(E173:G173) -> 216.4523158

Sheet KeyAssumptionsPriceControl_FO
A1: 80 | B1: Key Assumptions Price Control
B2: =+Contents!H7 -> Melbourne Water
B3: Go to Table of Contents
L4: FIRST REG PERIOD | P4: SECOND REG PERIOD | T4: THIRD REG PERIOD | X4: FOURTH REG PERIOD | AC4: FIFTH REG PERIOD | AH4: SIXTH REG PERIOD
F6: Straight Line | K6: 2006 | L6: 2007 | M6: 2008 | N6: 2009 | O6: 2010 | P6: 2011 | Q6: 2012 | R6: 2013 | S6: 2014 | T6: 2015 | U6: 2016 | V6: 2017 | W6: 2018 | X6: 2019 | Y6: 2020 | Z6: 2021 | AA6: 2022 | AB6: 2023 | AC6: 2024 | AD6: 2025 | AE6: 2026 | AF6: 2027 | AG6: 2028 | AH6: 2029 | AI6: 2030 | AJ6: 2031
F7: Declining Balance | I7: 2003-04 | J7: 2004-05 | K7: =+CONCATENATE(K6-1,"-",RIGHT(K6,2)) -> 2005-06 | L7: =+CONCATENATE(L6-1,"-",RIGHT(L6,2)) -> 2006-07 | M7: 2007-08 | N7: 2008-09 | O7: 2009-10 | P7: 2010-11 | Q7: 2011-12 | R7: 2012-13 | S7: 2013-14 | T7: 2014-15 | U7: 2015-16 | V7: 2016-17 | W7: 2017-18 | X7: 2018-19 | Y7: 2019-20 | Z7: 2020-21 | AA7: 2021-22 | AB7: 2022-23 | AC7: 2023-24 | AD7: 2024-25 | AE7: 2025-26 | AF7: =+CONCATENATE(AF6-1,"-",RIGHT(AF6,2)) -> 2026-27 | AG7: =+CONCATENATE(AG6-1,"-",RIGHT(AG6,2)) -> 2027-28 | AH7: =+CONCATENATE(AH6-1,"-",RIGHT(AH6,2)) -> 2028-29 | AI7: =+CONCATENATE(AI6-1,"-",RIGHT(AI6,2)) -> 2029-30 | AJ7: =+CONCATENATE(AJ6-1,"-",RIGHT(AJ6,2)) -> 2030-31
E11: Inflation assumptions
F13: March quarter annual CPI | I13: 141.3 | J13: 144.1 | K13: 147.5 | L13: 151.9 | M13: 155.6 | N13: 162.2 | O13: 166.2 | P13: 171 | Q13: 176.7 | R13: 99.9 | S13: 102.4 | T13: 105.4 | U13: 106.8 | V13: 108.2 | W13: 110.5 | X13: 112.6 | Y13: 114.1 | Z13: 116.6
F14: Inflation | J14: =+J13/I13-1 -> 0.01981599434 | K14: 0.02359472588 | L14: 0.02983050847 | M14: 0.02435813035 | N14: 0.04241645244 | O14: 0.02466091245 | P14: 0.02888086643 | Q14: 0.03333333333 | R14: 0.01584606678 | S14: =+IF(S13=0,$AA$43,S13/R13-1) -> 0.02502502503 | T14: 0.029296875 | U14: 0.01328273245 | V14: 0.01310861423 | W14: 0.02125693161 | X14: 0.01900452489 | Y14: 0.01332149201 | Z14: 0.02191060473 | AA14: 0.017 | AB14: 0.017 | AC14: 0.017 | AD14: 0.017 | AE14: 0.017 | AF14: 0.017 | AG14: 0.017 | AH14: 0.017 | AI14: 0.017 | AJ14: 0.017
F15: Inflation factor | I15: 0.7871866295 | J15: 0.8027855153 | K15: 0.8217270195 | L15: 0.8462395543 | M15: 0.8668523677 | N15: 0.9036211699 | O15: 0.9259052925 | P15: 0.9526462396 | Q15: 0.9844011142 | R15: =+R13/$Z$13 -> 0.8567753002 | S15: 0.8782161235 | T15: 0.9039451115 | U15: 0.9159519726 | V15: 0.9279588336 | W15: 0.9476843911 | X15: =+X13/$Z$13 -> 0.9656946827 | Y15: =+Y13/$Z$13 -> 0.9785591767 | Z15: =+Z13/$Z$13 -> 1 | AA15: =+Z15*(1+AA14) -> 1.017 | AB15: 1.034289 | AC15: 1.051871913 | AD15: 1.069753736 | AE15: 1.087939549 | AF15: 1.106434521 | AG15: =+AF15*(1+AG14) -> 1.125243908 | AH15: =+AG15*(1+AH14) -> 1.144373055 | AI15: =+AH15*(1+AI14) -> 1.163827397 | AJ15: =+AI15*(1+AJ14) -> 1.183612462
I16: CPI index re-referenced in 2012-13, shaded values have been hardcoded to lock in RAB value.
E21: Cost of debt - 10 year trailing average (Nominal) | Z21: ESC will email the cost of debt figure (once RBA publishes the data on its website) during April 2021 to be updated by MW
Z22: Estimate
E23: Cost of debt | L23: 0.06981666667 | M23: 0.07414 | N23: 0.0691525788 | O23: 0.07361870984 | P23: 0.07046784142 | Q23: 0.06308887941 | R23: 0.0526945046 | S23: 0.070525 | T23: 0.05360833333 | U23: 0.05270138413 | V23: 0.04908333333 | W23: 0.045283 | X23: 0.04613333333 | Y23: 0.03305833333 | Z23: 0.03158333333
E25: Cost of debt - 10 year trailing average | V25: =IF(U23<>"",AVERAGE(L23:U23),"") -> 0.06498138982 | W25: 0.06290805649 | X25: 0.06002235649 | Y25: 0.05772043194 | Z25: 0.05366439429 | AA25: 0.04977594348
E29: WACC assumptions (retained for historical purposes only) | X29: Regulatory Rate of Return (RRR) - Nominal
K31: 1st period | M31: 2nd period | O31: 3rd period | Q31: 4th period | X31: Cost of Debt | AA31: =+AA25 -> 0.04977594348 | AB31: =+$AA$31 -> 0.04977594348 | AC31: 0.04977594348 | AD31: 0.04977594348 | AE31: 0.04977594348 | AF31: 0.04977594348 | AG31: 0.04977594348 | AH31: =+$AA$31 -> 0.04977594348 | AI31: =+$AA$31 -> 0.04977594348 | AJ31: =+$AA$31 -> 0.04977594348 | AL31: << Linked to Benchmark tax liability calculation (Rev&RAV_FO)
E32: Parameters
F33: Risk Free Rate (Real) | K33: 0.0267 | M33: 0.022185 | O33: 0.005959 | Q33: 0.0072
F34: Debt Premium | K34: 0.0116 | M34: 0.0225 | O34: 0.0399 | Q34: 0.0315
F35: Equity Premium | K35: 0.06 | M35: 0.06 | O35: 0.06 | Q35: 0.06 | X35: Regulatory Rate of Return (RRR) - Real
F36: Equity Beta | K36: 0.75 | M36: 0.65 | O36: 0.65 | Q36: 0.65
F37: Gearing (Debt/Assets) | K37: 0.6 | M37: 0.6 | O37: 0.6 | Q37: 0.6 | X37: Cost of Debt | AA37: =(1+AA31)/(1+AA43)-1 -> 0.03222806635 | AB37: =+$AA$37 -> 0.03222806635 | AC37: 0.03222806635 | AD37: 0.03222806635 | AE37: 0.03222806635 | AF37: 0.03222806635 | AG37: 0.03222806635 | AH37: =+$AA$37 -> 0.03222806635 | AI37: =+$AA$37 -> 0.03222806635 | AJ37: =+$AA$37 -> 0.03222806635
F38: Forecast Inflation | K38: 0.0255 | M38: 0.025 | O38: 0.0275 | Q38: 0.022
F39: Franking credit value | K39: 0.5 | M39: 0.5 | O39: 0.5 | Q39: 0.5 | X39: Return on Equity | AA39: =IF(AJ64<>0,(AJ64/100),IF(AJ62<>0,(AJ62/100),(AJ60/100))) -> 0.042 | AB39: =+$AA$39 -> 0.042 | AC39: 0.042 | AD39: 0.042 | AE39: 0.042 | AF39: 0.042 | AG39: 0.042 | AH39: =+$AA$39 -> 0.042 | AI39: =+$AA$39 -> 0.042 | AJ39: =+$AA$39 -> 0.042
E41: 'Vanilla' After Tax WACC (Real) | K41: =ROUND(((K33+K35*K36)*(1-K37))+((K33+K34)*K37),3) -> 0.052 | M41: =ROUND(((M33+M35*M36)*(1-M37))+((M33+M34)*M37),3) -> 0.051 | O41: =ROUND(((O33+O35*O36)*(1-O37))+((O33+O34)*O37),3) -> 0.045 | Q41: =ROUND(((Q33+Q35*Q36)*(1-Q37))+((Q33+Q34)*Q37),3) -> 0.042 | X41: RRR (real) | AA41: =ROUND((AA39*(1-AA42)+AA37*AA42),4) -> 0.0361 | AB41: =ROUND((AB39*(1-AB42)+AB37*AB42),4) -> 0.0361 | AC41: 0.0361 | AD41: 0.0361 | AE41: 0.0361 | AF41: 0.0361 | AG41: 0.0361 | AH41: =ROUND((AH39*(1-AH42)+AH37*AH42),4) -> 0.0361 | AI41: =ROUND((AI39*(1-AI42)+AI37*AI42),4) -> 0.0361 | AJ41: =ROUND((AJ39*(1-AJ42)+AJ37*AJ42),4) -> 0.0361
X42: Gearing | AA42: 0.6 | AB42: =+AA42 -> 0.6 | AC42: =+AB42 -> 0.6 | AD42: 0.6 | AE42: 0.6 | AF42: 0.6 | AG42: 0.6 | AH42: =+AG42 -> 0.6 | AI42: 0.6 | AJ42: 0.6
X43: Forecast Inflation | AA43: 0.017 | AB43: =+AA43 -> 0.017 | AC43: 0.017 | AD43: 0.017 | AE43: 0.017 | AF43: 0.017 | AG43: 0.017 | AH43: 0.017 | AI43: 0.017 | AJ43: 0.017 | AL43: <<< forecast inflation is set based on the forecast inflation calculated by the Department of Treasury and Finance (https://www.dtf.vic.gov.au/state-financial-data-sets/macroeconomic-indicators)
E45: Form of price control selected
E47: Price caps | I47: 1
X48: PREMO Graded Scoring System (for reference only) | AE48: PREMO Assessment Matrix (linked to Regulatory Rate of Return calculation above)
E49: Revenue cap / Hybrid Tariff Basket
Y51: Water business | AA51: ESC assessment | AC51: Difference | AG51: Water business self-assessment
Y52: self-assessment | AA52: of submission
AG53: Leading | AH53: Advanced | AI53: Standard | AJ53: Basic
X54: Risk | Y54: [Select] | AC54: =IFERROR(IF(AA54=0,"",AA54-Y54),"") ->  | AE54: ESC assessment of submission | AF54: Leading | AG54: 5.1
X55: Engagement | Y55: [Select] | AC55: =IFERROR(IF(AA55=0,"",AA55-Y55),"") ->  | AF55: Advanced | AG55: 4.6 | AH55: 4.8
X56: Management | Y56: [Select] | AC56: =IFERROR(IF(AA56=0,"",AA56-Y56),"") ->  | AF56: Standard | AG56: 4 | AH56: 4.2 | AI56: 4.5
X57: Outcomes | Y57: [Select] | AC57: =IFERROR(IF(AA57=0,"",AA57-Y57),"") ->  | AF57: Basic | AI57: 3.5 | AJ57: 4
X59: Total Score | Y59: =SUM(Y54:Y57) -> 0 | AA59: =SUM(AA54:AA57) -> 0 | AC59: =IFERROR(IF(AA59=0,"",AA59-Y59),"") -> 
AE60: Water business self-assessment (Maximum allowable ROE) | AI60: Advanced | AJ60: =+VLOOKUP(AI60,$AI$71:$AL$75,2,FALSE) -> 4.8
AE62: ROE Override (Must be less than Maximum allowable ROE) | AJ62: =+IF(AI62<=AJ60,AI62,"CHECK") -> 0
X63: Rating | Y63: =IF(Y59<4,"",IF(AND(Y59>=4,Y59<=7.25),"Basic",IF(AND(Y59>=7.5,Y59<=11.25),"Standard",IF(AND(Y59>=11.5,Y59<=15.25),"Advanced",IF(AND(Y59>=15.5,Y59<=16),"Leading"))))) ->  | AA63: =IF(AA59<4,"",IF(AND(AA59>=4,AA59<=7.25),"Basic",IF(AND(AA59>=7.5,AA59<=11.25),"Standard",IF(AND(AA59>=11.5,AA59<=15.25),"Advanced",IF(AND(AA59>=15.5,AA59<=16),"Leading"))))) -> 
AE64: ESC assessment of submission | AI64: Standard | AJ64: =IFERROR(IF(AI64=AI60,AJ60,VLOOKUP(AI60&AI64,AI78:AL82,2,FALSE)),0) -> 4.2
AI66: Difference | AJ66: =IFERROR(IF(AJ64=0,"",AJ64-AJ60),"") -> -0.6
X69: ESC USE ONLY
Z70: [Select] | AB70: Rating | AC70: Aggregate score for overall PREMO rating | AI70: Business self assessment
Z71: 1 | AB71: Leading | AC71: 15.5 to 16.0 | AI71: [Select]
Z72: 1.25 | AB72: Advanced | AC72: 11.5 to 15.25 | AI72: Leading | AJ72: =+AG54 -> 5.1
Z73: 1.5 | AB73: Standard | AC73: 7.5 to 11.25 | AI73: Advanced | AJ73: =+AH55 -> 4.8
Z74: 1.75 | AB74: Basic | AC74: 4.0 to 7.25 | AI74: Standard | AJ74: =+AI56 -> 4.5
Z75: 2 | AI75: Basic | AJ75: =+AJ57 -> 4
Z76: 2.25
Z77: 2.5 | AI77: downgrading
Z78: 2.75 | AI78: =AI53&AF57 -> StandardBasic | AJ78: =+AI57 -> 3.5
Z79: 3 | AI79: =+AH53&AF56 -> AdvancedStandard | AJ79: =+AH56 -> 4.2
Z80: 3.25 | AI80: =+AG53&AF55 -> LeadingAdvanced | AJ80: =+AG55 -> 4.6
Z81: 3.5 | AI81: =+AG53&AF56 -> LeadingStandard | AJ81: =+AG56 -> 4
Z82: 3.75 | AI82: =+AI60&"Basic" -> AdvancedBasic | AJ82: CHECK
Z83: 4

Sheet Expenditure_Detail
B1: Expenditure - Detail
B2: =Model_Name -> Melbourne Water
B3: Go to Table of Contents
L4: FIRST REG PERIOD | P4: SECOND REG PERIOD | T4: THIRD REG PERIOD | X4: FOURTH REG PERIOD | AC4: FIFTH REG PERIOD | AH4: SIXTH REG PERIOD
K5: 2006 | L5: 2007 | M5: 2008 | N5: 2009 | O5: 2010 | P5: 2011 | Q5: 2012 | R5: 2013 | S5: 2014 | T5: 2015 | U5: 2016 | V5: 2017 | W5: 2018 | X5: 2019 | Y5: 2020 | Z5: 2021 | AA5: 2022 | AB5: 2023 | AC5: 2024 | AD5: 2025 | AE5: 2026 | AF5: 2027 | AG5: 2028 | AH5: 2029 | AI5: 2030 | AJ5: 2031
B6: $m, 01/01/21 | K6: =+CONCATENATE(K5-1,"-",RIGHT(K5,2)) -> 2005-06 | L6: =+CONCATENATE(L5-1,"-",RIGHT(L5,2)) -> 2006-07 | M6: 2007-08 | N6: 2008-09 | O6: 2009-10 | P6: 2010-11 | Q6: 2011-12 | R6: 2012-13 | S6: 2013-14 | T6: 2014-15 | U6: 2015-16 | V6: 2016-17 | W6: 2017-18 | X6: 2018-19 | Y6: 2019-20 | Z6: 2020-21 | AA6: 2021-22 | AB6: 2022-23 | AC6: 2023-24 | AD6: 2024-25 | AE6: 2025-26 | AF6: 2026-27 | AG6: =+CONCATENATE(AG5-1,"-",RIGHT(AG5,2)) -> 2027-28 | AH6: =+CONCATENATE(AH5-1,"-",RIGHT(AH5,2)) -> 2028-29 | AI6: =+CONCATENATE(AI5-1,"-",RIGHT(AI5,2)) -> 2029-30 | AJ6: =+CONCATENATE(AJ5-1,"-",RIGHT(AJ5,2)) -> 2030-31
B8: This worksheet outlines the key cost drivers of operating expenditure - capitalised costs are excluded. This tab does not link to the Rev&RAV_FO worksheet
C11: Expenditure Summary
D13: Total Labour costs | U13: =U34 -> 128.9799524 | V13: =V34 -> 135.5759556 | W13: 135.7682751 | X13: 139.8056607 | Y13: 144.6940332 | Z13: 143.144107 | AA13: 137.5193192 | AB13: 137.8714037 | AC13: 137.2764714 | AD13: 137.1518069 | AE13: 136.5733143 | AF13: 136.5733143 | AG13: 136.5733143 | AH13: 136.5733143 | AI13: 136.5733143 | AJ13: 136.5733143
D14: Total Energy costs | U14: =U92 -> 35.18562677 | V14: =V92 -> 39.97060325 | W14: 40.7840436 | X14: 41.3036827 | Y14: 49.87321186 | Z14: 46.3350098 | AA14: 40.2316132 | AB14: 33.51126042 | AC14: 36.22686407 | AD14: 34.77931937 | AE14: 41.09310954 | AF14: 35.96410379 | AG14: 35.96410379 | AH14: 35.96410379 | AI14: 35.96410379 | AJ14: 35.96410379
D15: Total IT costs | U15: =U103 -> 22.54258979 | V15: =V103 -> 23.70201814 | W15: 24.71535076 | X15: 24.91043301 | Y15: 25.64114611 | Z15: 26.3698032 | AA15: 28.41521627 | AB15: 29.43492447 | AC15: 30.54306316 | AD15: 31.39171999 | AE15: 31.86698841 | AF15: 31.86698841 | AG15: 31.86698841 | AH15: 31.86698841 | AI15: 31.86698841 | AJ15: 31.86698841
D16: Total Chemical costs | U16: =U114 -> 7.182278126 | V16: =V114 -> 8.911619733 | W16: 8.976733615 | X16: 9.124175796 | Y16: 9.362663555 | Z16: 9.90357838 | AA16: 9.799628627 | AB16: 10.2223438 | AC16: 10.63050041 | AD16: 10.52089571 | AE16: 10.65062607 | AF16: 10.65062607 | AG16: 10.65062607 | AH16: 10.65062607 | AI16: 10.65062607 | AJ16: 10.65062607
C21: Labour assumptions
D23: Current FTEs (at 30 June) | U23: 943.2 | V23: 1002.1 | W23: 1029.3 | X23: 1085 | Y23: 1128.3
D24: Actual and forecast labour costs for current FTEs ($m) | U24: 128.9799524 | V24: 135.5759556 | W24: 135.7682751 | X24: 139.8056607 | Y24: 144.6940332 | Z24: 144.6940332 | AA24: 144.6940332 | AB24: 144.6940332 | AC24: 144.6940332 | AD24: 144.6940332 | AE24: 144.6940332 | AF24: 144.6940332 | AG24: 144.6940332 | AH24: 144.6940332 | AI24: 144.6940332 | AJ24: 144.6940332
D25: Cost per FTE ($000) | U25: =+U24/U23*10^3 -> 136.747193 | V25: =+V24/V23*10^3 -> 135.2918428 | W25: =+W24/W23*10^3 -> 131.9035025 | X25: =+X24/X23*10^3 -> 128.8531435 | Y25: =+Y24/Y23*10^3 -> 128.2407456 | Z25: =+Z24/$Y$23*10^3 -> 128.2407456 | AA25: =+AA24/$Y$23*10^3 -> 128.2407456 | AB25: 128.2407456 | AC25: 128.2407456 | AD25: 128.2407456 | AE25: 128.2407456 | AF25: 128.2407456 | AG25: 128.2407456 | AH25: 128.2407456 | AI25: 128.2407456 | AJ25: 128.2407456
D26: Annual growth in labour costs for current FTEs | V26: =+V25/U25-1 -> -0.01064263301 | W26: -0.02504467525 | X26: -0.02312568618 | Y26: -0.004752681334 | Z26: 0 | AA26: 0 | AB26: 0 | AC26: 0 | AD26: 0 | AE26: 0 | AF26: 0 | AG26: 0 | AH26: 0 | AI26: 0 | AJ26: 0
D28: Change in FTEs in future periods (net no. annual change) | Z28: 36.8 | AA28: 0 | AB28: 0 | AC28: 0 | AD28: 0 | AE28: 0 | AF28: 0 | AG28: 0 | AH28: 0 | AI28: 0 | AJ28: 0
D29: Increase or decrease in labour costs ($m) | Z29: -1.549926223 | AA29: -7.174713988 | AB29: -6.822629512 | AC29: -7.417561779 | AD29: -7.542226364 | AE29: -8.120718919 | AF29: -8.120718919 | AG29: -8.120718919 | AH29: -8.120718919 | AI29: -8.120718919 | AJ29: -8.120718919
D33: Total FTEs | U33: =+U23 -> 943.2 | V33: 1002.1 | W33: 1029.3 | X33: 1085 | Y33: 1128.3 | Z33: =+$Y$23+SUM($Z28:Z28) -> 1165.1 | AA33: =+$Y$23+SUM($Z28:AA28) -> 1165.1 | AB33: =+$Y$23+SUM($Z28:AB28) -> 1165.1 | AC33: =+$Y$23+SUM($Z28:AC28) -> 1165.1 | AD33: =+$Y$23+SUM($Z28:AD28) -> 1165.1 | AE33: =+$Y$23+SUM($Z28:AE28) -> 1165.1 | AF33: =+$Y$23+SUM($Z28:AF28) -> 1165.1 | AG33: =+$Y$23+SUM($Z28:AG28) -> 1165.1 | AH33: =+$Y$23+SUM($Z28:AH28) -> 1165.1 | AI33: =+$Y$23+SUM($Z28:AI28) -> 1165.1 | AJ33: =+$Y$23+SUM($Z28:AJ28) -> 1165.1
D34: Total labour costs ($m) | U34: 128.9799524 | V34: 135.5759556 | W34: 135.7682751 | X34: 139.8056607 | Y34: 144.6940332 | Z34: =+Z29+Z24 -> 143.144107 | AA34: =+AA29+AA24 -> 137.5193192 | AB34: 137.8714037 | AC34: 137.2764714 | AD34: 137.1518069 | AE34: 136.5733143 | AF34: 136.5733143 | AG34: 136.5733143 | AH34: 136.5733143 | AI34: 136.5733143 | AJ34: 136.5733143
D35: Cost per FTE | U35: =+U34/U33 -> 0.136747193 | V35: =+V34/V33 -> 0.1352918428 | W35: =+W34/W33 -> 0.1319035025 | X35: 0.1288531435 | Y35: =+Y34/Y33 -> 0.1282407456 | Z35: =+Z34/Z33 -> 0.1228599322 | AA35: =+AA34/AA33 -> 0.1180322026 | AB35: 0.1183343951 | AC35: 0.1178237674 | AD35: 0.1177167684 | AE35: 0.1172202509 | AF35: 0.1172202509 | AG35: =+AG34/AG33 -> 0.1172202509 | AH35: =+AH34/AH33 -> 0.1172202509 | AI35: =+AI34/AI33 -> 0.1172202509 | AJ35: =+AJ34/AJ33 -> 0.1172202509
D36: Annual growth in total labour costs | V36: =+V34/U34-1 -> 0.05113975558 | W36: 0.001418536841 | X36: 0.02973732682 | Y36: 0.03496548355 | Z36: -0.0107117494 | AA36: -0.0392945814 | AB36: 0.002560254641 | AC36: -0.00431512446 | AD36: -0.0009081278367 | AE36: -0.004217899631 | AF36: 0 | AG36: 0 | AH36: 0 | AI36: 0 | AJ36: 0
D37: Annual growth in total labour costs per FTE | V37: =+V35/U35-1 -> -0.01064263301 | W37: -0.02504467525 | X37: -0.02312568618 | Y37: -0.004752681334 | Z37: -0.04195868753 | AA37: -0.0392945814 | AB37: 0.002560254641 | AC37: -0.00431512446 | AD37: -0.0009081278367 | AE37: -0.004217899631 | AF37: 0 | AG37: 0 | AH37: 0 | AI37: 0 | AJ37: 0
C42: Energy assumptions
D44: Electricity - traditional sources
D46: BASE LOAD
D48: Large sites
D49: Total kWh | U49: 219483164.8 | V49: 233483822.2 | W49: 224988260 | X49: 225237630.3 | Y49: 273529493.2 | Z49: 210140689.1 | AA49: 195063281.4 | AB49: 183775274.8 | AC49: 193656980.7 | AD49: 182410329.7 | AE49: 199964417.6 | AF49: 186247506.1 | AG49: 186247506.1 | AH49: 186247506.1 | AI49: 186247506.1 | AJ49: 186247506.1
D50: Total electricity costs ($m) | U50: 34.7901413 | V50: 39.50420985 | W50: 40.29749939 | X50: 40.8927115 | Y50: 49.46899922 | Z50: 45.92957516 | AA50: 43.32797073 | AB50: 39.59758466 | AC50: 42.33200787 | AD50: 40.90365535 | AE50: 47.25551601 | AF50: 42.12651026 | AG50: 42.12651026 | AH50: 42.12651026 | AI50: 42.12651026 | AJ50: 42.12651026
D51: Average c/kWh | U51: =+U50/U49*100*10^6 -> 15.85093842 | V51: 16.9194634 | W51: 17.91093428 | X51: 18.15536394 | Y51: 18.08543519 | Z51: 21.85658349 | AA51: 22.21226385 | AB51: 21.54674218 | AC51: =+AC50/AC49*100*10^6 -> 21.85927288 | AD51: 22.42397973 | AE51: 23.63196241 | AF51: 22.61856341 | AG51: 22.61856341 | AH51: 22.61856341 | AI51: 22.61856341 | AJ51: 22.61856341
D52: % increase p.a. | V52: =+V51/U51-1 -> 0.06741083405 | W52: 0.05859942805 | X52: 0.01364695167 | Y52: -0.003851685178 | Z52: 0.2085185264 | AA52: 0.01627337407 | AB52: -0.0299619017 | AC52: =+AC51/AB51-1 -> 0.01450477738 | AD52: 0.0258337436 | AE52: 0.05387012919 | AF52: -0.04288255829 | AG52: 0 | AH52: 0 | AI52: 0 | AJ52: 0
D54: Medium sites
D55: Total kWh
D56: Total electricity costs ($m)
D57: Average c/kWh | U57: =+U56/U55*100*10^6 ->  | AC57: =+AC56/AC55*100*10^6 -> 
D58: % increase p.a. | V58: =+V57/U57-1 ->  | AC58: =+AC57/AB57-1 -> 
D60: Small sites
D61: Total kWh | U61: 1133461.029 | V61: 1326326.052 | W61: 1226774.798 | X61: 866760.4005 | Y61: 784766.1343 | Z61: 784766.1343 | AA61: 784766.1343 | AB61: 784766.1343 | AC61: 784766.1343 | AD61: 784766.1343 | AE61: 784766.1343 | AF61: 784766.1343 | AG61: 784766.1343 | AH61: 784766.1343 | AI61: 784766.1343 | AJ61: 784766.1343
D62: Total electricity costs ($m) | U62: 0.3954854704 | V62: 0.4663934031 | W62: 0.4865442103 | X62: 0.4109712003 | Y62: 0.4042126467 | Z62: 0.4054346446 | AA62: 0.4074220693 | AB62: 0.4084182113 | AC62: 0.4084182113 | AD62: 0.4084182113 | AE62: 0.3900891989 | AF62: 0.3900891989 | AG62: 0.3900891989 | AH62: 0.3900891989 | AI62: 0.3900891989 | AJ62: 0.3900891989
D63: Average c/kWh | U63: =+U62/U61*100*10^6 -> 34.89184545 | V63: 35.1643099 | W63: 39.6604341 | X63: 47.41462577 | Y63: 51.50740189 | Z63: 51.6631168 | AA63: 51.91636738 | AB63: 52.04330226 | AC63: =+AC62/AC61*100*10^6 -> 52.04330226 | AD63: 52.04330226 | AE63: 49.7077004 | AF63: 49.7077004 | AG63: 49.7077004 | AH63: 49.7077004 | AI63: 49.7077004 | AJ63: 49.7077004
D64: % increase p.a. | V64: =+V63/U63-1 -> 0.007808828838 | W64: 0.1278604417 | X64: 0.1955145438 | Y64: 0.08631885302 | Z64: 0.003023156089 | AA64: 0.004901960784 | AB64: 0.002444987775 | AC64: =+AC63/AB63-1 -> 0 | AD64: 0 | AE64: -0.04487804878 | AF64: 0 | AG64: 0 | AH64: 0 | AI64: 0 | AJ64: 0
D67: NEW PROJECTS
D69: Large sites
D70: Total kWh | U70: 0 | V70: 0 | W70: 0 | X70: 0 | Y70: 0 | Z70: 0 | AA70: -5534240.857 | AB70: -8712022.81 | AC70: -8573138.228 | AD70: -8437827.082 | AE70: -8306109.463 | AF70: -8306109.463 | AG70: -8306109.463 | AH70: -8306109.463 | AI70: -8306109.463 | AJ70: -8306109.463
D71: Total electricity costs ($m) | U71: 0 | V71: 0 | W71: 0 | X71: 0 | Y71: 0 | Z71: 0 | AA71: -3.503779608 | AB71: -6.494742443 | AC71: -6.513562006 | AD71: -6.532754187 | AE71: -6.552495669 | AF71: -6.552495669 | AG71: -6.552495669 | AH71: -6.552495669 | AI71: -6.552495669 | AJ71: -6.552495669
D72: Average c/kWh | U72: =+U71/U70*100*10^6 ->  | AA72: 63.31093457 | AB72: 74.54919007 | AC72: =+AC71/AC70*100*10^6 -> 75.97640248 | AD72: 77.42223351 | AE72: 78.88766334 | AF72: 78.88766334 | AG72: 78.88766334 | AH72: 78.88766334 | AI72: 78.88766334 | AJ72: 78.88766334
D73: % increase p.a. | V73: =+V72/U72-1 ->  | AB73: 0.177508918 | AC73: =+AC72/AB72-1 -> 0.01914457308 | AD73: 0.01903000118 | AE73: 0.0189277648 | AF73: 0 | AG73: 0 | AH73: 0 | AI73: 0 | AJ73: 0
D75: Medium sites
D76: Total kWh
D77: Total electricity costs ($m)
D78: Average c/kWh | U78: =+U77/U76*100*10^6 ->  | AC78: =+AC77/AC76*100*10^6 -> 
D79: % increase p.a. | V79: =+V78/U78-1 ->  | AC79: =+AC78/AB78-1 -> 
D81: Small sites
D82: Total kWh
D83: Total electricity costs ($m)
D84: Average c/kWh | U84: =+U83/U82*100*10^6 ->  | AG84: =+AG83/AG82*100*10^6 ->  | AH84: =+AH83/AH82*100*10^6 ->  | AI84: =+AI83/AI82*100*10^6 ->  | AJ84: =+AJ83/AJ82*100*10^6 -> 
D85: % increase p.a. | V85: =+V84/U84-1 ->  | AC85: =+AC84/AB84-1 -> 
D88: Greenhouse Gas Offsets
D89: % increase p.a. | V89: =V88/U88-1 ->  | AG89: =AG88/AF88-1 ->  | AH89: =AH88/AG88-1 ->  | AI89: =AI88/AH88-1 ->  | AJ89: =AJ88/AI88-1 -> 
D92: TOTAL ENERGY COSTS | N92: =+SUM(N50,N56,N62,N71,N77,N83,N88) -> 0 | O92: =+SUM(O50,O56,O62,O71,O77,O83,O88) -> 0 | P92: 0 | Q92: 0 | U92: 35.18562677 | V92: 39.97060325 | W92: 40.7840436 | X92: 41.3036827 | Y92: 49.87321186 | Z92: 46.3350098 | AA92: 40.2316132 | AB92: 33.51126042 | AC92: 36.22686407 | AD92: 34.77931937 | AE92: 41.09310954 | AF92: 35.96410379 | AG92: =+SUM(AG50,AG56,AG62,AG71,AG77,AG83,AG88) -> 35.96410379 | AH92: =+SUM(AH50,AH56,AH62,AH71,AH77,AH83,AH88) -> 35.96410379 | AI92: =+SUM(AI50,AI56,AI62,AI71,AI77,AI83,AI88) -> 35.96410379 | AJ92: =+SUM(AJ50,AJ56,AJ62,AJ71,AJ77,AJ83,AJ88) -> 35.96410379
D93: % increase p.a. | V93: =V92/U92-1 -> 0.1359923615 | W93: 0.02035096499 | X93: 0.01274123551 | Y93: 0.2074761522 | Z93: -0.07094393822 | AA93: -0.1317232182 | AB93: -0.1670415934 | AC93: 0.08103555676 | AD93: -0.03995776986 | AE93: 0.1815386351 | AF93: -0.1248142525 | AG93: =AG92/AF92-1 -> 0 | AH93: =AH92/AG92-1 -> 0 | AI93: =AI92/AH92-1 -> 0 | AJ93: =AJ92/AI92-1 -> 0
C98: IT cost assumptions
D100: Water related IT costs | U100: 7.795409531 | V100: 7.986761321 | W100: 8.32615922 | X100: 8.366223626 | Y100: 7.681212153 | Z100: 7.99426519 | AA100: 8.522023078 | AB100: 8.827935548 | AC100: 9.160377138 | AD100: 9.414974199 | AE100: 9.557554729 | AF100: 9.557554729 | AG100: 9.557554729 | AH100: 9.557554729 | AI100: 9.557554729 | AJ100: 9.557554729
D101: Sewerage and trade waste related IT costs | U101: 7.023380221 | V101: 7.142901614 | W101: 7.480208028 | X101: 7.51274584 | Y101: 9.088745016 | Z101: 9.34386641 | AA101: 10.08823554 | AB101: 10.45574362 | AC101: 10.85490982 | AD101: 11.15934212 | AE101: 11.32948827 | AF101: 11.32948827 | AG101: 11.32948827 | AH101: 11.32948827 | AI101: 11.32948827 | AJ101: 11.32948827
D102: Other IT costs | U102: 7.723800042 | V102: 8.572355208 | W102: 8.908983518 | X102: 9.031463543 | Y102: 8.871188945 | Z102: 9.0316716 | AA102: 9.804957657 | AB102: 10.1512453 | AC102: 10.52777621 | AD102: 10.81740367 | AE102: 10.97994541 | AF102: 10.97994541 | AG102: 10.97994541 | AH102: 10.97994541 | AI102: 10.97994541 | AJ102: 10.97994541
D103: Total IT costs | U103: =SUM(U100:U102) -> 22.54258979 | V103: 23.70201814 | W103: 24.71535076 | X103: 24.91043301 | Y103: 25.64114611 | Z103: 26.3698032 | AA103: 28.41521627 | AB103: 29.43492447 | AC103: =SUM(AC100:AC102) -> 30.54306316 | AD103: 31.39171999 | AE103: 31.86698841 | AF103: 31.86698841 | AG103: 31.86698841 | AH103: 31.86698841 | AI103: 31.86698841 | AJ103: 31.86698841
D104: % increase p.a. | V104: =V103/U103-1 -> 0.0514327927 | W104: 0.04275301016 | X104: 0.007893161056 | Y104: 0.02933361714 | Z104: 0.02841749285 | AA104: 0.07756648994 | AB104: 0.03588599114 | AC104: 0.03764707095 | AD104: 0.02778558336 | AE104: 0.01513992925 | AF104: 0 | AG104: =AG103/AF103-1 -> 0 | AH104: =AH103/AG103-1 -> 0 | AI104: =AI103/AH103-1 -> 0 | AJ104: =AJ103/AI103-1 -> 0
C109: Chemical cost assumptions
D111: Water related chemical costs | U111: 5.157081311 | V111: 6.411798901 | W111: 6.146527921 | X111: 6.279550482 | Y111: 6.266818233 | Z111: 6.8530924 | AA111: 6.744168873 | AB111: 6.876296543 | AC111: 7.073596344 | AD111: 6.904513996 | AE111: 6.971403651 | AF111: 6.971403651 | AG111: 6.971403651 | AH111: 6.971403651 | AI111: 6.971403651 | AJ111: 6.971403651
D112: Sewerage and trade waste related chemical costs | U112: 1.954658927 | V112: 2.389438399 | W112: 2.740502096 | X112: 2.723741652 | Y112: 2.988859969 | Z112: 2.95474228 | AA112: 2.945241814 | AB112: 3.235829282 | AC112: 3.446686119 | AD112: 3.506163752 | AE112: 3.569004458 | AF112: 3.569004458 | AG112: 3.569004458 | AH112: 3.569004458 | AI112: 3.569004458 | AJ112: 3.569004458
D113: Other chemical costs | U113: 0.07053788876 | V113: 0.1103824325 | W113: 0.08970359837 | X113: 0.1208836624 | Y113: 0.1069853541 | Z113: 0.0957437 | AA113: 0.1102179412 | AB113: 0.1102179779 | AC113: 0.1102179442 | AD113: 0.1102179624 | AE113: 0.1102179611 | AF113: 0.1102179611 | AG113: 0.1102179611 | AH113: 0.1102179611 | AI113: 0.1102179611 | AJ113: 0.1102179611
D114: Total chemical costs | U114: =SUM(U111:U113) -> 7.182278126 | V114: 8.911619733 | W114: 8.976733615 | X114: 9.124175796 | Y114: 9.362663555 | Z114: 9.90357838 | AA114: 9.799628627 | AB114: 10.2223438 | AC114: =SUM(AC111:AC113) -> 10.63050041 | AD114: 10.52089571 | AE114: 10.65062607 | AF114: 10.65062607 | AG114: 10.65062607 | AH114: 10.65062607 | AI114: 10.65062607 | AJ114: 10.65062607
D115: % increase p.a. | V115: =V114/U114-1 -> 0.2407789808 | W115: 0.007306627062 | X115: 0.0164249255 | Y115: 0.02613800572 | Z115: 0.05777360488 | AA115: -0.01049618113 | AB115: 0.04313583629 | AC115: 0.03992788853 | AD115: -0.01031039868 | AE115: 0.01233073339 | AF115: 0 | AG115: =AG114/AF114-1 -> 0 | AH115: =AH114/AG114-1 -> 0 | AI115: =AI114/AH114-1 -> 0 | AJ115: =AJ114/AI114-1 -> 0

Sheet Opex_FO_Summary
B1: Operating Expenditure - Forecast - Summary
B2: =Model_Name -> Melbourne Water
B3: Go to Table of Contents
L4: FIRST REG PERIOD | P4: SECOND REG PERIOD | T4: THIRD REG PERIOD | X4: FOURTH REG PERIOD | AC4: FIFTH REG PERIOD | AH4: SIXTH REG PERIOD
K5: 2006 | L5: 2007 | M5: 2008 | N5: 2009 | O5: 2010 | P5: 2011 | Q5: 2012 | R5: 2013 | S5: 2014 | T5: 2015 | U5: 2016 | V5: 2017 | W5: 2018 | X5: 2019 | Y5: 2020 | Z5: 2021 | AA5: 2022 | AB5: 2023 | AC5: 2024 | AD5: 2025 | AE5: 2026 | AF5: 2027 | AG5: 2028 | AH5: 2029 | AI5: 2030 | AJ5: 2031
B6: =Expenditure_Detail!$B$6 -> $m, 01/01/21 | K6: =+CONCATENATE(K5-1,"-",RIGHT(K5,2)) -> 2005-06 | L6: =+CONCATENATE(L5-1,"-",RIGHT(L5,2)) -> 2006-07 | M6: 2007-08 | N6: 2008-09 | O6: 2009-10 | P6: 2010-11 | Q6: 2011-12 | R6: 2012-13 | S6: 2013-14 | T6: 2014-15 | U6: 2015-16 | V6: 2016-17 | W6: 2017-18 | X6: 2018-19 | Y6: 2019-20 | Z6: 2020-21 | AA6: 2021-22 | AB6: 2022-23 | AC6: 2023-24 | AD6: 2024-25 | AE6: 2025-26 | AF6: =+CONCATENATE(AF5-1,"-",RIGHT(AF5,2)) -> 2026-27 | AG6: =+CONCATENATE(AG5-1,"-",RIGHT(AG5,2)) -> 2027-28 | AH6: =+CONCATENATE(AH5-1,"-",RIGHT(AH5,2)) -> 2028-29 | AI6: =+CONCATENATE(AI5-1,"-",RIGHT(AI5,2)) -> 2029-30 | AJ6: =+CONCATENATE(AJ5-1,"-",RIGHT(AJ5,2)) -> 2030-31
C9: Parameters | F9: 4th period | H9: 5th period
D11: Cost efficiency improvement rate (% per annum) | F11: =AVERAGE('Opex_FO_W&S'!F11,'Opex_FO_W&D'!F11) -> 0.02 | H11: =IFERROR(AVERAGE(AA11:AE11),"-") -> 0.012 | AA11: =IFERROR((('Opex_FO_W&S'!AA46/AA46)*'Opex_FO_W&S'!AA11)+(('Opex_FO_W&D'!AA46/AA46)*'Opex_FO_W&D'!AA11),"-") -> 0.012 | AB11: =IFERROR((('Opex_FO_W&S'!AB46/AB46)*'Opex_FO_W&S'!AB11)+(('Opex_FO_W&D'!AB46/AB46)*'Opex_FO_W&D'!AB11),"-") -> 0.012 | AC11: =IFERROR((('Opex_FO_W&S'!AC46/AC46)*'Opex_FO_W&S'!AC11)+(('Opex_FO_W&D'!AC46/AC46)*'Opex_FO_W&D'!AC11),"-") -> 0.012 | AD11: =IFERROR((('Opex_FO_W&S'!AD46/AD46)*'Opex_FO_W&S'!AD11)+(('Opex_FO_W&D'!AD46/AD46)*'Opex_FO_W&D'!AD11),"-") -> 0.012 | AE11: =IFERROR((('Opex_FO_W&S'!AE46/AE46)*'Opex_FO_W&S'!AE11)+(('Opex_FO_W&D'!AE46/AE46)*'Opex_FO_W&D'!AE11),"-") -> 0.012 | AF11: =IFERROR((('Opex_FO_W&S'!AF46/AF46)*'Opex_FO_W&S'!AF11)+(('Opex_FO_W&D'!AF46/AF46)*'Opex_FO_W&D'!AF11),"-") -> 0.0195 | AG11: =IFERROR((('Opex_FO_W&S'!AG46/AG46)*'Opex_FO_W&S'!AG11)+(('Opex_FO_W&D'!AG46/AG46)*'Opex_FO_W&D'!AG11),"-") -> 0.0195 | AH11: =IFERROR((('Opex_FO_W&S'!AH46/AH46)*'Opex_FO_W&S'!AH11)+(('Opex_FO_W&D'!AH46/AH46)*'Opex_FO_W&D'!AH11),"-") -> 0.0195 | AI11: =IFERROR((('Opex_FO_W&S'!AI46/AI46)*'Opex_FO_W&S'!AI11)+(('Opex_FO_W&D'!AI46/AI46)*'Opex_FO_W&D'!AI11),"-") -> 0.0195 | AJ11: =IFERROR((('Opex_FO_W&S'!AJ46/AJ46)*'Opex_FO_W&S'!AJ11)+(('Opex_FO_W&D'!AJ46/AJ46)*'Opex_FO_W&D'!AJ11),"-") -> 0.0195 | AK11: <<< | AL11: Weighted-average calculation
D13: Growth forecast (% per annum) | F13: =AVERAGE('Opex_FO_W&S'!F13,'Opex_FO_W&D'!F13) -> 0.018 | H13: =IFERROR(AVERAGE(AA13:AE13),"-") -> 0.01 | Z13: =IFERROR((('Opex_FO_W&S'!Z46/Z46)*'Opex_FO_W&S'!Z13)+(('Opex_FO_W&D'!Z46/Z46)*'Opex_FO_W&D'!Z13),"-") -> 0.018 | AA13: =IFERROR((('Opex_FO_W&S'!AA46/AA46)*'Opex_FO_W&S'!AA13)+(('Opex_FO_W&D'!AA46/AA46)*'Opex_FO_W&D'!AA13),"-") -> 0.01 | AB13: =IFERROR((('Opex_FO_W&S'!AB46/AB46)*'Opex_FO_W&S'!AB13)+(('Opex_FO_W&D'!AB46/AB46)*'Opex_FO_W&D'!AB13),"-") -> 0.01 | AC13: =IFERROR((('Opex_FO_W&S'!AC46/AC46)*'Opex_FO_W&S'!AC13)+(('Opex_FO_W&D'!AC46/AC46)*'Opex_FO_W&D'!AC13),"-") -> 0.01 | AD13: =IFERROR((('Opex_FO_W&S'!AD46/AD46)*'Opex_FO_W&S'!AD13)+(('Opex_FO_W&D'!AD46/AD46)*'Opex_FO_W&D'!AD13),"-") -> 0.01 | AE13: =IFERROR((('Opex_FO_W&S'!AE46/AE46)*'Opex_FO_W&S'!AE13)+(('Opex_FO_W&D'!AE46/AE46)*'Opex_FO_W&D'!AE13),"-") -> 0.01 | AF13: =IFERROR((('Opex_FO_W&S'!AF46/AF46)*'Opex_FO_W&S'!AF13)+(('Opex_FO_W&D'!AF46/AF46)*'Opex_FO_W&D'!AF13),"-") -> 0.0195 | AG13: =IFERROR((('Opex_FO_W&S'!AG46/AG46)*'Opex_FO_W&S'!AG13)+(('Opex_FO_W&D'!AG46/AG46)*'Opex_FO_W&D'!AG13),"-") -> 0.0195 | AH13: =IFERROR((('Opex_FO_W&S'!AH46/AH46)*'Opex_FO_W&S'!AH13)+(('Opex_FO_W&D'!AH46/AH46)*'Opex_FO_W&D'!AH13),"-") -> 0.0195 | AI13: =IFERROR((('Opex_FO_W&S'!AI46/AI46)*'Opex_FO_W&S'!AI13)+(('Opex_FO_W&D'!AI46/AI46)*'Opex_FO_W&D'!AI13),"-") -> 0.0195 | AJ13: =IFERROR((('Opex_FO_W&S'!AJ46/AJ46)*'Opex_FO_W&S'!AJ13)+(('Opex_FO_W&D'!AJ46/AJ46)*'Opex_FO_W&D'!AJ13),"-") -> 0.0195 | AK13: <<< | AL13: Weighted-average calculation
C17: Baseline Forecast
D19: Baseline year - total prescribed operating expenditure in 2019-20: | X19: =Y19-'Opex_FO_W&S'!Y19-'Opex_FO_W&D'!Y19 -> 0 | Y19: =+Opex_Breakdown!Y34 -> 1081.368668 | AA19: Comparison with approved 2019-20 total controllable opex
AA20: per 2016 determination model
D21: Less non-controllable expenditure items incurred in 2019-20:
E22: =Opex_Breakdown!E27 -> Licence fees | Y22: =+Opex_Breakdown!Y27 -> 1.991454075
E23: =Opex_Breakdown!E28 -> Environment Contribution (W&D) | Y23: =+Opex_Breakdown!Y28 -> 0.02959823043 | AB23: 2019-20 | AC23: Difference | AD23: %
E24: =Opex_Breakdown!E29 -> Desalination Payments (W&S) | Y24: =+Opex_Breakdown!Y29 -> 658.2975645
E25: =Opex_Breakdown!E30 -> Other non-controllable | Y25: =+Opex_Breakdown!Y30 -> 31.84337074 | AB25: =Determination_Lookup!AQ3 -> 394.2198007 | AC25: =+Y44-AB25 -> -49.29043537 | AD25: =+AC25/AB25 -> -0.1250328758
X26: =Y26-'Opex_FO_W&S'!Y26-'Opex_FO_W&D'!Y26 -> 1.776356839e-14 | Y26: =SUM(Y22:Y25) -> 692.1619876 | AB26: =AB25-'Opex_FO_W&S'!AB26-'Opex_FO_W&D'!AB26 -> 0
AA27: ($, 2020-21)
D28: Baseline year - total controllable operating expenditure in 2019-20: | Y28: =+Y19-Y26 -> 389.2066807
D30: Total adjustments for non-recurring expenditure items incurred in 2019-20 and any efficiency savings to be realised from 2019-20: | X30: =Y30-'Opex_FO_W&S'!Y42-'Opex_FO_W&D'!Y42 -> -2.886579864e-15 | Y30: ='Opex_FO_W&S'!Y42+'Opex_FO_W&D'!Y42 -> -44.27731535
D44: Adjusted baseline controllable operating expenditure (2019-20) | Y44: =+Y28+Y30 -> 344.9293653
D46: Adjusted baseline controllable operating expenditure (Forecast) | Z46: ='Opex_FO_W&S'!Z46+'Opex_FO_W&D'!Z46 -> 344.2395066 | AA46: ='Opex_FO_W&S'!AA46+'Opex_FO_W&D'!AA46 -> 343.5510276 | AB46: ='Opex_FO_W&S'!AB46+'Opex_FO_W&D'!AB46 -> 342.8639255 | AC46: ='Opex_FO_W&S'!AC46+'Opex_FO_W&D'!AC46 -> 342.1781977 | AD46: ='Opex_FO_W&S'!AD46+'Opex_FO_W&D'!AD46 -> 341.4938413 | AE46: ='Opex_FO_W&S'!AE46+'Opex_FO_W&D'!AE46 -> 340.8108536 | AF46: ='Opex_FO_W&S'!AF46+'Opex_FO_W&D'!AF46 -> 340.8108536 | AG46: ='Opex_FO_W&S'!AG46+'Opex_FO_W&D'!AG46 -> 340.8108536 | AH46: ='Opex_FO_W&S'!AH46+'Opex_FO_W&D'!AH46 -> 340.8108536 | AI46: ='Opex_FO_W&S'!AI46+'Opex_FO_W&D'!AI46 -> 340.8108536 | AJ46: ='Opex_FO_W&S'!AJ46+'Opex_FO_W&D'!AJ46 -> 340.8108536
Z47: =Z46-'Opex_FO_W&S'!Z46-'Opex_FO_W&D'!Z46 -> 0 | AA47: =AA46-'Opex_FO_W&S'!AA46-'Opex_FO_W&D'!AA46 -> 0 | AB47: =AB46-'Opex_FO_W&S'!AB46-'Opex_FO_W&D'!AB46 -> 0 | AC47: =AC46-'Opex_FO_W&S'!AC46-'Opex_FO_W&D'!AC46 -> 0 | AD47: =AD46-'Opex_FO_W&S'!AD46-'Opex_FO_W&D'!AD46 -> 0 | AE47: =AE46-'Opex_FO_W&S'!AE46-'Opex_FO_W&D'!AE46 -> 0 | AF47: =AF46-'Opex_FO_W&S'!AF46-'Opex_FO_W&D'!AF46 -> 0 | AG47: =AG46-'Opex_FO_W&S'!AG46-'Opex_FO_W&D'!AG46 -> 0 | AH47: =AH46-'Opex_FO_W&S'!AH46-'Opex_FO_W&D'!AH46 -> 0 | AI47: =AI46-'Opex_FO_W&S'!AI46-'Opex_FO_W&D'!AI46 -> 0 | AJ47: =AJ46-'Opex_FO_W&S'!AJ46-'Opex_FO_W&D'!AJ46 -> 0
C50: Operating expenditure - reconciliation
D53: Adjusted baseline controllable operating expenditure (Forecast) | AA53: =+AA46 -> 343.5510276 | AB53: 342.8639255 | AC53: 342.1781977 | AD53: 341.4938413 | AE53: 340.8108536 | AF53: 340.8108536 | AG53: 340.8108536 | AH53: 340.8108536 | AI53: 340.8108536 | AJ53: 340.8108536
D55: Total forecast variations required to baseline operating expenditure (above or below baseline) | AA55: ='Opex_FO_W&S'!AA73+'Opex_FO_W&D'!AA73 -> 41.26428511 | AB55: ='Opex_FO_W&S'!AB73+'Opex_FO_W&D'!AB73 -> 38.66250971 | AC55: ='Opex_FO_W&S'!AC73+'Opex_FO_W&D'!AC73 -> 40.92053419 | AD55: ='Opex_FO_W&S'!AD73+'Opex_FO_W&D'!AD73 -> 45.82021774 | AE55: ='Opex_FO_W&S'!AE73+'Opex_FO_W&D'!AE73 -> 50.16937782 | AF55: ='Opex_FO_W&S'!AF73+'Opex_FO_W&D'!AF73 -> 50.16628782 | AG55: ='Opex_FO_W&S'!AG73+'Opex_FO_W&D'!AG73 -> 50.16963782 | AH55: ='Opex_FO_W&S'!AH73+'Opex_FO_W&D'!AH73 -> 50.16568782 | AI55: ='Opex_FO_W&S'!AI73+'Opex_FO_W&D'!AI73 -> 50.17033782 | AJ55: ='Opex_FO_W&S'!AJ73+'Opex_FO_W&D'!AJ73 -> 50.16568782
AA75: =AA55-'Opex_FO_W&S'!AA73-'Opex_FO_W&D'!AA73 -> 0 | AB75: =AB55-'Opex_FO_W&S'!AB73-'Opex_FO_W&D'!AB73 -> 0 | AC75: =AC55-'Opex_FO_W&S'!AC73-'Opex_FO_W&D'!AC73 -> 0 | AD75: =AD55-'Opex_FO_W&S'!AD73-'Opex_FO_W&D'!AD73 -> 0 | AE75: =AE55-'Opex_FO_W&S'!AE73-'Opex_FO_W&D'!AE73 -> 0 | AF75: =AF55-'Opex_FO_W&S'!AF73-'Opex_FO_W&D'!AF73 -> 0 | AG75: =AG55-'Opex_FO_W&S'!AG73-'Opex_FO_W&D'!AG73 -> 0 | AH75: =AH55-'Opex_FO_W&S'!AH73-'Opex_FO_W&D'!AH73 -> 0 | AI75: =AI55-'Opex_FO_W&S'!AI73-'Opex_FO_W&D'!AI73 -> 0 | AJ75: =AJ55-'Opex_FO_W&S'!AJ73-'Opex_FO_W&D'!AJ73 -> 0
D76: Total controllable operating expenditure | AA76: =+AA55+AA53 -> 384.8153127 | AB76: 381.5264352 | AC76: 383.0987318 | AD76: 387.314059 | AE76: 390.9802314 | AF76: 390.9771414 | AG76: 390.9804914 | AH76: 390.9765414 | AI76: 390.9811914 | AJ76: 390.9765414
D78: Non-controllable operating expenditure
D79: =Opex_Breakdown!E27 -> Licence fees | AA79: =+Opex_Breakdown!AA27 -> 2.732298643 | AB79: =+Opex_Breakdown!AB27 -> 2.7378395 | AC79: =+Opex_Breakdown!AC27 -> 3.318384712 | AD79: =+Opex_Breakdown!AD27 -> 2.748989955 | AE79: =+Opex_Breakdown!AE27 -> 2.748989955 | AF79: =+Opex_Breakdown!AF27 -> 2.748989955 | AG79: =+Opex_Breakdown!AG27 -> 2.748989955 | AH79: =+Opex_Breakdown!AH27 -> 2.748989955 | AI79: =+Opex_Breakdown!AI27 -> 2.748989955 | AJ79: =+Opex_Breakdown!AJ27 -> 2.748989955
D80: =Opex_Breakdown!E28 -> Environment Contribution (W&D) | AA80: =+Opex_Breakdown!AA28 -> 0.9507613665 | AB80: =+Opex_Breakdown!AB28 -> 0.9336476619 | AC80: =+Opex_Breakdown!AC28 -> 0.912842004 | AD80: =+Opex_Breakdown!AD28 -> 0.9003388479 | AE80: =+Opex_Breakdown!AE28 -> 0.8841327486 | AF80: =+Opex_Breakdown!AF28 -> 0.8682183592 | AG80: =+Opex_Breakdown!AG28 -> 0.8525904287 | AH80: =+Opex_Breakdown!AH28 -> 0.837243801 | AI80: =+Opex_Breakdown!AI28 -> 0.8221734126 | AJ80: =+Opex_Breakdown!AJ28 -> 0.8073742911
D81: =Opex_Breakdown!E29 -> Desalination Payments (W&S) | AA81: =+Opex_Breakdown!AA29 -> 527.6139191 | AB81: =+Opex_Breakdown!AB29 -> 519.8238474 | AC81: =+Opex_Breakdown!AC29 -> 507.579439 | AD81: =+Opex_Breakdown!AD29 -> 491.5979213 | AE81: =+Opex_Breakdown!AE29 -> 478.428073 | AF81: =+Opex_Breakdown!AF29 -> 467.265096 | AG81: =+Opex_Breakdown!AG29 -> 452.7692861 | AH81: =+Opex_Breakdown!AH29 -> 453.5708692 | AI81: =+Opex_Breakdown!AI29 -> 435.0146873 | AJ81: =+Opex_Breakdown!AJ29 -> 415.6012812
D82: =Opex_Breakdown!E30 -> Other non-controllable | AA82: =+Opex_Breakdown!AA30 -> 27.30580846 | AB82: =+Opex_Breakdown!AB30 -> 27.30580848 | AC82: =+Opex_Breakdown!AC30 -> 27.30580852 | AD82: =+Opex_Breakdown!AD30 -> 27.30580854 | AE82: =+Opex_Breakdown!AE30 -> 27.30580847 | AF82: =+Opex_Breakdown!AF30 -> 27.30580847 | AG82: =+Opex_Breakdown!AG30 -> 27.30580847 | AH82: =+Opex_Breakdown!AH30 -> 27.30580847 | AI82: =+Opex_Breakdown!AI30 -> 27.30580847 | AJ82: =+Opex_Breakdown!AJ30 -> 27.30580847
D83: Total non-controllable operating expenditure | AA83: =SUM(AA79:AA82) -> 558.6027876 | AB83: 550.801143 | AC83: 539.1164742 | AD83: 522.5530586 | AE83: 509.3670041 | AF83: 498.1881128 | AG83: 483.6766749 | AH83: 484.4629114 | AI83: 465.8916592 | AJ83: 446.4634539
AA84: =AA83-'Opex_FO_W&S'!AA82-'Opex_FO_W&D'!AA82 -> 2.486899575e-14 | AB84: =AB83-'Opex_FO_W&S'!AB82-'Opex_FO_W&D'!AB82 -> 2.309263891e-14 | AC84: =AC83-'Opex_FO_W&S'!AC82-'Opex_FO_W&D'!AC82 -> -4.796163466e-14 | AD84: =AD83-'Opex_FO_W&S'!AD82-'Opex_FO_W&D'!AD82 -> 1.598721155e-14 | AE84: =AE83-'Opex_FO_W&S'!AE82-'Opex_FO_W&D'!AE82 -> 0 | AF84: =AF83-'Opex_FO_W&S'!AF82-'Opex_FO_W&D'!AF82 -> 0 | AG84: =AG83-'Opex_FO_W&S'!AG82-'Opex_FO_W&D'!AG82 -> 6.217248938e-14 | AH84: =AH83-'Opex_FO_W&S'!AH82-'Opex_FO_W&D'!AH82 -> 6.039613254e-14 | AI84: =AI83-'Opex_FO_W&S'!AI82-'Opex_FO_W&D'!AI82 -> 0 | AJ84: =AJ83-'Opex_FO_W&S'!AJ82-'Opex_FO_W&D'!AJ82 -> -3.019806627e-14
D86: Total prescribed operating expenditure | AA86: =+AA83+AA76 -> 943.4181003 | AB86: 932.3275782 | AC86: 922.215206 | AD86: 909.8671176 | AE86: 900.3472355 | AF86: 889.1652542 | AG86: 874.6571663 | AH86: 875.4394528 | AI86: 856.8728505 | AJ86: 837.4399953
AA87: =AA86-'Opex_FO_W&S'!AA85-'Opex_FO_W&D'!AA85 -> 0 | AB87: =AB86-'Opex_FO_W&S'!AB85-'Opex_FO_W&D'!AB85 -> 0 | AC87: =AC86-'Opex_FO_W&S'!AC85-'Opex_FO_W&D'!AC85 -> 0 | AD87: =AD86-'Opex_FO_W&S'!AD85-'Opex_FO_W&D'!AD85 -> 0 | AE87: =AE86-'Opex_FO_W&S'!AE85-'Opex_FO_W&D'!AE85 -> 0 | AF87: =AF86-'Opex_FO_W&S'!AF85-'Opex_FO_W&D'!AF85 -> 0 | AG87: =AG86-'Opex_FO_W&S'!AG85-'Opex_FO_W&D'!AG85 -> 0 | AH87: =AH86-'Opex_FO_W&S'!AH85-'Opex_FO_W&D'!AH85 -> 0 | AI87: =AI86-'Opex_FO_W&S'!AI85-'Opex_FO_W&D'!AI85 -> 0 | AJ87: =AJ86-'Opex_FO_W&S'!AJ85-'Opex_FO_W&D'!AJ85 -> 0
Z89: To reconcile to 'Opex_Breakdown' tab >> | AA89: =+Opex_Breakdown!AA34 -> 943.4181035 | AB89: =+Opex_Breakdown!AB34 -> 932.3327033 | AC89: =+Opex_Breakdown!AC34 -> 922.2152103 | AD89: =+Opex_Breakdown!AD34 -> 909.8683086 | AE89: =+Opex_Breakdown!AE34 -> 900.3488006 | AF89: =+Opex_Breakdown!AF34 -> 889.1699092 | AG89: =+Opex_Breakdown!AG34 -> 874.6584714 | AH89: =+Opex_Breakdown!AH34 -> 875.4447079 | AI89: =+Opex_Breakdown!AI34 -> 856.8734556 | AJ89: =+Opex_Breakdown!AJ34 -> 837.4400504
Z90: Difference | AA90: =+AA89-AA86 -> 3.21018581e-06 | AB90: 0.005125043381 | AC90: 4.295249482e-06 | AD90: 0.001190971863 | AE90: 0.001565079281 | AF90: 0.004655079281 | AG90: =+AG89-AG86 -> 0.001305079281 | AH90: =+AH89-AH86 -> 0.005255079281 | AI90: =+AI89-AI86 -> 0.0006050792813 | AJ90: =+AJ89-AJ86 -> 5.507928086e-05
Z91: Test | AA91: =ROUND(AA89,2)=ROUND(AA86,2) -> TRUE | AB91: TRUE | AC91: TRUE | AD91: TRUE | AE91: TRUE | AF91: TRUE | AG91: =ROUND(AG89,2)=ROUND(AG86,2) -> TRUE | AH91: =ROUND(AH89,2)=ROUND(AH86,2) -> TRUE | AI91: =ROUND(AI89,2)=ROUND(AI86,2) -> TRUE | AJ91: =ROUND(AJ89,2)=ROUND(AJ86,2) -> TRUE
AA130: =+AA$151 -> 2021-22 | AB130: 2022-23 | AC130: 2023-24 | AD130: 2024-25 | AE130: 2025-26 | AF130: 2026-27 | AG130: 2027-28 | AH130: 2028-29 | AI130: 2029-30 | AJ130: 2030-31
Z131: Total controllable opex | AA131: =+AA76 -> 384.8153127 | AB131: 381.5264352 | AC131: 383.0987318 | AD131: 387.314059 | AE131: 390.9802314 | AF131: 390.9771414 | AG131: 390.9804914 | AH131: 390.9765414 | AI131: 390.9811914 | AJ131: 390.9765414
Z132: Change - $ | AB132: =+AB131-AA131 -> -3.288877454 | AC132: 1.572296626 | AD132: 4.21532715 | AE132: 3.666172404 | AF132: -0.00309 | AG132: 0.00335 | AH132: -0.00395 | AI132: 0.00465 | AJ132: -0.00465
Z133: Change - % | AA133: =IFERROR(AA132/#REF!,"") ->  | AB133: =IFERROR(AB132/AA131,"") -> -0.008546638727 | AC133: 0.004121068636 | AD133: 0.01100323963 | AE133: 0.009465632138 | AF133: -7.903212878e-06 | AG133: 8.568275854e-06 | AH133: -1.010280586e-05 | AI133: 1.189329668e-05 | AJ133: -1.189315523e-05
AA135: =+AA$151 -> 2021-22 | AB135: 2022-23 | AC135: 2023-24 | AD135: 2024-25 | AE135: 2025-26 | AF135: 2026-27 | AG135: 2027-28 | AH135: 2028-29 | AI135: 2029-30 | AJ135: 2030-31
Z136: Total non-controllable opex | AA136: =+AA83 -> 558.6027876 | AB136: 550.801143 | AC136: 539.1164742 | AD136: 522.5530586 | AE136: 509.3670041 | AF136: 498.1881128 | AG136: 483.6766749 | AH136: 484.4629114 | AI136: 465.8916592 | AJ136: 446.4634539
Z137: Change - $ | AB137: =+AB136-AA136 -> -7.801644577 | AC137: -11.68466883 | AD137: -16.56341555 | AE137: -13.1860545 | AF137: -11.17889137 | AG137: -14.51143784 | AH137: 0.7862365126 | AI137: -18.5712523 | AJ137: -19.42820526
Z138: Change - % | AA138: =IFERROR(AA137/#REF!,"") ->  | AB138: =IFERROR(AB137/AA136,"") -> -0.01396635454 | AC138: -0.02121395168 | AD138: -0.0307232599 | AE138: -0.0252339055 | AF138: -0.02194663431 | AG138: -0.02912843054 | AH138: 0.00162554151 | AI138: -0.03833369254 | AJ138: -0.04170112274
AA140: =+AA$151 -> 2021-22 | AB140: 2022-23 | AC140: 2023-24 | AD140: 2024-25 | AE140: 2025-26 | AF140: 2026-27 | AG140: 2027-28 | AH140: 2028-29 | AI140: 2029-30 | AJ140: 2030-31
Z141: Total prescribed opex | AA141: =+AA131+AA136 -> 943.4181003 | AB141: 932.3275782 | AC141: 922.215206 | AD141: 909.8671176 | AE141: 900.3472355 | AF141: 889.1652542 | AG141: 874.6571663 | AH141: 875.4394528 | AI141: 856.8728505 | AJ141: 837.4399953
Z142: Change - $ | AB142: =+AB141-AA141 -> -11.09052203 | AC142: -10.1123722 | AD142: -12.34808841 | AE142: -9.519882096 | AF142: -11.18198137 | AG142: -14.50808784 | AH142: 0.7822865126 | AI142: -18.5666023 | AJ142: -19.43285526
Z143: Change - % | AA143: =IFERROR(AA142/#REF!,"") ->  | AB143: =IFERROR(AB142/AA141,"") -> -0.01175568078 | AC143: -0.0108463725 | AD143: -0.01338959532 | AE143: -0.01046293674 | AF143: -0.01241963204 | AG143: -0.01631652583 | AH143: 0.0008943921604 | AI143: -0.02120832256 | AJ143: -0.02267880847
Z146: Controllable vs. Non-controllable opex - % | AA146: =+AA$151 -> 2021-22 | AB146: 2022-23 | AC146: 2023-24 | AD146: 2024-25 | AE146: 2025-26 | AF146: 2026-27 | AG146: 2027-28 | AH146: 2028-29 | AI146: 2029-30 | AJ146: 2030-31
Z147: Controllable opex - % | AA147: =+AA76/AA86 -> 0.4078947739 | AB147: =+AB76/AB86 -> 0.409219296 | AC147: 0.4154114239 | AD147: 0.4256820051 | AE147: 0.4342549363 | AF147: 0.4397125726 | AG147: 0.4470099903 | AH147: 0.4466060333 | AI147: 0.4562884577 | AJ147: 0.4668711115
Z148: Non-controllable opex - % | AA148: =+AA83/AA86 -> 0.5921052261 | AB148: =+AB83/AB86 -> 0.590780704 | AC148: 0.5845885761 | AD148: 0.5743179949 | AE148: 0.5657450637 | AF148: 0.5602874274 | AG148: 0.5529900097 | AH148: 0.5533939667 | AI148: 0.5437115423 | AJ148: 0.5331288885
AA149: =SUM(AA147:AA148) -> 1 | AB149: =SUM(AB147:AB148) -> 1 | AC149: 1 | AD149: 1 | AE149: 1 | AF149: 1 | AG149: 1 | AH149: 1 | AI149: 1 | AJ149: 1
Y151: =+Y6 -> 2019-20 | Z151: 2020-21 | AA151: 2021-22 | AB151: 2022-23 | AC151: 2023-24 | AD151: 2024-25 | AE151: 2025-26 | AF151: 2026-27 | AG151: 2027-28 | AH151: 2028-29 | AI151: 2029-30 | AJ151: 2030-31
X152: Fourth Reg period Opex | Y152: =+Y160-SUM(Y153:Y159) -> 389.2066807 | Z152: =+Z160-SUM(Z153:Z159) -> 396.8609091
X153: Adjusted baseline opex | AA153: =+AA53 -> 343.5510276 | AB153: 342.8639255 | AC153: 342.1781977 | AD153: 341.4938413 | AE153: 340.8108536 | AF153: 340.8108536 | AG153: 340.8108536 | AH153: 340.8108536 | AI153: 340.8108536 | AJ153: 340.8108536
X154: Forecast variations to baseline operating expenditure | AA154: =+AA55 -> 41.26428511 | AB154: 38.66250971 | AC154: 40.92053419 | AD154: 45.82021774 | AE154: 50.16937782 | AF154: 50.16628782 | AG154: 50.16963782 | AH154: 50.16568782 | AI154: 50.17033782 | AJ154: 50.16568782
X155: Licence fees | Y155: =Y184 -> 1.991454075 | Z155: 2.967721862 | AA155: =+AA79 -> 2.732298643 | AB155: 2.7378395 | AC155: 3.318384712 | AD155: 2.748989955 | AE155: 2.748989955 | AF155: 2.748989955 | AG155: =+AG79 -> 2.748989955 | AH155: =+AH79 -> 2.748989955 | AI155: =+AI79 -> 2.748989955 | AJ155: =+AJ79 -> 2.748989955
X156: Environment Contribution | Y156: 0.02959823043 | Z156: 0.9681887642 | AA156: =+AA80 -> 0.9507613665 | AB156: 0.9336476619 | AC156: 0.912842004 | AD156: 0.9003388479 | AE156: 0.8841327486 | AF156: 0.8682183592 | AG156: =+AG80 -> 0.8525904287 | AH156: 0.837243801 | AI156: 0.8221734126 | AJ156: 0.8073742911
X157: Desalination Payments | Y157: 658.2975645 | Z157: 539.4924107 | AA157: 527.6139191 | AB157: 519.8238474 | AC157: 507.579439 | AD157: 491.5979213 | AE157: 478.428073 | AF157: 467.265096 | AG157: 452.7692861 | AH157: 453.5708692 | AI157: 435.0146873 | AJ157: 415.6012812
X159: Other non-controllable | Y159: =Y187 -> 31.84337074 | Z159: =Z187 -> 27.92120996 | AA159: =+AA82 -> 27.30580846 | AB159: 27.30580848 | AC159: 27.30580852 | AD159: 27.30580854 | AE159: 27.30580847 | AF159: 27.30580847 | AG159: 27.30580847 | AH159: 27.30580847 | AI159: 27.30580847 | AJ159: 27.30580847
X160: Total prescribed opex | Y160: =+Opex_Breakdown!Y34 -> 1081.368668 | Z160: =+Opex_Breakdown!Z34 -> 968.2104404 | AA160: =SUM(AA153:AA159) -> 943.4181003 | AB160: 932.3275782 | AC160: 922.215206 | AD160: 909.8671176 | AE160: 900.3472355 | AF160: 889.1652542 | AG160: 874.6571663 | AH160: 875.4394528 | AI160: 856.8728505 | AJ160: 837.4399953
AA162: =+AA$151 -> 2021-22 | AB162: 2022-23 | AC162: 2023-24 | AD162: 2024-25 | AE162: 2025-26 | AF162: 2026-27 | AG162: 2027-28 | AH162: 2028-29 | AI162: 2029-30 | AJ162: 2030-31
Z163: Adjusted baseline opex | AA163: =+AA153/AA$160 -> 0.3641556458 | AB163: 0.3677504919 | AC163: 0.3710394227 | AD163: 0.3753227638 | AE163: 0.3785326817 | AF163: 0.3832930403 | AG163: 0.3896507874 | AH163: 0.3893025982 | AI163: 0.397737953 | AJ163: 0.4069674908
Z164: Forecast variations to baseline operating expenditure | AA164: =+AA154/AA$160 -> 0.04373912807 | AB164: 0.04146880412 | AC164: 0.04437200116 | AD164: 0.05035924131 | AE164: 0.05572225453 | AF164: 0.05641953235 | AG164: 0.05735920284 | AH164: 0.05730343505 | AI164: 0.05855050465 | AJ164: 0.05990362068
Z165: Licence fees | AA165: =+AA155/AA$160 -> 0.002896169411 | AB165: 0.00293656389 | AC165: 0.003598275858 | AD165: 0.003021309268 | AE165: 0.003053255285 | AF165: 0.003091652471 | AG165: 0.003142934239 | AH165: 0.003140125735 | AI165: 0.003208165544 | AJ165: 0.003282611256
Z166: Environment Contribution | AA166: =+AA156/AA$160 -> 0.001007783682 | AB166: 0.001001415901 | AC166: 0.0009898362096 | AD166: 0.0009895278447 | AE166: 0.0009819908517 | AF166: 0.0009764420675 | AG166: 0.0009747709863 | AH166: 0.000956369739 | AI166: 0.000959504566 | AJ166: 0.0009640980795
Z167: External bulk water charges (excl. temporary purchases) | AA167: =+AA157/AA$160 -> 0.5592577872 | AB167: 0.5575549405 | AC167: 0.5503915308 | AD167: 0.5402963925 | AE167: 0.5313817315 | AF167: 0.5255098462 | AG167: 0.5176534344 | AH167: 0.5181064981 | AI167: 0.5076770574 | AJ167: 0.4962758926
Z168: External temporary water purchases | AA168: =+AA158/AA$160 -> 0 | AB168: 0 | AC168: 0 | AD168: 0 | AE168: 0 | AF168: 0 | AG168: 0 | AH168: 0 | AI168: 0 | AJ168: 0
Z169: Other non-controllable | AA169: =+AA159/AA$160 -> 0.02894348588 | AB169: 0.02928778373 | AC169: 0.02960893329 | AD169: 0.03001076532 | AE169: 0.03032808609 | AF169: 0.03070948661 | AG169: 0.03121887011 | AH169: 0.03119097315 | AI169: 0.03186681484 | AJ169: 0.03260628656
Z170: Total prescribed opex | AA170: =+AA160/AA$160 -> 1 | AB170: 1 | AC170: 1 | AD170: 1 | AE170: 1 | AF170: 1 | AG170: 1 | AH170: 1 | AI170: 1 | AJ170: 1
AA172: =+AA$151 -> 2021-22 | AB172: 2022-23 | AC172: 2023-24 | AD172: 2024-25 | AE172: 2025-26 | AF172: 2026-27 | AG172: 2027-28 | AH172: 2028-29 | AI172: 2029-30 | AJ172: 2030-31
Z173: =General_BL!F10 -> Water | AA173: =+SUMIF('Opex_FO_W&S'!$H$57:$H$71,$Z173,'Opex_FO_W&S'!AA$57:AA$71)+SUMIF('Opex_FO_W&D'!$H$57:$H$71,$Z173,'Opex_FO_W&D'!AA$57:AA$71) -> 1.834975 | AB173: =+SUMIF('Opex_FO_W&S'!$H$57:$H$71,$Z173,'Opex_FO_W&S'!AB$57:AB$71)+SUMIF('Opex_FO_W&D'!$H$57:$H$71,$Z173,'Opex_FO_W&D'!AB$57:AB$71) -> 2.569731 | AC173: =+SUMIF('Opex_FO_W&S'!$H$57:$H$71,$Z173,'Opex_FO_W&S'!AC$57:AC$71)+SUMIF('Opex_FO_W&D'!$H$57:$H$71,$Z173,'Opex_FO_W&D'!AC$57:AC$71) -> 3.736277 | AD173: =+SUMIF('Opex_FO_W&S'!$H$57:$H$71,$Z173,'Opex_FO_W&S'!AD$57:AD$71)+SUMIF('Opex_FO_W&D'!$H$57:$H$71,$Z173,'Opex_FO_W&D'!AD$57:AD$71) -> 4.044647 | AE173: =+SUMIF('Opex_FO_W&S'!$H$57:$H$71,$Z173,'Opex_FO_W&S'!AE$57:AE$71)+SUMIF('Opex_FO_W&D'!$H$57:$H$71,$Z173,'Opex_FO_W&D'!AE$57:AE$71) -> 4.593779 | AF173: =+SUMIF('Opex_FO_W&S'!$H$57:$H$71,$Z173,'Opex_FO_W&S'!AF$57:AF$71)+SUMIF('Opex_FO_W&D'!$H$57:$H$71,$Z173,'Opex_FO_W&D'!AF$57:AF$71) -> 4.594379 | AG173: =+SUMIF('Opex_FO_W&S'!$H$57:$H$71,$Z173,'Opex_FO_W&S'!AG$57:AG$71)+SUMIF('Opex_FO_W&D'!$H$57:$H$71,$Z173,'Opex_FO_W&D'!AG$57:AG$71) -> 4.593779 | AH173: =+SUMIF('Opex_FO_W&S'!$H$57:$H$71,$Z173,'Opex_FO_W&S'!AH$57:AH$71)+SUMIF('Opex_FO_W&D'!$H$57:$H$71,$Z173,'Opex_FO_W&D'!AH$57:AH$71) -> 4.593779 | AI173: =+SUMIF('Opex_FO_W&S'!$H$57:$H$71,$Z173,'Opex_FO_W&S'!AI$57:AI$71)+SUMIF('Opex_FO_W&D'!$H$57:$H$71,$Z173,'Opex_FO_W&D'!AI$57:AI$71) -> 4.594479 | AJ173: =+SUMIF('Opex_FO_W&S'!$H$57:$H$71,$Z173,'Opex_FO_W&S'!AJ$57:AJ$71)+SUMIF('Opex_FO_W&D'!$H$57:$H$71,$Z173,'Opex_FO_W&D'!AJ$57:AJ$71) -> 4.593779
Z174: =General_BL!F11 -> Sewerage | AA174: =+SUMIF('Opex_FO_W&S'!$H$57:$H$71,$Z174,'Opex_FO_W&S'!AA$57:AA$71)+SUMIF('Opex_FO_W&D'!$H$57:$H$71,$Z174,'Opex_FO_W&D'!AA$57:AA$71) -> 30.60512141 | AB174: =+SUMIF('Opex_FO_W&S'!$H$57:$H$71,$Z174,'Opex_FO_W&S'!AB$57:AB$71)+SUMIF('Opex_FO_W&D'!$H$57:$H$71,$Z174,'Opex_FO_W&D'!AB$57:AB$71) -> 27.07565285 | AC174: =+SUMIF('Opex_FO_W&S'!$H$57:$H$71,$Z174,'Opex_FO_W&S'!AC$57:AC$71)+SUMIF('Opex_FO_W&D'!$H$57:$H$71,$Z174,'Opex_FO_W&D'!AC$57:AC$71) -> 27.84968569 | AD174: =+SUMIF('Opex_FO_W&S'!$H$57:$H$71,$Z174,'Opex_FO_W&S'!AD$57:AD$71)+SUMIF('Opex_FO_W&D'!$H$57:$H$71,$Z174,'Opex_FO_W&D'!AD$57:AD$71) -> 31.56254099 | AE174: =+SUMIF('Opex_FO_W&S'!$H$57:$H$71,$Z174,'Opex_FO_W&S'!AE$57:AE$71)+SUMIF('Opex_FO_W&D'!$H$57:$H$71,$Z174,'Opex_FO_W&D'!AE$57:AE$71) -> 34.90655898 | AF174: =+SUMIF('Opex_FO_W&S'!$H$57:$H$71,$Z174,'Opex_FO_W&S'!AF$57:AF$71)+SUMIF('Opex_FO_W&D'!$H$57:$H$71,$Z174,'Opex_FO_W&D'!AF$57:AF$71) -> 34.90655898 | AG174: =+SUMIF('Opex_FO_W&S'!$H$57:$H$71,$Z174,'Opex_FO_W&S'!AG$57:AG$71)+SUMIF('Opex_FO_W&D'!$H$57:$H$71,$Z174,'Opex_FO_W&D'!AG$57:AG$71) -> 34.90655898 | AH174: =+SUMIF('Opex_FO_W&S'!$H$57:$H$71,$Z174,'Opex_FO_W&S'!AH$57:AH$71)+SUMIF('Opex_FO_W&D'!$H$57:$H$71,$Z174,'Opex_FO_W&D'!AH$57:AH$71) -> 34.90655898 | AI174: =+SUMIF('Opex_FO_W&S'!$H$57:$H$71,$Z174,'Opex_FO_W&S'!AI$57:AI$71)+SUMIF('Opex_FO_W&D'!$H$57:$H$71,$Z174,'Opex_FO_W&D'!AI$57:AI$71) -> 34.90655898 | AJ174: =+SUMIF('Opex_FO_W&S'!$H$57:$H$71,$Z174,'Opex_FO_W&S'!AJ$57:AJ$71)+SUMIF('Opex_FO_W&D'!$H$57:$H$71,$Z174,'Opex_FO_W&D'!AJ$57:AJ$71) -> 34.90655898
Z175: =General_BL!F12 -> Recycled Water | AA175: =+SUMIF('Opex_FO_W&S'!$H$57:$H$71,$Z175,'Opex_FO_W&S'!AA$57:AA$71)+SUMIF('Opex_FO_W&D'!$H$57:$H$71,$Z175,'Opex_FO_W&D'!AA$57:AA$71) -> 0 | AB175: =+SUMIF('Opex_FO_W&S'!$H$57:$H$71,$Z175,'Opex_FO_W&S'!AB$57:AB$71)+SUMIF('Opex_FO_W&D'!$H$57:$H$71,$Z175,'Opex_FO_W&D'!AB$57:AB$71) -> 0 | AC175: =+SUMIF('Opex_FO_W&S'!$H$57:$H$71,$Z175,'Opex_FO_W&S'!AC$57:AC$71)+SUMIF('Opex_FO_W&D'!$H$57:$H$71,$Z175,'Opex_FO_W&D'!AC$57:AC$71) -> 0 | AD175: =+SUMIF('Opex_FO_W&S'!$H$57:$H$71,$Z175,'Opex_FO_W&S'!AD$57:AD$71)+SUMIF('Opex_FO_W&D'!$H$57:$H$71,$Z175,'Opex_FO_W&D'!AD$57:AD$71) -> 0 | AE175: =+SUMIF('Opex_FO_W&S'!$H$57:$H$71,$Z175,'Opex_FO_W&S'!AE$57:AE$71)+SUMIF('Opex_FO_W&D'!$H$57:$H$71,$Z175,'Opex_FO_W&D'!AE$57:AE$71) -> 0 | AF175: =+SUMIF('Opex_FO_W&S'!$H$57:$H$71,$Z175,'Opex_FO_W&S'!AF$57:AF$71)+SUMIF('Opex_FO_W&D'!$H$57:$H$71,$Z175,'Opex_FO_W&D'!AF$57:AF$71) -> 0 | AG175: =+SUMIF('Opex_FO_W&S'!$H$57:$H$71,$Z175,'Opex_FO_W&S'!AG$57:AG$71)+SUMIF('Opex_FO_W&D'!$H$57:$H$71,$Z175,'Opex_FO_W&D'!AG$57:AG$71) -> 0 | AH175: =+SUMIF('Opex_FO_W&S'!$H$57:$H$71,$Z175,'Opex_FO_W&S'!AH$57:AH$71)+SUMIF('Opex_FO_W&D'!$H$57:$H$71,$Z175,'Opex_FO_W&D'!AH$57:AH$71) -> 0 | AI175: =+SUMIF('Opex_FO_W&S'!$H$57:$H$71,$Z175,'Opex_FO_W&S'!AI$57:AI$71)+SUMIF('Opex_FO_W&D'!$H$57:$H$71,$Z175,'Opex_FO_W&D'!AI$57:AI$71) -> 0 | AJ175: =+SUMIF('Opex_FO_W&S'!$H$57:$H$71,$Z175,'Opex_FO_W&S'!AJ$57:AJ$71)+SUMIF('Opex_FO_W&D'!$H$57:$H$71,$Z175,'Opex_FO_W&D'!AJ$57:AJ$71) -> 0
Z176: =General_BL!F13 -> Waterways and Drainage | AA176: =+SUMIF('Opex_FO_W&S'!$H$57:$H$71,$Z176,'Opex_FO_W&S'!AA$57:AA$71)+SUMIF('Opex_FO_W&D'!$H$57:$H$71,$Z176,'Opex_FO_W&D'!AA$57:AA$71) -> 8.8241887 | AB176: =+SUMIF('Opex_FO_W&S'!$H$57:$H$71,$Z176,'Opex_FO_W&S'!AB$57:AB$71)+SUMIF('Opex_FO_W&D'!$H$57:$H$71,$Z176,'Opex_FO_W&D'!AB$57:AB$71) -> 9.017125867 | AC176: =+SUMIF('Opex_FO_W&S'!$H$57:$H$71,$Z176,'Opex_FO_W&S'!AC$57:AC$71)+SUMIF('Opex_FO_W&D'!$H$57:$H$71,$Z176,'Opex_FO_W&D'!AC$57:AC$71) -> 9.334571506 | AD176: =+SUMIF('Opex_FO_W&S'!$H$57:$H$71,$Z176,'Opex_FO_W&S'!AD$57:AD$71)+SUMIF('Opex_FO_W&D'!$H$57:$H$71,$Z176,'Opex_FO_W&D'!AD$57:AD$71) -> 10.21302975 | AE176: =+SUMIF('Opex_FO_W&S'!$H$57:$H$71,$Z176,'Opex_FO_W&S'!AE$57:AE$71)+SUMIF('Opex_FO_W&D'!$H$57:$H$71,$Z176,'Opex_FO_W&D'!AE$57:AE$71) -> 10.66903985 | AF176: =+SUMIF('Opex_FO_W&S'!$H$57:$H$71,$Z176,'Opex_FO_W&S'!AF$57:AF$71)+SUMIF('Opex_FO_W&D'!$H$57:$H$71,$Z176,'Opex_FO_W&D'!AF$57:AF$71) -> 10.66534985 | AG176: =+SUMIF('Opex_FO_W&S'!$H$57:$H$71,$Z176,'Opex_FO_W&S'!AG$57:AG$71)+SUMIF('Opex_FO_W&D'!$H$57:$H$71,$Z176,'Opex_FO_W&D'!AG$57:AG$71) -> 10.66929985 | AH176: =+SUMIF('Opex_FO_W&S'!$H$57:$H$71,$Z176,'Opex_FO_W&S'!AH$57:AH$71)+SUMIF('Opex_FO_W&D'!$H$57:$H$71,$Z176,'Opex_FO_W&D'!AH$57:AH$71) -> 10.66534985 | AI176: =+SUMIF('Opex_FO_W&S'!$H$57:$H$71,$Z176,'Opex_FO_W&S'!AI$57:AI$71)+SUMIF('Opex_FO_W&D'!$H$57:$H$71,$Z176,'Opex_FO_W&D'!AI$57:AI$71) -> 10.66929985 | AJ176: =+SUMIF('Opex_FO_W&S'!$H$57:$H$71,$Z176,'Opex_FO_W&S'!AJ$57:AJ$71)+SUMIF('Opex_FO_W&D'!$H$57:$H$71,$Z176,'Opex_FO_W&D'!AJ$57:AJ$71) -> 10.66534985
Z177: =General_BL!F14 -> Diversions | AA177: =+SUMIF('Opex_FO_W&S'!$H$57:$H$71,$Z177,'Opex_FO_W&S'!AA$57:AA$71)+SUMIF('Opex_FO_W&D'!$H$57:$H$71,$Z177,'Opex_FO_W&D'!AA$57:AA$71) -> 0 | AB177: =+SUMIF('Opex_FO_W&S'!$H$57:$H$71,$Z177,'Opex_FO_W&S'!AB$57:AB$71)+SUMIF('Opex_FO_W&D'!$H$57:$H$71,$Z177,'Opex_FO_W&D'!AB$57:AB$71) -> 0 | AC177: =+SUMIF('Opex_FO_W&S'!$H$57:$H$71,$Z177,'Opex_FO_W&S'!AC$57:AC$71)+SUMIF('Opex_FO_W&D'!$H$57:$H$71,$Z177,'Opex_FO_W&D'!AC$57:AC$71) -> 0 | AD177: =+SUMIF('Opex_FO_W&S'!$H$57:$H$71,$Z177,'Opex_FO_W&S'!AD$57:AD$71)+SUMIF('Opex_FO_W&D'!$H$57:$H$71,$Z177,'Opex_FO_W&D'!AD$57:AD$71) -> 0 | AE177: =+SUMIF('Opex_FO_W&S'!$H$57:$H$71,$Z177,'Opex_FO_W&S'!AE$57:AE$71)+SUMIF('Opex_FO_W&D'!$H$57:$H$71,$Z177,'Opex_FO_W&D'!AE$57:AE$71) -> 0 | AF177: =+SUMIF('Opex_FO_W&S'!$H$57:$H$71,$Z177,'Opex_FO_W&S'!AF$57:AF$71)+SUMIF('Opex_FO_W&D'!$H$57:$H$71,$Z177,'Opex_FO_W&D'!AF$57:AF$71) -> 0 | AG177: =+SUMIF('Opex_FO_W&S'!$H$57:$H$71,$Z177,'Opex_FO_W&S'!AG$57:AG$71)+SUMIF('Opex_FO_W&D'!$H$57:$H$71,$Z177,'Opex_FO_W&D'!AG$57:AG$71) -> 0 | AH177: =+SUMIF('Opex_FO_W&S'!$H$57:$H$71,$Z177,'Opex_FO_W&S'!AH$57:AH$71)+SUMIF('Opex_FO_W&D'!$H$57:$H$71,$Z177,'Opex_FO_W&D'!AH$57:AH$71) -> 0 | AI177: =+SUMIF('Opex_FO_W&S'!$H$57:$H$71,$Z177,'Opex_FO_W&S'!AI$57:AI$71)+SUMIF('Opex_FO_W&D'!$H$57:$H$71,$Z177,'Opex_FO_W&D'!AI$57:AI$71) -> 0 | AJ177: =+SUMIF('Opex_FO_W&S'!$H$57:$H$71,$Z177,'Opex_FO_W&S'!AJ$57:AJ$71)+SUMIF('Opex_FO_W&D'!$H$57:$H$71,$Z177,'Opex_FO_W&D'!AJ$57:AJ$71) -> 0
Z178: Forecast variations to baseline operating expenditure | AA178: =SUM(AA173:AA177) -> 41.26428511 | AB178: 38.66250971 | AC178: 40.92053419 | AD178: 45.82021774 | AE178: 50.16937782 | AF178: 50.16628782 | AG178: =SUM(AG173:AG177) -> 50.16963782 | AH178: =SUM(AH173:AH177) -> 50.16568782 | AI178: =SUM(AI173:AI177) -> 50.17033782 | AJ178: =SUM(AJ173:AJ177) -> 50.16568782
Y181: =+Y6 -> 2019-20 | Z181: 2020-21 | AA181: 2021-22 | AB181: 2022-23 | AC181: 2023-24 | AD181: 2024-25 | AE181: 2025-26 | AF181: 2026-27 | AG181: 2027-28 | AH181: 2028-29 | AI181: 2029-30 | AJ181: 2030-31
X184: Licence fees | Y184: =+Opex_Breakdown!Y27 -> 1.991454075 | Z184: =+Opex_Breakdown!Z27 -> 2.967721862 | AA184: =+Opex_Breakdown!AA27 -> 2.732298643 | AB184: =+Opex_Breakdown!AB27 -> 2.7378395 | AC184: =+Opex_Breakdown!AC27 -> 3.318384712 | AD184: =+Opex_Breakdown!AD27 -> 2.748989955 | AE184: =+Opex_Breakdown!AE27 -> 2.748989955 | AF184: =+Opex_Breakdown!AF27 -> 2.748989955 | AG184: =+Opex_Breakdown!AG27 -> 2.748989955 | AH184: =+Opex_Breakdown!AH27 -> 2.748989955 | AI184: =+Opex_Breakdown!AI27 -> 2.748989955 | AJ184: =+Opex_Breakdown!AJ27 -> 2.748989955
X185: Environment Contribution | Y185: =+Opex_Breakdown!Y28 -> 0.02959823043 | Z185: =+Opex_Breakdown!Z28 -> 0.9681887642 | AA185: =+Opex_Breakdown!AA28 -> 0.9507613665 | AB185: =+Opex_Breakdown!AB28 -> 0.9336476619 | AC185: =+Opex_Breakdown!AC28 -> 0.912842004 | AD185: =+Opex_Breakdown!AD28 -> 0.9003388479 | AE185: =+Opex_Breakdown!AE28 -> 0.8841327486 | AF185: =+Opex_Breakdown!AF28 -> 0.8682183592 | AG185: =+Opex_Breakdown!AG28 -> 0.8525904287 | AH185: =+Opex_Breakdown!AH28 -> 0.837243801 | AI185: =+Opex_Breakdown!AI28 -> 0.8221734126 | AJ185: =+Opex_Breakdown!AJ28 -> 0.8073742911
X186: Desalination Payments | Y186: =+Opex_Breakdown!Y29 -> 658.2975645 | Z186: =+Opex_Breakdown!Z29 -> 539.4924107 | AA186: =+Opex_Breakdown!AA29 -> 527.6139191 | AB186: =+Opex_Breakdown!AB29 -> 519.8238474 | AC186: =+Opex_Breakdown!AC29 -> 507.579439 | AD186: =+Opex_Breakdown!AD29 -> 491.5979213 | AE186: =+Opex_Breakdown!AE29 -> 478.428073 | AF186: =+Opex_Breakdown!AF29 -> 467.265096 | AG186: =+Opex_Breakdown!AG29 -> 452.7692861 | AH186: =+Opex_Breakdown!AH29 -> 453.5708692 | AI186: =+Opex_Breakdown!AI29 -> 435.0146873 | AJ186: =+Opex_Breakdown!AJ29 -> 415.6012812
X187: Other non-controllable | Y187: =+Opex_Breakdown!Y30 -> 31.84337074 | Z187: =+Opex_Breakdown!Z30 -> 27.92120996 | AA187: =+Opex_Breakdown!AA30 -> 27.30580846 | AB187: =+Opex_Breakdown!AB30 -> 27.30580848 | AC187: =+Opex_Breakdown!AC30 -> 27.30580852 | AD187: =+Opex_Breakdown!AD30 -> 27.30580854 | AE187: =+Opex_Breakdown!AE30 -> 27.30580847 | AF187: =+Opex_Breakdown!AF30 -> 27.30580847 | AG187: =+Opex_Breakdown!AG30 -> 27.30580847 | AH187: =+Opex_Breakdown!AH30 -> 27.30580847 | AI187: =+Opex_Breakdown!AI30 -> 27.30580847 | AJ187: =+Opex_Breakdown!AJ30 -> 27.30580847
X188: Total Non-controllable operating expenditure | Y188: =SUM(Y182:Y187) -> 692.1619876 | Z188: =SUM(Z182:Z187) -> 571.3495313 | AA188: =SUM(AA182:AA187) -> 558.6027876 | AB188: 550.801143 | AC188: 539.1164742 | AD188: 522.5530586 | AE188: 509.3670041 | AF188: 498.1881128 | AG188: 483.6766749 | AH188: 484.4629114 | AI188: 465.8916592 | AJ188: 446.4634539
Y190: ERROR CHECK | AA190: =ROUND(AA160,2)=ROUND(AA86,2) -> TRUE | AB190: =ROUND(AB160,2)=ROUND(AB86,2) -> TRUE | AC190: TRUE | AD190: TRUE | AE190: TRUE | AF190: TRUE | AG190: TRUE | AH190: TRUE | AI190: TRUE | AJ190: TRUE
AA191: =+AA178=AA154 -> TRUE | AB191: =+AB178=AB154 -> TRUE | AC191: TRUE | AD191: TRUE | AE191: TRUE | AF191: TRUE | AG191: TRUE | AH191: TRUE | AI191: TRUE | AJ191: TRUE
AA192: =ROUND(AA141,2)=ROUND(AA160,2) -> TRUE | AB192: =ROUND(AB141,2)=ROUND(AB160,2) -> TRUE | AC192: TRUE | AD192: TRUE | AE192: TRUE | AF192: TRUE | AG192: TRUE | AH192: TRUE | AI192: TRUE | AJ192: TRUE
AA193: =ROUND(AA188,2)=ROUND(AA136,2) -> TRUE | AB193: =ROUND(AB188,2)=ROUND(AB136,2) -> TRUE | AC193: TRUE | AD193: TRUE | AE193: TRUE | AF193: TRUE | AG193: TRUE | AH193: TRUE | AI193: TRUE | AJ193: TRUE

Sheet Opex_FO_W&S
B1: Operating Expenditure - Forecast - Water & Sewerage (W&S)
B2: =Model_Name -> Melbourne Water
B3: Go to Table of Contents
L4: FIRST REG PERIOD | P4: SECOND REG PERIOD | T4: THIRD REG PERIOD | X4: FOURTH REG PERIOD | AC4: FIFTH REG PERIOD | AH4: SIXTH REG PERIOD
K5: 2006 | L5: 2007 | M5: 2008 | N5: 2009 | O5: 2010 | P5: 2011 | Q5: 2012 | R5: 2013 | S5: 2014 | T5: 2015 | U5: 2016 | V5: 2017 | W5: 2018 | X5: 2019 | Y5: 2020 | Z5: 2021 | AA5: 2022 | AB5: 2023 | AC5: 2024 | AD5: 2025 | AE5: 2026 | AF5: 2027 | AG5: 2028 | AH5: 2029 | AI5: 2030 | AJ5: 2031
B6: =Expenditure_Detail!$B$6 -> $m, 01/01/21 | K6: =+CONCATENATE(K5-1,"-",RIGHT(K5,2)) -> 2005-06 | L6: =+CONCATENATE(L5-1,"-",RIGHT(L5,2)) -> 2006-07 | M6: 2007-08 | N6: 2008-09 | O6: 2009-10 | P6: 2010-11 | Q6: 2011-12 | R6: 2012-13 | S6: 2013-14 | T6: 2014-15 | U6: 2015-16 | V6: 2016-17 | W6: 2017-18 | X6: 2018-19 | Y6: 2019-20 | Z6: 2020-21 | AA6: 2021-22 | AB6: 2022-23 | AC6: 2023-24 | AD6: 2024-25 | AE6: 2025-26 | AF6: 2026-27 | AG6: 2027-28 | AH6: 2028-29 | AI6: 2029-30 | AJ6: 2030-31
C9: Parameters | F9: 4th period | H9: 5th period
D11: Cost efficiency improvement rate (% per annum) | F11: 0.02 | H11: =IFERROR(AVERAGE(AA11:AE11),"-") -> 0.012 | AA11: 0.012 | AB11: 0.012 | AC11: 0.012 | AD11: 0.012 | AE11: 0.012 | AF11: 0.0195 | AG11: 0.0195 | AH11: 0.0195 | AI11: 0.0195 | AJ11: 0.0195
D13: Customer growth forecast (% per annum) | F13: 0.018 | H13: =IFERROR(AVERAGE(AA13:AE13),"-") -> 0.01 | Z13: 0.018 | AA13: 0.01 | AB13: 0.01 | AC13: 0.01 | AD13: 0.01 | AE13: 0.01 | AF13: 0.0195 | AG13: 0.0195 | AH13: 0.0195 | AI13: 0.0195 | AJ13: 0.0195
C17: Baseline Forecast
D19: Baseline year - total prescribed operating expenditure in 2019-20: | Y19: =+Opex_Breakdown!Y34-(Opex_Breakdown!Y73+Opex_Breakdown!Y91+Opex_Breakdown!Y119) -> 931.7793041 | AA19: Comparison with approved 2019-20 total controllable opex for W&S
AA20: per 2016 determination model
D21: Less non-controllable expenditure items incurred in 2019-20:
E22: =Opex_Breakdown!E27 -> Licence fees | Y22: =+Opex_Breakdown!Y27-Opex_Breakdown!Y70 -> 1.711414037
E23: =Opex_Breakdown!E29 -> Desalination Payments (W&S) | Y23: =+Opex_Breakdown!Y29 -> 658.2975645 | AB23: 2019-20 | AC23: Difference | AD23: %
E25: =Opex_Breakdown!E30 -> Other non-controllable | Y25: =Opex_Breakdown!Y106 -> 23.18731422
Y26: =SUM(Y22:Y25) -> 683.1962928 | AB26: =(894.055888395584-536.010784351543-126.183713330067)/KeyAssumptionsPriceControl_FO!U15 -> 253.1370614 | AC26: =+Y44-AB26 -> -49.51428549 | AD26: =+AC26/AB26 -> -0.1956026716
D28: Baseline year - total controllable operating expenditure in 2019-20: | Y28: =+Y19-Y26 -> 248.5830114 | AA28: ($, 2020-21)
D30: Adjustments for non-recurring expenditure items incurred in 2019-20 and any efficiency savings to be realised from 2019-20:
D32: 1 | E32: Water & Sewerage total electricity costs (removed from baseline) | Y32: -44.39764274
D33: 2 | E33: Sewerage - Western Treatment Plant covers maintenance | Y33: 2.304852582
D34: 3 | E34: Sewerage - Wet weather impact | Y34: =0.224820333041192-0.224820333041192 -> 0
D35: 4 | E35: Water & Sewerage Telstra refund | Y35: =0.143628513584575-0.143628513584575 -> 0
D36: 5 | E36: Water & Sewerage Internal Audit program | Y36: =0.153286590709904-0.153286590709904 -> 0
D37: 6 | E37: Costs associate with pumping of Desal Water from Cardina to Silvan | Y37: -2.867445288
D38: 7 | E38: Adjustment to reflect final statutory accounts for 2019-20 | Y38: =0.628222046886211-0.628222046886211 -> 0
D39: 8
D40: 9
D41: 10
Y42: =SUM(Y32:Y41) -> -44.96023545
D44: Adjusted baseline controllable operating expenditure (2019-20) | Y44: =+Y28+Y42 -> 203.6227759
D46: Adjusted baseline controllable operating expenditure (Forecast) | Z46: =+Y44*(1+$Z$13-$F$11) -> 203.2155304 | AA46: =+Z46*(1+AA$13-AA$11) -> 202.8090993 | AB46: =+AA46*(1+AB$13-AB$11) -> 202.4034811 | AC46: 201.9986741 | AD46: 201.5946768 | AE46: 201.1914874 | AF46: 201.1914874 | AG46: 201.1914874 | AH46: 201.1914874 | AI46: 201.1914874 | AJ46: 201.1914874
C50: Operating expenditure - reconciliation
D53: Adjusted baseline controllable operating expenditure (Forecast) | AA53: =+AA46 -> 202.8090993 | AB53: 202.4034811 | AC53: 201.9986741 | AD53: 201.5946768 | AE53: 201.1914874 | AF53: 201.1914874 | AG53: 201.1914874 | AH53: 201.1914874 | AI53: 201.1914874 | AJ53: 201.1914874
H54: Controllable
D55: Forecast variations to baseline operating expenditure (above or below baseline) | H55: only | I55: Must NOT select waterways & drainage service | Z55: DD Adjustments | AF55: water corp. must reallocate the DD adjustment to services below (row 73 formula adjusted) and then delete the values in this row
D57: 1 | E57: Water Quality Management | H57: Water | AA57: 1.834975 | AB57: 2.569731 | AC57: 3.736277 | AD57: 4.044647 | AE57: 4.593779 | AF57: 4.594379 | AG57: 4.593779 | AH57: 4.593779 | AI57: 4.594479 | AJ57: 4.593779
D58: 2 | E58: Carbon Pledge | H58: Sewerage | AA58: 3.01121 | AB58: 0.446055 | AC58: 0.528575 | AD58: 3.529801 | AE58: 3.71729 | AF58: 3.71729 | AG58: 3.71729 | AH58: 3.71729 | AI58: 3.71729 | AJ58: 3.71729
D59: 3 | E59: Electricity Benchmark Allowance | H59: Sewerage | AA59: 28.02391141 | AB59: 27.78959785 | AC59: 27.85111069 | AD59: 29.46273999 | AE59: 32.68926898 | AF59: 32.68926898 | AG59: 32.68926898 | AH59: 32.68926898 | AI59: 32.68926898 | AJ59: 32.68926898
D60: 4 | E60: Electricity Benchmark Adjustment | H60: Sewerage | AA60: =-0.74+0.31 -> -0.43 | AB60: =-(1.08+0.08) -> -1.16 | AC60: =-(0.47+0.06) -> -0.53 | AD60: =-(0.75+0.19+0.49) -> -1.43 | AE60: =-(0.7+0.19+0.62)+0.01 -> -1.5 | AF60: =AE60 -> -1.5 | AG60: =AF60 -> -1.5 | AH60: =AG60 -> -1.5 | AI60: -1.5 | AJ60: -1.5
D61: 5 | H61: [Service]
D62: 6 | H62: [Service]
D63: 7 | H63: [Service]
D64: 8 | H64: [Service]
D65: 9 | H65: [Service]
D66: 10 | H66: [Service]
D67: 11 | H67: [Service]
D68: 12 | H68: [Service]
D69: 13 | H69: [Service]
D70: 14 | H70: [Service]
D71: 15 | H71: [Service]
D73: Total changes required to baseline operating expenditure | AA73: =SUM(AA57:AA72) -> 32.44009641 | AB73: =SUM(AB57:AB72) -> 29.64538385 | AC73: 31.58596269 | AD73: 35.60718799 | AE73: 39.50033798 | AF73: =SUM(AF57:AF72) -> 39.50093798 | AG73: =SUM(AG57:AG72) -> 39.50033798 | AH73: =SUM(AH57:AH72) -> 39.50033798 | AI73: =SUM(AI57:AI72) -> 39.50103798 | AJ73: =SUM(AJ57:AJ72) -> 39.50033798
D76: Total controllable operating expenditure | AA76: =+AA73+AA53 -> 235.2491957 | AB76: 232.0488649 | AC76: 233.5846368 | AD76: 237.2018648 | AE76: 240.6918254 | AF76: 240.6924254 | AG76: 240.6918254 | AH76: 240.6918254 | AI76: 240.6925254 | AJ76: 240.6918254
D78: Non-controllable operating expenditure
D79: =Opex_Breakdown!E27 -> Licence fees | AA79: =+Opex_Breakdown!AA27-Opex_Breakdown!AA70 -> 2.342261516 | AB79: =+Opex_Breakdown!AB27-Opex_Breakdown!AB70 -> 2.347802367 | AC79: =+Opex_Breakdown!AC27-Opex_Breakdown!AC70 -> 2.738347577 | AD79: =+Opex_Breakdown!AD27-Opex_Breakdown!AD70 -> 2.35895283 | AE79: =+Opex_Breakdown!AE27-Opex_Breakdown!AE70 -> 2.358952824 | AF79: =+Opex_Breakdown!AF27-Opex_Breakdown!AF70 -> 2.358952824 | AG79: =+Opex_Breakdown!AG27-Opex_Breakdown!AG70 -> 2.358952824 | AH79: =+Opex_Breakdown!AH27-Opex_Breakdown!AH70 -> 2.358952824 | AI79: =+Opex_Breakdown!AI27-Opex_Breakdown!AI70 -> 2.358952824 | AJ79: =+Opex_Breakdown!AJ27-Opex_Breakdown!AJ70 -> 2.358952824
D80: =Opex_Breakdown!E29 -> Desalination Payments (W&S) | AA80: =+Opex_Breakdown!AA29 -> 527.6139191 | AB80: =+Opex_Breakdown!AB29 -> 519.8238474 | AC80: =+Opex_Breakdown!AC29 -> 507.579439 | AD80: =+Opex_Breakdown!AD29 -> 491.5979213 | AE80: =+Opex_Breakdown!AE29 -> 478.428073 | AF80: =+Opex_Breakdown!AF29 -> 467.265096 | AG80: =+Opex_Breakdown!AG29 -> 452.7692861 | AH80: =+Opex_Breakdown!AH29 -> 453.5708692 | AI80: =+Opex_Breakdown!AI29 -> 435.0146873 | AJ80: =+Opex_Breakdown!AJ29 -> 415.6012812
D81: =Opex_Breakdown!E30 -> Other non-controllable | AA81: =Opex_Breakdown!AA106 -> 19.86891483 | AB81: =Opex_Breakdown!AB106 -> 19.86891484 | AC81: =Opex_Breakdown!AC106 -> 19.86891483 | AD81: =Opex_Breakdown!AD106 -> 19.86891483 | AE81: =Opex_Breakdown!AE106 -> 19.8689148 | AF81: =Opex_Breakdown!AF106 -> 19.8689148 | AG81: =Opex_Breakdown!AG106 -> 19.8689148 | AH81: =Opex_Breakdown!AH106 -> 19.8689148 | AI81: =Opex_Breakdown!AI106 -> 19.8689148 | AJ81: =Opex_Breakdown!AJ106 -> 19.8689148
D82: Total non-controllable operating expenditure | AA82: =SUM(AA79:AA81) -> 549.8250955 | AB82: 542.0405646 | AC82: 530.1867014 | AD82: 513.825789 | AE82: 500.6559406 | AF82: 489.4929636 | AG82: 474.9971537 | AH82: 475.7987368 | AI82: 457.2425549 | AJ82: 437.8291488
D85: Total prescribed operating expenditure | AA85: =+AA82+AA76 -> 785.0742912 | AB85: 774.0894295 | AC85: 763.7713382 | AD85: 751.0276537 | AE85: 741.347766 | AF85: 730.185389 | AG85: 715.6889791 | AH85: 716.4905623 | AI85: 697.9350804 | AJ85: 678.5209742
Z88: To reconcile to 'Opex_Breakdown' tab >> | AA88: =+Opex_Breakdown!AA34-(Opex_Breakdown!AA73+Opex_Breakdown!AA91+Opex_Breakdown!AA119) -> 785.0742982 | AB88: =+Opex_Breakdown!AB34-(Opex_Breakdown!AB73+Opex_Breakdown!AB91+Opex_Breakdown!AB119) -> 774.0908243 | AC88: =+Opex_Breakdown!AC34-(Opex_Breakdown!AC73+Opex_Breakdown!AC91+Opex_Breakdown!AC119) -> 763.7724604 | AD88: =+Opex_Breakdown!AD34-(Opex_Breakdown!AD73+Opex_Breakdown!AD91+Opex_Breakdown!AD119) -> 751.0287449 | AE88: =+Opex_Breakdown!AE34-(Opex_Breakdown!AE73+Opex_Breakdown!AE91+Opex_Breakdown!AE119) -> 741.3490692 | AF88: =+Opex_Breakdown!AF34-(Opex_Breakdown!AF73+Opex_Breakdown!AF91+Opex_Breakdown!AF119) -> 730.1860922 | AG88: =+Opex_Breakdown!AG34-(Opex_Breakdown!AG73+Opex_Breakdown!AG91+Opex_Breakdown!AG119) -> 715.6902823 | AH88: =+Opex_Breakdown!AH34-(Opex_Breakdown!AH73+Opex_Breakdown!AH91+Opex_Breakdown!AH119) -> 716.4918654 | AI88: =+Opex_Breakdown!AI34-(Opex_Breakdown!AI73+Opex_Breakdown!AI91+Opex_Breakdown!AI119) -> 697.9356835 | AJ88: =+Opex_Breakdown!AJ34-(Opex_Breakdown!AJ73+Opex_Breakdown!AJ91+Opex_Breakdown!AJ119) -> 678.5170774
Z89: Difference | AA89: =+AA88-AA85 -> 7.036007901e-06 | AB89: 0.001394731438 | AC89: 0.001122255722 | AD89: 0.0010912058 | AE89: 0.001303175382 | AF89: 0.0007031753818 | AG89: 0.001303175382 | AH89: 0.001303175382 | AI89: 0.0006031753817 | AJ89: -0.003896824619
Z90: Test | AA90: =ROUND(AA88,2)=ROUND(AA85,2) -> TRUE | AB90: TRUE | AC90: TRUE | AD90: TRUE | AE90: TRUE | AF90: TRUE | AG90: TRUE | AH90: TRUE | AI90: TRUE | AJ90: TRUE | AM90: <<< these flags will balance once MW apportions the correct draft decision licence fees to the relevant services

Sheet Opex_FO_W&D
B1: Operating Expenditure - Forecast - Waterways & Drainage (W&D)
B2: =Model_Name -> Melbourne Water
B3: Go to Table of Contents
L4: FIRST REG PERIOD | P4: SECOND REG PERIOD | T4: THIRD REG PERIOD | X4: FOURTH REG PERIOD | AC4: FIFTH REG PERIOD | AH4: SIXTH REG PERIOD
K5: 2006 | L5: 2007 | M5: 2008 | N5: 2009 | O5: 2010 | P5: 2011 | Q5: 2012 | R5: 2013 | S5: 2014 | T5: 2015 | U5: 2016 | V5: 2017 | W5: 2018 | X5: 2019 | Y5: 2020 | Z5: 2021 | AA5: 2022 | AB5: 2023 | AC5: 2024 | AD5: 2025 | AE5: 2026 | AF5: 2027 | AG5: 2028 | AH5: 2029 | AI5: 2030 | AJ5: 2031
B6: =Expenditure_Detail!$B$6 -> $m, 01/01/21 | K6: =+CONCATENATE(K5-1,"-",RIGHT(K5,2)) -> 2005-06 | L6: =+CONCATENATE(L5-1,"-",RIGHT(L5,2)) -> 2006-07 | M6: 2007-08 | N6: 2008-09 | O6: 2009-10 | P6: 2010-11 | Q6: 2011-12 | R6: 2012-13 | S6: 2013-14 | T6: 2014-15 | U6: 2015-16 | V6: 2016-17 | W6: 2017-18 | X6: 2018-19 | Y6: 2019-20 | Z6: 2020-21 | AA6: 2021-22 | AB6: 2022-23 | AC6: 2023-24 | AD6: 2024-25 | AE6: 2025-26 | AF6: 2026-27 | AG6: 2027-28 | AH6: 2028-29 | AI6: 2029-30 | AJ6: 2030-31
C9: Parameters | F9: 4th period | H9: 5th period
D11: Cost efficiency improvement rate (% per annum) | F11: 0.02 | H11: =IFERROR(AVERAGE(AA11:AE11),"-") -> 0.012 | AA11: 0.012 | AB11: 0.012 | AC11: 0.012 | AD11: 0.012 | AE11: 0.012 | AF11: 0.0195 | AG11: 0.0195 | AH11: 0.0195 | AI11: 0.0195 | AJ11: 0.0195
D13: Growth forecast (% per annum) | F13: 0.018 | H13: =IFERROR(AVERAGE(AA13:AE13),"-") -> 0.01 | Z13: 0.018 | AA13: 0.01 | AB13: 0.01 | AC13: 0.01 | AD13: 0.01 | AE13: 0.01 | AF13: 0.0195 | AG13: 0.0195 | AH13: 0.0195 | AI13: 0.0195 | AJ13: 0.0195
C17: Baseline Forecast
D19: Baseline year - total prescribed operating expenditure in 2019-20: | Y19: =Opex_Breakdown!Y73+Opex_Breakdown!Y91+Opex_Breakdown!Y119 -> 149.5893641 | AA19: Comparison with approved 2019-20 total controllable opex for W&D
AA20: per 2016 determination model
D21: Less non-controllable expenditure items incurred in 2019-20:
E22: =Opex_Breakdown!E27 -> Licence fees | Y22: =Opex_Breakdown!Y70 -> 0.2800400377
E23: =Opex_Breakdown!E28 -> Environment Contribution (W&D) | Y23: =Opex_Breakdown!Y28 -> 0.02959823043 | AB23: 2019-20 | AC23: Difference | AD23: %
E25: =Opex_Breakdown!E30 -> Other non-controllable | Y25: =Opex_Breakdown!Y119 -> 8.656056519
Y26: =SUM(Y22:Y25) -> 8.965694787 | AB26: =(126.183713330067+3.0413)/KeyAssumptionsPriceControl_FO!U15 -> 141.0827393 | AC26: =+Y44-AB26 -> 0.2238501178 | AD26: =+AC26/AB26 -> 0.001586658432
D28: Baseline year - total controllable operating expenditure in 2019-20: | Y28: =+Y19-Y26 -> 140.6236693 | AA28: ($, 2020-21)
D30: Adjustments for non-recurring expenditure items incurred in 2019-20 and any efficiency savings to be realised from 2019-20:
D32: 1 | E32: Total electricity costs (removed from baseline) | Y32: -0.441181566
D33: 2 | E33: Covid 19 Impact | Y33: =0.165549517966696-0.165549517966696 -> 0
D34: 3 | E34: Wet Weather Impact | Y34: 1.124101665
D35: 4 | E35: Adjustment to reflect final statutory accounts for 2019-20 | Y35: =0.314111023443106-0.314111023443106 -> 0
D36: 5
D37: 6
D38: 7
D39: 8
D40: 9
D41: 10
Y42: =SUM(Y32:Y41) -> 0.6829200992
D44: Adjusted baseline controllable operating expenditure (2019-20) | Y44: =+Y28+Y42 -> 141.3065894
D46: Adjusted baseline controllable operating expenditure (Forecast) | Z46: =+Y44*(1+$Z$13-$F$11) -> 141.0239762 | AA46: =+Z46*(1+AA$13-AA$11) -> 140.7419283 | AB46: =+AA46*(1+AB$13-AB$11) -> 140.4604444 | AC46: 140.1795235 | AD46: 139.8991645 | AE46: 139.6193661 | AF46: 139.6193661 | AG46: 139.6193661 | AH46: 139.6193661 | AI46: 139.6193661 | AJ46: 139.6193661
C50: Operating expenditure - reconciliation
D53: Adjusted baseline controllable operating expenditure (Forecast) | AA53: =+AA46 -> 140.7419283 | AB53: 140.4604444 | AC53: 140.1795235 | AD53: 139.8991645 | AE53: 139.6193661 | AF53: 139.6193661 | AG53: 139.6193661 | AH53: 139.6193661 | AI53: 139.6193661 | AJ53: 139.6193661
H54: Controllable
D55: Forecast variations to baseline operating expenditure (above or below baseline) | H55: only | I55: Must select only waterways & drainage service | Z55: DD Adjustments | AF55: water corp. must reallocate the DD adjustment to services below (row 73 formula adjusted) and then delete the values in this row
D57: 1 | E57: Traditional Owners | H57: Waterways and Drainage | AA57: 0.556988 | AB57: 0.5569873915 | AC57: 0.5569885608 | AD57: 0.2504167596 | AE57: 0.2504177835 | AF57: 0.2504177835 | AG57: 0.2504177835 | AH57: 0.2504177835 | AI57: 0.2504177835 | AJ57: 0.2504177835
D58: 2 | E58: Marine & Coastal Act | H58: Waterways and Drainage | AA58: 0.331086 | AB58: 0.3392578743 | AC58: 0.3392581315 | AD58: 0.3392582456 | AE58: 0.3392577559 | AF58: 0.3392577559 | AG58: 0.3392577559 | AH58: 0.3392577559 | AI58: 0.3392577559 | AJ58: 0.3392577559
D59: 3 | E59: WDIP - Willingness to Pay | H59: Waterways and Drainage | AA59: 7.799456 | AB59: 7.962539 | AC59: 8.29735 | AD59: 9.477511 | AE59: 9.943244 | AF59: 9.943244 | AG59: 9.943244 | AH59: 9.943244 | AI59: 9.943244 | AJ59: 9.943244
D60: 4 | E60: Electricity Benchmark | H60: Waterways and Drainage | AA60: 0.2928187005 | AB60: 0.3183416014 | AC60: 0.2954748135 | AD60: 0.3021537399 | AE60: 0.2924303057 | AF60: 0.2924303057 | AG60: 0.2924303057 | AH60: 0.2924303057 | AI60: 0.2924303057 | AJ60: 0.2924303057
D61: 5 | E61: WDIP - Willingness to Pay Adjustment (managing litter and pollution) | H61: Waterways and Drainage | AA61: -0.1 | AB61: -0.1 | AC61: -0.0995 | AD61: -0.10131 | AE61: -0.10131 | AF61: -0.1 | AG61: -0.09605 | AH61: -0.1 | AI61: -0.09605 | AJ61: -0.1
D62: 6 | E62: WDIP - Willingness to Pay Adjustment (stormwater quality treatment system) | H62: Waterways and Drainage | AA62: -0.05616 | AB62: -0.06 | AC62: -0.055 | AD62: -0.055 | AE62: -0.055 | AF62: -0.06 | AG62: -0.06 | AH62: -0.06 | AI62: -0.06 | AJ62: -0.06
D63: 7 | H63: [Service]
D64: 8 | H64: [Service]
D65: 9 | H65: [Service]
D66: 10 | H66: [Service]
D67: 11 | H67: [Service]
D68: 12 | H68: [Service]
D69: 13 | H69: [Service]
D70: 14 | H70: [Service]
D71: 15 | H71: [Service]
D73: Total changes required to baseline operating expenditure | AA73: =SUM(AA57:AA72) -> 8.8241887 | AB73: =SUM(AB57:AB72) -> 9.017125867 | AC73: 9.334571506 | AD73: 10.21302975 | AE73: 10.66903985 | AF73: =SUM(AF57:AF72) -> 10.66534985 | AG73: =SUM(AG57:AG72) -> 10.66929985 | AH73: =SUM(AH57:AH72) -> 10.66534985 | AI73: =SUM(AI57:AI72) -> 10.66929985 | AJ73: =SUM(AJ57:AJ72) -> 10.66534985
D76: Total controllable operating expenditure | AA76: =+AA73+AA53 -> 149.566117 | AB76: 149.4775703 | AC76: 149.514095 | AD76: 150.1121942 | AE76: 150.288406 | AF76: 150.284716 | AG76: 150.288666 | AH76: 150.284716 | AI76: 150.288666 | AJ76: 150.284716
D78: Non-controllable operating expenditure
D79: =Opex_Breakdown!E27 -> Licence fees | AA79: =Opex_Breakdown!AA70 -> 0.3900371278 | AB79: =Opex_Breakdown!AB70 -> 0.3900371333 | AC79: =Opex_Breakdown!AC70 -> 0.5800371352 | AD79: =Opex_Breakdown!AD70 -> 0.3900371251 | AE79: =Opex_Breakdown!AE70 -> 0.3900371312 | AF79: =Opex_Breakdown!AF70 -> 0.3900371312 | AG79: =Opex_Breakdown!AG70 -> 0.3900371312 | AH79: =Opex_Breakdown!AH70 -> 0.3900371312 | AI79: =Opex_Breakdown!AI70 -> 0.3900371312 | AJ79: =Opex_Breakdown!AJ70 -> 0.3900371312
D80: =Opex_Breakdown!E28 -> Environment Contribution (W&D) | AA80: =Opex_Breakdown!AA28 -> 0.9507613665 | AB80: =Opex_Breakdown!AB28 -> 0.9336476619 | AC80: =Opex_Breakdown!AC28 -> 0.912842004 | AD80: =Opex_Breakdown!AD28 -> 0.9003388479 | AE80: =Opex_Breakdown!AE28 -> 0.8841327486 | AF80: =Opex_Breakdown!AF28 -> 0.8682183592 | AG80: =Opex_Breakdown!AG28 -> 0.8525904287 | AH80: =Opex_Breakdown!AH28 -> 0.837243801 | AI80: =Opex_Breakdown!AI28 -> 0.8221734126 | AJ80: =Opex_Breakdown!AJ28 -> 0.8073742911
D81: =Opex_Breakdown!E30 -> Other non-controllable | AA81: =Opex_Breakdown!AA119 -> 7.436893627 | AB81: =Opex_Breakdown!AB119 -> 7.436893638 | AC81: =Opex_Breakdown!AC119 -> 7.436893689 | AD81: =Opex_Breakdown!AD119 -> 7.436893708 | AE81: =Opex_Breakdown!AE119 -> 7.436893668 | AF81: =Opex_Breakdown!AF119 -> 7.436893668 | AG81: =Opex_Breakdown!AG119 -> 7.436893668 | AH81: =Opex_Breakdown!AH119 -> 7.436893668 | AI81: =Opex_Breakdown!AI119 -> 7.436893668 | AJ81: =Opex_Breakdown!AJ119 -> 7.436893668
D82: Total non-controllable operating expenditure | AA82: =SUM(AA79:AA81) -> 8.777692122 | AB82: 8.760578433 | AC82: 8.929772828 | AD82: 8.727269681 | AE82: 8.711063548 | AF82: 8.695149158 | AG82: 8.679521228 | AH82: 8.6641746 | AI82: 8.649104212 | AJ82: 8.63430509
D85: Total prescribed operating expenditure | AA85: =+AA82+AA76 -> 158.3438091 | AB85: 158.2381487 | AC85: 158.4438678 | AD85: 158.8394639 | AE85: 158.9994695 | AF85: 158.9798651 | AG85: 158.9681872 | AH85: 158.9488906 | AI85: 158.9377702 | AJ85: 158.9190211
Z88: To reconcile to 'Opex_Breakdown' tab >> | AA88: =Opex_Breakdown!AA73+Opex_Breakdown!AA91+Opex_Breakdown!AA119 -> 158.3438053 | AB88: =Opex_Breakdown!AB73+Opex_Breakdown!AB91+Opex_Breakdown!AB119 -> 158.241879 | AC88: =Opex_Breakdown!AC73+Opex_Breakdown!AC91+Opex_Breakdown!AC119 -> 158.4427499 | AD88: =Opex_Breakdown!AD73+Opex_Breakdown!AD91+Opex_Breakdown!AD119 -> 158.8395637 | AE88: =Opex_Breakdown!AE73+Opex_Breakdown!AE91+Opex_Breakdown!AE119 -> 158.9997314 | AF88: =Opex_Breakdown!AF73+Opex_Breakdown!AF91+Opex_Breakdown!AF119 -> 158.983817 | AG88: =Opex_Breakdown!AG73+Opex_Breakdown!AG91+Opex_Breakdown!AG119 -> 158.9681891 | AH88: =Opex_Breakdown!AH73+Opex_Breakdown!AH91+Opex_Breakdown!AH119 -> 158.9528425 | AI88: =Opex_Breakdown!AI73+Opex_Breakdown!AI91+Opex_Breakdown!AI119 -> 158.9377721 | AJ88: =Opex_Breakdown!AJ73+Opex_Breakdown!AJ91+Opex_Breakdown!AJ119 -> 158.922973
Z89: Difference | AA89: =+AA88-AA85 -> -3.825822006e-06 | AB89: 0.003730311943 | AC89: -0.001117960472 | AD89: 9.976606279e-05 | AE89: 0.0002619038996 | AF89: 0.0039519039 | AG89: 1.903899602e-06 | AH89: 0.0039519039 | AI89: 1.90389963e-06 | AJ89: 0.0039519039
Z90: Test | AA90: =ROUND(AA88,2)=ROUND(AA85,2) -> TRUE | AB90: TRUE | AC90: TRUE | AD90: TRUE | AE90: TRUE | AF90: TRUE | AG90: TRUE | AH90: TRUE | AI90: TRUE | AJ90: TRUE | AM90: <<< these flags will balance once MW apportions the correct draft decision licence fees to the relevant services

Sheet Opex_Breakdown
A1: 80 | B1: Operating Expenditure - Breakdown
B2: =+Contents!H7 -> Melbourne Water | Y2: DD Adjustments | Z2: ='Adjustments Log'!D35 -> 0 | AA2: ='Adjustments Log'!E35 -> -7.33870807 | AB2: ='Adjustments Log'!F35 -> -7.851370053 | AC2: ='Adjustments Log'!G35 -> -8.362747441 | AD2: ='Adjustments Log'!H35 -> -8.872842935 | AE2: ='Adjustments Log'!I35 -> -9.381659228 | AF2: water corp. must reallocate the DD adjustment to services below (row 17 formula adjusted) and then delete the values in this row
B3: Go to Table of Contents
L4: FIRST REG PERIOD | P4: SECOND REG PERIOD | T4: THIRD REG PERIOD | X4: FOURTH REG PERIOD | AC4: FIFTH REG PERIOD | AH4: SIXTH REG PERIOD
K6: 2006 | L6: 2007 | M6: 2008 | N6: 2009 | O6: 2010 | P6: 2011 | Q6: 2012 | R6: 2013 | S6: 2014 | T6: 2015 | U6: 2016 | V6: 2017 | W6: 2018 | X6: 2019 | Y6: 2020 | Z6: 2021 | AA6: 2022 | AB6: 2023 | AC6: 2024 | AD6: 2025 | AE6: 2026 | AF6: 2027 | AG6: 2028 | AH6: 2029 | AI6: 2030 | AJ6: 2031
B7: =Expenditure_Detail!$B$6 -> $m, 01/01/21 | K7: =+CONCATENATE(K6-1,"-",RIGHT(K6,2)) -> 2005-06 | L7: =+CONCATENATE(L6-1,"-",RIGHT(L6,2)) -> 2006-07 | M7: 2007-08 | N7: 2008-09 | O7: 2009-10 | P7: 2010-11 | Q7: 2011-12 | R7: 2012-13 | S7: 2013-14 | T7: 2014-15 | U7: 2015-16 | V7: 2016-17 | W7: 2017-18 | X7: =+CONCATENATE(X6-1,"-",RIGHT(X6,2)) -> 2018-19 | Y7: 2019-20 | Z7: 2020-21 | AA7: 2021-22 | AB7: 2022-23 | AC7: 2023-24 | AD7: 2024-25 | AE7: 2025-26 | AF7: 2026-27 | AG7: 2027-28 | AH7: 2028-29 | AI7: 2029-30 | AJ7: 2030-31
D10: Operating Expenditure Summary
E12: =General_BL!F10 -> Water | K12: =+K51-K48-K47 -> 0 | L12: 0 | M12: 0 | N12: 0 | O12: 0 | P12: 0 | Q12: 0 | R12: 0 | S12: 0 | T12: 0 | U12: 92.7875159 | V12: 105.3797218 | W12: 97.81145484 | X12: 90.80705929 | Y12: 98.33672217 | Z12: 95.27119268 | AA12: 92.6449011 | AB12: 91.66856885 | AC12: 93.91438612 | AD12: 95.01777463 | AE12: 95.74348345 | AF12: 95.74348345 | AG12: 95.74348345 | AH12: 95.74348345 | AI12: 95.74348345 | AJ12: 95.74348345
E13: =General_BL!F11 -> Sewerage | K13: =K58-K55 -> 0 | L13: 0 | M13: 0 | N13: 0 | O13: 0 | P13: 0 | Q13: 0 | R13: 0 | S13: 0 | T13: 0 | U13: =U58-U55 -> 122.7069194 | V13: =V58-V55 -> 130.26962 | W13: 132.6710161 | X13: 132.1845665 | Y13: 146.8760258 | Z13: 151.8371997 | AA13: 137.8638043 | AB13: 135.6537233 | AC13: 134.9678464 | AD13: 137.4931036 | AE13: 140.2486999 | AF13: 140.2486999 | AG13: 140.2486999 | AH13: 140.2486999 | AI13: 140.2486999 | AJ13: 140.2434999
E14: =General_BL!F12 -> Recycled Water | K14: =K65-K62 -> 0 | L14: 0 | M14: 0 | N14: 0 | O14: 0 | P14: 0 | Q14: 0 | R14: 0 | S14: 0 | T14: 0 | U14: 5.569424842 | V14: 4.984776654 | W14: 5.083234382 | X14: 5.111233393 | Y14: =Y65-Y62 -> 2.497950822 | Z14: 2.80264108 | AA14: 3.805901422 | AB14: 3.794424431 | AC14: 3.772966924 | AD14: 3.762529025 | AE14: 3.772384592 | AF14: 3.772384592 | AG14: 3.772384592 | AH14: 3.772384592 | AI14: 3.772384592 | AJ14: 3.772384592
E15: =General_BL!F13 -> Waterways and Drainage | K15: =K73-K70 -> 0 | L15: 0 | M15: 0 | N15: 0 | O15: 0 | P15: 0 | Q15: 0 | R15: 0 | S15: 0 | T15: 0 | U15: 124.5897537 | V15: 127.0851922 | W15: 130.3675803 | X15: 138.5014351 | Y15: =Y73-Y70 -> 140.6236693 | Z15: 146.0792725 | AA15: 149.5661131 | AB15: 149.4813006 | AC15: 149.5129771 | AD15: 150.112294 | AE15: 150.2886679 | AF15: 150.2886679 | AG15: 150.2886679 | AH15: 150.2886679 | AI15: 150.2886679 | AJ15: 150.2886679
E16: =General_BL!F14 -> Diversions | K16: =K80-K77 -> 0 | L16: 0 | M16: 0 | N16: 0 | O16: 0 | P16: 0 | Q16: 0 | R16: 0 | S16: 0 | T16: 0 | U16: 1.15123642 | V16: 1.160203722 | W16: 1.159288714 | X16: 0.3088411641 | Y16: =Y80-Y77 -> 0.8723125501 | Z16: 0.8706030727 | AA16: 0.9345958919 | AB16: 0.9335430721 | AC16: 0.9305596223 | AD16: 0.9295487455 | AE16: 0.928560608 | AF16: 0.928560608 | AG16: 0.928560608 | AH16: 0.928560608 | AI16: 0.928560608 | AJ16: 0.928560608
E17: Total controllable operating expenditure | K17: =SUM(K12:K16) -> 0 | L17: 0 | M17: 0 | N17: 0 | O17: 0 | P17: 0 | Q17: 0 | R17: 0 | S17: 0 | T17: 0 | U17: =SUM(U12:U16) -> 346.8048503 | V17: 368.8795144 | W17: 367.0925744 | X17: 366.9131354 | Y17: 389.2066807 | Z17: =SUM(Z12:Z16)+Z2 -> 396.8609091 | AA17: =SUM(AA12:AA16) -> 384.8153159 | AB17: 381.5315603 | AC17: 383.0987361 | AD17: 387.31525 | AE17: 390.9817965 | AF17: 390.9817965 | AG17: 390.9817965 | AH17: 390.9817965 | AI17: 390.9817965 | AJ17: 390.9765965
E20: Operations & Maintenance | K20: =SUMIF($D$46:$D$79,$E20,K46:K79) -> 0 | L20: 0 | M20: 0 | N20: 0 | O20: 0 | P20: 0 | Q20: 0 | R20: 0 | S20: 0 | T20: 0 | U20: 228.4106071 | V20: 238.9814323 | W20: 236.1419859 | X20: 245.3268682 | Y20: 272.7302611 | Z20: 278.1479167 | AA20: 269.5799893 | AB20: 264.6844759 | AC20: 264.7857777 | AD20: 267.2358988 | AE20: 270.2631112 | AF20: 270.2631112 | AG20: 270.2631112 | AH20: 270.2631112 | AI20: 270.2631112 | AJ20: 270.2579112
E21: Customer Service and billing | K21: =SUMIF($D$46:$D$79,$E21,K46:K79) -> 0 | L21: 0 | M21: 0 | N21: 0 | O21: 0 | P21: 0 | Q21: 0 | R21: 0 | S21: 0 | T21: 0 | U21: 13.13069169 | V21: 13.98228752 | W21: 13.57679004 | X21: 14.05401763 | Y21: 14.43171567 | Z21: 14.56927706 | AA21: 14.88698511 | AB21: 15.13011094 | AC21: 15.37334941 | AD21: 15.61670266 | AE21: 15.86017284 | AF21: 15.86017284 | AG21: 15.86017284 | AH21: 15.86017284 | AI21: 15.86017284 | AJ21: 15.86017284
E22: Corporate | K22: =SUMIF($D$46:$D$79,$E22,K46:K79) -> 0 | L22: 0 | M22: 0 | N22: 0 | O22: 0 | P22: 0 | Q22: 0 | R22: 0 | S22: 0 | T22: 0 | U22: 105.2635515 | V22: 115.9157946 | W22: 117.3737984 | X22: 107.5322496 | Y22: 102.0447038 | Z22: 104.1437153 | AA22: 100.3483415 | AB22: 101.7169734 | AC22: 102.939609 | AD22: 104.4626485 | AE22: 104.8585124 | AF22: 104.8585124 | AG22: 104.8585124 | AH22: 104.8585124 | AI22: 104.8585124 | AJ22: 104.8585124
E23: Other operating expenditure | K23: =SUMIF($D$46:$D$79,$E23,K46:K79) -> 0 | L23: 0 | M23: 0 | N23: 0 | O23: 0 | P23: 0 | Q23: 0 | R23: 0 | S23: 0 | T23: 0 | U23: 0 | V23: 0 | W23: 0 | X23: 0 | Y23: 0 | Z23: 0 | AA23: 0 | AB23: 0 | AC23: 0 | AD23: 0 | AE23: 0 | AF23: 0 | AG23: 0 | AH23: 0 | AI23: 0 | AJ23: 0
E24: Total controllable operating expenditure | K24: =SUM(K20:K23) -> 0 | L24: 0 | M24: 0 | N24: 0 | O24: 0 | P24: 0 | Q24: 0 | R24: 0 | S24: 0 | T24: 0 | U24: 346.8048503 | V24: 368.8795144 | W24: 367.0925744 | X24: 366.9131354 | Y24: 389.2066807 | Z24: 396.8609091 | AA24: 384.8153159 | AB24: 381.5315603 | AC24: 383.0987361 | AD24: 387.31525 | AE24: 390.9817965 | AF24: 390.9817965 | AG24: 390.9817965 | AH24: 390.9817965 | AI24: 390.9817965 | AJ24: 390.9765965
K25: =ROUND(K24,2)=ROUND(K17,2) -> TRUE | L25: TRUE | M25: TRUE | N25: TRUE | O25: TRUE | P25: TRUE | Q25: TRUE | R25: TRUE | S25: TRUE | T25: TRUE | U25: TRUE | V25: TRUE | W25: TRUE | X25: TRUE | Y25: TRUE | Z25: TRUE | AA25: TRUE | AB25: TRUE | AC25: TRUE | AD25: TRUE | AE25: TRUE | AF25: TRUE | AG25: TRUE | AH25: TRUE | AI25: TRUE | AJ25: TRUE | AM25: <<< these flags will balance once MW apportions the correct draft decision licence fees to the relevant services
E27: Licence fees | K27: =+K88 -> 0 | L27: 0 | M27: 0 | N27: 0 | O27: 0 | P27: 0 | Q27: 0 | R27: 0 | S27: 0 | T27: 0 | U27: 2.30705188 | V27: 2.165976913 | W27: 2.320640543 | X27: 2.317942027 | Y27: =+Y88 -> 1.991454075 | Z27: 2.967721862 | AA27: 2.732298643 | AB27: 2.7378395 | AC27: 3.318384712 | AD27: 2.748989955 | AE27: 2.748989955 | AF27: 2.748989955 | AG27: 2.748989955 | AH27: 2.748989955 | AI27: 2.748989955 | AJ27: 2.748989955
E28: Environment Contribution (W&D) | K28: =K91 -> 0 | L28: 0 | M28: 0 | N28: 0 | O28: 0 | P28: 0 | Q28: 0 | R28: 0 | S28: 0 | T28: 0 | U28: 0.03052793765 | V28: 0.03052793765 | W28: 0.03052793765 | X28: 0.03076464076 | Y28: =Y91 -> 0.02959823043 | Z28: 0.9681887642 | AA28: 0.9507613665 | AB28: 0.9336476619 | AC28: 0.912842004 | AD28: 0.9003388479 | AE28: 0.8841327486 | AF28: 0.8682183592 | AG28: 0.8525904287 | AH28: 0.837243801 | AI28: 0.8221734126 | AJ28: 0.8073742911
E29: Desalination Payments (W&S) | K29: =K93 -> 0 | L29: =L93 -> 0 | M29: 0 | N29: 0 | O29: 0 | P29: 0 | Q29: 0 | R29: 0 | S29: 0 | T29: 0 | U29: 676.8913858 | V29: 611.1674157 | W29: 607.8613087 | X29: 613.4160362 | Y29: 658.2975645 | Z29: 539.4924107 | AA29: 527.6139191 | AB29: 519.8238474 | AC29: 507.579439 | AD29: 491.5979213 | AE29: 478.428073 | AF29: 467.265096 | AG29: 452.7692861 | AH29: 453.5708692 | AI29: 435.0146873 | AJ29: 415.6012812
E30: Other non-controllable | K30: =+K106+K119 -> 0 | L30: =+L106+L119 -> 0 | M30: 0 | N30: 0 | O30: 0 | P30: 0 | Q30: 0 | R30: 0 | S30: 0 | T30: 0 | U30: 27.48004991 | V30: 23.54754463 | W30: 25.31543564 | X30: 24.79470994 | Y30: 31.84337074 | Z30: 27.92120996 | AA30: 27.30580846 | AB30: 27.30580848 | AC30: 27.30580852 | AD30: 27.30580854 | AE30: 27.30580847 | AF30: 27.30580847 | AG30: 27.30580847 | AH30: 27.30580847 | AI30: 27.30580847 | AJ30: 27.30580847
E31: Total non-controllable operating expenditure | K31: =SUM(K27:K30) -> 0 | L31: 0 | M31: 0 | N31: 0 | O31: 0 | P31: 0 | Q31: 0 | R31: 0 | S31: 0 | T31: 0 | U31: 706.7090155 | V31: 636.9114652 | W31: 635.5279128 | X31: 640.5594528 | Y31: 692.1619876 | Z31: 571.3495313 | AA31: 558.6027876 | AB31: 550.801143 | AC31: 539.1164742 | AD31: 522.5530586 | AE31: 509.3670041 | AF31: 498.1881128 | AG31: 483.6766749 | AH31: 484.4629114 | AI31: 465.8916592 | AJ31: 446.4634539
E34: Total prescribed operating expenditure | K34: =+K31+K17 -> 0 | L34: 0 | M34: 0 | N34: 0 | O34: 0 | P34: 0 | Q34: 0 | R34: 0 | S34: 0 | T34: 0 | U34: 1053.513866 | V34: 1005.79098 | W34: 1002.620487 | X34: 1007.472588 | Y34: 1081.368668 | Z34: 968.2104404 | AA34: 943.4181035 | AB34: 932.3327033 | AC34: 922.2152103 | AD34: 909.8683086 | AE34: 900.3488006 | AF34: 889.1699092 | AG34: 874.6584714 | AH34: 875.4447079 | AI34: 856.8734556 | AJ34: 837.4400504
Z37: To reconcile to 'Opex_FO_Summary' tab >> | AA37: =+Opex_FO_Summary!AA86 -> 943.4181003 | AB37: =+Opex_FO_Summary!AB86 -> 932.3275782 | AC37: =+Opex_FO_Summary!AC86 -> 922.215206 | AD37: =+Opex_FO_Summary!AD86 -> 909.8671176 | AE37: =+Opex_FO_Summary!AE86 -> 900.3472355 | AF37: =+Opex_FO_Summary!AF86 -> 889.1652542 | AG37: =+Opex_FO_Summary!AG86 -> 874.6571663 | AH37: =+Opex_FO_Summary!AH86 -> 875.4394528 | AI37: =+Opex_FO_Summary!AI86 -> 856.8728505 | AJ37: =+Opex_FO_Summary!AJ86 -> 837.4399953
Z38: Difference | AA38: =+AA37-AA34 -> -3.21018581e-06 | AB38: -0.005125043381 | AC38: -4.295249482e-06 | AD38: -0.001190971863 | AE38: -0.001565079281 | AF38: -0.004655079281 | AG38: =+AG37-AG34 -> -0.001305079281 | AH38: =+AH37-AH34 -> -0.005255079281 | AI38: =+AI37-AI34 -> -0.0006050792813 | AJ38: -5.507928086e-05
Z39: Test | AA39: =ROUND(AA37,2)=ROUND(AA34,2) -> TRUE | AB39: TRUE | AC39: TRUE | AD39: TRUE | AE39: TRUE | AF39: TRUE | AG39: =ROUND(AG37,2)=ROUND(AG34,2) -> TRUE | AH39: =ROUND(AH37,2)=ROUND(AH34,2) -> TRUE | AI39: =ROUND(AI37,2)=ROUND(AI34,2) -> TRUE | AJ39: TRUE
B43: Total operating expenditure
C45: =E12 -> Water
D46: =E$20 -> Operations & Maintenance | U46: 61.2626776 | V46: 70.35098288 | W46: 62.7777624 | X46: 54.4766949 | Y46: 69.636529 | Z46: 65.85773122 | AA46: 64.22370753 | AB46: 62.83834892 | AC46: 64.7066912 | AD46: 65.34253532 | AE46: 65.93914743 | AF46: 65.93914743 | AG46: 65.93914743 | AH46: 65.93914743 | AI46: 65.93914743 | AJ46: 65.93914743
D47: =E$29 -> Desalination Payments (W&S) | K47: =K93 -> 0 | L47: =L93 -> 0 | M47: 0 | N47: 0 | O47: 0 | P47: 0 | Q47: 0 | R47: 0 | S47: 0 | T47: 0 | U47: 676.8913858 | V47: 611.1674157 | W47: 607.8613087 | X47: 613.4160362 | Y47: 658.2975645 | Z47: 539.4924107 | AA47: 527.6139191 | AB47: 519.8238474 | AC47: 507.579439 | AD47: 491.5979213 | AE47: 478.428073 | AF47: 467.265096 | AG47: 452.7692861 | AH47: 453.5708692 | AI47: 435.0146873 | AJ47: 415.6012812
D48: =E$27 -> Licence fees | U48: 0.5973624998 | V48: 0.5593525286 | W48: 0.6007332561 | X48: 0.6144711477 | Y48: 0.4644387569 | Z48: 0.7766283626 | AA48: 0.5944339385 | AB48: 0.5944339379 | AC48: 0.7844339403 | AD48: 0.5944339337 | AE48: 0.5944339381 | AF48: 0.5944339381 | AG48: 0.5944339381 | AH48: 0.5944339381 | AI48: 0.5944339381 | AJ48: 0.5944339381
D49: =E$22 -> Corporate | U49: 31.52483831 | V49: 35.02873896 | W49: 35.03369244 | X49: 36.33036439 | Y49: 28.70019317 | Z49: 29.41346146 | AA49: 28.42119358 | AB49: 28.83021993 | AC49: 29.20769491 | AD49: 29.67523932 | AE49: 29.80433602 | AF49: 29.80433602 | AG49: 29.80433602 | AH49: 29.80433602 | AI49: 29.80433602 | AJ49: 29.80433602
D50: =E$23 -> Other operating expenditure
C51: =+CONCATENATE("Total ",C45) -> Total Water | K51: =+SUM(K46:K50) -> 0 | L51: 0 | M51: 0 | N51: 0 | O51: 0 | P51: 0 | Q51: 0 | R51: 0 | S51: 0 | T51: 0 | U51: 770.2762642 | V51: 717.1064901 | W51: 706.2734968 | X51: 704.8375666 | Y51: 757.0987254 | Z51: 635.5402317 | AA51: 620.8532542 | AB51: 612.0868502 | AC51: 602.278259 | AD51: 587.2101299 | AE51: 574.7659904 | AF51: 563.6030134 | AG51: 549.1072035 | AH51: 549.9087866 | AI51: 531.3526047 | AJ51: 511.9391986
C53: =E13 -> Sewerage
D54: =E$20 -> Operations & Maintenance | U54: 96.60335556 | V54: 101.0874612 | W54: 102.9811212 | X54: 101.4656072 | Y54: 113.3265641 | Z54: 117.7652845 | AA54: 104.864262 | AB54: 102.1725869 | AC54: 101.0436045 | AD54: 103.0183153 | AE54: 105.624513 | AF54: 105.624513 | AG54: 105.624513 | AH54: 105.624513 | AI54: 105.624513 | AJ54: 105.619313
D55: =E$27 -> Licence fees | U55: 1.409066347 | V55: 1.254605051 | W55: 1.322175021 | X55: 1.310958487 | Y55: 1.24697528 | Z55: 1.606718598 | AA55: 1.747827189 | AB55: 1.753340176 | AC55: 1.953910193 | AD55: 1.764340177 | AE55: 1.764340194 | AF55: 1.764340194 | AG55: 1.764340194 | AH55: 1.764340194 | AI55: 1.764340194 | AJ55: 1.764340194
D56: =E$22 -> Corporate | U56: 26.10356383 | V56: 29.1821588 | W56: 29.68989495 | X56: 30.71895939 | Y56: 33.54946172 | Z56: 34.07191522 | AA56: 32.99954238 | AB56: 33.48113646 | AC56: 33.92424188 | AD56: 34.47478824 | AE56: 34.62418691 | AF56: 34.62418691 | AG56: 34.62418691 | AH56: 34.62418691 | AI56: 34.62418691 | AJ56: 34.62418691
D57: =E$23 -> Other operating expenditure
C58: =+CONCATENATE("Total ",C53) -> Total Sewerage | K58: =+SUM(K54:K57) -> 0 | L58: 0 | M58: 0 | N58: 0 | O58: 0 | P58: 0 | Q58: 0 | R58: 0 | S58: 0 | T58: 0 | U58: 124.1159857 | V58: 131.5242251 | W58: 133.9931912 | X58: 133.495525 | Y58: 148.1230011 | Z58: 153.4439183 | AA58: 139.6116315 | AB58: 137.4070635 | AC58: 136.9217566 | AD58: 139.2574438 | AE58: 142.0130401 | AF58: 142.0130401 | AG58: 142.0130401 | AH58: 142.0130401 | AI58: 142.0130401 | AJ58: 142.0078401
C60: =E14 -> Recycled Water
D61: =E$20 -> Operations & Maintenance | U61: 4.172541525 | V61: 3.545132522 | W61: 3.647847883 | X61: 3.613653883 | Y61: 2.077338406 | Z61: 2.37683825 | AA61: 3.360896186 | AB61: 3.346154763 | AC61: 3.322464192 | AD61: 3.310020718 | AE61: 3.320064287 | AF61: 3.320064287 | AG61: 3.320064287 | AH61: 3.320064287 | AI61: 3.320064287 | AJ61: 3.320064287
D62: =E$27 -> Licence fees
D63: =E$22 -> Corporate | U63: 1.396883317 | V63: 1.439644132 | W63: 1.435386499 | X63: 1.49757951 | Y63: 0.4206124165 | Z63: 0.42580283 | AA63: 0.4450052353 | AB63: 0.4482696678 | AC63: 0.450502732 | AD63: 0.4525083066 | AE63: 0.4523203056 | AF63: 0.4523203056 | AG63: 0.4523203056 | AH63: 0.4523203056 | AI63: 0.4523203056 | AJ63: 0.4523203056
D64: =E$23 -> Other operating expenditure
C65: =+CONCATENATE("Total ",C60) -> Total Recycled Water | K65: =+SUM(K61:K64) -> 0 | L65: 0 | M65: 0 | N65: 0 | O65: 0 | P65: 0 | Q65: 0 | R65: 0 | S65: 0 | T65: 0 | U65: 5.569424842 | V65: 4.984776654 | W65: 5.083234382 | X65: 5.111233393 | Y65: 2.497950822 | Z65: 2.80264108 | AA65: 3.805901422 | AB65: 3.794424431 | AC65: 3.772966924 | AD65: 3.762529025 | AE65: 3.772384592 | AF65: 3.772384592 | AG65: 3.772384592 | AH65: 3.772384592 | AI65: 3.772384592 | AJ65: 3.772384592
C67: =E15 -> Waterways and Drainage
D68: =E$20 -> Operations & Maintenance | U68: 65.220796 | V68: 62.83765195 | W68: 65.57596572 | X68: 85.46207114 | Y68: 86.8175171 | Z68: 91.27745969 | AA68: 96.1965277 | AB68: 95.39384226 | AC68: 94.78245817 | AD68: 94.63547871 | AE68: 94.45082584 | AF68: 94.45082584 | AG68: 94.45082584 | AH68: 94.45082584 | AI68: 94.45082584 | AJ68: 94.45082584
D69: =E$21 -> Customer Service and billing | U69: 13.13069169 | V69: 13.98228752 | W69: 13.57679004 | X69: 14.05401763 | Y69: 14.43171567 | Z69: 14.56927706 | AA69: 14.88698511 | AB69: 15.13011094 | AC69: 15.37334941 | AD69: 15.61670266 | AE69: 15.86017284 | AF69: 15.86017284 | AG69: 15.86017284 | AH69: 15.86017284 | AI69: 15.86017284 | AJ69: 15.86017284
D70: =E$27 -> Licence fees | U70: 0.3006230329 | V70: 0.3520193334 | W70: 0.3977322657 | X70: 0.3925123922 | Y70: 0.2800400377 | Z70: 0.5829387099 | AA70: 0.3900371278 | AB70: 0.3900371333 | AC70: 0.5800371352 | AD70: 0.3900371251 | AE70: 0.3900371312 | AF70: 0.3900371312 | AG70: 0.3900371312 | AH70: 0.3900371312 | AI70: 0.3900371312 | AJ70: 0.3900371312
D71: =E$22 -> Corporate | U71: 46.23826607 | V71: 50.2652527 | W71: 51.21482452 | X71: 38.98534627 | Y71: 39.37443653 | Z71: 40.2325358 | AA71: 38.48260033 | AB71: 38.95734738 | AC71: 39.35716947 | AD71: 39.86011261 | AE71: 39.9776692 | AF71: 39.9776692 | AG71: 39.9776692 | AH71: 39.9776692 | AI71: 39.9776692 | AJ71: 39.9776692
D72: =E$23 -> Other operating expenditure
C73: =+CONCATENATE("Total ",C67) -> Total Waterways and Drainage | K73: =+SUM(K68:K72) -> 0 | L73: 0 | M73: 0 | N73: 0 | O73: 0 | P73: 0 | Q73: 0 | R73: 0 | S73: 0 | T73: 0 | U73: 124.8903768 | V73: 127.4372115 | W73: 130.7653125 | X73: 138.8939474 | Y73: 140.9037093 | Z73: 146.6622113 | AA73: 149.9561503 | AB73: 149.8713377 | AC73: 150.0930142 | AD73: 150.5023311 | AE73: 150.678705 | AF73: 150.678705 | AG73: 150.678705 | AH73: 150.678705 | AI73: 150.678705 | AJ73: 150.678705
C75: =E16 -> Diversions
D76: =E$20 -> Operations & Maintenance | U76: 1.15123642 | V76: 1.160203722 | W76: 1.159288714 | X76: 0.3088411641 | Y76: 0.8723125501 | Z76: 0.8706030727 | AA76: 0.9345958919 | AB76: 0.9335430721 | AC76: 0.9305596223 | AD76: 0.9295487455 | AE76: 0.928560608 | AF76: 0.928560608 | AG76: 0.928560608 | AH76: 0.928560608 | AI76: 0.928560608 | AJ76: 0.928560608
D77: =E$27 -> Licence fees
D78: =E$22 -> Corporate
D79: =E$23 -> Other operating expenditure
C80: Total Bulk water | K80: =+SUM(K76:K79) -> 0 | L80: 0 | M80: 0 | N80: 0 | O80: 0 | P80: 0 | Q80: 0 | R80: 0 | S80: 0 | T80: 0 | U80: 1.15123642 | V80: 1.160203722 | W80: 1.159288714 | X80: 0.3088411641 | Y80: 0.8723125501 | Z80: 0.8706030727 | AA80: 0.9345958919 | AB80: 0.9335430721 | AC80: 0.9305596223 | AD80: 0.9295487455 | AE80: 0.928560608 | AF80: 0.928560608 | AG80: 0.928560608 | AH80: 0.928560608 | AI80: 0.928560608 | AJ80: 0.928560608
B82: Non-controllable operating expenditure
C84: =E27 -> Licence fees
D85: Essential Services Commission | U85: 1.005428186 | V85: 0.9539819418 | W85: 1.077865173 | X85: 1.063719184 | Y85: 0.8179933918 | Z85: 1.72494442 | AA85: 1.149962946 | AB85: 1.149962946 | AC85: 1.72494442 | AD85: 1.149962946 | AE85: 1.149962946 | AF85: 1.149962946 | AG85: 1.149962946 | AH85: 1.149962946 | AI85: 1.149962946 | AJ85: 1.149962946
D86: Department of Human Services | U86: 0.2555168906 | V86: 0.2384329908 | W86: 0.2381394081 | X86: 0.2566359994 | Y86: 0.2187789815 | Z86: 0.2406568817 | AA86: 0.2406568817 | AB86: 0.2406568817 | AC86: 0.2406568817 | AD86: 0.2406568817 | AE86: 0.2406568817 | AF86: 0.2406568817 | AG86: 0.2406568817 | AH86: 0.2406568817 | AI86: 0.2406568817 | AJ86: 0.2406568817
D87: Environment Protection Authority | U87: 1.046106803 | V87: 0.9735619806 | W87: 1.004635962 | X87: 0.9975868432 | Y87: 0.9546817017 | Z87: 1.00212056 | AA87: 1.341678815 | AB87: 1.347219672 | AC87: 1.352783411 | AD87: 1.358370127 | AE87: 1.358370127 | AF87: 1.358370127 | AG87: 1.358370127 | AH87: 1.358370127 | AI87: 1.358370127 | AJ87: 1.358370127
C88: =+CONCATENATE("Total ",C84) -> Total Licence fees | K88: =+SUM(K85:K87) -> 0 | L88: =+SUM(L85:L87) -> 0 | M88: 0 | N88: 0 | O88: 0 | P88: 0 | Q88: 0 | R88: 0 | S88: 0 | T88: 0 | U88: 2.30705188 | V88: 2.165976913 | W88: 2.320640543 | X88: =+SUM(X85:X87) -> 2.317942027 | Y88: =+SUM(Y85:Y87) -> 1.991454075 | Z88: =+SUM(Z85:Z87) -> 2.967721862 | AA88: =+SUM(AA85:AA87) -> 2.732298643 | AB88: =+SUM(AB85:AB87) -> 2.7378395 | AC88: =+SUM(AC85:AC87) -> 3.318384712 | AD88: 2.748989955 | AE88: 2.748989955 | AF88: 2.748989955 | AG88: =+SUM(AG85:AG87) -> 2.748989955 | AH88: =+SUM(AH85:AH87) -> 2.748989955 | AI88: =+SUM(AI85:AI87) -> 2.748989955 | AJ88: 2.748989955
I89: Check | K89: =K88-SUM(K48,K55,K62,K70,K77) -> 0 | L89: 0 | M89: 0 | N89: 0 | O89: 0 | P89: 0 | Q89: 0 | R89: 0 | S89: 0 | T89: 0 | U89: 0 | V89: 0 | W89: 0 | X89: 0 | Y89: 0 | Z89: 0.001436191843 | AA89: 3.885307835e-07 | AB89: 2.825295336e-05 | AC89: 3.443953207e-06 | AD89: 0.0001787195067 | AE89: 0.0001786921282 | AF89: 0.0001786921282 | AG89: 0.0001786921282 | AH89: 0.0001786921282 | AI89: 0.0001786921282 | AJ89: 0.0001786921282 | AL89: <<< these flags will balance once MW apportions the correct draft decision licence fees to the relevant services
C91: =E28 -> Environment Contribution (W&D) | U91: 0.03052793765 | V91: 0.03052793765 | W91: 0.03052793765 | X91: 0.03076464076 | Y91: 0.02959823043 | Z91: 0.9681887642 | AA91: 0.9507613665 | AB91: 0.9336476619 | AC91: =0.916842003974801-0.004 -> 0.912842004 | AD91: 0.9003388479 | AE91: 0.8841327486 | AF91: 0.8682183592 | AG91: 0.8525904287 | AH91: 0.837243801 | AI91: 0.8221734126 | AJ91: 0.8073742911
C93: =E29 -> Desalination Payments (W&S) | U93: 676.8913858 | V93: 611.1674157 | W93: 607.8613087 | X93: 613.4160362 | Y93: 658.2975645 | Z93: 539.4924107 | AA93: 527.6139191 | AB93: 519.8238474 | AC93: 507.579439 | AD93: 491.5979213 | AE93: 478.428073 | AF93: 467.265096 | AG93: 452.7692861 | AH93: 453.5708692 | AI93: 435.0146873 | AJ93: 415.6012812
C95: Other non-controllable (W&S)
D96: Land Tax/ LGRE/ Fire Services Levy (Water) | U96: 13.34001242 | V96: 12.52004716 | W96: 12.54162001 | X96: 11.73602078 | Y96: 15.76886607 | Z96: 13.85560821 | AA96: 13.5496047 | AB96: 13.54960471 | AC96: 13.54960469 | AD96: 13.54960469 | AE96: 13.54960468 | AF96: 13.54960468 | AG96: 13.54960468 | AH96: 13.54960468 | AI96: 13.54960468 | AJ96: 13.54960468
D97: Land Tax/ LGRE/ Fire Services Levy (Sewerage) | U97: 8.645888854 | V97: 5.163462386 | W97: 7.707943792 | X97: 7.768269872 | Y97: 7.418448146 | Z97: 6.44276518 | AA97: 6.319310137 | AB97: 6.31931013 | AC97: 6.319310137 | AD97: 6.319310141 | AE97: 6.319310116 | AF97: 6.319310116 | AG97: 6.319310116 | AH97: 6.319310116 | AI97: 6.319310116 | AJ97: 6.319310116
D98: [Non-controllable 3]
D99: [Non-controllable 4]
D100: [Non-controllable 5]
D101: [Non-controllable 6]
D102: [Non-controllable 7]
D103: [Non-controllable 8]
D104: [Non-controllable 9]
D105: [Non-controllable 10]
C106: =+CONCATENATE("Total ",C95) -> Total Other non-controllable (W&S) | K106: =SUM(K96:K105) -> 0 | L106: 0 | M106: 0 | N106: 0 | O106: 0 | P106: 0 | Q106: 0 | R106: 0 | S106: 0 | T106: 0 | U106: 21.98590128 | V106: 17.68350955 | W106: 20.24956381 | X106: 19.50429066 | Y106: 23.18731422 | Z106: 20.29837339 | AA106: 19.86891483 | AB106: 19.86891484 | AC106: 19.86891483 | AD106: 19.86891483 | AE106: 19.8689148 | AF106: 19.8689148 | AG106: =SUM(AG96:AG105) -> 19.8689148 | AH106: =SUM(AH96:AH105) -> 19.8689148 | AI106: =SUM(AI96:AI105) -> 19.8689148 | AJ106: 19.8689148
C108: Other non-controllable (W&D)
D109: Land Tax/ LGRE/ Fire Services Levy (Waterways & Drainage) | U109: 5.494148633 | V109: 5.864035087 | W109: 5.065871839 | X109: 5.29041928 | Y109: 8.656056519 | Z109: 7.62283657 | AA109: 7.436893627 | AB109: 7.436893638 | AC109: 7.436893689 | AD109: 7.436893708 | AE109: 7.436893668 | AF109: 7.436893668 | AG109: 7.436893668 | AH109: 7.436893668 | AI109: 7.436893668 | AJ109: 7.436893668
D110: [Non-controllable 2]
D111: [Non-controllable 3]
D112: [Non-controllable 4]
D113: [Non-controllable 5]
D114: [Non-controllable 6]
D115: [Non-controllable 7]
D116: [Non-controllable 8]
D117: [Non-controllable 9]
D118: [Non-controllable 10]
C119: =+CONCATENATE("Total ",C108) -> Total Other non-controllable (W&D) | K119: =SUM(K109:K118) -> 0 | L119: 0 | M119: 0 | N119: 0 | O119: 0 | P119: 0 | Q119: 0 | R119: 0 | S119: 0 | T119: 0 | U119: 5.494148633 | V119: 5.864035087 | W119: 5.065871839 | X119: 5.29041928 | Y119: 8.656056519 | Z119: 7.62283657 | AA119: 7.436893627 | AB119: 7.436893638 | AC119: 7.436893689 | AD119: 7.436893708 | AE119: 7.436893668 | AF119: 7.436893668 | AG119: 7.436893668 | AH119: 7.436893668 | AI119: 7.436893668 | AJ119: 7.436893668

Sheet Capex_FO input
B1: Capital Expenditure - Forecast Input | Q1: =Q39 -> Gross capital expenditure | AB1: =AB39 -> Government contributions | AM1: =AM39 -> Customer contributions | AX1: =AX39 -> Net capital expenditure | BI1: =BI39 -> Regulatory Depreciation | BT1: =BT39 -> Accumulated capex | CE1: =CE39 -> Gross capital expenditure | CP1: =CP39 -> Tax Depreciation
B2: =+Contents!H7 -> Melbourne Water | Q2: =Q40 -> $m, 01/01/21 | AB2: =AB40 -> $m, 01/01/21 | AM2: =AM40 -> $m, 01/01/21 | AX2: =AX40 -> $m, 01/01/21 | BI2: =BI40 -> $m, 01/01/21 | BT2: =BT40 -> $m, 01/01/21 | CE2: =CE40 -> Nominal,$ | CP2: =CP40 -> Nominal,$ | DC2: NOT RELEVANT FOR MW
B3: Go to Table of Contents | Q3: =Q42 -> 2021-22 | R3: =R42 -> 2022-23 | S3: 2023-24 | T3: 2024-25 | U3: 2025-26 | V3: 2026-27 | W3: 2027-28 | X3: 2028-29 | Y3: 2029-30 | Z3: 2030-31 | AB3: =AB42 -> 2021-22 | AC3: 2022-23 | AD3: 2023-24 | AE3: 2024-25 | AF3: 2025-26 | AG3: 2026-27 | AH3: 2027-28 | AI3: 2028-29 | AJ3: 2029-30 | AK3: 2030-31 | AM3: 2021-22 | AN3: 2022-23 | AO3: 2023-24 | AP3: 2024-25 | AQ3: 2025-26 | AR3: 2026-27 | AS3: 2027-28 | AT3: 2028-29 | AU3: 2029-30 | AV3: 2030-31 | AX3: 2021-22 | AY3: 2022-23 | AZ3: 2023-24 | BA3: 2024-25 | BB3: 2025-26 | BC3: 2026-27 | BD3: 2027-28 | BE3: 2028-29 | BF3: 2029-30 | BG3: 2030-31 | BI3: 2021-22 | BJ3: 2022-23 | BK3: 2023-24 | BL3: 2024-25 | BM3: 2025-26 | BN3: 2026-27 | BO3: 2027-28 | BP3: 2028-29 | BQ3: 2029-30 | BR3: 2030-31 | BT3: 2021-22 | BU3: 2022-23 | BV3: 2023-24 | BW3: 2024-25 | BX3: 2025-26 | BY3: 2026-27 | BZ3: 2027-28 | CA3: 2028-29 | CB3: 2029-30 | CC3: 2030-31 | CE3: 2021-22 | CF3: 2022-23 | CG3: 2023-24 | CH3: 2024-25 | CI3: 2025-26 | CJ3: 2026-27 | CK3: 2027-28 | CL3: 2028-29 | CM3: 2029-30 | CN3: 2030-31 | CP3: 2021-22 | CQ3: 2022-23 | CR3: =CR42 -> 2023-24 | CS3: 2024-25 | CT3: 2025-26 | CU3: 2026-27 | CV3: 2027-28 | CW3: 2028-29 | CX3: 2029-30 | CY3: 2030-31 | DC3: Tax Depreciation - Declining Balance Method
P5: DD Adjustments | V5: water corp. to reallocate the adjustment to services below (data in row 356 should be deleted after reallocation)
DC6: Instructions
C7: Input Summary | F7: FIFTH REG PERIOD | K7: SIXTH REG PERIOD | DC7: For each item of CAPEX
D9: =+Q42 -> 2021-22 | E9: 2022-23 | F9: 2023-24 | G9: 2024-25 | H9: 2025-26 | I9: 2026-27 | J9: 2027-28 | K9: 2028-29 | L9: 2029-30 | M9: 2030-31 | DC9: 1. Change tax depreciation method in column M to 'Declining Balance'
C10: By Cost Driver | DC10: 2. Populate declining balance multiple in comun CM, (>0)
C11: Net capital expenditure - Renewals | D11: =+SUMIF($F$45:$F$1269,"Renewals",AX$45:AX$1269) -> 188.9100646 | E11: 283.6359912 | F11: 161.2525621 | G11: 152.3683131 | H11: 131.7796085 | I11: 285.5924078 | J11: 240.5500255 | K11: 232.909445 | L11: 205.274617 | M11: 194.1470446
C12: Net capital expenditure - Growth | D12: =+SUMIF($F$45:$F$1269,"Growth",AX$45:AX$1269) -> 191.4429439 | E12: 272.576688 | F12: 163.3884572 | G12: 201.9903559 | H12: 81.82134341 | I12: 11.10517427 | J12: 7.940922179 | K12: 20.23885688 | L12: 81.37889398 | M12: 67.22215072
C13: Net capital expenditure - Improvements / Compliance | D13: =+SUMIF($F$45:$F$1269,"Improvements / Compliance",AX$45:AX$1269) -> 248.333995 | E13: 226.0154284 | F13: 192.5288926 | G13: 160.5586467 | H13: 152.9062046 | I13: 167.7012445 | J13: 164.3820953 | K13: 156.615318 | L13: 136.8231413 | M13: 121.4931821
C14: Government Contributions | D14: =+AB44 -> 0 | E14: 0 | F14: 0 | G14: 0 | H14: 0 | I14: 0 | J14: 0 | K14: 0 | L14: 0 | M14: 0
C15: Customer Contributions | D15: =+AM44 -> 119.2941176 | E15: 119.316554 | F15: 124.9383988 | G15: 119.760236 | H15: 133.1491679 | I15: 121.9441735 | J15: 122.717426 | K15: 123.5401326 | L15: 124.422996 | M15: 125.3792523
C16: Total prescribed capex | D16: =SUM(D11:D15) -> 747.9811212 | E16: =SUM(E11:E15) -> 901.5446616 | F16: 642.1083108 | G16: 634.6775518 | H16: 499.6563244 | I16: 586.3430001 | J16: 535.590469 | K16: 533.3037526 | L16: 547.8996482 | M16: 508.2416296
C18: By Capital Type
C19: Top 15 Major Projects | D19: =+SUMIF($H$45:$H$1269,$C$19,Q$45:Q$1269) -> 173.4680026 | E19: 432.131308 | F19: 180.9697203 | G19: 194.155994 | H19: 60.48835593 | I19: 21.33347618 | J19: 24.90974796 | K19: 0 | L19: 0 | M19: 0
C20: Significant projects | D20: =+SUMIF($H$45:$H$1269,$C$20,Q$45:Q$1269) -> 435.9989862 | E20: 267.9929104 | F20: 128.9755961 | G20: 93.466838 | H20: 94.39323633 | I20: 123.6667308 | J20: 74.65992727 | K20: 87.37543741 | L20: 100.97599 | M20: 60.49176146
C21: Capital Programs / Allocation | D21: =+SUMIF($H$45:$H$1269,$C$21,Q$45:Q$1269) -> 197.1641324 | E21: 255.3904431 | F21: 380.6229944 | G21: 392.8247197 | H21: 387.9147321 | I21: 441.3427932 | J21: 436.0207938 | K21: 445.9283152 | L21: 446.9236582 | M21: 447.7498681
C22: Other Capital expenditure | D22: =+SUMIF($H$45:$H$1269,$C$22,Q$45:Q$1269) -> -58.65 | E22: -53.97 | F22: -48.46 | G22: -45.77 | H22: -43.14 | I22: 0 | J22: 0 | K22: 0 | L22: 0 | M22: 0
C23: Total prescribed capex | D23: =SUM(D19:D22) -> 747.9811212 | E23: =SUM(E19:E22) -> 901.5446616 | F23: 642.1083108 | G23: 634.6775518 | H23: 499.6563244 | I23: 586.3430001 | J23: 535.590469 | K23: 533.3037526 | L23: 547.8996482 | M23: 508.2416296
C25: Difference | D25: =+D23-D16 -> 0 | E25: =+E23-E16 -> 0 | F25: 0 | G25: 0 | H25: 0 | I25: 0 | J25: 0 | K25: 0 | L25: 0 | M25: 0
C26: Test | D26: =+D23=D16 -> TRUE | E26: =+E23=E16 -> TRUE | F26: TRUE | G26: TRUE | H26: TRUE | I26: TRUE | J26: TRUE | K26: TRUE | L26: =ROUND(+L23,1)=(ROUND(L16,1)) -> TRUE | M26: TRUE
C29: Desal security payment cost capitalisation | D29: 20.28706102 | E29: 29.91966903 | F29: 45.16880403 | G29: 54.67847261 | H29: 62.91613534 | I29: 72.07500215 | J29: 100.7890059 | K29: 117.0770975 | L29: 126.8774099 | M29: 143.3673072
C32: Total prescribed capex | D32: =+D23+D29 -> 768.2681822 | E32: =+E23+E29 -> 931.4643306 | F32: 687.2771148 | G32: 689.3560244 | H32: 562.5724597 | I32: 658.4180023 | J32: 636.379475 | K32: 650.3808501 | L32: 674.7770581 | M32: 651.6089368
C35: Regulatory Depreciation | D35: =+BI44 -> 9.789359543 | E35: 31.11921442 | F35: 53.11634896 | G35: 69.57563608 | H35: 83.67158825 | I35: 98.21009924 | J35: 110.318245 | K35: 123.9615746 | L35: 136.1058719 | M35: 147.1670822
B38: =Expenditure_Detail!$B$6 -> $m, 01/01/21
Q39: Gross capital expenditure | AB39: Government contributions | AM39: Customer contributions | AX39: Net capital expenditure | BI39: Regulatory Depreciation | BT39: Accumulated capex | CE39: Gross capital expenditure | CP39: Tax Depreciation | DE39: Gross CAPEX to depreciate | DN39: Declining balance cumulative depreciation term - first period capex | DW39: Declining balance cumulative depreciation term - period 2+ capex | EF39: Periodic depreciation % - first period capex | EO39: Periodic depreciation % - period 2+ capex | EX39: Reversed depreciation - first period capex | FG39: Tax Depreciation - declining balance
Q40: =Expenditure_Detail!$B$6 -> $m, 01/01/21 | AB40: =Expenditure_Detail!$B$6 -> $m, 01/01/21 | AM40: =Expenditure_Detail!$B$6 -> $m, 01/01/21 | AX40: =Expenditure_Detail!$B$6 -> $m, 01/01/21 | BI40: =Expenditure_Detail!$B$6 -> $m, 01/01/21 | BT40: =Expenditure_Detail!$B$6 -> $m, 01/01/21 | CE40: Nominal,$ | CP40: Nominal,$ | DE40: Nominal,$ | FG40: Nominal,$
Q42: 2021-22 | R42: 2022-23 | S42: 2023-24 | T42: 2024-25 | U42: 2025-26 | V42: 2026-27 | W42: 2027-28 | X42: 2028-29 | Y42: 2029-30 | Z42: 2030-31 | AB42: =Q$42 -> 2021-22 | AC42: =R$42 -> 2022-23 | AD42: 2023-24 | AE42: 2024-25 | AF42: 2025-26 | AG42: 2026-27 | AH42: 2027-28 | AI42: 2028-29 | AJ42: 2029-30 | AK42: 2030-31 | AM42: =AB$42 -> 2021-22 | AN42: 2022-23 | AO42: 2023-24 | AP42: 2024-25 | AQ42: 2025-26 | AR42: 2026-27 | AS42: 2027-28 | AT42: 2028-29 | AU42: 2029-30 | AV42: 2030-31 | AX42: =AM$42 -> 2021-22 | AY42: =AN$42 -> 2022-23 | AZ42: 2023-24 | BA42: 2024-25 | BB42: 2025-26 | BC42: 2026-27 | BD42: 2027-28 | BE42: 2028-29 | BF42: 2029-30 | BG42: 2030-31 | BI42: =AX$42 -> 2021-22 | BJ42: 2022-23 | BK42: 2023-24 | BL42: 2024-25 | BM42: 2025-26 | BN42: 2026-27 | BO42: 2027-28 | BP42: 2028-29 | BQ42: 2029-30 | BR42: 2030-31 | BT42: 2021-22 | BU42: =BJ$42 -> 2022-23 | BV42: 2023-24 | BW42: 2024-25 | BX42: 2025-26 | BY42: 2026-27 | BZ42: 2027-28 | CA42: 2028-29 | CB42: 2029-30 | CC42: 2030-31 | CE42: =BT$42 -> 2021-22 | CF42: 2022-23 | CG42: 2023-24 | CH42: 2024-25 | CI42: 2025-26 | CJ42: 2026-27 | CK42: 2027-28 | CL42: 2028-29 | CM42: 2029-30 | CN42: 2030-31 | CP42: =CE$42 -> 2021-22 | CQ42: 2022-23 | CR42: 2023-24 | CS42: 2024-25 | CT42: 2025-26 | CU42: 2026-27 | CV42: 2027-28 | CW42: 2028-29 | CX42: 2029-30 | CY42: 2030-31 | DE42: 2020-21 | DF42: 2021-22 | DG42: 2022-23 | DH42: 2023-24 | DI42: 2024-25 | DJ42: 2025-26 | DK42: 2026-27 | DL42: 2027-28 | DN42: 2020-21 | DO42: 2021-22 | DP42: 2022-23 | DQ42: 2023-24 | DR42: 2024-25 | DS42: 2025-26 | DT42: 2026-27 | DU42: 2027-28 | DW42: 2020-21 | DX42: 2021-22 | DY42: 2022-23 | DZ42: 2023-24 | EA42: 2024-25 | EB42: 2025-26 | EC42: 2026-27 | ED42: 2027-28 | EF42: 2020-21 | EG42: 2021-22 | EH42: 2022-23 | EI42: 2023-24 | EJ42: 2024-25 | EK42: 2025-26 | EL42: 2026-27 | EM42: 2027-28 | EO42: 2020-21 | EP42: 2021-22 | EQ42: 2022-23 | ER42: 2023-24 | ES42: 2024-25 | ET42: 2025-26 | EU42: 2026-27 | EV42: 2027-28 | EX42: 2020-21 | EY42: 2021-22 | EZ42: 2022-23 | FA42: 2023-24 | FB42: 2024-25 | FC42: 2025-26 | FD42: 2026-27 | FE42: 2027-28 | FG42: 2020-21 | FH42: 2021-22 | FI42: 2022-23 | FJ42: 2023-24 | FK42: 2024-25 | FL42: 2025-26 | FM42: 2026-27 | FN42: 2027-28
BI43: 1 | BJ43: =BI43+1 -> 2 | BK43: =BJ43+1 -> 3 | BL43: 4 | BM43: 5 | BN43: 6 | BO43: 7 | BP43: 8 | BQ43: 9 | BR43: 10 | CP43: 1 | CQ43: =CP43+1 -> 2 | CR43: =CQ43+1 -> 3 | CS43: 4 | CT43: 5 | CU43: 6 | CV43: 7 | CW43: 8 | CX43: 9 | CY43: 10 | DE43: 1 | DF43: 2 | DG43: 3 | DH43: 4 | DI43: 5 | DJ43: 6 | DK43: 7 | DL43: 8 | DN43: 1 | DO43: 2 | DP43: 3 | DQ43: 4 | DR43: 5 | DS43: 6 | DT43: 7 | DU43: 8 | DW43: 1 | DX43: 2 | DY43: 3 | DZ43: 4 | EA43: 5 | EB43: 6 | EC43: 7 | ED43: 8 | EF43: 1 | EG43: 2 | EH43: 3 | EI43: 4 | EJ43: 5 | EK43: 6 | EL43: 7 | EM43: 8 | EO43: 1 | EP43: 2 | EQ43: 3 | ER43: 4 | ES43: 5 | ET43: 6 | EU43: 7 | EV43: 8 | EX43: 1 | EY43: 2 | EZ43: 3 | FA43: 4 | FB43: 5 | FC43: 6 | FD43: 7 | FE43: 8 | FG43: 1 | FH43: 2 | FI43: 3 | FJ43: 4 | FK43: 5 | FL43: 6 | FM43: 7 | FN43: 8
C44: Project/program Name | E44: Service | F44: Major cost driver | G44: Asset category | H44: Capital type | J44: Reg Depreciation Method | K44: Year asset operational | L44: Asset life (Regulatory) | M44: Tax Depreciation Method | N44: Asset life (Tax) | Q44: =SUM(Q45:Q1269) -> 747.9811212 | R44: 901.5446616 | S44: 642.1083108 | T44: 634.6775518 | U44: 499.6563244 | V44: 586.3430001 | W44: 535.590469 | X44: 533.3037526 | Y44: 547.8996482 | Z44: 508.2416296 | AB44: =SUM(AB45:AB1269) -> 0 | AC44: 0 | AD44: 0 | AE44: 0 | AF44: 0 | AG44: 0 | AH44: 0 | AI44: 0 | AJ44: 0 | AK44: 0 | AM44: =SUM(AM45:AM1269) -> 119.2941176 | AN44: 119.316554 | AO44: 124.9383988 | AP44: 119.760236 | AQ44: 133.1491679 | AR44: 121.9441735 | AS44: 122.717426 | AT44: 123.5401326 | AU44: 124.422996 | AV44: 125.3792523 | AX44: =SUM(AX45:AX1269) -> 628.6870035 | AY44: 782.2281076 | AZ44: 517.169912 | BA44: 514.9173158 | BB44: 366.5071565 | BC44: 464.3988266 | BD44: 412.873043 | BE44: 409.7636199 | BF44: 423.4766522 | BG44: 382.8623773 | BI44: =SUM(BI45:BI1269) -> 9.789359543 | BJ44: 31.11921442 | BK44: 53.11634896 | BL44: 69.57563608 | BM44: 83.67158825 | BN44: 98.21009924 | BO44: 110.318245 | BP44: 123.9615746 | BQ44: 136.1058719 | BR44: 147.1670822 | BT44: =SUM(BT45:BT1269) -> 302.4818892 | BU44: 541.807711 | BV44: 478.8741274 | BW44: 363.663137 | BX44: 793.7788708 | BY44: 458.6436152 | BZ44: 607.9468648 | CA44: 455.1635457 | CB44: 409.3871661 | CC44: 490.0232998 | CE44: =SUM(CE45:CE1269) -> 760.6968002 | CF44: 932.4577265 | CG44: 675.4156972 | CH44: 678.9486818 | CI44: 543.5958762 | CJ44: 648.7501367 | CK44: 602.6699126 | CL44: 610.2984444 | CM44: 637.6606212 | CN44: 601.5611267 | CP44: =SUM(CP45:CP1269) -> 0 | CQ44: 0 | CR44: 0 | CS44: 0 | CT44: 0 | CU44: 0 | CV44: 0 | CY44: =SUM(CY45:CY1269) -> 0 | DC44: Declining balance multiple | DE44: =SUM(DE45:DE1269) -> 321.6128705 | DF44: 469.1006184 | DG44: 740.2742782 | DH44: 580.9754775 | DI44: 518.464421 | DJ44: 1049.019859 | DK44: 633.7595502 | DL44: 870.102618 | FG44: =SUM(FG45:FG1269) -> 0 | FH44: 0 | FI44: 0 | FJ44: 0 | FK44: 0 | FL44: 0 | FM44: 0 | FN44: 0
B45: 1 | C45: WTP Primary Treatment Augmentation | E45: Sewerage | F45: Growth | G45: Treatment | H45: Top 15 Major Projects | J45: Straight line | K45: 2025/2026 | L45: 70 | M45: Straight line | Q45: 1.798034069 | R45: 6.022420183 | S45: 128.1551883 | T45: 166.0163258 | U45: 13.26570969 | V45: 0 | W45: 0 | X45: 0 | Y45: 0 | Z45: 0 | AX45: =+Q45-AB45-AM45 -> 1.798034069 | AY45: =+R45-AC45-AN45 -> 6.022420183 | AZ45: =+S45-AD45-AO45 -> 128.1551883 | BA45: =+T45-AE45-AP45 -> 166.0163258 | BB45: =+U45-AF45-AQ45 -> 13.26570969 | BC45: =+V45-AG45-AR45 -> 0 | BD45: =+W45-AH45-AS45 -> 0 | BE45: =+X45-AI45-AT45 -> 0 | BF45: 0 | BG45: 0 | BI45: =IF($L45=0,0, IF($L45<=0.5,BT45, IF($J45="straight line", IF((LEFT(BI$42,4)*1)-INT($L45)<LEFT($BI$42,4)*1,0,((OFFSET(BT45,0,-INT($L45+0.5),1,1))/$L45)*(IF($L45-INT($L45)>0.5,$L45-0.5-INT($L45),IF($L45-INT($L45)<=0.5,$L45-0.5-INT($L45)+1,0)))) +BT45/$L45*0.5, IF($J45="Declining Balance",-$BI$41,0)))) -> 0 | BJ45: =IF($L45=0,0, IF($L45<=0.5,BU45, IF(AND($J45="straight line",$L45<1.51),(BT45-((BT45/$L45)*0.5))+BU45/$L45*0.5, IF($J45="straight line", IF((LEFT(BJ$42,4)*1)-INT($L45)<LEFT($BI$42,4)*1,0,((OFFSET(BU45,0,-INT($L45+0.5),1,1))/$L45)*(IF($L45-INT($L45)>0.5,$L45-0.5-INT($L45),IF($L45-INT($L45)<=0.5,$L45-0.5-INT($L45)+1,0)))) +BU45/$L45*0.5 +SUM(OFFSET(BU45,0,MAX(-INT($L45+(0.5-(10^-12))),-BJ$43)+1,1,MIN(INT($L45+(0.5-(10^-12))),BJ$43)-1))*1/$L45, IF($J45="Declining Balance",-$BI$41,0))))) -> 0 | BK45: =IF($L45=0,0, IF($L45<=0.5,BV45, IF(AND($J45="straight line",$L45<1.51),(BU45-((BU45/$L45)*0.5))+BV45/$L45*0.5, IF($J45="straight line", IF((LEFT(BK$42,4)*1)-INT($L45)<LEFT($BI$42,4)*1,0,((OFFSET(BV45,0,-INT($L45+0.5),1,1))/$L45)*(IF($L45-INT($L45)>0.5,$L45-0.5-INT($L45),IF($L45-INT($L45)<=0.5,$L45-0.5-INT($L45)+1,0)))) +BV45/$L45*0.5 +SUM(OFFSET(BV45,0,MAX(-INT($L45+(0.5-(10^-12))),-BK$43)+1,1,MIN(INT($L45+(0.5-(10^-12))),BK$43)-1))*1/$L45, IF($J45="Declining Balance",-$BI$41,0))))) -> 0 | BL45: =IF($L45=0,0, IF($L45<=0.5,BW45, IF(AND($J45="straight line",$L45<1.51),(BV45-((BV45/$L45)*0.5))+BW45/$L45*0.5, IF($J45="straight line", IF((LEFT(BL$42,4)*1)-INT($L45)<LEFT($BI$42,4)*1,0,((OFFSET(BW45,0,-INT($L45+0.5),1,1))/$L45)*(IF($L45-INT($L45)>0.5,$L45-0.5-INT($L45),IF($L45-INT($L45)<=0.5,$L45-0.5-INT($L45)+1,0)))) +BW45/$L45*0.5 +SUM(OFFSET(BW45,0,MAX(-INT($L45+(0.5-(10^-12))),-BL$43)+1,1,MIN(INT($L45+(0.5-(10^-12))),BL$43)-1))*1/$L45, IF($J45="Declining Balance",-$BI$41,0))))) -> 0 | BM45: =IF($L45=0,0, IF($L45<=0.5,BX45, IF(AND($J45="straight line",$L45<1.51),(BW45-((BW45/$L45)*0.5))+BX45/$L45*0.5, IF($J45="straight line", IF((LEFT(BM$42,4)*1)-INT($L45)<LEFT($BI$42,4)*1,0,((OFFSET(BX45,0,-INT($L45+0.5),1,1))/$L45)*(IF($L45-INT($L45)>0.5,$L45-0.5-INT($L45),IF($L45-INT($L45)<=0.5,$L45-0.5-INT($L45)+1,0)))) +BX45/$L45*0.5 +SUM(OFFSET(BX45,0,MAX(-INT($L45+(0.5-(10^-12))),-BM$43)+1,1,MIN(INT($L45+(0.5-(10^-12))),BM$43)-1))*1/$L45, IF($J45="Declining Balance",-$BI$41,0))))) -> 2.251840557 | BN45: =IF($L45=0,0, IF($L45<=0.5,BY45, IF(AND($J45="straight line",$L45<1.51),(BX45-((BX45/$L45)*0.5))+BY45/$L45*0.5, IF($J45="straight line", IF((LEFT(BN$42,4)*1)-INT($L45)<LEFT($BI$42,4)*1,0,((OFFSET(BY45,0,-INT($L45+0.5),1,1))/$L45)*(IF($L45-INT($L45)>0.5,$L45-0.5-INT($L45),IF($L45-INT($L45)<=0.5,$L45-0.5-INT($L45)+1,0)))) +BY45/$L45*0.5 +SUM(OFFSET(BY45,0,MAX(-INT($L45+(0.5-(10^-12))),-BN$43)+1,1,MIN(INT($L45+(0.5-(10^-12))),BN$43)-1))*1/$L45, IF($J45="Declining Balance",-$BI$41,0))))) -> 4.503681115 | BO45: 4.503681115 | BP45: 4.503681115 | BQ45: 4.503681115 | BR45: 4.503681115 | BT45: =+IF($K45="Ongoing",AX45,IF(RIGHT($K45,2)=RIGHT(BT$42,2),SUM($AX45:AX45),0)+IF(RIGHT(BT$42,2)>RIGHT($K45,2),AX45,0)) -> 0 | BU45: =+IF($K45="Ongoing",AY45,IF(RIGHT($K45,2)=RIGHT(BU$42,2),SUM($AX45:AY45),0)+IF(RIGHT(BU$42,2)>RIGHT($K45,2),AY45,0)) -> 0 | BV45: =+IF($K45="Ongoing",AZ45,IF(RIGHT($K45,2)=RIGHT(BV$42,2),SUM($AX45:AZ45),0)+IF(RIGHT(BV$42,2)>RIGHT($K45,2),AZ45,0)) -> 0 | BW45: =+IF($K45="Ongoing",BA45,IF(RIGHT($K45,2)=RIGHT(BW$42,2),SUM($AX45:BA45),0)+IF(RIGHT(BW$42,2)>RIGHT($K45,2),BA45,0)) -> 0 | BX45: =+IF($K45="Ongoing",BB45,IF(RIGHT($K45,2)=RIGHT(BX$42,2),SUM($AX45:BB45),0)+IF(RIGHT(BX$42,2)>RIGHT($K45,2),BB45,0)) -> 315.257678 | BY45: =+IF($K45="Ongoing",BC45,IF(RIGHT($K45,2)=RIGHT(BY$42,2),SUM($AX45:BC45),0)+IF(RIGHT(BY$42,2)>RIGHT($K45,2),BC45,0)) -> 0 | BZ45: =+IF($K45="Ongoing",BD45,IF(RIGHT($K45,2)=RIGHT(BZ$42,2),SUM($AX45:BD45),0)+IF(RIGHT(BZ$42,2)>RIGHT($K45,2),BD45,0)) -> 0 | CA45: =+IF($K45="Ongoing",BE45,IF(RIGHT($K45,2)=RIGHT(CA$42,2),SUM($AX45:BE45),0)+IF(RIGHT(CA$42,2)>RIGHT($K45,2),BE45,0)) -> 0 | CB45: =+IF($K45="Ongoing",BF45,IF(RIGHT($K45,2)=RIGHT(CB$42,2),SUM($AX45:BF45),0)+IF(RIGHT(CB$42,2)>RIGHT($K45,2),BF45,0)) -> 0 | CC45: =+IF($K45="Ongoing",BG45,IF(RIGHT($K45,2)=RIGHT(CC$42,2),SUM($AX45:BG45),0)+IF(RIGHT(CC$42,2)>RIGHT($K45,2),BG45,0)) -> 0 | CE45: =+Q45*KeyAssumptionsPriceControl_FO!AA$15 -> 1.828600648 | CF45: =+R45*KeyAssumptionsPriceControl_FO!AB$15 -> 6.228922949 | CG45: =+S45*KeyAssumptionsPriceControl_FO!AC$15 -> 134.8028431 | CH45: =+T45*KeyAssumptionsPriceControl_FO!AD$15 -> 177.5965846 | CI45: =+U45*KeyAssumptionsPriceControl_FO!AE$15 -> 14.43229021 | CJ45: =+V45*KeyAssumptionsPriceControl_FO!AF$15 -> 0 | CK45: =+W45*KeyAssumptionsPriceControl_FO!AG$15 -> 0 | CL45: =+X45*KeyAssumptionsPriceControl_FO!AH$15 -> 0 | CM45: =+Y45*KeyAssumptionsPriceControl_FO!AI$15 -> 0 | CN45: =+Z45*KeyAssumptionsPriceControl_FO!AJ$15 -> 0 | CP45: =IF($M45="straight line",IF($N45=0,0, IF($N45<=0.5,CE45, IF($J45="straight line", IF((LEFT(CP$42,4)*1)-INT($N45)<LEFT($CP$42,4)*1,0,((OFFSET(CE45,0,-INT($N45+0.5),1,1))/$N45)*(IF($N45-INT($N45)>0.5,$N45-0.5-INT($N45),IF($N45-INT($N45)<=0.5,$N45-0.5-INT($N45)+1,0)))) +CE45/$N45*0.5, IF($J45="Declining Balance",-$CP$41,0)))),IFERROR(FG45,0)) -> 0 | CQ45: =IF($M45="straight line",IF($N45=0,0, IF($N45<=0.5,CF45, IF($J45="straight line", IF((LEFT(CQ$42,4)*1)-INT($N45)<LEFT($CP$42,4)*1,0,((OFFSET(CF45,0,-INT($N45+0.5),1,1))/$N45)*(IF($N45-INT($N45)>0.5,$N45-0.5-INT($N45),IF($N45-INT($N45)<=0.5,$N45-0.5-INT($N45)+1,0)))) +CF45/$N45*0.5, IF($J45="Declining Balance",-$CP$41,0)))),IFERROR(FH45,0)) -> 0 | CR45: =IF($M45="straight line",IF($N45=0,0, IF($N45<=0.5,CG45, IF($J45="straight line", IF((LEFT(CR$42,4)*1)-INT($N45)<LEFT($CP$42,4)*1,0,((OFFSET(CG45,0,-INT($N45+0.5),1,1))/$N45)*(IF($N45-INT($N45)>0.5,$N45-0.5-INT($N45),IF($N45-INT($N45)<=0.5,$N45-0.5-INT($N45)+1,0)))) +CG45/$N45*0.5, IF($J45="Declining Balance",-$CP$41,0)))),IFERROR(FI45,0)) -> 0 | CS45: =IF($M45="straight line",IF($N45=0,0, IF($N45<=0.5,CH45, IF($J45="straight line", IF((LEFT(CS$42,4)*1)-INT($N45)<LEFT($CP$42,4)*1,0,((OFFSET(CH45,0,-INT($N45+0.5),1,1))/$N45)*(IF($N45-INT($N45)>0.5,$N45-0.5-INT($N45),IF($N45-INT($N45)<=0.5,$N45-0.5-INT($N45)+1,0)))) +CH45/$N45*0.5, IF($J45="Declining Balance",-$CP$41,0)))),IFERROR(FJ45,0)) -> 0 | CT45: =IF($M45="straight line",IF($N45=0,0, IF($N45<=0.5,CI45, IF($J45="straight line", IF((LEFT(CT$42,4)*1)-INT($N45)<LEFT($CP$42,4)*1,0,((OFFSET(CI45,0,-INT($N45+0.5),1,1))/$N45)*(IF($N45-INT($N45)>0.5,$N45-0.5-INT($N45),IF($N45-INT($N45)<=0.5,$N45-0.5-INT($N45)+1,0)))) +CI45/$N45*0.5, IF($J45="Declining Balance",-$CP$41,0)))),IFERROR(FK45,0)) -> 0 | CU45: =IF($M45="straight line",IF($N45=0,0, IF($N45<=0.5,CJ45, IF($J45="straight line", IF((LEFT(CU$42,4)*1)-INT($N45)<LEFT($CP$42,4)*1,0,((OFFSET(CJ45,0,-INT($N45+0.5),1,1))/$N45)*(IF($N45-INT($N45)>0.5,$N45-0.5-INT($N45),IF($N45-INT($N45)<=0.5,$N45-0.5-INT($N45)+1,0)))) +CJ45/$N45*0.5, IF($J45="Declining Balance",-$CP$41,0)))),IFERROR(FL45,0)) -> 0 | CV45: =IF($M45="straight line",IF($N45=0,0, IF($N45<=0.5,CK45, IF($J45="straight line", IF((LEFT(CV$42,4)*1)-INT($N45)<LEFT($CP$42,4)*1,0,((OFFSET(CK45,0,-INT($N45+0.5),1,1))/$N45)*(IF($N45-INT($N45)>0.5,$N45-0.5-INT($N45),IF($N45-INT($N45)<=0.5,$N45-0.5-INT($N45)+1,0)))) +CK45/$N45*0.5, IF($J45="Declining Balance",-$CP$41,0)))),IFERROR(FM45,0)) -> 0 | CW45: =IF($M45="straight line",IF($N45=0,0, IF($N45<=0.5,CL45, IF($J45="straight line", IF((LEFT(CW$42,4)*1)-INT($N45)<LEFT($CP$42,4)*1,0,((OFFSET(CL45,0,-INT($N45+0.5),1,1))/$N45)*(IF($N45-INT($N45)>0.5,$N45-0.5-INT($N45),IF($N45-INT($N45)<=0.5,$N45-0.5-INT($N45)+1,0)))) +CL45/$N45*0.5, IF($J45="Declining Balance",-$CP$41,0)))),IFERROR(FN45,0)) -> 0 | CX45: =IF($M45="straight line",IF($N45=0,0, IF($N45<=0.5,CM45, IF($J45="straight line", IF((LEFT(CX$42,4)*1)-INT($N45)<LEFT($CP$42,4)*1,0,((OFFSET(CM45,0,-INT($N45+0.5),1,1))/$N45)*(IF($N45-INT($N45)>0.5,$N45-0.5-INT($N45),IF($N45-INT($N45)<=0.5,$N45-0.5-INT($N45)+1,0)))) +CM45/$N45*0.5, IF($J45="Declining Balance",-$CP$41,0)))),IFERROR(FO45,0)) -> 0 | CY45: =IF($M45="straight line",IF($N45=0,0, IF($N45<=0.5,CN45, IF($J45="straight line", IF((LEFT(CY$42,4)*1)-INT($N45)<LEFT($CP$42,4)*1,0,((OFFSET(CN45,0,-INT($N45+0.5),1,1))/$N45)*(IF($N45-INT($N45)>0.5,$N45-0.5-INT($N45),IF($N45-INT($N45)<=0.5,$N45-0.5-INT($N45)+1,0)))) +CN45/$N45*0.5, IF($J45="Declining Balance",-$CP$41,0)))),IFERROR(FP45,0)) -> 0 | DC45: must be > 0 | DD45: No | DE45: =+IF($K45="ongoing",CE45,IF(RIGHT($K45,2)=RIGHT(DE$42,2),SUM($CD45:CE45),0)+IF(RIGHT(DE$42,2)>RIGHT($K45,2),CE45,0)) -> 0 | DF45: =+IF($K45="ongoing",CF45,IF(RIGHT($K45,2)=RIGHT(DF$42,2),SUM($CD45:CF45),0)+IF(RIGHT(DF$42,2)>RIGHT($K45,2),CF45,0)) -> 0 | DG45: =+IF($K45="ongoing",CG45,IF(RIGHT($K45,2)=RIGHT(DG$42,2),SUM($CD45:CG45),0)+IF(RIGHT(DG$42,2)>RIGHT($K45,2),CG45,0)) -> 0 | DH45: =+IF($K45="ongoing",CH45,IF(RIGHT($K45,2)=RIGHT(DH$42,2),SUM($CD45:CH45),0)+IF(RIGHT(DH$42,2)>RIGHT($K45,2),CH45,0)) -> 0 | DI45: =+IF($K45="ongoing",CI45,IF(RIGHT($K45,2)=RIGHT(DI$42,2),SUM($CD45:CI45),0)+IF(RIGHT(DI$42,2)>RIGHT($K45,2),CI45,0)) -> 0 | DJ45: =+IF($K45="ongoing",CJ45,IF(RIGHT($K45,2)=RIGHT(DJ$42,2),SUM($CD45:CJ45),0)+IF(RIGHT(DJ$42,2)>RIGHT($K45,2),CJ45,0)) -> 334.8892415 | DK45: =+IF($K45="ongoing",CK45,IF(RIGHT($K45,2)=RIGHT(DK$42,2),SUM($CD45:CK45),0)+IF(RIGHT(DK$42,2)>RIGHT($K45,2),CK45,0)) -> 0 | DL45: =+IF($K45="ongoing",CN45,IF(RIGHT($K45,2)=RIGHT(DL$42,2),SUM($CD45:CN45),0)+IF(RIGHT(DL$42,2)>RIGHT($K45,2),CN45,0)) -> 0 | DN45: =+MIN(IF($N45<=$DC45,MIN($N45,1),$N45),IF(DN$43=1,0.5,DM45+1)) -> 0.5 | DO45: 1 | DP45: 1 | DQ45: 1 | DR45: 1 | DS45: 1 | DT45: 1 | DU45: 1 | DW45: =+IF(DW$43=1,0,MIN(IF($N45<=$DC45,MIN($N45,1),$N45),IF(DW$43=2,0.5,DV45+1))) -> 0 | DX45: 0.5 | DY45: 1 | DZ45: 1 | EA45: 1 | EB45: 1 | EC45: 1 | ED45: 1 | EF45: =+IF(DN45=DM45,0, IF(AND(EF$43>1,DN45=$N45),1-SUM($EE45:EE45), IF($N45<=1, IF($N45>0,1/$N45,0), IF(EF$43=1,0,VDB(1,0,$N45,INT(EF$43-1-1),MIN($N45,INT(EF$43-1-1)+1),$DC45,IF($DD45="No",1,0))/ IF(DM45>=INT($N45),$N45-INT($N45),1)))* IF(EF$43=1,0, IF(INT(DN45)=INT(DM45),DN45-DM45,INT(DN45)-DM45))+ IF($N45<=1, IF($N45>0,1/$N45,0),VDB(1,0,$N45,INT(EF$43-1),MIN($N45,INT(EF$43-1)+1),$DC45,IF($DD45="No",1,0))/ IF(DN45>INT($N45),$N45-INT($N45),1))* IF(EF$43=1,DN45, IF(INT(DN45)=INT(DM45),0,DN45-INT(DN45))))) -> 0 | EG45: =+IF(DO45=DN45,0, IF(AND(EG$43>1,DO45=$N45),1-SUM($EE45:EF45), IF($N45<=1, IF($N45>0,1/$N45,0), IF(EG$43=1,0,VDB(1,0,$N45,INT(EG$43-1-1),MIN($N45,INT(EG$43-1-1)+1),$DC45,IF($DD45="No",1,0))/ IF(DN45>=INT($N45),$N45-INT($N45),1)))* IF(EG$43=1,0, IF(INT(DO45)=INT(DN45),DO45-DN45,INT(DO45)-DN45))+ IF($N45<=1, IF($N45>0,1/$N45,0),VDB(1,0,$N45,INT(EG$43-1),MIN($N45,INT(EG$43-1)+1),$DC45,IF($DD45="No",1,0))/ IF(DO45>INT($N45),$N45-INT($N45),1))* IF(EG$43=1,DO45, IF(INT(DO45)=INT(DN45),0,DO45-INT(DO45))))) -> 0 | EH45: =+IF(DP45=DO45,0, IF(AND(EH$43>1,DP45=$N45),1-SUM($EE45:EG45), IF($N45<=1, IF($N45>0,1/$N45,0), IF(EH$43=1,0,VDB(1,0,$N45,INT(EH$43-1-1),MIN($N45,INT(EH$43-1-1)+1),$DC45,IF($DD45="No",1,0))/ IF(DO45>=INT($N45),$N45-INT($N45),1)))* IF(EH$43=1,0, IF(INT(DP45)=INT(DO45),DP45-DO45,INT(DP45)-DO45))+ IF($N45<=1, IF($N45>0,1/$N45,0),VDB(1,0,$N45,INT(EH$43-1),MIN($N45,INT(EH$43-1)+1),$DC45,IF($DD45="No",1,0))/ IF(DP45>INT($N45),$N45-INT($N45),1))* IF(EH$43=1,DP45, IF(INT(DP45)=INT(DO45),0,DP45-INT(DP45))))) -> 0 | EI45: =+IF(DQ45=DP45,0, IF(AND(EI$43>1,DQ45=$N45),1-SUM($EE45:EH45), IF($N45<=1, IF($N45>0,1/$N45,0), IF(EI$43=1,0,VDB(1,0,$N45,INT(EI$43-1-1),MIN($N45,INT(EI$43-1-1)+1),$DC45,IF($DD45="No",1,0))/ IF(DP45>=INT($N45),$N45-INT($N45),1)))* IF(EI$43=1,0, IF(INT(DQ45)=INT(DP45),DQ45-DP45,INT(DQ45)-DP45))+ IF($N45<=1, IF($N45>0,1/$N45,0),VDB(1,0,$N45,INT(EI$43-1),MIN($N45,INT(EI$43-1)+1),$DC45,IF($DD45="No",1,0))/ IF(DQ45>INT($N45),$N45-INT($N45),1))* IF(EI$43=1,DQ45, IF(INT(DQ45)=INT(DP45),0,DQ45-INT(DQ45))))) -> 0 | EJ45: =+IF(DR45=DQ45,0, IF(AND(EJ$43>1,DR45=$N45),1-SUM($EE45:EI45), IF($N45<=1, IF($N45>0,1/$N45,0), IF(EJ$43=1,0,VDB(1,0,$N45,INT(EJ$43-1-1),MIN($N45,INT(EJ$43-1-1)+1),$DC45,IF($DD45="No",1,0))/ IF(DQ45>=INT($N45),$N45-INT($N45),1)))* IF(EJ$43=1,0, IF(INT(DR45)=INT(DQ45),DR45-DQ45,INT(DR45)-DQ45))+ IF($N45<=1, IF($N45>0,1/$N45,0),VDB(1,0,$N45,INT(EJ$43-1),MIN($N45,INT(EJ$43-1)+1),$DC45,IF($DD45="No",1,0))/ IF(DR45>INT($N45),$N45-INT($N45),1))* IF(EJ$43=1,DR45, IF(INT(DR45)=INT(DQ45),0,DR45-INT(DR45))))) -> 0 | EK45: =+IF(DS45=DR45,0, IF(AND(EK$43>1,DS45=$N45),1-SUM($EE45:EJ45), IF($N45<=1, IF($N45>0,1/$N45,0), IF(EK$43=1,0,VDB(1,0,$N45,INT(EK$43-1-1),MIN($N45,INT(EK$43-1-1)+1),$DC45,IF($DD45="No",1,0))/ IF(DR45>=INT($N45),$N45-INT($N45),1)))* IF(EK$43=1,0, IF(INT(DS45)=INT(DR45),DS45-DR45,INT(DS45)-DR45))+ IF($N45<=1, IF($N45>0,1/$N45,0),VDB(1,0,$N45,INT(EK$43-1),MIN($N45,INT(EK$43-1)+1),$DC45,IF($DD45="No",1,0))/ IF(DS45>INT($N45),$N45-INT($N45),1))* IF(EK$43=1,DS45, IF(INT(DS45)=INT(DR45),0,DS45-INT(DS45))))) -> 0 | EL45: =+IF(DT45=DS45,0, IF(AND(EL$43>1,DT45=$N45),1-SUM($EE45:EK45), IF($N45<=1, IF($N45>0,1/$N45,0), IF(EL$43=1,0,VDB(1,0,$N45,INT(EL$43-1-1),MIN($N45,INT(EL$43-1-1)+1),$DC45,IF($DD45="No",1,0))/ IF(DS45>=INT($N45),$N45-INT($N45),1)))* IF(EL$43=1,0, IF(INT(DT45)=INT(DS45),DT45-DS45,INT(DT45)-DS45))+ IF($N45<=1, IF($N45>0,1/$N45,0),VDB(1,0,$N45,INT(EL$43-1),MIN($N45,INT(EL$43-1)+1),$DC45,IF($DD45="No",1,0))/ IF(DT45>INT($N45),$N45-INT($N45),1))* IF(EL$43=1,DT45, IF(INT(DT45)=INT(DS45),0,DT45-INT(DT45))))) -> 0 | EM45: =+IF(DU45=DT45,0, IF(AND(EM$43>1,DU45=$N45),1-SUM($EE45:EL45), IF($N45<=1, IF($N45>0,1/$N45,0), IF(EM$43=1,0,VDB(1,0,$N45,INT(EM$43-1-1),MIN($N45,INT(EM$43-1-1)+1),$DC45,IF($DD45="No",1,0))/ IF(DT45>=INT($N45),$N45-INT($N45),1)))* IF(EM$43=1,0, IF(INT(DU45)=INT(DT45),DU45-DT45,INT(DU45)-DT45))+ IF($N45<=1, IF($N45>0,1/$N45,0),VDB(1,0,$N45,INT(EM$43-1),MIN($N45,INT(EM$43-1)+1),$DC45,IF($DD45="No",1,0))/ IF(DU45>INT($N45),$N45-INT($N45),1))* IF(EM$43=1,DU45, IF(INT(DU45)=INT(DT45),0,DU45-INT(DU45))))) -> 0 | EO45: =+IF(OR(DW45=DV45,EO$43=1),0, IF(AND(EO$43>1,DW45=$N45),1-SUM($EN45:EN45), IF($N45<=1, IF($N45>0,1/$N45,0), IF(EO$43=2,0,VDB(1,0,$N45,INT(EO$43-2-1),MIN($N45,INT(EO$43-2-1)+1),$DC45,IF($DD45="No",1,0))/ IF(DV45>=INT($N45),$N45-INT($N45),1)))* IF(EO$43=2,0, IF(INT(DW45)=INT(DV45),DW45-DV45,INT(DW45)-DV45))+ IF($N45<=1, IF($N45>0,1/$N45,0),VDB(1,0,$N45,INT(EO$43-2),MIN($N45,INT(EO$43-2)+1),$DC45,IF($DD45="No",1,0))/ IF(DW45>INT($N45),$N45-INT($N45),1))* IF(EO$43=2,DW45, IF(INT(DW45)=INT(DV45),0,DW45-INT(DW45))))) -> 0 | EP45: =+IF(OR(DX45=DW45,EP$43=1),0, IF(AND(EP$43>1,DX45=$N45),1-SUM($EN45:EO45), IF($N45<=1, IF($N45>0,1/$N45,0), IF(EP$43=2,0,VDB(1,0,$N45,INT(EP$43-2-1),MIN($N45,INT(EP$43-2-1)+1),$DC45,IF($DD45="No",1,0))/ IF(DW45>=INT($N45),$N45-INT($N45),1)))* IF(EP$43=2,0, IF(INT(DX45)=INT(DW45),DX45-DW45,INT(DX45)-DW45))+ IF($N45<=1, IF($N45>0,1/$N45,0),VDB(1,0,$N45,INT(EP$43-2),MIN($N45,INT(EP$43-2)+1),$DC45,IF($DD45="No",1,0))/ IF(DX45>INT($N45),$N45-INT($N45),1))* IF(EP$43=2,DX45, IF(INT(DX45)=INT(DW45),0,DX45-INT(DX45))))) -> 0 | EQ45: =+IF(OR(DY45=DX45,EQ$43=1),0, IF(AND(EQ$43>1,DY45=$N45),1-SUM($EN45:EP45), IF($N45<=1, IF($N45>0,1/$N45,0), IF(EQ$43=2,0,VDB(1,0,$N45,INT(EQ$43-2-1),MIN($N45,INT(EQ$43-2-1)+1),$DC45,IF($DD45="No",1,0))/ IF(DX45>=INT($N45),$N45-INT($N45),1)))* IF(EQ$43=2,0, IF(INT(DY45)=INT(DX45),DY45-DX45,INT(DY45)-DX45))+ IF($N45<=1, IF($N45>0,1/$N45,0),VDB(1,0,$N45,INT(EQ$43-2),MIN($N45,INT(EQ$43-2)+1),$DC45,IF($DD45="No",1,0))/ IF(DY45>INT($N45),$N45-INT($N45),1))* IF(EQ$43=2,DY45, IF(INT(DY45)=INT(DX45),0,DY45-INT(DY45))))) -> 0 | ER45: =+IF(OR(DZ45=DY45,ER$43=1),0, IF(AND(ER$43>1,DZ45=$N45),1-SUM($EN45:EQ45), IF($N45<=1, IF($N45>0,1/$N45,0), IF(ER$43=2,0,VDB(1,0,$N45,INT(ER$43-2-1),MIN($N45,INT(ER$43-2-1)+1),$DC45,IF($DD45="No",1,0))/ IF(DY45>=INT($N45),$N45-INT($N45),1)))* IF(ER$43=2,0, IF(INT(DZ45)=INT(DY45),DZ45-DY45,INT(DZ45)-DY45))+ IF($N45<=1, IF($N45>0,1/$N45,0),VDB(1,0,$N45,INT(ER$43-2),MIN($N45,INT(ER$43-2)+1),$DC45,IF($DD45="No",1,0))/ IF(DZ45>INT($N45),$N45-INT($N45),1))* IF(ER$43=2,DZ45, IF(INT(DZ45)=INT(DY45),0,DZ45-INT(DZ45))))) -> 0 | ES45: =+IF(OR(EA45=DZ45,ES$43=1),0, IF(AND(ES$43>1,EA45=$N45),1-SUM($EN45:ER45), IF($N45<=1, IF($N45>0,1/$N45,0), IF(ES$43=2,0,VDB(1,0,$N45,INT(ES$43-2-1),MIN($N45,INT(ES$43-2-1)+1),$DC45,IF($DD45="No",1,0))/ IF(DZ45>=INT($N45),$N45-INT($N45),1)))* IF(ES$43=2,0, IF(INT(EA45)=INT(DZ45),EA45-DZ45,INT(EA45)-DZ45))+ IF($N45<=1, IF($N45>0,1/$N45,0),VDB(1,0,$N45,INT(ES$43-2),MIN($N45,INT(ES$43-2)+1),$DC45,IF($DD45="No",1,0))/ IF(EA45>INT($N45),$N45-INT($N45),1))* IF(ES$43=2,EA45, IF(INT(EA45)=INT(DZ45),0,EA45-INT(EA45))))) -> 0 | ET45: =+IF(OR(EB45=EA45,ET$43=1),0, IF(AND(ET$43>1,EB45=$N45),1-SUM($EN45:ES45), IF($N45<=1, IF($N45>0,1/$N45,0), IF(ET$43=2,0,VDB(1,0,$N45,INT(ET$43-2-1),MIN($N45,INT(ET$43-2-1)+1),$DC45,IF($DD45="No",1,0))/ IF(EA45>=INT($N45),$N45-INT($N45),1)))* IF(ET$43=2,0, IF(INT(EB45)=INT(EA45),EB45-EA45,INT(EB45)-EA45))+ IF($N45<=1, IF($N45>0,1/$N45,0),VDB(1,0,$N45,INT(ET$43-2),MIN($N45,INT(ET$43-2)+1),$DC45,IF($DD45="No",1,0))/ IF(EB45>INT($N45),$N45-INT($N45),1))* IF(ET$43=2,EB45, IF(INT(EB45)=INT(EA45),0,EB45-INT(EB45))))) -> 0 | EU45: =+IF(OR(EC45=EB45,EU$43=1),0, IF(AND(EU$43>1,EC45=$N45),1-SUM($EN45:ET45), IF($N45<=1, IF($N45>0,1/$N45,0), IF(EU$43=2,0,VDB(1,0,$N45,INT(EU$43-2-1),MIN($N45,INT(EU$43-2-1)+1),$DC45,IF($DD45="No",1,0))/ IF(EB45>=INT($N45),$N45-INT($N45),1)))* IF(EU$43=2,0, IF(INT(EC45)=INT(EB45),EC45-EB45,INT(EC45)-EB45))+ IF($N45<=1, IF($N45>0,1/$N45,0),VDB(1,0,$N45,INT(EU$43-2),MIN($N45,INT(EU$43-2)+1),$DC45,IF($DD45="No",1,0))/ IF(EC45>INT($N45),$N45-INT($N45),1))* IF(EU$43=2,EC45, IF(INT(EC45)=INT(EB45),0,EC45-INT(EC45))))) -> 0 | EV45: =+IF(OR(ED45=EC45,EV$43=1),0, IF(AND(EV$43>1,ED45=$N45),1-SUM($EN45:EU45), IF($N45<=1, IF($N45>0,1/$N45,0), IF(EV$43=2,0,VDB(1,0,$N45,INT(EV$43-2-1),MIN($N45,INT(EV$43-2-1)+1),$DC45,IF($DD45="No",1,0))/ IF(EC45>=INT($N45),$N45-INT($N45),1)))* IF(EV$43=2,0, IF(INT(ED45)=INT(EC45),ED45-EC45,INT(ED45)-EC45))+ IF($N45<=1, IF($N45>0,1/$N45,0),VDB(1,0,$N45,INT(EV$43-2),MIN($N45,INT(EV$43-2)+1),$DC45,IF($DD45="No",1,0))/ IF(ED45>INT($N45),$N45-INT($N45),1))* IF(EV$43=2,ED45, IF(INT(ED45)=INT(EC45),0,ED45-INT(ED45))))) -> 0 | EX45: =+OFFSET($EO45,0,MAX($EX$43:$HY$43)-EX$43) -> 0 | EY45: 0 | EZ45: 0 | FA45: 0 | FB45: 0 | FC45: 0 | FD45: 0 | FE45: 0 | FG45: =-(-$DE45*(-ISBLANK($DE45)+1)*EF45- IF(FG$43>1,SUMPRODUCT(OFFSET($DF45,0,0,1,FG$43-1)*(-ISBLANK(OFFSET($DF45,0,0,1,FG$43-1))+1),OFFSET($EX45,0,MAX($FG$43:$HY$43)-FG$43,1,FG$43-1)),0)) -> 0 | FH45: =-(-$DE45*(-ISBLANK($DE45)+1)*EG45- IF(FH$43>1,SUMPRODUCT(OFFSET($DF45,0,0,1,FH$43-1)*(-ISBLANK(OFFSET($DF45,0,0,1,FH$43-1))+1),OFFSET($EX45,0,MAX($FG$43:$HY$43)-FH$43,1,FH$43-1)),0)) -> 0 | FI45: =-(-$DE45*(-ISBLANK($DE45)+1)*EH45- IF(FI$43>1,SUMPRODUCT(OFFSET($DF45,0,0,1,FI$43-1)*(-ISBLANK(OFFSET($DF45,0,0,1,FI$43-1))+1),OFFSET($EX45,0,MAX($FG$43:$HY$43)-FI$43,1,FI$43-1)),0)) -> 0 | FJ45: =-(-$DE45*(-ISBLANK($DE45)+1)*EI45- IF(FJ$43>1,SUMPRODUCT(OFFSET($DF45,0,0,1,FJ$43-1)*(-ISBLANK(OFFSET($DF45,0,0,1,FJ$43-1))+1),OFFSET($EX45,0,MAX($FG$43:$HY$43)-FJ$43,1,FJ$43-1)),0)) -> 0 | FK45: =-(-$DE45*(-ISBLANK($DE45)+1)*EJ45- IF(FK$43>1,SUMPRODUCT(OFFSET($DF45,0,0,1,FK$43-1)*(-ISBLANK(OFFSET($DF45,0,0,1,FK$43-1))+1),OFFSET($EX45,0,MAX($FG$43:$HY$43)-FK$43,1,FK$43-1)),0)) -> 0 | FL45: =-(-$DE45*(-ISBLANK($DE45)+1)*EK45- IF(FL$43>1,SUMPRODUCT(OFFSET($DF45,0,0,1,FL$43-1)*(-ISBLANK(OFFSET($DF45,0,0,1,FL$43-1))+1),OFFSET($EX45,0,MAX($FG$43:$HY$43)-FL$43,1,FL$43-1)),0)) -> 0 | FM45: =-(-$DE45*(-ISBLANK($DE45)+1)*EL45- IF(FM$43>1,SUMPRODUCT(OFFSET($DF45,0,0,1,FM$43-1)*(-ISBLANK(OFFSET($DF45,0,0,1,FM$43-1))+1),OFFSET($EX45,0,MAX($FG$43:$HY$43)-FM$43,1,FM$43-1)),0)) -> 0 | FN45: =-(-$DE45*(-ISBLANK($DE45)+1)*EM45- IF(FN$43>1,SUMPRODUCT(OFFSET($DF45,0,0,1,FN$43-1)*(-ISBLANK(OFFSET($DF45,0,0,1,FN$43-1))+1),OFFSET($EX45,0,MAX($FG$43:$HY$43)-FN$43,1,FN$43-1)),0)) -> 0
B46: =B45+1 -> 2 | C46: WTP 55E ASP Upgrade | E46: Sewerage | F46: Growth | G46: Treatment | H46: Top 15 Major Projects | J46: Straight line | K46: 2025/2026 | L46: 70 | M46: Straight line | Q46: 68.38235294 | R46: 132.8922767 | S46: 6.852046084 | T46: 2.190281941 | U46: 1.068430215 | V46: 0 | W46: 0 | X46: 0 | Y46: 0 | Z46: 0 | AX46: 68.38235294 | AY46: 132.8922767 | AZ46: 6.852046084 | BA46: 2.190281941 | BB46: 1.068430215 | BC46: 0 | BD46: 0 | BE46: 0 | BF46: 0 | BG46: 0 | BI46: 0 | BJ46: 0 | BK46: 0 | BL46: 0 | BM46: 1.509895628 | BN46: 3.019791256 | BO46: 3.019791256 | BP46: 3.019791256 | BQ46: 3.019791256 | BR46: 3.019791256 | BT46: =+IF($K46="Ongoing",AX46,IF(RIGHT($K46,2)=RIGHT(BT$42,2),SUM($AX46:AX46),0)+IF(RIGHT(BT$42,2)>RIGHT($K46,2),AX46,0)) -> 0 | BU46: =+IF($K46="Ongoing",AY46,IF(RIGHT($K46,2)=RIGHT(BU$42,2),SUM($AX46:AY46),0)+IF(RIGHT(BU$42,2)>RIGHT($K46,2),AY46,0)) -> 0 | BV46: =+IF($K46="Ongoing",AZ46,IF(RIGHT($K46,2)=RIGHT(BV$42,2),SUM($AX46:AZ46),0)+IF(RIGHT(BV$42,2)>RIGHT($K46,2),AZ46,0)) -> 0 | BW46: =+IF($K46="Ongoing",BA46,IF(RIGHT($K46,2)=RIGHT(BW$42,2),SUM($AX46:BA46),0)+IF(RIGHT(BW$42,2)>RIGHT($K46,2),BA46,0)) -> 0 | BX46: =+IF($K46="Ongoing",BB46,IF(RIGHT($K46,2)=RIGHT(BX$42,2),SUM($AX46:BB46),0)+IF(RIGHT(BX$42,2)>RIGHT($K46,2),BB46,0)) -> 211.3853879 | BY46: =+IF($K46="Ongoing",BC46,IF(RIGHT($K46,2)=RIGHT(BY$42,2),SUM($AX46:BC46),0)+IF(RIGHT(BY$42,2)>RIGHT($K46,2),BC46,0)) -> 0 | BZ46: =+IF($K46="Ongoing",BD46,IF(RIGHT($K46,2)=RIGHT(BZ$42,2),SUM($AX46:BD46),0)+IF(RIGHT(BZ$42,2)>RIGHT($K46,2),BD46,0)) -> 0 | CA46: =+IF($K46="Ongoing",BE46,IF(RIGHT($K46,2)=RIGHT(CA$42,2),SUM($AX46:BE46),0)+IF(RIGHT(CA$42,2)>RIGHT($K46,2),BE46,0)) -> 0 | CB46: =+IF($K46="Ongoing",BF46,IF(RIGHT($K46,2)=RIGHT(CB$42,2),SUM($AX46:BF46),0)+IF(RIGHT(CB$42,2)>RIGHT($K46,2),BF46,0)) -> 0 | CC46: =+IF($K46="Ongoing",BG46,IF(RIGHT($K46,2)=RIGHT(CC$42,2),SUM($AX46:BG46),0)+IF(RIGHT(CC$42,2)>RIGHT($K46,2),BG46,0)) -> 0 | CE46: =+Q46*KeyAssumptionsPriceControl_FO!AA$15 -> 69.54485294 | CF46: =+R46*KeyAssumptionsPriceControl_FO!AB$15 -> 137.44902 | CG46: =+S46*KeyAssumptionsPriceControl_FO!AC$15 -> 7.207474822 | CH46: =+T46*KeyAssumptionsPriceControl_FO!AD$15 -> 2.343062289 | CI46: =+U46*KeyAssumptionsPriceControl_FO!AE$15 -> 1.162387487 | CJ46: =+V46*KeyAssumptionsPriceControl_FO!AF$15 -> 0 | CK46: =+W46*KeyAssumptionsPriceControl_FO!AG$15 -> 0 | CL46: =+X46*KeyAssumptionsPriceControl_FO!AH$15 -> 0 | CM46: =+Y46*KeyAssumptionsPriceControl_FO!AI$15 -> 0 | CN46: =+Z46*KeyAssumptionsPriceControl_FO!AJ$15 -> 0 | CP46: =IF($M46="straight line",IF($N46=0,0, IF($N46<=0.5,CE46, IF($J46="straight line", IF((LEFT(CP$42,4)*1)-INT($N46)<LEFT($CP$42,4)*1,0,((OFFSET(CE46,0,-INT($N46+0.5),1,1))/$N46)*(IF($N46-INT($N46)>0.5,$N46-0.5-INT($N46),IF($N46-INT($N46)<=0.5,$N46-0.5-INT($N46)+1,0)))) +CE46/$N46*0.5, IF($J46="Declining Balance",-$CP$41,0)))),IFERROR(FG46,0)) -> 0 | CQ46: =IF($M46="straight line",IF($N46=0,0, IF($N46<=0.5,CF46, IF($J46="straight line", IF((LEFT(CQ$42,4)*1)-INT($N46)<LEFT($CP$42,4)*1,0,((OFFSET(CF46,0,-INT($N46+0.5),1,1))/$N46)*(IF($N46-INT($N46)>0.5,$N46-0.5-INT($N46),IF($N46-INT($N46)<=0.5,$N46-0.5-INT($N46)+1,0)))) +CF46/$N46*0.5, IF($J46="Declining Balance",-$CP$41,0)))),IFERROR(FH46,0)) -> 0 | CR46: =IF($M46="straight line",IF($N46=0,0, IF($N46<=0.5,CG46, IF($J46="straight line", IF((LEFT(CR$42,4)*1)-INT($N46)<LEFT($CP$42,4)*1,0,((OFFSET(CG46,0,-INT($N46+0.5),1,1))/$N46)*(IF($N46-INT($N46)>0.5,$N46-0.5-INT($N46),IF($N46-INT($N46)<=0.5,$N46-0.5-INT($N46)+1,0)))) +CG46/$N46*0.5, IF($J46="Declining Balance",-$CP$41,0)))),IFERROR(FI46,0)) -> 0 | CS46: =IF($M46="straight line",IF($N46=0,0, IF($N46<=0.5,CH46, IF($J46="straight line", IF((LEFT(CS$42,4)*1)-INT($N46)<LEFT($CP$42,4)*1,0,((OFFSET(CH46,0,-INT($N46+0.5),1,1))/$N46)*(IF($N46-INT($N46)>0.5,$N46-0.5-INT($N46),IF($N46-INT($N46)<=0.5,$N46-0.5-INT($N46)+1,0)))) +CH46/$N46*0.5, IF($J46="Declining Balance",-$CP$41,0)))),IFERROR(FJ46,0)) -> 0 | CT46: 0 | CU46: 0 | CV46: 0 | CW46: 0 | CX46: 0 | CY46: 0 | DC46: must be > 0 | DD46: No | DE46: =+IF($K46="ongoing",CE46,IF(RIGHT($K46,2)=RIGHT(DE$42,2),SUM($CD46:CE46),0)+IF(RIGHT(DE$42,2)>RIGHT($K46,2),CE46,0)) -> 0 | DF46: =+IF($K46="ongoing",CF46,IF(RIGHT($K46,2)=RIGHT(DF$42,2),SUM($CD46:CF46),0)+IF(RIGHT(DF$42,2)>RIGHT($K46,2),CF46,0)) -> 0 | DG46: =+IF($K46="ongoing",CG46,IF(RIGHT($K46,2)=RIGHT(DG$42,2),SUM($CD46:CG46),0)+IF(RIGHT(DG$42,2)>RIGHT($K46,2),CG46,0)) -> 0 | DH46: =+IF($K46="ongoing",CH46,IF(RIGHT($K46,2)=RIGHT(DH$42,2),SUM($CD46:CH46),0)+IF(RIGHT(DH$42,2)>RIGHT($K46,2),CH46,0)) -> 0 | DI46: =+IF($K46="ongoing",CI46,IF(RIGHT($K46,2)=RIGHT(DI$42,2),SUM($CD46:CI46),0)+IF(RIGHT(DI$42,2)>RIGHT($K46,2),CI46,0)) -> 0 | DJ46: =+IF($K46="ongoing",CJ46,IF(RIGHT($K46,2)=RIGHT(DJ$42,2),SUM($CD46:CJ46),0)+IF(RIGHT(DJ$42,2)>RIGHT($K46,2),CJ46,0)) -> 217.7067975 | DK46: =+IF($K46="ongoing",CK46,IF(RIGHT($K46,2)=RIGHT(DK$42,2),SUM($CD46:CK46),0)+IF(RIGHT(DK$42,2)>RIGHT($K46,2),CK46,0)) -> 0 | DL46: =+IF($K46="ongoing",CN46,IF(RIGHT($K46,2)=RIGHT(DL$42,2),SUM($CD46:CN46),0)+IF(RIGHT(DL$42,2)>RIGHT($K46,2),CN46,0)) -> 0 | DN46: 0.5 | DO46: 1 | DP46: 1 | DQ46: 1 | DR46: 1 | DS46: 1 | DT46: 1 | DU46: 1 | DW46: 0 | DX46: 0.5 | DY46: 1 | DZ46: 1 | EA46: 1 | EB46: 1 | EC46: 1 | ED46: 1 | EF46: =+IF(DN46=DM46,0, IF(AND(EF$43>1,DN46=$N46),1-SUM($EE46:EE46), IF($N46<=1, IF($N46>0,1/$N46,0), IF(EF$43=1,0,VDB(1,0,$N46,INT(EF$43-1-1),MIN($N46,INT(EF$43-1-1)+1),$DC46,IF($DD46="No",1,0))/ IF(DM46>=INT($N46),$N46-INT($N46),1)))* IF(EF$43=1,0, IF(INT(DN46)=INT(DM46),DN46-DM46,INT(DN46)-DM46))+ IF($N46<=1, IF($N46>0,1/$N46,0),VDB(1,0,$N46,INT(EF$43-1),MIN($N46,INT(EF$43-1)+1),$DC46,IF($DD46="No",1,0))/ IF(DN46>INT($N46),$N46-INT($N46),1))* IF(EF$43=1,DN46, IF(INT(DN46)=INT(DM46),0,DN46-INT(DN46))))) -> 0 | EG46: =+IF(DO46=DN46,0, IF(AND(EG$43>1,DO46=$N46),1-SUM($EE46:EF46), IF($N46<=1, IF($N46>0,1/$N46,0), IF(EG$43=1,0,VDB(1,0,$N46,INT(EG$43-1-1),MIN($N46,INT(EG$43-1-1)+1),$DC46,IF($DD46="No",1,0))/ IF(DN46>=INT($N46),$N46-INT($N46),1)))* IF(EG$43=1,0, IF(INT(DO46)=INT(DN46),DO46-DN46,INT(DO46)-DN46))+ IF($N46<=1, IF($N46>0,1/$N46,0),VDB(1,0,$N46,INT(EG$43-1),MIN($N46,INT(EG$43-1)+1),$DC46,IF($DD46="No",1,0))/ IF(DO46>INT($N46),$N46-INT($N46),1))* IF(EG$43=1,DO46, IF(INT(DO46)=INT(DN46),0,DO46-INT(DO46))))) -> 0 | EH46: =+IF(DP46=DO46,0, IF(AND(EH$43>1,DP46=$N46),1-SUM($EE46:EG46), IF($N46<=1, IF($N46>0,1/$N46,0), IF(EH$43=1,0,VDB(1,0,$N46,INT(EH$43-1-1),MIN($N46,INT(EH$43-1-1)+1),$DC46,IF($DD46="No",1,0))/ IF(DO46>=INT($N46),$N46-INT($N46),1)))* IF(EH$43=1,0, IF(INT(DP46)=INT(DO46),DP46-DO46,INT(DP46)-DO46))+ IF($N46<=1, IF($N46>0,1/$N46,0),VDB(1,0,$N46,INT(EH$43-1),MIN($N46,INT(EH$43-1)+1),$DC46,IF($DD46="No",1,0))/ IF(DP46>INT($N46),$N46-INT($N46),1))* IF(EH$43=1,DP46, IF(INT(DP46)=INT(DO46),0,DP46-INT(DP46))))) -> 0 | EI46: =+IF(DQ46=DP46,0, IF(AND(EI$43>1,DQ46=$N46),1-SUM($EE46:EH46), IF($N46<=1, IF($N46>0,1/$N46,0), IF(EI$43=1,0,VDB(1,0,$N46,INT(EI$43-1-1),MIN($N46,INT(EI$43-1-1)+1),$DC46,IF($DD46="No",1,0))/ IF(DP46>=INT($N46),$N46-INT($N46),1)))* IF(EI$43=1,0, IF(INT(DQ46)=INT(DP46),DQ46-DP46,INT(DQ46)-DP46))+ IF($N46<=1, IF($N46>0,1/$N46,0),VDB(1,0,$N46,INT(EI$43-1),MIN($N46,INT(EI$43-1)+1),$DC46,IF($DD46="No",1,0))/ IF(DQ46>INT($N46),$N46-INT($N46),1))* IF(EI$43=1,DQ46, IF(INT(DQ46)=INT(DP46),0,DQ46-INT(DQ46))))) -> 0 | EJ46: =+IF(DR46=DQ46,0, IF(AND(EJ$43>1,DR46=$N46),1-SUM($EE46:EI46), IF($N46<=1, IF($N46>0,1/$N46,0), IF(EJ$43=1,0,VDB(1,0,$N46,INT(EJ$43-1-1),MIN($N46,INT(EJ$43-1-1)+1),$DC46,IF($DD46="No",1,0))/ IF(DQ46>=INT($N46),$N46-INT($N46),1)))* IF(EJ$43=1,0, IF(INT(DR46)=INT(DQ46),DR46-DQ46,INT(DR46)-DQ46))+ IF($N46<=1, IF($N46>0,1/$N46,0),VDB(1,0,$N46,INT(EJ$43-1),MIN($N46,INT(EJ$43-1)+1),$DC46,IF($DD46="No",1,0))/ IF(DR46>INT($N46),$N46-INT($N46),1))* IF(EJ$43=1,DR46, IF(INT(DR46)=INT(DQ46),0,DR46-INT(DR46))))) -> 0 | EK46: =+IF(DS46=DR46,0, IF(AND(EK$43>1,DS46=$N46),1-SUM($EE46:EJ46), IF($N46<=1, IF($N46>0,1/$N46,0), IF(EK$43=1,0,VDB(1,0,$N46,INT(EK$43-1-1),MIN($N46,INT(EK$43-1-1)+1),$DC46,IF($DD46="No",1,0))/ IF(DR46>=INT($N46),$N46-INT($N46),1)))* IF(EK$43=1,0, IF(INT(DS46)=INT(DR46),DS46-DR46,INT(DS46)-DR46))+ IF($N46<=1, IF($N46>0,1/$N46,0),VDB(1,0,$N46,INT(EK$43-1),MIN($N46,INT(EK$43-1)+1),$DC46,IF($DD46="No",1,0))/ IF(DS46>INT($N46),$N46-INT($N46),1))* IF(EK$43=1,DS46, IF(INT(DS46)=INT(DR46),0,DS46-INT(DS46))))) -> 0 | EL46: =+IF(DT46=DS46,0, IF(AND(EL$43>1,DT46=$N46),1-SUM($EE46:EK46), IF($N46<=1, IF($N46>0,1/$N46,0), IF(EL$43=1,0,VDB(1,0,$N46,INT(EL$43-1-1),MIN($N46,INT(EL$43-1-1)+1),$DC46,IF($DD46="No",1,0))/ IF(DS46>=INT($N46),$N46-INT($N46),1)))* IF(EL$43=1,0, IF(INT(DT46)=INT(DS46),DT46-DS46,INT(DT46)-DS46))+ IF($N46<=1, IF($N46>0,1/$N46,0),VDB(1,0,$N46,INT(EL$43-1),MIN($N46,INT(EL$43-1)+1),$DC46,IF($DD46="No",1,0))/ IF(DT46>INT($N46),$N46-INT($N46),1))* IF(EL$43=1,DT46, IF(INT(DT46)=INT(DS46),0,DT46-INT(DT46))))) -> 0 | EM46: =+IF(DU46=DT46,0, IF(AND(EM$43>1,DU46=$N46),1-SUM($EE46:EL46), IF($N46<=1, IF($N46>0,1/$N46,0), IF(EM$43=1,0,VDB(1,0,$N46,INT(EM$43-1-1),MIN($N46,INT(EM$43-1-1)+1),$DC46,IF($DD46="No",1,0))/ IF(DT46>=INT($N46),$N46-INT($N46),1)))* IF(EM$43=1,0, IF(INT(DU46)=INT(DT46),DU46-DT46,INT(DU46)-DT46))+ IF($N46<=1, IF($N46>0,1/$N46,0),VDB(1,0,$N46,INT(EM$43-1),MIN($N46,INT(EM$43-1)+1),$DC46,IF($DD46="No",1,0))/ IF(DU46>INT($N46),$N46-INT($N46),1))* IF(EM$43=1,DU46, IF(INT(DU46)=INT(DT46),0,DU46-INT(DU46))))) -> 0 | EO46: =+IF(OR(DW46=DV46,EO$43=1),0, IF(AND(EO$43>1,DW46=$N46),1-SUM($EN46:EN46), IF($N46<=1, IF($N46>0,1/$N46,0), IF(EO$43=2,0,VDB(1,0,$N46,INT(EO$43-2-1),MIN($N46,INT(EO$43-2-1)+1),$DC46,IF($DD46="No",1,0))/ IF(DV46>=INT($N46),$N46-INT($N46),1)))* IF(EO$43=2,0, IF(INT(DW46)=INT(DV46),DW46-DV46,INT(DW46)-DV46))+ IF($N46<=1, IF($N46>0,1/$N46,0),VDB(1,0,$N46,INT(EO$43-2),MIN($N46,INT(EO$43-2)+1),$DC46,IF($DD46="No",1,0))/ IF(DW46>INT($N46),$N46-INT($N46),1))* IF(EO$43=2,DW46, IF(INT(DW46)=INT(DV46),0,DW46-INT(DW46))))) -> 0 | EP46: =+IF(OR(DX46=DW46,EP$43=1),0, IF(AND(EP$43>1,DX46=$N46),1-SUM($EN46:EO46), IF($N46<=1, IF($N46>0,1/$N46,0), IF(EP$43=2,0,VDB(1,0,$N46,INT(EP$43-2-1),MIN($N46,INT(EP$43-2-1)+1),$DC46,IF($DD46="No",1,0))/ IF(DW46>=INT($N46),$N46-INT($N46),1)))* IF(EP$43=2,0, IF(INT(DX46)=INT(DW46),DX46-DW46,INT(DX46)-DW46))+ IF($N46<=1, IF($N46>0,1/$N46,0),VDB(1,0,$N46,INT(EP$43-2),MIN($N46,INT(EP$43-2)+1),$DC46,IF($DD46="No",1,0))/ IF(DX46>INT($N46),$N46-INT($N46),1))* IF(EP$43=2,DX46, IF(INT(DX46)=INT(DW46),0,DX46-INT(DX46))))) -> 0 | EQ46: =+IF(OR(DY46=DX46,EQ$43=1),0, IF(AND(EQ$43>1,DY46=$N46),1-SUM($EN46:EP46), IF($N46<=1, IF($N46>0,1/$N46,0), IF(EQ$43=2,0,VDB(1,0,$N46,INT(EQ$43-2-1),MIN($N46,INT(EQ$43-2-1)+1),$DC46,IF($DD46="No",1,0))/ IF(DX46>=INT($N46),$N46-INT($N46),1)))* IF(EQ$43=2,0, IF(INT(DY46)=INT(DX46),DY46-DX46,INT(DY46)-DX46))+ IF($N46<=1, IF($N46>0,1/$N46,0),VDB(1,0,$N46,INT(EQ$43-2),MIN($N46,INT(EQ$43-2)+1),$DC46,IF($DD46="No",1,0))/ IF(DY46>INT($N46),$N46-INT($N46),1))* IF(EQ$43=2,DY46, IF(INT(DY46)=INT(DX46),0,DY46-INT(DY46))))) -> 0 | ER46: =+IF(OR(DZ46=DY46,ER$43=1),0, IF(AND(ER$43>1,DZ46=$N46),1-SUM($EN46:EQ46), IF($N46<=1, IF($N46>0,1/$N46,0), IF(ER$43=2,0,VDB(1,0,$N46,INT(ER$43-2-1),MIN($N46,INT(ER$43-2-1)+1),$DC46,IF($DD46="No",1,0))/ IF(DY46>=INT($N46),$N46-INT($N46),1)))* IF(ER$43=2,0, IF(INT(DZ46)=INT(DY46),DZ46-DY46,INT(DZ46)-DY46))+ IF($N46<=1, IF($N46>0,1/$N46,0),VDB(1,0,$N46,INT(ER$43-2),MIN($N46,INT(ER$43-2)+1),$DC46,IF($DD46="No",1,0))/ IF(DZ46>INT($N46),$N46-INT($N46),1))* IF(ER$43=2,DZ46, IF(INT(DZ46)=INT(DY46),0,DZ46-INT(DZ46))))) -> 0 | ES46: =+IF(OR(EA46=DZ46,ES$43=1),0, IF(AND(ES$43>1,EA46=$N46),1-SUM($EN46:ER46), IF($N46<=1, IF($N46>0,1/$N46,0), IF(ES$43=2,0,VDB(1,0,$N46,INT(ES$43-2-1),MIN($N46,INT(ES$43-2-1)+1),$DC46,IF($DD46="No",1,0))/ IF(DZ46>=INT($N46),$N46-INT($N46),1)))* IF(ES$43=2,0, IF(INT(EA46)=INT(DZ46),EA46-DZ46,INT(EA46)-DZ46))+ IF($N46<=1, IF($N46>0,1/$N46,0),VDB(1,0,$N46,INT(ES$43-2),MIN($N46,INT(ES$43-2)+1),$DC46,IF($DD46="No",1,0))/ IF(EA46>INT($N46),$N46-INT($N46),1))* IF(ES$43=2,EA46, IF(INT(EA46)=INT(DZ46),0,EA46-INT(EA46))))) -> 0 | ET46: =+IF(OR(EB46=EA46,ET$43=1),0, IF(AND(ET$43>1,EB46=$N46),1-SUM($EN46:ES46), IF($N46<=1, IF($N46>0,1/$N46,0), IF(ET$43=2,0,VDB(1,0,$N46,INT(ET$43-2-1),MIN($N46,INT(ET$43-2-1)+1),$DC46,IF($DD46="No",1,0))/ IF(EA46>=INT($N46),$N46-INT($N46),1)))* IF(ET$43=2,0, IF(INT(EB46)=INT(EA46),EB46-EA46,INT(EB46)-EA46))+ IF($N46<=1, IF($N46>0,1/$N46,0),VDB(1,0,$N46,INT(ET$43-2),MIN($N46,INT(ET$43-2)+1),$DC46,IF($DD46="No",1,0))/ IF(EB46>INT($N46),$N46-INT($N46),1))* IF(ET$43=2,EB46, IF(INT(EB46)=INT(EA46),0,EB46-INT(EB46))))) -> 0 | EU46: =+IF(OR(EC46=EB46,EU$43=1),0, IF(AND(EU$43>1,EC46=$N46),1-SUM($EN46:ET46), IF($N46<=1, IF($N46>0,1/$N46,0), IF(EU$43=2,0,VDB(1,0,$N46,INT(EU$43-2-1),MIN($N46,INT(EU$43-2-1)+1),$DC46,IF($DD46="No",1,0))/ IF(EB46>=INT($N46),$N46-INT($N46),1)))* IF(EU$43=2,0, IF(INT(EC46)=INT(EB46),EC46-EB46,INT(EC46)-EB46))+ IF($N46<=1, IF($N46>0,1/$N46,0),VDB(1,0,$N46,INT(EU$43-2),MIN($N46,INT(EU$43-2)+1),$DC46,IF($DD46="No",1,0))/ IF(EC46>INT($N46),$N46-INT($N46),1))* IF(EU$43=2,EC46, IF(INT(EC46)=INT(EB46),0,EC46-INT(EC46))))) -> 0 | EV46: =+IF(OR(ED46=EC46,EV$43=1),0, IF(AND(EV$43>1,ED46=$N46),1-SUM($EN46:EU46), IF($N46<=1, IF($N46>0,1/$N46,0), IF(EV$43=2,0,VDB(1,0,$N46,INT(EV$43-2-1),MIN($N46,INT(EV$43-2-1)+1),$DC46,IF($DD46="No",1,0))/ IF(EC46>=INT($N46),$N46-INT($N46),1)))* IF(EV$43=2,0, IF(INT(ED46)=INT(EC46),ED46-EC46,INT(ED46)-EC46))+ IF($N46<=1, IF($N46>0,1/$N46,0),VDB(1,0,$N46,INT(EV$43-2),MIN($N46,INT(EV$43-2)+1),$DC46,IF($DD46="No",1,0))/ IF(ED46>INT($N46),$N46-INT($N46),1))* IF(EV$43=2,ED46, IF(INT(ED46)=INT(EC46),0,ED46-INT(ED46))))) -> 0 | EX46: 0 | EY46: 0 | EZ46: 0 | FA46: 0 | FB46: 0 | FC46: 0 | FD46: 0 | FE46: 0 | FG46: =-(-$DE46*(-ISBLANK($DE46)+1)*EF46- IF(FG$43>1,SUMPRODUCT(OFFSET($DF46,0,0,1,FG$43-1)*(-ISBLANK(OFFSET($DF46,0,0,1,FG$43-1))+1),OFFSET($EX46,0,MAX($FG$43:$HY$43)-FG$43,1,FG$43-1)),0)) -> 0 | FH46: 0 | FI46: 0 | FJ46: 0 | FK46: 0 | FL46: 0 | FM46: 0 | FN46: 0
B47: =B46+1 -> 3 | C47: HBM Yarra Crossing Duplication | E47: Sewerage | F47: Renewals | G47: Pipelines/Network | H47: Top 15 Major Projects | J47: Straight line | K47: 2027/2028 | L47: 100 | M47: Straight line | Q47: 29.07708922 | R47: 89.9921885 | S47: 16.76650215 | T47: 0 | U47: 0 | V47: 0 | W47: 22.03393527 | X47: 0 | Y47: 0 | Z47: 0 | AX47: 29.07708922 | AY47: 89.9921885 | AZ47: 16.76650215 | BA47: 0 | BB47: 0 | BC47: 0 | BD47: 22.03393527 | BE47: 0 | BF47: 0 | BG47: 0 | BI47: 0 | BJ47: 0 | BK47: 0 | BL47: 0 | BM47: 0 | BN47: 0 | BO47: 0.7893485757 | BP47: 1.578697151 | BQ47: 1.578697151 | BR47: 1.578697151 | BT47: =+IF($K47="Ongoing",AX47,IF(RIGHT($K47,2)=RIGHT(BT$42,2),SUM($AX47:AX47),0)+IF(RIGHT(BT$42,2)>RIGHT($K47,2),AX47,0)) -> 0 | BU47: =+IF($K47="Ongoing",AY47,IF(RIGHT($K47,2)=RIGHT(BU$42,2),SUM($AX47:AY47),0)+IF(RIGHT(BU$42,2)>RIGHT($K47,2),AY47,0)) -> 0 | BV47: =+IF($K47="Ongoing",AZ47,IF(RIGHT($K47,2)=RIGHT(BV$42,2),SUM($AX47:AZ47),0)+IF(RIGHT(BV$42,2)>RIGHT($K47,2),AZ47,0)) -> 0 | BW47: =+IF($K47="Ongoing",BA47,IF(RIGHT($K47,2)=RIGHT(BW$42,2),SUM($AX47:BA47),0)+IF(RIGHT(BW$42,2)>RIGHT($K47,2),BA47,0)) -> 0 | BX47: =+IF($K47="Ongoing",BB47,IF(RIGHT($K47,2)=RIGHT(BX$42,2),SUM($AX47:BB47),0)+IF(RIGHT(BX$42,2)>RIGHT($K47,2),BB47,0)) -> 0 | BY47: =+IF($K47="Ongoing",BC47,IF(RIGHT($K47,2)=RIGHT(BY$42,2),SUM($AX47:BC47),0)+IF(RIGHT(BY$42,2)>RIGHT($K47,2),BC47,0)) -> 0 | BZ47: =+IF($K47="Ongoing",BD47,IF(RIGHT($K47,2)=RIGHT(BZ$42,2),SUM($AX47:BD47),0)+IF(RIGHT(BZ$42,2)>RIGHT($K47,2),BD47,0)) -> 157.8697151 | CA47: =+IF($K47="Ongoing",BE47,IF(RIGHT($K47,2)=RIGHT(CA$42,2),SUM($AX47:BE47),0)+IF(RIGHT(CA$42,2)>RIGHT($K47,2),BE47,0)) -> 0 | CB47: =+IF($K47="Ongoing",BF47,IF(RIGHT($K47,2)=RIGHT(CB$42,2),SUM($AX47:BF47),0)+IF(RIGHT(CB$42,2)>RIGHT($K47,2),BF47,0)) -> 0 | CC47: =+IF($K47="Ongoing",BG47,IF(RIGHT($K47,2)=RIGHT(CC$42,2),SUM($AX47:BG47),0)+IF(RIGHT(CC$42,2)>RIGHT($K47,2),BG47,0)) -> 0 | CE47: =+Q47*KeyAssumptionsPriceControl_FO!AA$15 -> 29.57139973 | CF47: =+R47*KeyAssumptionsPriceControl_FO!AB$15 -> 93.07793066 | CG47: =+S47*KeyAssumptionsPriceControl_FO!AC$15 -> 17.63621269 | CH47: =+T47*KeyAssumptionsPriceControl_FO!AD$15 -> 0 | CI47: =+U47*KeyAssumptionsPriceControl_FO!AE$15 -> 0 | CJ47: =+V47*KeyAssumptionsPriceControl_FO!AF$15 -> 0 | CK47: =+W47*KeyAssumptionsPriceControl_FO!AG$15 -> 24.79355144 | CL47: =+X47*KeyAssumptionsPriceControl_FO!AH$15 -> 0 | CM47: =+Y47*KeyAssumptionsPriceControl_FO!AI$15 -> 0 | CN47: =+Z47*KeyAssumptionsPriceControl_FO!AJ$15 -> 0 | CP47: 0 | CQ47: 0 | CR47: 0 | CS47: 0 | CT47: 0 | CU47: 0 | CV47: 0 | CW47: 0 | CX47: 0 | CY47: 0 | DC47: must be > 0 | DD47: No | DE47: =+IF($K47="ongoing",CE47,IF(RIGHT($K47,2)=RIGHT(DE$42,2),SUM($CD47:CE47),0)+IF(RIGHT(DE$42,2)>RIGHT($K47,2),CE47,0)) -> 0 | DF47: =+IF($K47="ongoing",CF47,IF(RIGHT($K47,2)=RIGHT(DF$42,2),SUM($CD47:CF47),0)+IF(RIGHT(DF$42,2)>RIGHT($K47,2),CF47,0)) -> 0 | DG47: =+IF($K47="ongoing",CG47,IF(RIGHT($K47,2)=RIGHT(DG$42,2),SUM($CD47:CG47),0)+IF(RIGHT(DG$42,2)>RIGHT($K47,2),CG47,0)) -> 0 | DH47: =+IF($K47="ongoing",CH47,IF(RIGHT($K47,2)=RIGHT(DH$42,2),SUM($CD47:CH47),0)+IF(RIGHT(DH$42,2)>RIGHT($K47,2),CH47,0)) -> 0 | DI47: =+IF($K47="ongoing",CI47,IF(RIGHT($K47,2)=RIGHT(DI$42,2),SUM($CD47:CI47),0)+IF(RIGHT(DI$42,2)>RIGHT($K47,2),CI47,0)) -> 0 | DJ47: =+IF($K47="ongoing",CJ47,IF(RIGHT($K47,2)=RIGHT(DJ$42,2),SUM($CD47:CJ47),0)+IF(RIGHT(DJ$42,2)>RIGHT($K47,2),CJ47,0)) -> 0 | DK47: =+IF($K47="ongoing",CK47,IF(RIGHT($K47,2)=RIGHT(DK$42,2),SUM($CD47:CK47),0)+IF(RIGHT(DK$42,2)>RIGHT($K47,2),CK47,0)) -> 0 | DL47: =+IF($K47="ongoing",CN47,IF(RIGHT($K47,2)=RIGHT(DL$42,2),SUM($CD47:CN47),0)+IF(RIGHT(DL$42,2)>RIGHT($K47,2),CN47,0)) -> 165.0790945 | DN47: 0.5 | DO47: 1 | DP47: 1 | DQ47: 1 | DR47: 1 | DS47: 1 | DT47: 1 | DU47: 1 | DW47: 0 | DX47: 0.5 | DY47: 1 | DZ47: 1 | EA47: 1 | EB47: 1 | EC47: 1 | ED47: 1 | EF47: =+IF(DN47=DM47,0, IF(AND(EF$43>1,DN47=$N47),1-SUM($EE47:EE47), IF($N47<=1, IF($N47>0,1/$N47,0), IF(EF$43=1,0,VDB(1,0,$N47,INT(EF$43-1-1),MIN($N47,INT(EF$43-1-1)+1),$DC47,IF($DD47="No",1,0))/ IF(DM47>=INT($N47),$N47-INT($N47),1)))* IF(EF$43=1,0, IF(INT(DN47)=INT(DM47),DN47-DM47,INT(DN47)-DM47))+ IF($N47<=1, IF($N47>0,1/$N47,0),VDB(1,0,$N47,INT(EF$43-1),MIN($N47,INT(EF$43-1)+1),$DC47,IF($DD47="No",1,0))/ IF(DN47>INT($N47),$N47-INT($N47),1))* IF(EF$43=1,DN47, IF(INT(DN47)=INT(DM47),0,DN47-INT(DN47))))) -> 0 | EG47: =+IF(DO47=DN47,0, IF(AND(EG$43>1,DO47=$N47),1-SUM($EE47:EF47), IF($N47<=1, IF($N47>0,1/$N47,0), IF(EG$43=1,0,VDB(1,0,$N47,INT(EG$43-1-1),MIN($N47,INT(EG$43-1-1)+1),$DC47,IF($DD47="No",1,0))/ IF(DN47>=INT($N47),$N47-INT($N47),1)))* IF(EG$43=1,0, IF(INT(DO47)=INT(DN47),DO47-DN47,INT(DO47)-DN47))+ IF($N47<=1, IF($N47>0,1/$N47,0),VDB(1,0,$N47,INT(EG$43-1),MIN($N47,INT(EG$43-1)+1),$DC47,IF($DD47="No",1,0))/ IF(DO47>INT($N47),$N47-INT($N47),1))* IF(EG$43=1,DO47, IF(INT(DO47)=INT(DN47),0,DO47-INT(DO47))))) -> 0 | EH47: =+IF(DP47=DO47,0, IF(AND(EH$43>1,DP47=$N47),1-SUM($EE47:EG47), IF($N47<=1, IF($N47>0,1/$N47,0), IF(EH$43=1,0,VDB(1,0,$N47,INT(EH$43-1-1),MIN($N47,INT(EH$43-1-1)+1),$DC47,IF($DD47="No",1,0))/ IF(DO47>=INT($N47),$N47-INT($N47),1)))* IF(EH$43=1,0, IF(INT(DP47)=INT(DO47),DP47-DO47,INT(DP47)-DO47))+ IF($N47<=1, IF($N47>0,1/$N47,0),VDB(1,0,$N47,INT(EH$43-1),MIN($N47,INT(EH$43-1)+1),$DC47,IF($DD47="No",1,0))/ IF(DP47>INT($N47),$N47-INT($N47),1))* IF(EH$43=1,DP47, IF(INT(DP47)=INT(DO47),0,DP47-INT(DP47))))) -> 0 | EI47: =+IF(DQ47=DP47,0, IF(AND(EI$43>1,DQ47=$N47),1-SUM($EE47:EH47), IF($N47<=1, IF($N47>0,1/$N47,0), IF(EI$43=1,0,VDB(1,0,$N47,INT(EI$43-1-1),MIN($N47,INT(EI$43-1-1)+1),$DC47,IF($DD47="No",1,0))/ IF(DP47>=INT($N47),$N47-INT($N47),1)))* IF(EI$43=1,0, IF(INT(DQ47)=INT(DP47),DQ47-DP47,INT(DQ47)-DP47))+ IF($N47<=1, IF($N47>0,1/$N47,0),VDB(1,0,$N47,INT(EI$43-1),MIN($N47,INT(EI$43-1)+1),$DC47,IF($DD47="No",1,0))/ IF(DQ47>INT($N47),$N47-INT($N47),1))* IF(EI$43=1,DQ47, IF(INT(DQ47)=INT(DP47),0,DQ47-INT(DQ47))))) -> 0 | EJ47: =+IF(DR47=DQ47,0, IF(AND(EJ$43>1,DR47=$N47),1-SUM($EE47:EI47), IF($N47<=1, IF($N47>0,1/$N47,0), IF(EJ$43=1,0,VDB(1,0,$N47,INT(EJ$43-1-1),MIN($N47,INT(EJ$43-1-1)+1),$DC47,IF($DD47="No",1,0))/ IF(DQ47>=INT($N47),$N47-INT($N47),1)))* IF(EJ$43=1,0, IF(INT(DR47)=INT(DQ47),DR47-DQ47,INT(DR47)-DQ47))+ IF($N47<=1, IF($N47>0,1/$N47,0),VDB(1,0,$N47,INT(EJ$43-1),MIN($N47,INT(EJ$43-1)+1),$DC47,IF($DD47="No",1,0))/ IF(DR47>INT($N47),$N47-INT($N47),1))* IF(EJ$43=1,DR47, IF(INT(DR47)=INT(DQ47),0,DR47-INT(DR47))))) -> 0 | EK47: =+IF(DS47=DR47,0, IF(AND(EK$43>1,DS47=$N47),1-SUM($EE47:EJ47), IF($N47<=1, IF($N47>0,1/$N47,0), IF(EK$43=1,0,VDB(1,0,$N47,INT(EK$43-1-1),MIN($N47,INT(EK$43-1-1)+1),$DC47,IF($DD47="No",1,0))/ IF(DR47>=INT($N47),$N47-INT($N47),1)))* IF(EK$43=1,0, IF(INT(DS47)=INT(DR47),DS47-DR47,INT(DS47)-DR47))+ IF($N47<=1, IF($N47>0,1/$N47,0),VDB(1,0,$N47,INT(EK$43-1),MIN($N47,INT(EK$43-1)+1),$DC47,IF($DD47="No",1,0))/ IF(DS47>INT($N47),$N47-INT($N47),1))* IF(EK$43=1,DS47, IF(INT(DS47)=INT(DR47),0,DS47-INT(DS47))))) -> 0 | EL47: =+IF(DT47=DS47,0, IF(AND(EL$43>1,DT47=$N47),1-SUM($EE47:EK47), IF($N47<=1, IF($N47>0,1/$N47,0), IF(EL$43=1,0,VDB(1,0,$N47,INT(EL$43-1-1),MIN($N47,INT(EL$43-1-1)+1),$DC47,IF($DD47="No",1,0))/ IF(DS47>=INT($N47),$N47-INT($N47),1)))* IF(EL$43=1,0, IF(INT(DT47)=INT(DS47),DT47-DS47,INT(DT47)-DS47))+ IF($N47<=1, IF($N47>0,1/$N47,0),VDB(1,0,$N47,INT(EL$43-1),MIN($N47,INT(EL$43-1)+1),$DC47,IF($DD47="No",1,0))/ IF(DT47>INT($N47),$N47-INT($N47),1))* IF(EL$43=1,DT47, IF(INT(DT47)=INT(DS47),0,DT47-INT(DT47))))) -> 0 | EM47: =+IF(DU47=DT47,0, IF(AND(EM$43>1,DU47=$N47),1-SUM($EE47:EL47), IF($N47<=1, IF($N47>0,1/$N47,0), IF(EM$43=1,0,VDB(1,0,$N47,INT(EM$43-1-1),MIN($N47,INT(EM$43-1-1)+1),$DC47,IF($DD47="No",1,0))/ IF(DT47>=INT($N47),$N47-INT($N47),1)))* IF(EM$43=1,0, IF(INT(DU47)=INT(DT47),DU47-DT47,INT(DU47)-DT47))+ IF($N47<=1, IF($N47>0,1/$N47,0),VDB(1,0,$N47,INT(EM$43-1),MIN($N47,INT(EM$43-1)+1),$DC47,IF($DD47="No",1,0))/ IF(DU47>INT($N47),$N47-INT($N47),1))* IF(EM$43=1,DU47, IF(INT(DU47)=INT(DT47),0,DU47-INT(DU47))))) -> 0 | EO47: =+IF(OR(DW47=DV47,EO$43=1),0, IF(AND(EO$43>1,DW47=$N47),1-SUM($EN47:EN47), IF($N47<=1, IF($N47>0,1/$N47,0), IF(EO$43=2,0,VDB(1,0,$N47,INT(EO$43-2-1),MIN($N47,INT(EO$43-2-1)+1),$DC47,IF($DD47="No",1,0))/ IF(DV47>=INT($N47),$N47-INT($N47),1)))* IF(EO$43=2,0, IF(INT(DW47)=INT(DV47),DW47-DV47,INT(DW47)-DV47))+ IF($N47<=1, IF($N47>0,1/$N47,0),VDB(1,0,$N47,INT(EO$43-2),MIN($N47,INT(EO$43-2)+1),$DC47,IF($DD47="No",1,0))/ IF(DW47>INT($N47),$N47-INT($N47),1))* IF(EO$43=2,DW47, IF(INT(DW47)=INT(DV47),0,DW47-INT(DW47))))) -> 0 | EP47: =+IF(OR(DX47=DW47,EP$43=1),0, IF(AND(EP$43>1,DX47=$N47),1-SUM($EN47:EO47), IF($N47<=1, IF($N47>0,1/$N47,0), IF(EP$43=2,0,VDB(1,0,$N47,INT(EP$43-2-1),MIN($N47,INT(EP$43-2-1)+1),$DC47,IF($DD47="No",1,0))/ IF(DW47>=INT($N47),$N47-INT($N47),1)))* IF(EP$43=2,0, IF(INT(DX47)=INT(DW47),DX47-DW47,INT(DX47)-DW47))+ IF($N47<=1, IF($N47>0,1/$N47,0),VDB(1,0,$N47,INT(EP$43-2),MIN($N47,INT(EP$43-2)+1),$DC47,IF($DD47="No",1,0))/ IF(DX47>INT($N47),$N47-INT($N47),1))* IF(EP$43=2,DX47, IF(INT(DX47)=INT(DW47),0,DX47-INT(DX47))))) -> 0 | EQ47: =+IF(OR(DY47=DX47,EQ$43=1),0, IF(AND(EQ$43>1,DY47=$N47),1-SUM($EN47:EP47), IF($N47<=1, IF($N47>0,1/$N47,0), IF(EQ$43=2,0,VDB(1,0,$N47,INT(EQ$43-2-1),MIN($N47,INT(EQ$43-2-1)+1),$DC47,IF($DD47="No",1,0))/ IF(DX47>=INT($N47),$N47-INT($N47),1)))* IF(EQ$43=2,0, IF(INT(DY47)=INT(DX47),DY47-DX47,INT(DY47)-DX47))+ IF($N47<=1, IF($N47>0,1/$N47,0),VDB(1,0,$N47,INT(EQ$43-2),MIN($N47,INT(EQ$43-2)+1),$DC47,IF($DD47="No",1,0))/ IF(DY47>INT($N47),$N47-INT($N47),1))* IF(EQ$43=2,DY47, IF(INT(DY47)=INT(DX47),0,DY47-INT(DY47))))) -> 0 | ER47: =+IF(OR(DZ47=DY47,ER$43=1),0, IF(AND(ER$43>1,DZ47=$N47),1-SUM($EN47:EQ47), IF($N47<=1, IF($N47>0,1/$N47,0), IF(ER$43=2,0,VDB(1,0,$N47,INT(ER$43-2-1),MIN($N47,INT(ER$43-2-1)+1),$DC47,IF($DD47="No",1,0))/ IF(DY47>=INT($N47),$N47-INT($N47),1)))* IF(ER$43=2,0, IF(INT(DZ47)=INT(DY47),DZ47-DY47,INT(DZ47)-DY47))+ IF($N47<=1, IF($N47>0,1/$N47,0),VDB(1,0,$N47,INT(ER$43-2),MIN($N47,INT(ER$43-2)+1),$DC47,IF($DD47="No",1,0))/ IF(DZ47>INT($N47),$N47-INT($N47),1))* IF(ER$43=2,DZ47, IF(INT(DZ47)=INT(DY47),0,DZ47-INT(DZ47))))) -> 0 | ES47: =+IF(OR(EA47=DZ47,ES$43=1),0, IF(AND(ES$43>1,EA47=$N47),1-SUM($EN47:ER47), IF($N47<=1, IF($N47>0,1/$N47,0), IF(ES$43=2,0,VDB(1,0,$N47,INT(ES$43-2-1),MIN($N47,INT(ES$43-2-1)+1),$DC47,IF($DD47="No",1,0))/ IF(DZ47>=INT($N47),$N47-INT($N47),1)))* IF(ES$43=2,0, IF(INT(EA47)=INT(DZ47),EA47-DZ47,INT(EA47)-DZ47))+ IF($N47<=1, IF($N47>0,1/$N47,0),VDB(1,0,$N47,INT(ES$43-2),MIN($N47,INT(ES$43-2)+1),$DC47,IF($DD47="No",1,0))/ IF(EA47>INT($N47),$N47-INT($N47),1))* IF(ES$43=2,EA47, IF(INT(EA47)=INT(DZ47),0,EA47-INT(EA47))))) -> 0 | ET47: =+IF(OR(EB47=EA47,ET$43=1),0, IF(AND(ET$43>1,EB47=$N47),1-SUM($EN47:ES47), IF($N47<=1, IF($N47>0,1/$N47,0), IF(ET$43=2,0,VDB(1,0,$N47,INT(ET$43-2-1),MIN($N47,INT(ET$43-2-1)+1),$DC47,IF($DD47="No",1,0))/ IF(EA47>=INT($N47),$N47-INT($N47),1)))* IF(ET$43=2,0, IF(INT(EB47)=INT(EA47),EB47-EA47,INT(EB47)-EA47))+ IF($N47<=1, IF($N47>0,1/$N47,0),VDB(1,0,$N47,INT(ET$43-2),MIN($N47,INT(ET$43-2)+1),$DC47,IF($DD47="No",1,0))/ IF(EB47>INT($N47),$N47-INT($N47),1))* IF(ET$43=2,EB47, IF(INT(EB47)=INT(EA47),0,EB47-INT(EB47))))) -> 0 | EU47: =+IF(OR(EC47=EB47,EU$43=1),0, IF(AND(EU$43>1,EC47=$N47),1-SUM($EN47:ET47), IF($N47<=1, IF($N47>0,1/$N47,0), IF(EU$43=2,0,VDB(1,0,$N47,INT(EU$43-2-1),MIN($N47,INT(EU$43-2-1)+1),$DC47,IF($DD47="No",1,0))/ IF(EB47>=INT($N47),$N47-INT($N47),1)))* IF(EU$43=2,0, IF(INT(EC47)=INT(EB47),EC47-EB47,INT(EC47)-EB47))+ IF($N47<=1, IF($N47>0,1/$N47,0),VDB(1,0,$N47,INT(EU$43-2),MIN($N47,INT(EU$43-2)+1),$DC47,IF($DD47="No",1,0))/ IF(EC47>INT($N47),$N47-INT($N47),1))* IF(EU$43=2,EC47, IF(INT(EC47)=INT(EB47),0,EC47-INT(EC47))))) -> 0 | EV47: =+IF(OR(ED47=EC47,EV$43=1),0, IF(AND(EV$43>1,ED47=$N47),1-SUM($EN47:EU47), IF($N47<=1, IF($N47>0,1/$N47,0), IF(EV$43=2,0,VDB(1,0,$N47,INT(EV$43-2-1),MIN($N47,INT(EV$43-2-1)+1),$DC47,IF($DD47="No",1,0))/ IF(EC47>=INT($N47),$N47-INT($N47),1)))* IF(EV$43=2,0, IF(INT(ED47)=INT(EC47),ED47-EC47,INT(ED47)-EC47))+ IF($N47<=1, IF($N47>0,1/$N47,0),VDB(1,0,$N47,INT(EV$43-2),MIN($N47,INT(EV$43-2)+1),$DC47,IF($DD47="No",1,0))/ IF(ED47>INT($N47),$N47-INT($N47),1))* IF(EV$43=2,ED47, IF(INT(ED47)=INT(EC47),0,ED47-INT(ED47))))) -> 0 | EX47: 0 | EY47: 0 | EZ47: 0 | FA47: 0 | FB47: 0 | FC47: 0 | FD47: 0 | FE47: 0 | FG47: 0 | FH47: 0 | FI47: 0 | FJ47: 0 | FK47: 0 | FL47: 0 | FM47: 0 | FN47: 0
B48: 4 | C48: Maribyrnong Main Sewer Augmentation | E48: Sewerage | F48: Improvements / Compliance | G48: Pipelines/Network | H48: Top 15 Major Projects | J48: Straight line | K48: 2023/2024 | L48: 100 | M48: Straight line | Q48: 29.47667945 | R48: 25.81140035 | S48: 1.608122364 | T48: 0 | U48: 0 | V48: 0 | W48: 0 | X48: 0 | Y48: 0 | Z48: 0 | AX48: 29.47667945 | AY48: 25.81140035 | AZ48: 1.608122364 | BA48: 0 | BB48: 0 | BC48: 0 | BD48: 0 | BE48: 0 | BF48: 0 | BG48: 0 | BI48: 0 | BJ48: 0 | BK48: 0.2844810108 | BL48: 0.5689620217 | BM48: 0.5689620217 | BN48: 0.5689620217 | BO48: 0.5689620217 | BP48: 0.5689620217 | BQ48: 0.5689620217 | BR48: 0.5689620217 | BT48: =+IF($K48="Ongoing",AX48,IF(RIGHT($K48,2)=RIGHT(BT$42,2),SUM($AX48:AX48),0)+IF(RIGHT(BT$42,2)>RIGHT($K48,2),AX48,0)) -> 0 | BU48: =+IF($K48="Ongoing",AY48,IF(RIGHT($K48,2)=RIGHT(BU$42,2),SUM($AX48:AY48),0)+IF(RIGHT(BU$42,2)>RIGHT($K48,2),AY48,0)) -> 0 | BV48: =+IF($K48="Ongoing",AZ48,IF(RIGHT($K48,2)=RIGHT(BV$42,2),SUM($AX48:AZ48),0)+IF(RIGHT(BV$42,2)>RIGHT($K48,2),AZ48,0)) -> 56.89620217 | BW48: =+IF($K48="Ongoing",BA48,IF(RIGHT($K48,2)=RIGHT(BW$42,2),SUM($AX48:BA48),0)+IF(RIGHT(BW$42,2)>RIGHT($K48,2),BA48,0)) -> 0 | BX48: =+IF($K48="Ongoing",BB48,IF(RIGHT($K48,2)=RIGHT(BX$42,2),SUM($AX48:BB48),0)+IF(RIGHT(BX$42,2)>RIGHT($K48,2),BB48,0)) -> 0 | BY48: =+IF($K48="Ongoing",BC48,IF(RIGHT($K48,2)=RIGHT(BY$42,2),SUM($AX48:BC48),0)+IF(RIGHT(BY$42,2)>RIGHT($K48,2),BC48,0)) -> 0 | BZ48: =+IF($K48="Ongoing",BD48,IF(RIGHT($K48,2)=RIGHT(BZ$42,2),SUM($AX48:BD48),0)+IF(RIGHT(BZ$42,2)>RIGHT($K48,2),BD48,0)) -> 0 | CA48: =+IF($K48="Ongoing",BE48,IF(RIGHT($K48,2)=RIGHT(CA$42,2),SUM($AX48:BE48),0)+IF(RIGHT(CA$42,2)>RIGHT($K48,2),BE48,0)) -> 0 | CB48: =+IF($K48="Ongoing",BF48,IF(RIGHT($K48,2)=RIGHT(CB$42,2),SUM($AX48:BF48),0)+IF(RIGHT(CB$42,2)>RIGHT($K48,2),BF48,0)) -> 0 | CC48: =+IF($K48="Ongoing",BG48,IF(RIGHT($K48,2)=RIGHT(CC$42,2),SUM($AX48:BG48),0)+IF(RIGHT(CC$42,2)>RIGHT($K48,2),BG48,0)) -> 0 | CE48: =+Q48*KeyAssumptionsPriceControl_FO!AA$15 -> 29.977783 | CF48: =+R48*KeyAssumptionsPriceControl_FO!AB$15 -> 26.69644746 | CG48: =+S48*KeyAssumptionsPriceControl_FO!AC$15 -> 1.691538747 | CH48: =+T48*KeyAssumptionsPriceControl_FO!AD$15 -> 0 | CI48: =+U48*KeyAssumptionsPriceControl_FO!AE$15 -> 0 | CJ48: =+V48*KeyAssumptionsPriceControl_FO!AF$15 -> 0 | CK48: =+W48*KeyAssumptionsPriceControl_FO!AG$15 -> 0 | CL48: =+X48*KeyAssumptionsPriceControl_FO!AH$15 -> 0 | CM48: =+Y48*KeyAssumptionsPriceControl_FO!AI$15 -> 0 | CN48: =+Z48*KeyAssumptionsPriceControl_FO!AJ$15 -> 0 | CP48: 0 | CQ48: 0 | CR48: 0 | CS48: 0 | CT48: 0 | CU48: 0 | CV48: 0 | CW48: 0 | CX48: 0 | CY48: 0 | DC48: must be > 0 | DD48: No | DE48: =+IF($K48="ongoing",CE48,IF(RIGHT($K48,2)=RIGHT(DE$42,2),SUM($CD48:CE48),0)+IF(RIGHT(DE$42,2)>RIGHT($K48,2),CE48,0)) -> 0 | DF48: =+IF($K48="ongoing",CF48,IF(RIGHT($K48,2)=RIGHT(DF$42,2),SUM($CD48:CF48),0)+IF(RIGHT(DF$42,2)>RIGHT($K48,2),CF48,0)) -> 0 | DG48: =+IF($K48="ongoing",CG48,IF(RIGHT($K48,2)=RIGHT(DG$42,2),SUM($CD48:CG48),0)+IF(RIGHT(DG$42,2)>RIGHT($K48,2),CG48,0)) -> 0 | DH48: =+IF($K48="ongoing",CH48,IF(RIGHT($K48,2)=RIGHT(DH$42,2),SUM($CD48:CH48),0)+IF(RIGHT(DH$42,2)>RIGHT($K48,2),CH48,0)) -> 58.36576921 | DI48: =+IF($K48="ongoing",CI48,IF(RIGHT($K48,2)=RIGHT(DI$42,2),SUM($CD48:CI48),0)+IF(RIGHT(DI$42,2)>RIGHT($K48,2),CI48,0)) -> 0 | DJ48: =+IF($K48="ongoing",CJ48,IF(RIGHT($K48,2)=RIGHT(DJ$42,2),SUM($CD48:CJ48),0)+IF(RIGHT(DJ$42,2)>RIGHT($K48,2),CJ48,0)) -> 0 | DK48: =+IF($K48="ongoing",CK48,IF(RIGHT($K48,2)=RIGHT(DK$42,2),SUM($CD48:CK48),0)+IF(RIGHT(DK$42,2)>RIGHT($K48,2),CK48,0)) -> 0 | DL48: =+IF($K48="ongoing",CN48,IF(RIGHT($K48,2)=RIGHT(DL$42,2),SUM($CD48:CN48),0)+IF(RIGHT(DL$42,2)>RIGHT($K48,2),CN48,0)) -> 0 | DN48: 0.5 | DO48: 1 | DP48: 1 | DQ48: 1 | DR48: 1 | DS48: 1 | DT48: 1 | DU48: 1 | DW48: 0 | DX48: 0.5 | DY48: 1 | DZ48: 1 | EA48: 1 | EB48: 1 | EC48: 1 | ED48: 1 | EF48: =+IF(DN48=DM48,0, IF(AND(EF$43>1,DN48=$N48),1-SUM($EE48:EE48), IF($N48<=1, IF($N48>0,1/$N48,0), IF(EF$43=1,0,VDB(1,0,$N48,INT(EF$43-1-1),MIN($N48,INT(EF$43-1-1)+1),$DC48,IF($DD48="No",1,0))/ IF(DM48>=INT($N48),$N48-INT($N48),1)))* IF(EF$43=1,0, IF(INT(DN48)=INT(DM48),DN48-DM48,INT(DN48)-DM48))+ IF($N48<=1, IF($N48>0,1/$N48,0),VDB(1,0,$N48,INT(EF$43-1),MIN($N48,INT(EF$43-1)+1),$DC48,IF($DD48="No",1,0))/ IF(DN48>INT($N48),$N48-INT($N48),1))* IF(EF$43=1,DN48, IF(INT(DN48)=INT(DM48),0,DN48-INT(DN48))))) -> 0 | EG48: =+IF(DO48=DN48,0, IF(AND(EG$43>1,DO48=$N48),1-SUM($EE48:EF48), IF($N48<=1, IF($N48>0,1/$N48,0), IF(EG$43=1,0,VDB(1,0,$N48,INT(EG$43-1-1),MIN($N48,INT(EG$43-1-1)+1),$DC48,IF($DD48="No",1,0))/ IF(DN48>=INT($N48),$N48-INT($N48),1)))* IF(EG$43=1,0, IF(INT(DO48)=INT(DN48),DO48-DN48,INT(DO48)-DN48))+ IF($N48<=1, IF($N48>0,1/$N48,0),VDB(1,0,$N48,INT(EG$43-1),MIN($N48,INT(EG$43-1)+1),$DC48,IF($DD48="No",1,0))/ IF(DO48>INT($N48),$N48-INT($N48),1))* IF(EG$43=1,DO48, IF(INT(DO48)=INT(DN48),0,DO48-INT(DO48))))) -> 0 | EH48: =+IF(DP48=DO48,0, IF(AND(EH$43>1,DP48=$N48),1-SUM($EE48:EG48), IF($N48<=1, IF($N48>0,1/$N48,0), IF(EH$43=1,0,VDB(1,0,$N48,INT(EH$43-1-1),MIN($N48,INT(EH$43-1-1)+1),$DC48,IF($DD48="No",1,0))/ IF(DO48>=INT($N48),$N48-INT($N48),1)))* IF(EH$43=1,0, IF(INT(DP48)=INT(DO48),DP48-DO48,INT(DP48)-DO48))+ IF($N48<=1, IF($N48>0,1/$N48,0),VDB(1,0,$N48,INT(EH$43-1),MIN($N48,INT(EH$43-1)+1),$DC48,IF($DD48="No",1,0))/ IF(DP48>INT($N48),$N48-INT($N48),1))* IF(EH$43=1,DP48, IF(INT(DP48)=INT(DO48),0,DP48-INT(DP48))))) -> 0 | EI48: =+IF(DQ48=DP48,0, IF(AND(EI$43>1,DQ48=$N48),1-SUM($EE48:EH48), IF($N48<=1, IF($N48>0,1/$N48,0), IF(EI$43=1,0,VDB(1,0,$N48,INT(EI$43-1-1),MIN($N48,INT(EI$43-1-1)+1),$DC48,IF($DD48="No",1,0))/ IF(DP48>=INT($N48),$N48-INT($N48),1)))* IF(EI$43=1,0, IF(INT(DQ48)=INT(DP48),DQ48-DP48,INT(DQ48)-DP48))+ IF($N48<=1, IF($N48>0,1/$N48,0),VDB(1,0,$N48,INT(EI$43-1),MIN($N48,INT(EI$43-1)+1),$DC48,IF($DD48="No",1,0))/ IF(DQ48>INT($N48),$N48-INT($N48),1))* IF(EI$43=1,DQ48, IF(INT(DQ48)=INT(DP48),0,DQ48-INT(DQ48))))) -> 0 | EJ48: =+IF(DR48=DQ48,0, IF(AND(EJ$43>1,DR48=$N48),1-SUM($EE48:EI48), IF($N48<=1, IF($N48>0,1/$N48,0), IF(EJ$43=1,0,VDB(1,0,$N48,INT(EJ$43-1-1),MIN($N48,INT(EJ$43-1-1)+1),$DC48,IF($DD48="No",1,0))/ IF(DQ48>=INT($N48),$N48-INT($N48),1)))* IF(EJ$43=1,0, IF(INT(DR48)=INT(DQ48),DR48-DQ48,INT(DR48)-DQ48))+ IF($N48<=1, IF($N48>0,1/$N48,0),VDB(1,0,$N48,INT(EJ$43-1),MIN($N48,INT(EJ$43-1)+1),$DC48,IF($DD48="No",1,0))/ IF(DR48>INT($N48),$N48-INT($N48),1))* IF(EJ$43=1,DR48, IF(INT(DR48)=INT(DQ48),0,DR48-INT(DR48))))) -> 0 | EK48: =+IF(DS48=DR48,0, IF(AND(EK$43>1,DS48=$N48),1-SUM($EE48:EJ48), IF($N48<=1, IF($N48>0,1/$N48,0), IF(EK$43=1,0,VDB(1,0,$N48,INT(EK$43-1-1),MIN($N48,INT(EK$43-1-1)+1),$DC48,IF($DD48="No",1,0))/ IF(DR48>=INT($N48),$N48-INT($N48),1)))* IF(EK$43=1,0, IF(INT(DS48)=INT(DR48),DS48-DR48,INT(DS48)-DR48))+ IF($N48<=1, IF($N48>0,1/$N48,0),VDB(1,0,$N48,INT(EK$43-1),MIN($N48,INT(EK$43-1)+1),$DC48,IF($DD48="No",1,0))/ IF(DS48>INT($N48),$N48-INT($N48),1))* IF(EK$43=1,DS48, IF(INT(DS48)=INT(DR48),0,DS48-INT(DS48))))) -> 0 | EL48: =+IF(DT48=DS48,0, IF(AND(EL$43>1,DT48=$N48),1-SUM($EE48:EK48), IF($N48<=1, IF($N48>0,1/$N48,0), IF(EL$43=1,0,VDB(1,0,$N48,INT(EL$43-1-1),MIN($N48,INT(EL$43-1-1)+1),$DC48,IF($DD48="No",1,0))/ IF(DS48>=INT($N48),$N48-INT($N48),1)))* IF(EL$43=1,0, IF(INT(DT48)=INT(DS48),DT48-DS48,INT(DT48)-DS48))+ IF($N48<=1, IF($N48>0,1/$N48,0),VDB(1,0,$N48,INT(EL$43-1),MIN($N48,INT(EL$43-1)+1),$DC48,IF($DD48="No",1,0))/ IF(DT48>INT($N48),$N48-INT($N48),1))* IF(EL$43=1,DT48, IF(INT(DT48)=INT(DS48),0,DT48-INT(DT48))))) -> 0 | EM48: =+IF(DU48=DT48,0, IF(AND(EM$43>1,DU48=$N48),1-SUM($EE48:EL48), IF($N48<=1, IF($N48>0,1/$N48,0), IF(EM$43=1,0,VDB(1,0,$N48,INT(EM$43-1-1),MIN($N48,INT(EM$43-1-1)+1),$DC48,IF($DD48="No",1,0))/ IF(DT48>=INT($N48),$N48-INT($N48),1)))* IF(EM$43=1,0, IF(INT(DU48)=INT(DT48),DU48-DT48,INT(DU48)-DT48))+ IF($N48<=1, IF($N48>0,1/$N48,0),VDB(1,0,$N48,INT(EM$43-1),MIN($N48,INT(EM$43-1)+1),$DC48,IF($DD48="No",1,0))/ IF(DU48>INT($N48),$N48-INT($N48),1))* IF(EM$43=1,DU48, IF(INT(DU48)=INT(DT48),0,DU48-INT(DU48))))) -> 0 | EO48: =+IF(OR(DW48=DV48,EO$43=1),0, IF(AND(EO$43>1,DW48=$N48),1-SUM($EN48:EN48), IF($N48<=1, IF($N48>0,1/$N48,0), IF(EO$43=2,0,VDB(1,0,$N48,INT(EO$43-2-1),MIN($N48,INT(EO$43-2-1)+1),$DC48,IF($DD48="No",1,0))/ IF(DV48>=INT($N48),$N48-INT($N48),1)))* IF(EO$43=2,0, IF(INT(DW48)=INT(DV48),DW48-DV48,INT(DW48)-DV48))+ IF($N48<=1, IF($N48>0,1/$N48,0),VDB(1,0,$N48,INT(EO$43-2),MIN($N48,INT(EO$43-2)+1),$DC48,IF($DD48="No",1,0))/ IF(DW48>INT($N48),$N48-INT($N48),1))* IF(EO$43=2,DW48, IF(INT(DW48)=INT(DV48),0,DW48-INT(DW48))))) -> 0 | EP48: =+IF(OR(DX48=DW48,EP$43=1),0, IF(AND(EP$43>1,DX48=$N48),1-SUM($EN48:EO48), IF($N48<=1, IF($N48>0,1/$N48,0), IF(EP$43=2,0,VDB(1,0,$N48,INT(EP$43-2-1),MIN($N48,INT(EP$43-2-1)+1),$DC48,IF($DD48="No",1,0))/ IF(DW48>=INT($N48),$N48-INT($N48),1)))* IF(EP$43=2,0, IF(INT(DX48)=INT(DW48),DX48-DW48,INT(DX48)-DW48))+ IF($N48<=1, IF($N48>0,1/$N48,0),VDB(1,0,$N48,INT(EP$43-2),MIN($N48,INT(EP$43-2)+1),$DC48,IF($DD48="No",1,0))/ IF(DX48>INT($N48),$N48-INT($N48),1))* IF(EP$43=2,DX48, IF(INT(DX48)=INT(DW48),0,DX48-INT(DX48))))) -> 0 | EQ48: =+IF(OR(DY48=DX48,EQ$43=1),0, IF(AND(EQ$43>1,DY48=$N48),1-SUM($EN48:EP48), IF($N48<=1, IF($N48>0,1/$N48,0), IF(EQ$43=2,0,VDB(1,0,$N48,INT(EQ$43-2-1),MIN($N48,INT(EQ$43-2-1)+1),$DC48,IF($DD48="No",1,0))/ IF(DX48>=INT($N48),$N48-INT($N48),1)))* IF(EQ$43=2,0, IF(INT(DY48)=INT(DX48),DY48-DX48,INT(DY48)-DX48))+ IF($N48<=1, IF($N48>0,1/$N48,0),VDB(1,0,$N48,INT(EQ$43-2),MIN($N48,INT(EQ$43-2)+1),$DC48,IF($DD48="No",1,0))/ IF(DY48>INT($N48),$N48-INT($N48),1))* IF(EQ$43=2,DY48, IF(INT(DY48)=INT(DX48),0,DY48-INT(DY48))))) -> 0 | ER48: =+IF(OR(DZ48=DY48,ER$43=1),0, IF(AND(ER$43>1,DZ48=$N48),1-SUM($EN48:EQ48), IF($N48<=1, IF($N48>0,1/$N48,0), IF(ER$43=2,0,VDB(1,0,$N48,INT(ER$43-2-1),MIN($N48,INT(ER$43-2-1)+1),$DC48,IF($DD48="No",1,0))/ IF(DY48>=INT($N48),$N48-INT($N48),1)))* IF(ER$43=2,0, IF(INT(DZ48)=INT(DY48),DZ48-DY48,INT(DZ48)-DY48))+ IF($N48<=1, IF($N48>0,1/$N48,0),VDB(1,0,$N48,INT(ER$43-2),MIN($N48,INT(ER$43-2)+1),$DC48,IF($DD48="No",1,0))/ IF(DZ48>INT($N48),$N48-INT($N48),1))* IF(ER$43=2,DZ48, IF(INT(DZ48)=INT(DY48),0,DZ48-INT(DZ48))))) -> 0 | ES48: =+IF(OR(EA48=DZ48,ES$43=1),0, IF(AND(ES$43>1,EA48=$N48),1-SUM($EN48:ER48), IF($N48<=1, IF($N48>0,1/$N48,0), IF(ES$43=2,0,VDB(1,0,$N48,INT(ES$43-2-1),MIN($N48,INT(ES$43-2-1)+1),$DC48,IF($DD48="No",1,0))/ IF(DZ48>=INT($N48),$N48-INT($N48),1)))* IF(ES$43=2,0, IF(INT(EA48)=INT(DZ48),EA48-DZ48,INT(EA48)-DZ48))+ IF($N48<=1, IF($N48>0,1/$N48,0),VDB(1,0,$N48,INT(ES$43-2),MIN($N48,INT(ES$43-2)+1),$DC48,IF($DD48="No",1,0))/ IF(EA48>INT($N48),$N48-INT($N48),1))* IF(ES$43=2,EA48, IF(INT(EA48)=INT(DZ48),0,EA48-INT(EA48))))) -> 0 | ET48: =+IF(OR(EB48=EA48,ET$43=1),0, IF(AND(ET$43>1,EB48=$N48),1-SUM($EN48:ES48), IF($N48<=1, IF($N48>0,1/$N48,0), IF(ET$43=2,0,VDB(1,0,$N48,INT(ET$43-2-1),MIN($N48,INT(ET$43-2-1)+1),$DC48,IF($DD48="No",1,0))/ IF(EA48>=INT($N48),$N48-INT($N48),1)))* IF(ET$43=2,0, IF(INT(EB48)=INT(EA48),EB48-EA48,INT(EB48)-EA48))+ IF($N48<=1, IF($N48>0,1/$N48,0),VDB(1,0,$N48,INT(ET$43-2),MIN($N48,INT(ET$43-2)+1),$DC48,IF($DD48="No",1,0))/ IF(EB48>INT($N48),$N48-INT($N48),1))* IF(ET$43=2,EB48, IF(INT(EB48)=INT(EA48),0,EB48-INT(EB48))))) -> 0 | EU48: =+IF(OR(EC48=EB48,EU$43=1),0, IF(AND(EU$43>1,EC48=$N48),1-SUM($EN48:ET48), IF($N48<=1, IF($N48>0,1/$N48,0), IF(EU$43=2,0,VDB(1,0,$N48,INT(EU$43-2-1),MIN($N48,INT(EU$43-2-1)+1),$DC48,IF($DD48="No",1,0))/ IF(EB48>=INT($N48),$N48-INT($N48),1)))* IF(EU$43=2,0, IF(INT(EC48)=INT(EB48),EC48-EB48,INT(EC48)-EB48))+ IF($N48<=1, IF($N48>0,1/$N48,0),VDB(1,0,$N48,INT(EU$43-2),MIN($N48,INT(EU$43-2)+1),$DC48,IF($DD48="No",1,0))/ IF(EC48>INT($N48),$N48-INT($N48),1))* IF(EU$43=2,EC48, IF(INT(EC48)=INT(EB48),0,EC48-INT(EC48))))) -> 0 | EV48: =+IF(OR(ED48=EC48,EV$43=1),0, IF(AND(EV$43>1,ED48=$N48),1-SUM($EN48:EU48), IF($N48<=1, IF($N48>0,1/$N48,0), IF(EV$43=2,0,VDB(1,0,$N48,INT(EV$43-2-1),MIN($N48,INT(EV$43-2-1)+1),$DC48,IF($DD48="No",1,0))/ IF(EC48>=INT($N48),$N48-INT($N48),1)))* IF(EV$43=2,0, IF(INT(ED48)=INT(EC48),ED48-EC48,INT(ED48)-EC48))+ IF($N48<=1, IF($N48>0,1/$N48,0),VDB(1,0,$N48,INT(EV$43-2),MIN($N48,INT(EV$43-2)+1),$DC48,IF($DD48="No",1,0))/ IF(ED48>INT($N48),$N48-INT($N48),1))* IF(EV$43=2,ED48, IF(INT(ED48)=INT(EC48),0,ED48-INT(ED48))))) -> 0 | EX48: 0 | EY48: 0 | EZ48: 0 | FA48: 0 | FB48: 0 | FC48: 0 | FD48: 0 | FE48: 0 | FG48: 0 | FH48: 0 | FI48: 0 | FJ48: 0 | FK48: 0 | FL48: 0 | FM48: 0 | FN48: 0
B49: 5 | C49: WTP Gas Plant Renewal | E49: Sewerage | F49: Renewals | G49: Treatment | H49: Top 15 Major Projects | J49: Straight line | K49: 2026/2027 | L49: 25 | M49: Straight line | Q49: 2.420137647 | R49: 2.406937054 | S49: 4.592673156 | T49: 13.21322483 | U49: 12.89095106 | V49: 2.096089603 | W49: 0 | X49: 0 | Y49: 0 | Z49: 0 | AX49: 2.420137647 | AY49: 2.406937054 | AZ49: 4.592673156 | BA49: 13.21322483 | BB49: 12.89095106 | BC49: 2.096089603 | BD49: 0 | BE49: 0 | BF49: 0 | BG49: 0 | BI49: 0 | BJ49: 0 | BK49: 0 | BL49: 0 | BM49: 0 | BN49: 0.752400267 | BO49: 1.504800534 | BP49: 1.504800534 | BQ49: 1.504800534 | BR49: 1.504800534 | BT49: =+IF($K49="Ongoing",AX49,IF(RIGHT($K49,2)=RIGHT(BT$42,2),SUM($AX49:AX49),0)+IF(RIGHT(BT$42,2)>RIGHT($K49,2),AX49,0)) -> 0 | BU49: =+IF($K49="Ongoing",AY49,IF(RIGHT($K49,2)=RIGHT(BU$42,2),SUM($AX49:AY49),0)+IF(RIGHT(BU$42,2)>RIGHT($K49,2),AY49,0)) -> 0 | BV49: =+IF($K49="Ongoing",AZ49,IF(RIGHT($K49,2)=RIGHT(BV$42,2),SUM($AX49:AZ49),0)+IF(RIGHT(BV$42,2)>RIGHT($K49,2),AZ49,0)) -> 0 | BW49: =+IF($K49="Ongoing",BA49,IF(RIGHT($K49,2)=RIGHT(BW$42,2),SUM($AX49:BA49),0)+IF(RIGHT(BW$42,2)>RIGHT($K49,2),BA49,0)) -> 0 | BX49: =+IF($K49="Ongoing",BB49,IF(RIGHT($K49,2)=RIGHT(BX$42,2),SUM($AX49:BB49),0)+IF(RIGHT(BX$42,2)>RIGHT($K49,2),BB49,0)) -> 0 | BY49: =+IF($K49="Ongoing",BC49,IF(RIGHT($K49,2)=RIGHT(BY$42,2),SUM($AX49:BC49),0)+IF(RIGHT(BY$42,2)>RIGHT($K49,2),BC49,0)) -> 37.62001335 | BZ49: =+IF($K49="Ongoing",BD49,IF(RIGHT($K49,2)=RIGHT(BZ$42,2),SUM($AX49:BD49),0)+IF(RIGHT(BZ$42,2)>RIGHT($K49,2),BD49,0)) -> 0 | CA49: =+IF($K49="Ongoing",BE49,IF(RIGHT($K49,2)=RIGHT(CA$42,2),SUM($AX49:BE49),0)+IF(RIGHT(CA$42,2)>RIGHT($K49,2),BE49,0)) -> 0 | CB49: =+IF($K49="Ongoing",BF49,IF(RIGHT($K49,2)=RIGHT(CB$42,2),SUM($AX49:BF49),0)+IF(RIGHT(CB$42,2)>RIGHT($K49,2),BF49,0)) -> 0 | CC49: =+IF($K49="Ongoing",BG49,IF(RIGHT($K49,2)=RIGHT(CC$42,2),SUM($AX49:BG49),0)+IF(RIGHT(CC$42,2)>RIGHT($K49,2),BG49,0)) -> 0 | CE49: =+Q49*KeyAssumptionsPriceControl_FO!AA$15 -> 2.461279987 | CF49: =+R49*KeyAssumptionsPriceControl_FO!AB$15 -> 2.489468518 | CG49: =+S49*KeyAssumptionsPriceControl_FO!AC$15 -> 4.830903899 | CH49: =+T49*KeyAssumptionsPriceControl_FO!AD$15 -> 14.13489662 | CI49: =+U49*KeyAssumptionsPriceControl_FO!AE$15 -> 14.02457548 | CJ49: =+V49*KeyAssumptionsPriceControl_FO!AF$15 -> 2.319185896 | CK49: =+W49*KeyAssumptionsPriceControl_FO!AG$15 -> 0 | CL49: =+X49*KeyAssumptionsPriceControl_FO!AH$15 -> 0 | CM49: =+Y49*KeyAssumptionsPriceControl_FO!AI$15 -> 0 | CN49: =+Z49*KeyAssumptionsPriceControl_FO!AJ$15 -> 0 | CP49: 0 | CQ49: 0 | CR49: 0 | CS49: 0 | CT49: 0 | CU49: 0 | CV49: 0 | CW49: 0 | CX49: 0 | CY49: 0 | DC49: must be > 0 | DD49: No | DE49: =+IF($K49="ongoing",CE49,IF(RIGHT($K49,2)=RIGHT(DE$42,2),SUM($CD49:CE49),0)+IF(RIGHT(DE$42,2)>RIGHT($K49,2),CE49,0)) -> 0 | DF49: =+IF($K49="ongoing",CF49,IF(RIGHT($K49,2)=RIGHT(DF$42,2),SUM($CD49:CF49),0)+IF(RIGHT(DF$42,2)>RIGHT($K49,2),CF49,0)) -> 0 | DG49: =+IF($K49="ongoing",CG49,IF(RIGHT($K49,2)=RIGHT(DG$42,2),SUM($CD49:CG49),0)+IF(RIGHT(DG$42,2)>RIGHT($K49,2),CG49,0)) -> 0 | DH49: =+IF($K49="ongoing",CH49,IF(RIGHT($K49,2)=RIGHT(DH$42,2),SUM($CD49:CH49),0)+IF(RIGHT(DH$42,2)>RIGHT($K49,2),CH49,0)) -> 0 | DI49: =+IF($K49="ongoing",CI49,IF(RIGHT($K49,2)=RIGHT(DI$42,2),SUM($CD49:CI49),0)+IF(RIGHT(DI$42,2)>RIGHT($K49,2),CI49,0)) -> 0 | DJ49: =+IF($K49="ongoing",CJ49,IF(RIGHT($K49,2)=RIGHT(DJ$42,2),SUM($CD49:CJ49),0)+IF(RIGHT(DJ$42,2)>RIGHT($K49,2),CJ49,0)) -> 0 | DK49: =+IF($K49="ongoing",CK49,IF(RIGHT($K49,2)=RIGHT(DK$42,2),SUM($CD49:CK49),0)+IF(RIGHT(DK$42,2)>RIGHT($K49,2),CK49,0)) -> 40.2603104 | DL49: =+IF($K49="ongoing",CN49,IF(RIGHT($K49,2)=RIGHT(DL$42,2),SUM($CD49:CN49),0)+IF(RIGHT(DL$42,2)>RIGHT($K49,2),CN49,0)) -> 0 | DN49: 0.5 | DO49: 1 | DP49: 1 | DQ49: 1 | DR49: 1 | DS49: 1 | DT49: 1 | DU49: 1 | DW49: 0 | DX49: 0.5 | DY49: 1 | DZ49: 1 | EA49: 1 | EB49: 1 | EC49: 1 | ED49: 1 | EF49: =+IF(DN49=DM49,0, IF(AND(EF$43>1,DN49=$N49),1-SUM($EE49:EE49), IF($N49<=1, IF($N49>0,1/$N49,0), IF(EF$43=1,0,VDB(1,0,$N49,INT(EF$43-1-1),MIN($N49,INT(EF$43-1-1)+1),$DC49,IF($DD49="No",1,0))/ IF(DM49>=INT($N49),$N49-INT($N49),1)))* IF(EF$43=1,0, IF(INT(DN49)=INT(DM49),DN49-DM49,INT(DN49)-DM49))+ IF($N49<=1, IF($N49>0,1/$N49,0),VDB(1,0,$N49,INT(EF$43-1),MIN($N49,INT(EF$43-1)+1),$DC49,IF($DD49="No",1,0))/ IF(DN49>INT($N49),$N49-INT($N49),1))* IF(EF$43=1,DN49, IF(INT(DN49)=INT(DM49),0,DN49-INT(DN49))))) -> 0 | EG49: =+IF(DO49=DN49,0, IF(AND(EG$43>1,DO49=$N49),1-SUM($EE49:EF49), IF($N49<=1, IF($N49>0,1/$N49,0), IF(EG$43=1,0,VDB(1,0,$N49,INT(EG$43-1-1),MIN($N49,INT(EG$43-1-1)+1),$DC49,IF($DD49="No",1,0))/ IF(DN49>=INT($N49),$N49-INT($N49),1)))* IF(EG$43=1,0, IF(INT(DO49)=INT(DN49),DO49-DN49,INT(DO49)-DN49))+ IF($N49<=1, IF($N49>0,1/$N49,0),VDB(1,0,$N49,INT(EG$43-1),MIN($N49,INT(EG$43-1)+1),$DC49,IF($DD49="No",1,0))/ IF(DO49>INT($N49),$N49-INT($N49),1))* IF(EG$43=1,DO49, IF(INT(DO49)=INT(DN49),0,DO49-INT(DO49))))) -> 0 | EH49: =+IF(DP49=DO49,0, IF(AND(EH$43>1,DP49=$N49),1-SUM($EE49:EG49), IF($N49<=1, IF($N49>0,1/$N49,0), IF(EH$43=1,0,VDB(1,0,$N49,INT(EH$43-1-1),MIN($N49,INT(EH$43-1-1)+1),$DC49,IF($DD49="No",1,0))/ IF(DO49>=INT($N49),$N49-INT($N49),1)))* IF(EH$43=1,0, IF(INT(DP49)=INT(DO49),DP49-DO49,INT(DP49)-DO49))+ IF($N49<=1, IF($N49>0,1/$N49,0),VDB(1,0,$N49,INT(EH$43-1),MIN($N49,INT(EH$43-1)+1),$DC49,IF($DD49="No",1,0))/ IF(DP49>INT($N49),$N49-INT($N49),1))* IF(EH$43=1,DP49, IF(INT(DP49)=INT(DO49),0,DP49-INT(DP49))))) -> 0 | EI49: =+IF(DQ49=DP49,0, IF(AND(EI$43>1,DQ49=$N49),1-SUM($EE49:EH49), IF($N49<=1, IF($N49>0,1/$N49,0), IF(EI$43=1,0,VDB(1,0,$N49,INT(EI$43-1-1),MIN($N49,INT(EI$43-1-1)+1),$DC49,IF($DD49="No",1,0))/ IF(DP49>=INT($N49),$N49-INT($N49),1)))* IF(EI$43=1,0, IF(INT(DQ49)=INT(DP49),DQ49-DP49,INT(DQ49)-DP49))+ IF($N49<=1, IF($N49>0,1/$N49,0),VDB(1,0,$N49,INT(EI$43-1),MIN($N49,INT(EI$43-1)+1),$DC49,IF($DD49="No",1,0))/ IF(DQ49>INT($N49),$N49-INT($N49),1))* IF(EI$43=1,DQ49, IF(INT(DQ49)=INT(DP49),0,DQ49-INT(DQ49))))) -> 0 | EJ49: =+IF(DR49=DQ49,0, IF(AND(EJ$43>1,DR49=$N49),1-SUM($EE49:EI49), IF($N49<=1, IF($N49>0,1/$N49,0), IF(EJ$43=1,0,VDB(1,0,$N49,INT(EJ$43-1-1),MIN($N49,INT(EJ$43-1-1)+1),$DC49,IF($DD49="No",1,0))/ IF(DQ49>=INT($N49),$N49-INT($N49),1)))* IF(EJ$43=1,0, IF(INT(DR49)=INT(DQ49),DR49-DQ49,INT(DR49)-DQ49))+ IF($N49<=1, IF($N49>0,1/$N49,0),VDB(1,0,$N49,INT(EJ$43-1),MIN($N49,INT(EJ$43-1)+1),$DC49,IF($DD49="No",1,0))/ IF(DR49>INT($N49),$N49-INT($N49),1))* IF(EJ$43=1,DR49, IF(INT(DR49)=INT(DQ49),0,DR49-INT(DR49))))) -> 0 | EK49: =+IF(DS49=DR49,0, IF(AND(EK$43>1,DS49=$N49),1-SUM($EE49:EJ49), IF($N49<=1, IF($N49>0,1/$N49,0), IF(EK$43=1,0,VDB(1,0,$N49,INT(EK$43-1-1),MIN($N49,INT(EK$43-1-1)+1),$DC49,IF($DD49="No",1,0))/ IF(DR49>=INT($N49),$N49-INT($N49),1)))* IF(EK$43=1,0, IF(INT(DS49)=INT(DR49),DS49-DR49,INT(DS49)-DR49))+ IF($N49<=1, IF($N49>0,1/$N49,0),VDB(1,0,$N49,INT(EK$43-1),MIN($N49,INT(EK$43-1)+1),$DC49,IF($DD49="No",1,0))/ IF(DS49>INT($N49),$N49-INT($N49),1))* IF(EK$43=1,DS49, IF(INT(DS49)=INT(DR49),0,DS49-INT(DS49))))) -> 0 | EL49: =+IF(DT49=DS49,0, IF(AND(EL$43>1,DT49=$N49),1-SUM($EE49:EK49), IF($N49<=1, IF($N49>0,1/$N49,0), IF(EL$43=1,0,VDB(1,0,$N49,INT(EL$43-1-1),MIN($N49,INT(EL$43-1-1)+1),$DC49,IF($DD49="No",1,0))/ IF(DS49>=INT($N49),$N49-INT($N49),1)))* IF(EL$43=1,0, IF(INT(DT49)=INT(DS49),DT49-DS49,INT(DT49)-DS49))+ IF($N49<=1, IF($N49>0,1/$N49,0),VDB(1,0,$N49,INT(EL$43-1),MIN($N49,INT(EL$43-1)+1),$DC49,IF($DD49="No",1,0))/ IF(DT49>INT($N49),$N49-INT($N49),1))* IF(EL$43=1,DT49, IF(INT(DT49)=INT(DS49),0,DT49-INT(DT49))))) -> 0 | EM49: =+IF(DU49=DT49,0, IF(AND(EM$43>1,DU49=$N49),1-SUM($EE49:EL49), IF($N49<=1, IF($N49>0,1/$N49,0), IF(EM$43=1,0,VDB(1,0,$N49,INT(EM$43-1-1),MIN($N49,INT(EM$43-1-1)+1),$DC49,IF($DD49="No",1,0))/ IF(DT49>=INT($N49),$N49-INT($N49),1)))* IF(EM$43=1,0, IF(INT(DU49)=INT(DT49),DU49-DT49,INT(DU49)-DT49))+ IF($N49<=1, IF($N49>0,1/$N49,0),VDB(1,0,$N49,INT(EM$43-1),MIN($N49,INT(EM$43-1)+1),$DC49,IF($DD49="No",1,0))/ IF(DU49>INT($N49),$N49-INT($N49),1))* IF(EM$43=1,DU49, IF(INT(DU49)=INT(DT49),0,DU49-INT(DU49))))) -> 0 | EO49: =+IF(OR(DW49=DV49,EO$43=1),0, IF(AND(EO$43>1,DW49=$N49),1-SUM($EN49:EN49), IF($N49<=1, IF($N49>0,1/$N49,0), IF(EO$43=2,0,VDB(1,0,$N49,INT(EO$43-2-1),MIN($N49,INT(EO$43-2-1)+1),$DC49,IF($DD49="No",1,0))/ IF(DV49>=INT($N49),$N49-INT($N49),1)))* IF(EO$43=2,0, IF(INT(DW49)=INT(DV49),DW49-DV49,INT(DW49)-DV49))+ IF($N49<=1, IF($N49>0,1/$N49,0),VDB(1,0,$N49,INT(EO$43-2),MIN($N49,INT(EO$43-2)+1),$DC49,IF($DD49="No",1,0))/ IF(DW49>INT($N49),$N49-INT($N49),1))* IF(EO$43=2,DW49, IF(INT(DW49)=INT(DV49),0,DW49-INT(DW49))))) -> 0 | EP49: =+IF(OR(DX49=DW49,EP$43=1),0, IF(AND(EP$43>1,DX49=$N49),1-SUM($EN49:EO49), IF($N49<=1, IF($N49>0,1/$N49,0), IF(EP$43=2,0,VDB(1,0,$N49,INT(EP$43-2-1),MIN($N49,INT(EP$43-2-1)+1),$DC49,IF($DD49="No",1,0))/ IF(DW49>=INT($N49),$N49-INT($N49),1)))* IF(EP$43=2,0, IF(INT(DX49)=INT(DW49),DX49-DW49,INT(DX49)-DW49))+ IF($N49<=1, IF($N49>0,1/$N49,0),VDB(1,0,$N49,INT(EP$43-2),MIN($N49,INT(EP$43-2)+1),$DC49,IF($DD49="No",1,0))/ IF(DX49>INT($N49),$N49-INT($N49),1))* IF(EP$43=2,DX49, IF(INT(DX49)=INT(DW49),0,DX49-INT(DX49))))) -> 0 | EQ49: =+IF(OR(DY49=DX49,EQ$43=1),0, IF(AND(EQ$43>1,DY49=$N49),1-SUM($EN49:EP49), IF($N49<=1, IF($N49>0,1/$N49,0), IF(EQ$43=2,0,VDB(1,0,$N49,INT(EQ$43-2-1),MIN($N49,INT(EQ$43-2-1)+1),$DC49,IF($DD49="No",1,0))/ IF(DX49>=INT($N49),$N49-INT($N49),1)))* IF(EQ$43=2,0, IF(INT(DY49)=INT(DX49),DY49-DX49,INT(DY49)-DX49))+ IF($N49<=1, IF($N49>0,1/$N49,0),VDB(1,0,$N49,INT(EQ$43-2),MIN($N49,INT(EQ$43-2)+1),$DC49,IF($DD49="No",1,0))/ IF(DY49>INT($N49),$N49-INT($N49),1))* IF(EQ$43=2,DY49, IF(INT(DY49)=INT(DX49),0,DY49-INT(DY49))))) -> 0 | ER49: =+IF(OR(DZ49=DY49,ER$43=1),0, IF(AND(ER$43>1,DZ49=$N49),1-SUM($EN49:EQ49), IF($N49<=1, IF($N49>0,1/$N49,0), IF(ER$43=2,0,VDB(1,0,$N49,INT(ER$43-2-1),MIN($N49,INT(ER$43-2-1)+1),$DC49,IF($DD49="No",1,0))/ IF(DY49>=INT($N49),$N49-INT($N49),1)))* IF(ER$43=2,0, IF(INT(DZ49)=INT(DY49),DZ49-DY49,INT(DZ49)-DY49))+ IF($N49<=1, IF($N49>0,1/$N49,0),VDB(1,0,$N49,INT(ER$43-2),MIN($N49,INT(ER$43-2)+1),$DC49,IF($DD49="No",1,0))/ IF(DZ49>INT($N49),$N49-INT($N49),1))* IF(ER$43=2,DZ49, IF(INT(DZ49)=INT(DY49),0,DZ49-INT(DZ49))))) -> 0 | ES49: =+IF(OR(EA49=DZ49,ES$43=1),0, IF(AND(ES$43>1,EA49=$N49),1-SUM($EN49:ER49), IF($N49<=1, IF($N49>0,1/$N49,0), IF(ES$43=2,0,VDB(1,0,$N49,INT(ES$43-2-1),MIN($N49,INT(ES$43-2-1)+1),$DC49,IF($DD49="No",1,0))/ IF(DZ49>=INT($N49),$N49-INT($N49),1)))* IF(ES$43=2,0, IF(INT(EA49)=INT(DZ49),EA49-DZ49,INT(EA49)-DZ49))+ IF($N49<=1, IF($N49>0,1/$N49,0),VDB(1,0,$N49,INT(ES$43-2),MIN($N49,INT(ES$43-2)+1),$DC49,IF($DD49="No",1,0))/ IF(EA49>INT($N49),$N49-INT($N49),1))* IF(ES$43=2,EA49, IF(INT(EA49)=INT(DZ49),0,EA49-INT(EA49))))) -> 0 | ET49: =+IF(OR(EB49=EA49,ET$43=1),0, IF(AND(ET$43>1,EB49=$N49),1-SUM($EN49:ES49), IF($N49<=1, IF($N49>0,1/$N49,0), IF(ET$43=2,0,VDB(1,0,$N49,INT(ET$43-2-1),MIN($N49,INT(ET$43-2-1)+1),$DC49,IF($DD49="No",1,0))/ IF(EA49>=INT($N49),$N49-INT($N49),1)))* IF(ET$43=2,0, IF(INT(EB49)=INT(EA49),EB49-EA49,INT(EB49)-EA49))+ IF($N49<=1, IF($N49>0,1/$N49,0),VDB(1,0,$N49,INT(ET$43-2),MIN($N49,INT(ET$43-2)+1),$DC49,IF($DD49="No",1,0))/ IF(EB49>INT($N49),$N49-INT($N49),1))* IF(ET$43=2,EB49, IF(INT(EB49)=INT(EA49),0,EB49-INT(EB49))))) -> 0 | EU49: =+IF(OR(EC49=EB49,EU$43=1),0, IF(AND(EU$43>1,EC49=$N49),1-SUM($EN49:ET49), IF($N49<=1, IF($N49>0,1/$N49,0), IF(EU$43=2,0,VDB(1,0,$N49,INT(EU$43-2-1),MIN($N49,INT(EU$43-2-1)+1),$DC49,IF($DD49="No",1,0))/ IF(EB49>=INT($N49),$N49-INT($N49),1)))* IF(EU$43=2,0, IF(INT(EC49)=INT(EB49),EC49-EB49,INT(EC49)-EB49))+ IF($N49<=1, IF($N49>0,1/$N49,0),VDB(1,0,$N49,INT(EU$43-2),MIN($N49,INT(EU$43-2)+1),$DC49,IF($DD49="No",1,0))/ IF(EC49>INT($N49),$N49-INT($N49),1))* IF(EU$43=2,EC49, IF(INT(EC49)=INT(EB49),0,EC49-INT(EC49))))) -> 0 | EV49: =+IF(OR(ED49=EC49,EV$43=1),0, IF(AND(EV$43>1,ED49=$N49),1-SUM($EN49:EU49), IF($N49<=1, IF($N49>0,1/$N49,0), IF(EV$43=2,0,VDB(1,0,$N49,INT(EV$43-2-1),MIN($N49,INT(EV$43-2-1)+1),$DC49,IF($DD49="No",1,0))/ IF(EC49>=INT($N49),$N49-INT($N49),1)))* IF(EV$43=2,0, IF(INT(ED49)=INT(EC49),ED49-EC49,INT(ED49)-EC49))+ IF($N49<=1, IF($N49>0,1/$N49,0),VDB(1,0,$N49,INT(EV$43-2),MIN($N49,INT(EV$43-2)+1),$DC49,IF($DD49="No",1,0))/ IF(ED49>INT($N49),$N49-INT($N49),1))* IF(EV$43=2,ED49, IF(INT(ED49)=INT(EC49),0,ED49-INT(ED49))))) -> 0 | EX49: 0 | EY49: 0 | EZ49: 0 | FA49: 0 | FB49: 0 | FC49: 0 | FD49: 0 | FE49: 0 | FG49: 0 | FH49: 0 | FI49: 0 | FJ49: 0 | FK49: 0 | FL49: 0 | FM49: 0 | FN49: 0
B50: 6 | C50: Yan Yean to Bald Hill Pipeline | E50: Water | F50: Growth | G50: Pipelines/Network | H50: Top 15 Major Projects | J50: Straight line | K50: 2023/2024 | L50: 150 | M50: Straight line | Q50: 38.15210731 | R50: 52.6698428 | S50: 4.83441714 | T50: 0 | U50: 0 | V50: 0 | W50: 0 | X50: 0 | Y50: 0 | Z50: 0 | AX50: 38.15210731 | AY50: 52.6698428 | AZ50: 4.83441714 | BA50: 0 | BB50: 0 | BC50: 0 | BD50: 0 | BE50: 0 | BF50: 0 | BG50: 0 | BI50: 0 | BJ50: 0 | BK50: 0.3188545575 | BL50: 0.637709115 | BM50: 0.637709115 | BN50: 0.637709115 | BO50: 0.637709115 | BP50: 0.637709115 | BQ50: 0.637709115 | BR50: 0.637709115 | BT50: =+IF($K50="Ongoing",AX50,IF(RIGHT($K50,2)=RIGHT(BT$42,2),SUM($AX50:AX50),0)+IF(RIGHT(BT$42,2)>RIGHT($K50,2),AX50,0)) -> 0 | BU50: =+IF($K50="Ongoing",AY50,IF(RIGHT($K50,2)=RIGHT(BU$42,2),SUM($AX50:AY50),0)+IF(RIGHT(BU$42,2)>RIGHT($K50,2),AY50,0)) -> 0 | BV50: =+IF($K50="Ongoing",AZ50,IF(RIGHT($K50,2)=RIGHT(BV$42,2),SUM($AX50:AZ50),0)+IF(RIGHT(BV$42,2)>RIGHT($K50,2),AZ50,0)) -> 95.65636726 | BW50: =+IF($K50="Ongoing",BA50,IF(RIGHT($K50,2)=RIGHT(BW$42,2),SUM($AX50:BA50),0)+IF(RIGHT(BW$42,2)>RIGHT($K50,2),BA50,0)) -> 0 | BX50: =+IF($K50="Ongoing",BB50,IF(RIGHT($K50,2)=RIGHT(BX$42,2),SUM($AX50:BB50),0)+IF(RIGHT(BX$42,2)>RIGHT($K50,2),BB50,0)) -> 0 | BY50: =+IF($K50="Ongoing",BC50,IF(RIGHT($K50,2)=RIGHT(BY$42,2),SUM($AX50:BC50),0)+IF(RIGHT(BY$42,2)>RIGHT($K50,2),BC50,0)) -> 0 | BZ50: =+IF($K50="Ongoing",BD50,IF(RIGHT($K50,2)=RIGHT(BZ$42,2),SUM($AX50:BD50),0)+IF(RIGHT(BZ$42,2)>RIGHT($K50,2),BD50,0)) -> 0 | CA50: =+IF($K50="Ongoing",BE50,IF(RIGHT($K50,2)=RIGHT(CA$42,2),SUM($AX50:BE50),0)+IF(RIGHT(CA$42,2)>RIGHT($K50,2),BE50,0)) -> 0 | CB50: =+IF($K50="Ongoing",BF50,IF(RIGHT($K50,2)=RIGHT(CB$42,2),SUM($AX50:BF50),0)+IF(RIGHT(CB$42,2)>RIGHT($K50,2),BF50,0)) -> 0 | CC50: =+IF($K50="Ongoing",BG50,IF(RIGHT($K50,2)=RIGHT(CC$42,2),SUM($AX50:BG50),0)+IF(RIGHT(CC$42,2)>RIGHT($K50,2),BG50,0)) -> 0 | CE50: =+Q50*KeyAssumptionsPriceControl_FO!AA$15 -> 38.80069314 | CF50: =+R50*KeyAssumptionsPriceControl_FO!AB$15 -> 54.47583904 | CG50: =+S50*KeyAssumptionsPriceControl_FO!AC$15 -> 5.085187605 | CH50: =+T50*KeyAssumptionsPriceControl_FO!AD$15 -> 0 | CI50: =+U50*KeyAssumptionsPriceControl_FO!AE$15 -> 0 | CJ50: =+V50*KeyAssumptionsPriceControl_FO!AF$15 -> 0 | CK50: =+W50*KeyAssumptionsPriceControl_FO!AG$15 -> 0 | CL50: =+X50*KeyAssumptionsPriceControl_FO!AH$15 -> 0 | CM50: =+Y50*KeyAssumptionsPriceControl_FO!AI$15 -> 0 | CN50: =+Z50*KeyAssumptionsPriceControl_FO!AJ$15 -> 0 | CP50: 0 | CQ50: 0 | CR50: 0 | CS50: 0 | CT50: 0 | CU50: 0 | CV50: 0 | CW50: 0 | CX50: 0 | CY50: 0 | DC50: must be > 0 | DD50: No | DE50: =+IF($K50="ongoing",CE50,IF(RIGHT($K50,2)=RIGHT(DE$42,2),SUM($CD50:CE50),0)+IF(RIGHT(DE$42,2)>RIGHT($K50,2),CE50,0)) -> 0 | DF50: =+IF($K50="ongoing",CF50,IF(RIGHT($K50,2)=RIGHT(DF$42,2),SUM($CD50:CF50),0)+IF(RIGHT(DF$42,2)>RIGHT($K50,2),CF50,0)) -> 0 | DG50: =+IF($K50="ongoing",CG50,IF(RIGHT($K50,2)=RIGHT(DG$42,2),SUM($CD50:CG50),0)+IF(RIGHT(DG$42,2)>RIGHT($K50,2),CG50,0)) -> 0 | DH50: =+IF($K50="ongoing",CH50,IF(RIGHT($K50,2)=RIGHT(DH$42,2),SUM($CD50:CH50),0)+IF(RIGHT(DH$42,2)>RIGHT($K50,2),CH50,0)) -> 98.36171978 | DI50: =+IF($K50="ongoing",CI50,IF(RIGHT($K50,2)=RIGHT(DI$42,2),SUM($CD50:CI50),0)+IF(RIGHT(DI$42,2)>RIGHT($K50,2),CI50,0)) -> 0 | DJ50: =+IF($K50="ongoing",CJ50,IF(RIGHT($K50,2)=RIGHT(DJ$42,2),SUM($CD50:CJ50),0)+IF(RIGHT(DJ$42,2)>RIGHT($K50,2),CJ50,0)) -> 0 | DK50: =+IF($K50="ongoing",CK50,IF(RIGHT($K50,2)=RIGHT(DK$42,2),SUM($CD50:CK50),0)+IF(RIGHT(DK$42,2)>RIGHT($K50,2),CK50,0)) -> 0 | DL50: =+IF($K50="ongoing",CN50,IF(RIGHT($K50,2)=RIGHT(DL$42,2),SUM($CD50:CN50),0)+IF(RIGHT(DL$42,2)>RIGHT($K50,2),CN50,0)) -> 0 | DN50: 0.5 | DO50: 1 | DP50: 1 | DQ50: 1 | DR50: 1 | DS50: 1 | DT50: 1 | DU50: 1 | DW50: 0 | DX50: 0.5 | DY50: 1 | DZ50: 1 | EA50: 1 | EB50: 1 | EC50: 1 | ED50: 1 | EF50: =+IF(DN50=DM50,0, IF(AND(EF$43>1,DN50=$N50),1-SUM($EE50:EE50), IF($N50<=1, IF($N50>0,1/$N50,0), IF(EF$43=1,0,VDB(1,0,$N50,INT(EF$43-1-1),MIN($N50,INT(EF$43-1-1)+1),$DC50,IF($DD50="No",1,0))/ IF(DM50>=INT($N50),$N50-INT($N50),1)))* IF(EF$43=1,0, IF(INT(DN50)=INT(DM50),DN50-DM50,INT(DN50)-DM50))+ IF($N50<=1, IF($N50>0,1/$N50,0),VDB(1,0,$N50,INT(EF$43-1),MIN($N50,INT(EF$43-1)+1),$DC50,IF($DD50="No",1,0))/ IF(DN50>INT($N50),$N50-INT($N50),1))* IF(EF$43=1,DN50, IF(INT(DN50)=INT(DM50),0,DN50-INT(DN50))))) -> 0 | EG50: =+IF(DO50=DN50,0, IF(AND(EG$43>1,DO50=$N50),1-SUM($EE50:EF50), IF($N50<=1, IF($N50>0,1/$N50,0), IF(EG$43=1,0,VDB(1,0,$N50,INT(EG$43-1-1),MIN($N50,INT(EG$43-1-1)+1),$DC50,IF($DD50="No",1,0))/ IF(DN50>=INT($N50),$N50-INT($N50),1)))* IF(EG$43=1,0, IF(INT(DO50)=INT(DN50),DO50-DN50,INT(DO50)-DN50))+ IF($N50<=1, IF($N50>0,1/$N50,0),VDB(1,0,$N50,INT(EG$43-1),MIN($N50,INT(EG$43-1)+1),$DC50,IF($DD50="No",1,0))/ IF(DO50>INT($N50),$N50-INT($N50),1))* IF(EG$43=1,DO50, IF(INT(DO50)=INT(DN50),0,DO50-INT(DO50))))) -> 0 | EH50: =+IF(DP50=DO50,0, IF(AND(EH$43>1,DP50=$N50),1-SUM($EE50:EG50), IF($N50<=1, IF($N50>0,1/$N50,0), IF(EH$43=1,0,VDB(1,0,$N50,INT(EH$43-1-1),MIN($N50,INT(EH$43-1-1)+1),$DC50,IF($DD50="No",1,0))/ IF(DO50>=INT($N50),$N50-INT($N50),1)))* IF(EH$43=1,0, IF(INT(DP50)=INT(DO50),DP50-DO50,INT(DP50)-DO50))+ IF($N50<=1, IF($N50>0,1/$N50,0),VDB(1,0,$N50,INT(EH$43-1),MIN($N50,INT(EH$43-1)+1),$DC50,IF($DD50="No",1,0))/ IF(DP50>INT($N50),$N50-INT($N50),1))* IF(EH$43=1,DP50, IF(INT(DP50)=INT(DO50),0,DP50-INT(DP50))))) -> 0 | EI50: =+IF(DQ50=DP50,0, IF(AND(EI$43>1,DQ50=$N50),1-SUM($EE50:EH50), IF($N50<=1, IF($N50>0,1/$N50,0), IF(EI$43=1,0,VDB(1,0,$N50,INT(EI$43-1-1),MIN($N50,INT(EI$43-1-1)+1),$DC50,IF($DD50="No",1,0))/ IF(DP50>=INT($N50),$N50-INT($N50),1)))* IF(EI$43=1,0, IF(INT(DQ50)=INT(DP50),DQ50-DP50,INT(DQ50)-DP50))+ IF($N50<=1, IF($N50>0,1/$N50,0),VDB(1,0,$N50,INT(EI$43-1),MIN($N50,INT(EI$43-1)+1),$DC50,IF($DD50="No",1,0))/ IF(DQ50>INT($N50),$N50-INT($N50),1))* IF(EI$43=1,DQ50, IF(INT(DQ50)=INT(DP50),0,DQ50-INT(DQ50))))) -> 0 | EJ50: =+IF(DR50=DQ50,0, IF(AND(EJ$43>1,DR50=$N50),1-SUM($EE50:EI50), IF($N50<=1, IF($N50>0,1/$N50,0), IF(EJ$43=1,0,VDB(1,0,$N50,INT(EJ$43-1-1),MIN($N50,INT(EJ$43-1-1)+1),$DC50,IF($DD50="No",1,0))/ IF(DQ50>=INT($N50),$N50-INT($N50),1)))* IF(EJ$43=1,0, IF(INT(DR50)=INT(DQ50),DR50-DQ50,INT(DR50)-DQ50))+ IF($N50<=1, IF($N50>0,1/$N50,0),VDB(1,0,$N50,INT(EJ$43-1),MIN($N50,INT(EJ$43-1)+1),$DC50,IF($DD50="No",1,0))/ IF(DR50>INT($N50),$N50-INT($N50),1))* IF(EJ$43=1,DR50, IF(INT(DR50)=INT(DQ50),0,DR50-INT(DR50))))) -> 0 | EK50: =+IF(DS50=DR50,0, IF(AND(EK$43>1,DS50=$N50),1-SUM($EE50:EJ50), IF($N50<=1, IF($N50>0,1/$N50,0), IF(EK$43=1,0,VDB(1,0,$N50,INT(EK$43-1-1),MIN($N50,INT(EK$43-1-1)+1),$DC50,IF($DD50="No",1,0))/ IF(DR50>=INT($N50),$N50-INT($N50),1)))* IF(EK$43=1,0, IF(INT(DS50)=INT(DR50),DS50-DR50,INT(DS50)-DR50))+ IF($N50<=1, IF($N50>0,1/$N50,0),VDB(1,0,$N50,INT(EK$43-1),MIN($N50,INT(EK$43-1)+1),$DC50,IF($DD50="No",1,0))/ IF(DS50>INT($N50),$N50-INT($N50),1))* IF(EK$43=1,DS50, IF(INT(DS50)=INT(DR50),0,DS50-INT(DS50))))) -> 0 | EL50: =+IF(DT50=DS50,0, IF(AND(EL$43>1,DT50=$N50),1-SUM($EE50:EK50), IF($N50<=1, IF($N50>0,1/$N50,0), IF(EL$43=1,0,VDB(1,0,$N50,INT(EL$43-1-1),MIN($N50,INT(EL$43-1-1)+1),$DC50,IF($DD50="No",1,0))/ IF(DS50>=INT($N50),$N50-INT($N50),1)))* IF(EL$43=1,0, IF(INT(DT50)=INT(DS50),DT50-DS50,INT(DT50)-DS50))+ IF($N50<=1, IF($N50>0,1/$N50,0),VDB(1,0,$N50,INT(EL$43-1),MIN($N50,INT(EL$43-1)+1),$DC50,IF($DD50="No",1,0))/ IF(DT50>INT($N50),$N50-INT($N50),1))* IF(EL$43=1,DT50, IF(INT(DT50)=INT(DS50),0,DT50-INT(DT50))))) -> 0 | EM50: =+IF(DU50=DT50,0, IF(AND(EM$43>1,DU50=$N50),1-SUM($EE50:EL50), IF($N50<=1, IF($N50>0,1/$N50,0), IF(EM$43=1,0,VDB(1,0,$N50,INT(EM$43-1-1),MIN($N50,INT(EM$43-1-1)+1),$DC50,IF($DD50="No",1,0))/ IF(DT50>=INT($N50),$N50-INT($N50),1)))* IF(EM$43=1,0, IF(INT(DU50)=INT(DT50),DU50-DT50,INT(DU50)-DT50))+ IF($N50<=1, IF($N50>0,1/$N50,0),VDB(1,0,$N50,INT(EM$43-1),MIN($N50,INT(EM$43-1)+1),$DC50,IF($DD50="No",1,0))/ IF(DU50>INT($N50),$N50-INT($N50),1))* IF(EM$43=1,DU50, IF(INT(DU50)=INT(DT50),0,DU50-INT(DU50))))) -> 0 | EO50: =+IF(OR(DW50=DV50,EO$43=1),0, IF(AND(EO$43>1,DW50=$N50),1-SUM($EN50:EN50), IF($N50<=1, IF($N50>0,1/$N50,0), IF(EO$43=2,0,VDB(1,0,$N50,INT(EO$43-2-1),MIN($N50,INT(EO$43-2-1)+1),$DC50,IF($DD50="No",1,0))/ IF(DV50>=INT($N50),$N50-INT($N50),1)))* IF(EO$43=2,0, IF(INT(DW50)=INT(DV50),DW50-DV50,INT(DW50)-DV50))+ IF($N50<=1, IF($N50>0,1/$N50,0),VDB(1,0,$N50,INT(EO$43-2),MIN($N50,INT(EO$43-2)+1),$DC50,IF($DD50="No",1,0))/ IF(DW50>INT($N50),$N50-INT($N50),1))* IF(EO$43=2,DW50, IF(INT(DW50)=INT(DV50),0,DW50-INT(DW50))))) -> 0 | EP50: =+IF(OR(DX50=DW50,EP$43=1),0, IF(AND(EP$43>1,DX50=$N50),1-SUM($EN50:EO50), IF($N50<=1, IF($N50>0,1/$N50,0), IF(EP$43=2,0,VDB(1,0,$N50,INT(EP$43-2-1),MIN($N50,INT(EP$43-2-1)+1),$DC50,IF($DD50="No",1,0))/ IF(DW50>=INT($N50),$N50-INT($N50),1)))* IF(EP$43=2,0, IF(INT(DX50)=INT(DW50),DX50-DW50,INT(DX50)-DW50))+ IF($N50<=1, IF($N50>0,1/$N50,0),VDB(1,0,$N50,INT(EP$43-2),MIN($N50,INT(EP$43-2)+1),$DC50,IF($DD50="No",1,0))/ IF(DX50>INT($N50),$N50-INT($N50),1))* IF(EP$43=2,DX50, IF(INT(DX50)=INT(DW50),0,DX50-INT(DX50))))) -> 0 | EQ50: =+IF(OR(DY50=DX50,EQ$43=1),0, IF(AND(EQ$43>1,DY50=$N50),1-SUM($EN50:EP50), IF($N50<=1, IF($N50>0,1/$N50,0), IF(EQ$43=2,0,VDB(1,0,$N50,INT(EQ$43-2-1),MIN($N50,INT(EQ$43-2-1)+1),$DC50,IF($DD50="No",1,0))/ IF(DX50>=INT($N50),$N50-INT($N50),1)))* IF(EQ$43=2,0, IF(INT(DY50)=INT(DX50),DY50-DX50,INT(DY50)-DX50))+ IF($N50<=1, IF($N50>0,1/$N50,0),VDB(1,0,$N50,INT(EQ$43-2),MIN($N50,INT(EQ$43-2)+1),$DC50,IF($DD50="No",1,0))/ IF(DY50>INT($N50),$N50-INT($N50),1))* IF(EQ$43=2,DY50, IF(INT(DY50)=INT(DX50),0,DY50-INT(DY50))))) -> 0 | ER50: =+IF(OR(DZ50=DY50,ER$43=1),0, IF(AND(ER$43>1,DZ50=$N50),1-SUM($EN50:EQ50), IF($N50<=1, IF($N50>0,1/$N50,0), IF(ER$43=2,0,VDB(1,0,$N50,INT(ER$43-2-1),MIN($N50,INT(ER$43-2-1)+1),$DC50,IF($DD50="No",1,0))/ IF(DY50>=INT($N50),$N50-INT($N50),1)))* IF(ER$43=2,0, IF(INT(DZ50)=INT(DY50),DZ50-DY50,INT(DZ50)-DY50))+ IF($N50<=1, IF($N50>0,1/$N50,0),VDB(1,0,$N50,INT(ER$43-2),MIN($N50,INT(ER$43-2)+1),$DC50,IF($DD50="No",1,0))/ IF(DZ50>INT($N50),$N50-INT($N50),1))* IF(ER$43=2,DZ50, IF(INT(DZ50)=INT(DY50),0,DZ50-INT(DZ50))))) -> 0 | ES50: =+IF(OR(EA50=DZ50,ES$43=1),0, IF(AND(ES$43>1,EA50=$N50),1-SUM($EN50:ER50), IF($N50<=1, IF($N50>0,1/$N50,0), IF(ES$43=2,0,VDB(1,0,$N50,INT(ES$43-2-1),MIN($N50,INT(ES$43-2-1)+1),$DC50,IF($DD50="No",1,0))/ IF(DZ50>=INT($N50),$N50-INT($N50),1)))* IF(ES$43=2,0, IF(INT(EA50)=INT(DZ50),EA50-DZ50,INT(EA50)-DZ50))+ IF($N50<=1, IF($N50>0,1/$N50,0),VDB(1,0,$N50,INT(ES$43-2),MIN($N50,INT(ES$43-2)+1),$DC50,IF($DD50="No",1,0))/ IF(EA50>INT($N50),$N50-INT($N50),1))* IF(ES$43=2,EA50, IF(INT(EA50)=INT(DZ50),0,EA50-INT(EA50))))) -> 0 | ET50: =+IF(OR(EB50=EA50,ET$43=1),0, IF(AND(ET$43>1,EB50=$N50),1-SUM($EN50:ES50), IF($N50<=1, IF($N50>0,1/$N50,0), IF(ET$43=2,0,VDB(1,0,$N50,INT(ET$43-2-1),MIN($N50,INT(ET$43-2-1)+1),$DC50,IF($DD50="No",1,0))/ IF(EA50>=INT($N50),$N50-INT($N50),1)))* IF(ET$43=2,0, IF(INT(EB50)=INT(EA50),EB50-EA50,INT(EB50)-EA50))+ IF($N50<=1, IF($N50>0,1/$N50,0),VDB(1,0,$N50,INT(ET$43-2),MIN($N50,INT(ET$43-2)+1),$DC50,IF($DD50="No",1,0))/ IF(EB50>INT($N50),$N50-INT($N50),1))* IF(ET$43=2,EB50, IF(INT(EB50)=INT(EA50),0,EB50-INT(EB50))))) -> 0 | EU50: =+IF(OR(EC50=EB50,EU$43=1),0, IF(AND(EU$43>1,EC50=$N50),1-SUM($EN50:ET50), IF($N50<=1, IF($N50>0,1/$N50,0), IF(EU$43=2,0,VDB(1,0,$N50,INT(EU$43-2-1),MIN($N50,INT(EU$43-2-1)+1),$DC50,IF($DD50="No",1,0))/ IF(EB50>=INT($N50),$N50-INT($N50),1)))* IF(EU$43=2,0, IF(INT(EC50)=INT(EB50),EC50-EB50,INT(EC50)-EB50))+ IF($N50<=1, IF($N50>0,1/$N50,0),VDB(1,0,$N50,INT(EU$43-2),MIN($N50,INT(EU$43-2)+1),$DC50,IF($DD50="No",1,0))/ IF(EC50>INT($N50),$N50-INT($N50),1))* IF(EU$43=2,EC50, IF(INT(EC50)=INT(EB50),0,EC50-INT(EC50))))) -> 0 | EV50: =+IF(OR(ED50=EC50,EV$43=1),0, IF(AND(EV$43>1,ED50=$N50),1-SUM($EN50:EU50), IF($N50<=1, IF($N50>0,1/$N50,0), IF(EV$43=2,0,VDB(1,0,$N50,INT(EV$43-2-1),MIN($N50,INT(EV$43-2-1)+1),$DC50,IF($DD50="No",1,0))/ IF(EC50>=INT($N50),$N50-INT($N50),1)))* IF(EV$43=2,0, IF(INT(ED50)=INT(EC50),ED50-EC50,INT(ED50)-EC50))+ IF($N50<=1, IF($N50>0,1/$N50,0),VDB(1,0,$N50,INT(EV$43-2),MIN($N50,INT(EV$43-2)+1),$DC50,IF($DD50="No",1,0))/ IF(ED50>INT($N50),$N50-INT($N50),1))* IF(EV$43=2,ED50, IF(INT(ED50)=INT(EC50),0,ED50-INT(ED50))))) -> 0 | EX50: 0 | EY50: 0 | EZ50: 0 | FA50: 0 | FB50: 0 | FC50: 0 | FD50: 0 | FE50: 0 | FG50: 0 | FH50: 0 | FI50: 0 | FJ50: 0 | FK50: 0 | FL50: 0 | FM50: 0 | FN50: 0
B51: 7 | C51: Maroondah Res Outlet and Aqueduct Stage 3A | E51: Water | F51: Renewals | G51: Headworks | H51: Top 15 Major Projects | J51: Straight line | K51: 2027/2028 | L51: 125 | M51: Straight line | Q51: 0.6529411765 | R51: 0.689390709 | S51: 2.544564571 | T51: 21.35068581 | U51: 32.94326497 | V51: 19.23738658 | W51: 2.875812691 | X51: 0 | Y51: 0 | Z51: 0 | AX51: 0.6529411765 | AY51: 0.689390709 | AZ51: 2.544564571 | BA51: 21.35068581 | BB51: 32.94326497 | BC51: 19.23738658 | BD51: 2.875812691 | BE51: 0 | BF51: 0 | BG51: 0 | BI51: 0 | BJ51: 0 | BK51: 0 | BL51: 0 | BM51: 0 | BN51: 0 | BO51: 0.321176186 | BP51: 0.642352372 | BQ51: 0.642352372 | BR51: 0.642352372 | BT51: =+IF($K51="Ongoing",AX51,IF(RIGHT($K51,2)=RIGHT(BT$42,2),SUM($AX51:AX51),0)+IF(RIGHT(BT$42,2)>RIGHT($K51,2),AX51,0)) -> 0 | BU51: =+IF($K51="Ongoing",AY51,IF(RIGHT($K51,2)=RIGHT(BU$42,2),SUM($AX51:AY51),0)+IF(RIGHT(BU$42,2)>RIGHT($K51,2),AY51,0)) -> 0 | BV51: =+IF($K51="Ongoing",AZ51,IF(RIGHT($K51,2)=RIGHT(BV$42,2),SUM($AX51:AZ51),0)+IF(RIGHT(BV$42,2)>RIGHT($K51,2),AZ51,0)) -> 0 | BW51: =+IF($K51="Ongoing",BA51,IF(RIGHT($K51,2)=RIGHT(BW$42,2),SUM($AX51:BA51),0)+IF(RIGHT(BW$42,2)>RIGHT($K51,2),BA51,0)) -> 0 | BX51: =+IF($K51="Ongoing",BB51,IF(RIGHT($K51,2)=RIGHT(BX$42,2),SUM($AX51:BB51),0)+IF(RIGHT(BX$42,2)>RIGHT($K51,2),BB51,0)) -> 0 | BY51: =+IF($K51="Ongoing",BC51,IF(RIGHT($K51,2)=RIGHT(BY$42,2),SUM($AX51:BC51),0)+IF(RIGHT(BY$42,2)>RIGHT($K51,2),BC51,0)) -> 0 | BZ51: =+IF($K51="Ongoing",BD51,IF(RIGHT($K51,2)=RIGHT(BZ$42,2),SUM($AX51:BD51),0)+IF(RIGHT(BZ$42,2)>RIGHT($K51,2),BD51,0)) -> 80.2940465 | CA51: =+IF($K51="Ongoing",BE51,IF(RIGHT($K51,2)=RIGHT(CA$42,2),SUM($AX51:BE51),0)+IF(RIGHT(CA$42,2)>RIGHT($K51,2),BE51,0)) -> 0 | CB51: =+IF($K51="Ongoing",BF51,IF(RIGHT($K51,2)=RIGHT(CB$42,2),SUM($AX51:BF51),0)+IF(RIGHT(CB$42,2)>RIGHT($K51,2),BF51,0)) -> 0 | CC51: =+IF($K51="Ongoing",BG51,IF(RIGHT($K51,2)=RIGHT(CC$42,2),SUM($AX51:BG51),0)+IF(RIGHT(CC$42,2)>RIGHT($K51,2),BG51,0)) -> 0 | CE51: =+Q51*KeyAssumptionsPriceControl_FO!AA$15 -> 0.6640411765 | CF51: =+R51*KeyAssumptionsPriceControl_FO!AB$15 -> 0.7130292271 | CG51: =+S51*KeyAssumptionsPriceControl_FO!AC$15 -> 2.676556003 | CH51: =+T51*KeyAssumptionsPriceControl_FO!AD$15 -> 22.8399759 | CI51: =+U51*KeyAssumptionsPriceControl_FO!AE$15 -> 35.84028084 | CJ51: =+V51*KeyAssumptionsPriceControl_FO!AF$15 -> 21.28490861 | CK51: =+W51*KeyAssumptionsPriceControl_FO!AG$15 -> 3.235990712 | CL51: =+X51*KeyAssumptionsPriceControl_FO!AH$15 -> 0 | CM51: =+Y51*KeyAssumptionsPriceControl_FO!AI$15 -> 0 | CN51: =+Z51*KeyAssumptionsPriceControl_FO!AJ$15 -> 0 | CP51: 0 | CQ51: 0 | CR51: 0 | CS51: 0 | CT51: 0 | CU51: 0 | CV51: 0 | CW51: 0 | CX51: 0 | CY51: 0 | DC51: must be > 0 | DD51: No | DE51: =+IF($K51="ongoing",CE51,IF(RIGHT($K51,2)=RIGHT(DE$42,2),SUM($CD51:CE51),0)+IF(RIGHT(DE$42,2)>RIGHT($K51,2),CE51,0)) -> 0 | DF51: =+IF($K51="ongoing",CF51,IF(RIGHT($K51,2)=RIGHT(DF$42,2),SUM($CD51:CF51),0)+IF(RIGHT(DF$42,2)>RIGHT($K51,2),CF51,0)) -> 0 | DG51: =+IF($K51="ongoing",CG51,IF(RIGHT($K51,2)=RIGHT(DG$42,2),SUM($CD51:CG51),0)+IF(RIGHT(DG$42,2)>RIGHT($K51,2),CG51,0)) -> 0 | DH51: =+IF($K51="ongoing",CH51,IF(RIGHT($K51,2)=RIGHT(DH$42,2),SUM($CD51:CH51),0)+IF(RIGHT(DH$42,2)>RIGHT($K51,2),CH51,0)) -> 0 | DI51: =+IF($K51="ongoing",CI51,IF(RIGHT($K51,2)=RIGHT(DI$42,2),SUM($CD51:CI51),0)+IF(RIGHT(DI$42,2)>RIGHT($K51,2),CI51,0)) -> 0 | DJ51: =+IF($K51="ongoing",CJ51,IF(RIGHT($K51,2)=RIGHT(DJ$42,2),SUM($CD51:CJ51),0)+IF(RIGHT(DJ$42,2)>RIGHT($K51,2),CJ51,0)) -> 0 | DK51: =+IF($K51="ongoing",CK51,IF(RIGHT($K51,2)=RIGHT(DK$42,2),SUM($CD51:CK51),0)+IF(RIGHT(DK$42,2)>RIGHT($K51,2),CK51,0)) -> 0 | DL51: =+IF($K51="ongoing",CN51,IF(RIGHT($K51,2)=RIGHT(DL$42,2),SUM($CD51:CN51),0)+IF(RIGHT(DL$42,2)>RIGHT($K51,2),CN51,0)) -> 87.25478246 | DN51: 0.5 | DO51: 1 | DP51: 1 | DQ51: 1 | DR51: 1 | DS51: 1 | DT51: 1 | DU51: 1 | DW51: 0 | DX51: 0.5 | DY51: 1 | DZ51: 1 | EA51: 1 | EB51: 1 | EC51: 1 | ED51: 1 | EF51: =+IF(DN51=DM51,0, IF(AND(EF$43>1,DN51=$N51),1-SUM($EE51:EE51), IF($N51<=1, IF($N51>0,1/$N51,0), IF(EF$43=1,0,VDB(1,0,$N51,INT(EF$43-1-1),MIN($N51,INT(EF$43-1-1)+1),$DC51,IF($DD51="No",1,0))/ IF(DM51>=INT($N51),$N51-INT($N51),1)))* IF(EF$43=1,0, IF(INT(DN51)=INT(DM51),DN51-DM51,INT(DN51)-DM51))+ IF($N51<=1, IF($N51>0,1/$N51,0),VDB(1,0,$N51,INT(EF$43-1),MIN($N51,INT(EF$43-1)+1),$DC51,IF($DD51="No",1,0))/ IF(DN51>INT($N51),$N51-INT($N51),1))* IF(EF$43=1,DN51, IF(INT(DN51)=INT(DM51),0,DN51-INT(DN51))))) -> 0 | EG51: =+IF(DO51=DN51,0, IF(AND(EG$43>1,DO51=$N51),1-SUM($EE51:EF51), IF($N51<=1, IF($N51>0,1/$N51,0), IF(EG$43=1,0,VDB(1,0,$N51,INT(EG$43-1-1),MIN($N51,INT(EG$43-1-1)+1),$DC51,IF($DD51="No",1,0))/ IF(DN51>=INT($N51),$N51-INT($N51),1)))* IF(EG$43=1,0, IF(INT(DO51)=INT(DN51),DO51-DN51,INT(DO51)-DN51))+ IF($N51<=1, IF($N51>0,1/$N51,0),VDB(1,0,$N51,INT(EG$43-1),MIN($N51,INT(EG$43-1)+1),$DC51,IF($DD51="No",1,0))/ IF(DO51>INT($N51),$N51-INT($N51),1))* IF(EG$43=1,DO51, IF(INT(DO51)=INT(DN51),0,DO51-INT(DO51))))) -> 0 | EH51: =+IF(DP51=DO51,0, IF(AND(EH$43>1,DP51=$N51),1-SUM($EE51:EG51), IF($N51<=1, IF($N51>0,1/$N51,0), IF(EH$43=1,0,VDB(1,0,$N51,INT(EH$43-1-1),MIN($N51,INT(EH$43-1-1)+1),$DC51,IF($DD51="No",1,0))/ IF(DO51>=INT($N51),$N51-INT($N51),1)))* IF(EH$43=1,0, IF(INT(DP51)=INT(DO51),DP51-DO51,INT(DP51)-DO51))+ IF($N51<=1, IF($N51>0,1/$N51,0),VDB(1,0,$N51,INT(EH$43-1),MIN($N51,INT(EH$43-1)+1),$DC51,IF($DD51="No",1,0))/ IF(DP51>INT($N51),$N51-INT($N51),1))* IF(EH$43=1,DP51, IF(INT(DP51)=INT(DO51),0,DP51-INT(DP51))))) -> 0 | EI51: =+IF(DQ51=DP51,0, IF(AND(EI$43>1,DQ51=$N51),1-SUM($EE51:EH51), IF($N51<=1, IF($N51>0,1/$N51,0), IF(EI$43=1,0,VDB(1,0,$N51,INT(EI$43-1-1),MIN($N51,INT(EI$43-1-1)+1),$DC51,IF($DD51="No",1,0))/ IF(DP51>=INT($N51),$N51-INT($N51),1)))* IF(EI$43=1,0, IF(INT(DQ51)=INT(DP51),DQ51-DP51,INT(DQ51)-DP51))+ IF($N51<=1, IF($N51>0,1/$N51,0),VDB(1,0,$N51,INT(EI$43-1),MIN($N51,INT(EI$43-1)+1),$DC51,IF($DD51="No",1,0))/ IF(DQ51>INT($N51),$N51-INT($N51),1))* IF(EI$43=1,DQ51, IF(INT(DQ51)=INT(DP51),0,DQ51-INT(DQ51))))) -> 0 | EJ51: =+IF(DR51=DQ51,0, IF(AND(EJ$43>1,DR51=$N51),1-SUM($EE51:EI51), IF($N51<=1, IF($N51>0,1/$N51,0), IF(EJ$43=1,0,VDB(1,0,$N51,INT(EJ$43-1-1),MIN($N51,INT(EJ$43-1-1)+1),$DC51,IF($DD51="No",1,0))/ IF(DQ51>=INT($N51),$N51-INT($N51),1)))* IF(EJ$43=1,0, IF(INT(DR51)=INT(DQ51),DR51-DQ51,INT(DR51)-DQ51))+ IF($N51<=1, IF($N51>0,1/$N51,0),VDB(1,0,$N51,INT(EJ$43-1),MIN($N51,INT(EJ$43-1)+1),$DC51,IF($DD51="No",1,0))/ IF(DR51>INT($N51),$N51-INT($N51),1))* IF(EJ$43=1,DR51, IF(INT(DR51)=INT(DQ51),0,DR51-INT(DR51))))) -> 0 | EK51: =+IF(DS51=DR51,0, IF(AND(EK$43>1,DS51=$N51),1-SUM($EE51:EJ51), IF($N51<=1, IF($N51>0,1/$N51,0), IF(EK$43=1,0,VDB(1,0,$N51,INT(EK$43-1-1),MIN($N51,INT(EK$43-1-1)+1),$DC51,IF($DD51="No",1,0))/ IF(DR51>=INT($N51),$N51-INT($N51),1)))* IF(EK$43=1,0, IF(INT(DS51)=INT(DR51),DS51-DR51,INT(DS51)-DR51))+ IF($N51<=1, IF($N51>0,1/$N51,0),VDB(1,0,$N51,INT(EK$43-1),MIN($N51,INT(EK$43-1)+1),$DC51,IF($DD51="No",1,0))/ IF(DS51>INT($N51),$N51-INT($N51),1))* IF(EK$43=1,DS51, IF(INT(DS51)=INT(DR51),0,DS51-INT(DS51))))) -> 0 | EL51: =+IF(DT51=DS51,0, IF(AND(EL$43>1,DT51=$N51),1-SUM($EE51:EK51), IF($N51<=1, IF($N51>0,1/$N51,0), IF(EL$43=1,0,VDB(1,0,$N51,INT(EL$43-1-1),MIN($N51,INT(EL$43-1-1)+1),$DC51,IF($DD51="No",1,0))/ IF(DS51>=INT($N51),$N51-INT($N51),1)))* IF(EL$43=1,0, IF(INT(DT51)=INT(DS51),DT51-DS51,INT(DT51)-DS51))+ IF($N51<=1, IF($N51>0,1/$N51,0),VDB(1,0,$N51,INT(EL$43-1),MIN($N51,INT(EL$43-1)+1),$DC51,IF($DD51="No",1,0))/ IF(DT51>INT($N51),$N51-INT($N51),1))* IF(EL$43=1,DT51, IF(INT(DT51)=INT(DS51),0,DT51-INT(DT51))))) -> 0 | EM51: =+IF(DU51=DT51,0, IF(AND(EM$43>1,DU51=$N51),1-SUM($EE51:EL51), IF($N51<=1, IF($N51>0,1/$N51,0), IF(EM$43=1,0,VDB(1,0,$N51,INT(EM$43-1-1),MIN($N51,INT(EM$43-1-1)+1),$DC51,IF($DD51="No",1,0))/ IF(DT51>=INT($N51),$N51-INT($N51),1)))* IF(EM$43=1,0, IF(INT(DU51)=INT(DT51),DU51-DT51,INT(DU51)-DT51))+ IF($N51<=1, IF($N51>0,1/$N51,0),VDB(1,0,$N51,INT(EM$43-1),MIN($N51,INT(EM$43-1)+1),$DC51,IF($DD51="No",1,0))/ IF(DU51>INT($N51),$N51-INT($N51),1))* IF(EM$43=1,DU51, IF(INT(DU51)=INT(DT51),0,DU51-INT(DU51))))) -> 0 | EO51: =+IF(OR(DW51=DV51,EO$43=1),0, IF(AND(EO$43>1,DW51=$N51),1-SUM($EN51:EN51), IF($N51<=1, IF($N51>0,1/$N51,0), IF(EO$43=2,0,VDB(1,0,$N51,INT(EO$43-2-1),MIN($N51,INT(EO$43-2-1)+1),$DC51,IF($DD51="No",1,0))/ IF(DV51>=INT($N51),$N51-INT($N51),1)))* IF(EO$43=2,0, IF(INT(DW51)=INT(DV51),DW51-DV51,INT(DW51)-DV51))+ IF($N51<=1, IF($N51>0,1/$N51,0),VDB(1,0,$N51,INT(EO$43-2),MIN($N51,INT(EO$43-2)+1),$DC51,IF($DD51="No",1,0))/ IF(DW51>INT($N51),$N51-INT($N51),1))* IF(EO$43=2,DW51, IF(INT(DW51)=INT(DV51),0,DW51-INT(DW51))))) -> 0 | EP51: =+IF(OR(DX51=DW51,EP$43=1),0, IF(AND(EP$43>1,DX51=$N51),1-SUM($EN51:EO51), IF($N51<=1, IF($N51>0,1/$N51,0), IF(EP$43=2,0,VDB(1,0,$N51,INT(EP$43-2-1),MIN($N51,INT(EP$43-2-1)+1),$DC51,IF($DD51="No",1,0))/ IF(DW51>=INT($N51),$N51-INT($N51),1)))* IF(EP$43=2,0, IF(INT(DX51)=INT(DW51),DX51-DW51,INT(DX51)-DW51))+ IF($N51<=1, IF($N51>0,1/$N51,0),VDB(1,0,$N51,INT(EP$43-2),MIN($N51,INT(EP$43-2)+1),$DC51,IF($DD51="No",1,0))/ IF(DX51>INT($N51),$N51-INT($N51),1))* IF(EP$43=2,DX51, IF(INT(DX51)=INT(DW51),0,DX51-INT(DX51))))) -> 0 | EQ51: =+IF(OR(DY51=DX51,EQ$43=1),0, IF(AND(EQ$43>1,DY51=$N51),1-SUM($EN51:EP51), IF($N51<=1, IF($N51>0,1/$N51,0), IF(EQ$43=2,0,VDB(1,0,$N51,INT(EQ$43-2-1),MIN($N51,INT(EQ$43-2-1)+1),$DC51,IF($DD51="No",1,0))/ IF(DX51>=INT($N51),$N51-INT($N51),1)))* IF(EQ$43=2,0, IF(INT(DY51)=INT(DX51),DY51-DX51,INT(DY51)-DX51))+ IF($N51<=1, IF($N51>0,1/$N51,0),VDB(1,0,$N51,INT(EQ$43-2),MIN($N51,INT(EQ$43-2)+1),$DC51,IF($DD51="No",1,0))/ IF(DY51>INT($N51),$N51-INT($N51),1))* IF(EQ$43=2,DY51, IF(INT(DY51)=INT(DX51),0,DY51-INT(DY51))))) -> 0 | ER51: =+IF(OR(DZ51=DY51,ER$43=1),0, IF(AND(ER$43>1,DZ51=$N51),1-SUM($EN51:EQ51), IF($N51<=1, IF($N51>0,1/$N51,0), IF(ER$43=2,0,VDB(1,0,$N51,INT(ER$43-2-1),MIN($N51,INT(ER$43-2-1)+1),$DC51,IF($DD51="No",1,0))/ IF(DY51>=INT($N51),$N51-INT($N51),1)))* IF(ER$43=2,0, IF(INT(DZ51)=INT(DY51),DZ51-DY51,INT(DZ51)-DY51))+ IF($N51<=1, IF($N51>0,1/$N51,0),VDB(1,0,$N51,INT(ER$43-2),MIN($N51,INT(ER$43-2)+1),$DC51,IF($DD51="No",1,0))/ IF(DZ51>INT($N51),$N51-INT($N51),1))* IF(ER$43=2,DZ51, IF(INT(DZ51)=INT(DY51),0,DZ51-INT(DZ51))))) -> 0 | ES51: =+IF(OR(EA51=DZ51,ES$43=1),0, IF(AND(ES$43>1,EA51=$N51),1-SUM($EN51:ER51), IF($N51<=1, IF($N51>0,1/$N51,0), IF(ES$43=2,0,VDB(1,0,$N51,INT(ES$43-2-1),MIN($N51,INT(ES$43-2-1)+1),$DC51,IF($DD51="No",1,0))/ IF(DZ51>=INT($N51),$N51-INT($N51),1)))* IF(ES$43=2,0, IF(INT(EA51)=INT(DZ51),EA51-DZ51,INT(EA51)-DZ51))+ IF($N51<=1, IF($N51>0,1/$N51,0),VDB(1,0,$N51,INT(ES$43-2),MIN($N51,INT(ES$43-2)+1),$DC51,IF($DD51="No",1,0))/ IF(EA51>INT($N51),$N51-INT($N51),1))* IF(ES$43=2,EA51, IF(INT(EA51)=INT(DZ51),0,EA51-INT(EA51))))) -> 0 | ET51: =+IF(OR(EB51=EA51,ET$43=1),0, IF(AND(ET$43>1,EB51=$N51),1-SUM($EN51:ES51), IF($N51<=1, IF($N51>0,1/$N51,0), IF(ET$43=2,0,VDB(1,0,$N51,INT(ET$43-2-1),MIN($N51,INT(ET$43-2-1)+1),$DC51,IF($DD51="No",1,0))/ IF(EA51>=INT($N51),$N51-INT($N51),1)))* IF(ET$43=2,0, IF(INT(EB51)=INT(EA51),EB51-EA51,INT(EB51)-EA51))+ IF($N51<=1, IF($N51>0,1/$N51,0),VDB(1,0,$N51,INT(ET$43-2),MIN($N51,INT(ET$43-2)+1),$DC51,IF($DD51="No",1,0))/ IF(EB51>INT($N51),$N51-INT($N51),1))* IF(ET$43=2,EB51, IF(INT(EB51)=INT(EA51),0,EB51-INT(EB51))))) -> 0 | EU51: =+IF(OR(EC51=EB51,EU$43=1),0, IF(AND(EU$43>1,EC51=$N51),1-SUM($EN51:ET51), IF($N51<=1, IF($N51>0,1/$N51,0), IF(EU$43=2,0,VDB(1,0,$N51,INT(EU$43-2-1),MIN($N51,INT(EU$43-2-1)+1),$DC51,IF($DD51="No",1,0))/ IF(EB51>=INT($N51),$N51-INT($N51),1)))* IF(EU$43=2,0, IF(INT(EC51)=INT(EB51),EC51-EB51,INT(EC51)-EB51))+ IF($N51<=1, IF($N51>0,1/$N51,0),VDB(1,0,$N51,INT(EU$43-2),MIN($N51,INT(EU$43-2)+1),$DC51,IF($DD51="No",1,0))/ IF(EC51>INT($N51),$N51-INT($N51),1))* IF(EU$43=2,EC51, IF(INT(EC51)=INT(EB51),0,EC51-INT(EC51))))) -> 0 | EV51: =+IF(OR(ED51=EC51,EV$43=1),0, IF(AND(EV$43>1,ED51=$N51),1-SUM($EN51:EU51), IF($N51<=1, IF($N51>0,1/$N51,0), IF(EV$43=2,0,VDB(1,0,$N51,INT(EV$43-2-1),MIN($N51,INT(EV$43-2-1)+1),$DC51,IF($DD51="No",1,0))/ IF(EC51>=INT($N51),$N51-INT($N51),1)))* IF(EV$43=2,0, IF(INT(ED51)=INT(EC51),ED51-EC51,INT(ED51)-EC51))+ IF($N51<=1, IF($N51>0,1/$N51,0),VDB(1,0,$N51,INT(EV$43-2),MIN($N51,INT(EV$43-2)+1),$DC51,IF($DD51="No",1,0))/ IF(ED51>INT($N51),$N51-INT($N51),1))* IF(EV$43=2,ED51, IF(INT(ED51)=INT(EC51),0,ED51-INT(ED51))))) -> 0 | EX51: 0 | EY51: 0 | EZ51: 0 | FA51: 0 | FB51: 0 | FC51: 0 | FD51: 0 | FE51: 0 | FG51: 0 | FH51: 0 | FI51: 0 | FJ51: 0 | FK51: 0 | FL51: 0 | FM51: 0 | FN51: 0
B52: 8 | C52: Winneke TP - UV Disinfection System | E52: Water | F52: Improvements / Compliance | G52: Treatment | H52: Top 15 Major Projects | J52: Straight line | K52: 2024/2025 | L52: 50 | M52: Straight line | Q52: 1.33627451 | R52: 27.22469917 | S52: 14.53475659 | T52: 0.005475704854 | U52: 0 | V52: 0 | W52: 0 | X52: 0 | Y52: 0 | Z52: 0 | AX52: 1.33627451 | AY52: 27.22469917 | AZ52: 14.53475659 | BA52: 0.005475704854 | BB52: 0 | BC52: 0 | BD52: 0 | BE52: 0 | BF52: 0 | BG52: 0 | BI52: 0 | BJ52: 0 | BK52: 0 | BL52: 0.4310120598 | BM52: 0.8620241196 | BN52: 0.8620241196 | BO52: 0.8620241196 | BP52: 0.8620241196 | BQ52: 0.8620241196 | BR52: 0.8620241196 | BT52: =+IF($K52="Ongoing",AX52,IF(RIGHT($K52,2)=RIGHT(BT$42,2),SUM($AX52:AX52),0)+IF(RIGHT(BT$42,2)>RIGHT($K52,2),AX52,0)) -> 0 | BU52: =+IF($K52="Ongoing",AY52,IF(RIGHT($K52,2)=RIGHT(BU$42,2),SUM($AX52:AY52),0)+IF(RIGHT(BU$42,2)>RIGHT($K52,2),AY52,0)) -> 0 | BV52: =+IF($K52="Ongoing",AZ52,IF(RIGHT($K52,2)=RIGHT(BV$42,2),SUM($AX52:AZ52),0)+IF(RIGHT(BV$42,2)>RIGHT($K52,2),AZ52,0)) -> 0 | BW52: =+IF($K52="Ongoing",BA52,IF(RIGHT($K52,2)=RIGHT(BW$42,2),SUM($AX52:BA52),0)+IF(RIGHT(BW$42,2)>RIGHT($K52,2),BA52,0)) -> 43.10120598 | BX52: =+IF($K52="Ongoing",BB52,IF(RIGHT($K52,2)=RIGHT(BX$42,2),SUM($AX52:BB52),0)+IF(RIGHT(BX$42,2)>RIGHT($K52,2),BB52,0)) -> 0 | BY52: =+IF($K52="Ongoing",BC52,IF(RIGHT($K52,2)=RIGHT(BY$42,2),SUM($AX52:BC52),0)+IF(RIGHT(BY$42,2)>RIGHT($K52,2),BC52,0)) -> 0 | BZ52: =+IF($K52="Ongoing",BD52,IF(RIGHT($K52,2)=RIGHT(BZ$42,2),SUM($AX52:BD52),0)+IF(RIGHT(BZ$42,2)>RIGHT($K52,2),BD52,0)) -> 0 | CA52: =+IF($K52="Ongoing",BE52,IF(RIGHT($K52,2)=RIGHT(CA$42,2),SUM($AX52:BE52),0)+IF(RIGHT(CA$42,2)>RIGHT($K52,2),BE52,0)) -> 0 | CB52: =+IF($K52="Ongoing",BF52,IF(RIGHT($K52,2)=RIGHT(CB$42,2),SUM($AX52:BF52),0)+IF(RIGHT(CB$42,2)>RIGHT($K52,2),BF52,0)) -> 0 | CC52: =+IF($K52="Ongoing",BG52,IF(RIGHT($K52,2)=RIGHT(CC$42,2),SUM($AX52:BG52),0)+IF(RIGHT(CC$42,2)>RIGHT($K52,2),BG52,0)) -> 0 | CE52: =+Q52*KeyAssumptionsPriceControl_FO!AA$15 -> 1.358991176 | CF52: =+R52*KeyAssumptionsPriceControl_FO!AB$15 -> 28.15820688 | CG52: =+S52*KeyAssumptionsPriceControl_FO!AC$15 -> 15.28870222 | CH52: =+T52*KeyAssumptionsPriceControl_FO!AD$15 -> 0.005857655722 | CI52: =+U52*KeyAssumptionsPriceControl_FO!AE$15 -> 0 | CJ52: =+V52*KeyAssumptionsPriceControl_FO!AF$15 -> 0 | CK52: =+W52*KeyAssumptionsPriceControl_FO!AG$15 -> 0 | CL52: =+X52*KeyAssumptionsPriceControl_FO!AH$15 -> 0 | CM52: =+Y52*KeyAssumptionsPriceControl_FO!AI$15 -> 0 | CN52: =+Z52*KeyAssumptionsPriceControl_FO!AJ$15 -> 0 | CP52: 0 | CQ52: 0 | CR52: 0 | CS52: 0 | CT52: 0 | CU52: 0 | CV52: 0 | CW52: 0 | CX52: 0 | CY52: 0 | DC52: must be > 0 | DD52: No | DE52: =+IF($K52="ongoing",CE52,IF(RIGHT($K52,2)=RIGHT(DE$42,2),SUM($CD52:CE52),0)+IF(RIGHT(DE$42,2)>RIGHT($K52,2),CE52,0)) -> 0 | DF52: =+IF($K52="ongoing",CF52,IF(RIGHT($K52,2)=RIGHT(DF$42,2),SUM($CD52:CF52),0)+IF(RIGHT(DF$42,2)>RIGHT($K52,2),CF52,0)) -> 0 | DG52: =+IF($K52="ongoing",CG52,IF(RIGHT($K52,2)=RIGHT(DG$42,2),SUM($CD52:CG52),0)+IF(RIGHT(DG$42,2)>RIGHT($K52,2),CG52,0)) -> 0 | DH52: =+IF($K52="ongoing",CH52,IF(RIGHT($K52,2)=RIGHT(DH$42,2),SUM($CD52:CH52),0)+IF(RIGHT(DH$42,2)>RIGHT($K52,2),CH52,0)) -> 0 | DI52: =+IF($K52="ongoing",CI52,IF(RIGHT($K52,2)=RIGHT(DI$42,2),SUM($CD52:CI52),0)+IF(RIGHT(DI$42,2)>RIGHT($K52,2),CI52,0)) -> 44.81175794 | DJ52: =+IF($K52="ongoing",CJ52,IF(RIGHT($K52,2)=RIGHT(DJ$42,2),SUM($CD52:CJ52),0)+IF(RIGHT(DJ$42,2)>RIGHT($K52,2),CJ52,0)) -> 0 | DK52: =+IF($K52="ongoing",CK52,IF(RIGHT($K52,2)=RIGHT(DK$42,2),SUM($CD52:CK52),0)+IF(RIGHT(DK$42,2)>RIGHT($K52,2),CK52,0)) -> 0 | DL52: =+IF($K52="ongoing",CN52,IF(RIGHT($K52,2)=RIGHT(DL$42,2),SUM($CD52:CN52),0)+IF(RIGHT(DL$42,2)>RIGHT($K52,2),CN52,0)) -> 0 | DN52: 0.5 | DO52: 1 | DP52: 1 | DQ52: 1 | DR52: 1 | DS52: 1 | DT52: 1 | DU52: 1 | DW52: 0 | DX52: 0.5 | DY52: 1 | DZ52: 1 | EA52: 1 | EB52: 1 | EC52: 1 | ED52: 1 | EF52: =+IF(DN52=DM52,0, IF(AND(EF$43>1,DN52=$N52),1-SUM($EE52:EE52), IF($N52<=1, IF($N52>0,1/$N52,0), IF(EF$43=1,0,VDB(1,0,$N52,INT(EF$43-1-1),MIN($N52,INT(EF$43-1-1)+1),$DC52,IF($DD52="No",1,0))/ IF(DM52>=INT($N52),$N52-INT($N52),1)))* IF(EF$43=1,0, IF(INT(DN52)=INT(DM52),DN52-DM52,INT(DN52)-DM52))+ IF($N52<=1, IF($N52>0,1/$N52,0),VDB(1,0,$N52,INT(EF$43-1),MIN($N52,INT(EF$43-1)+1),$DC52,IF($DD52="No",1,0))/ IF(DN52>INT($N52),$N52-INT($N52),1))* IF(EF$43=1,DN52, IF(INT(DN52)=INT(DM52),0,DN52-INT(DN52))))) -> 0 | EG52: =+IF(DO52=DN52,0, IF(AND(EG$43>1,DO52=$N52),1-SUM($EE52:EF52), IF($N52<=1, IF($N52>0,1/$N52,0), IF(EG$43=1,0,VDB(1,0,$N52,INT(EG$43-1-1),MIN($N52,INT(EG$43-1-1)+1),$DC52,IF($DD52="No",1,0))/ IF(DN52>=INT($N52),$N52-INT($N52),1)))* IF(EG$43=1,0, IF(INT(DO52)=INT(DN52),DO52-DN52,INT(DO52)-DN52))+ IF($N52<=1, IF($N52>0,1/$N52,0),VDB(1,0,$N52,INT(EG$43-1),MIN($N52,INT(EG$43-1)+1),$DC52,IF($DD52="No",1,0))/ IF(DO52>INT($N52),$N52-INT($N52),1))* IF(EG$43=1,DO52, IF(INT(DO52)=INT(DN52),0,DO52-INT(DO52))))) -> 0 | EH52: =+IF(DP52=DO52,0, IF(AND(EH$43>1,DP52=$N52),1-SUM($EE52:EG52), IF($N52<=1, IF($N52>0,1/$N52,0), IF(EH$43=1,0,VDB(1,0,$N52,INT(EH$43-1-1),MIN($N52,INT(EH$43-1-1)+1),$DC52,IF($DD52="No",1,0))/ IF(DO52>=INT($N52),$N52-INT($N52),1)))* IF(EH$43=1,0, IF(INT(DP52)=INT(DO52),DP52-DO52,INT(DP52)-DO52))+ IF($N52<=1, IF($N52>0,1/$N52,0),VDB(1,0,$N52,INT(EH$43-1),MIN($N52,INT(EH$43-1)+1),$DC52,IF($DD52="No",1,0))/ IF(DP52>INT($N52),$N52-INT($N52),1))* IF(EH$43=1,DP52, IF(INT(DP52)=INT(DO52),0,DP52-INT(DP52))))) -> 0 | EI52: =+IF(DQ52=DP52,0, IF(AND(EI$43>1,DQ52=$N52),1-SUM($EE52:EH52), IF($N52<=1, IF($N52>0,1/$N52,0), IF(EI$43=1,0,VDB(1,0,$N52,INT(EI$43-1-1),MIN($N52,INT(EI$43-1-1)+1),$DC52,IF($DD52="No",1,0))/ IF(DP52>=INT($N52),$N52-INT($N52),1)))* IF(EI$43=1,0, IF(INT(DQ52)=INT(DP52),DQ52-DP52,INT(DQ52)-DP52))+ IF($N52<=1, IF($N52>0,1/$N52,0),VDB(1,0,$N52,INT(EI$43-1),MIN($N52,INT(EI$43-1)+1),$DC52,IF($DD52="No",1,0))/ IF(DQ52>INT($N52),$N52-INT($N52),1))* IF(EI$43=1,DQ52, IF(INT(DQ52)=INT(DP52),0,DQ52-INT(DQ52))))) -> 0 | EJ52: =+IF(DR52=DQ52,0, IF(AND(EJ$43>1,DR52=$N52),1-SUM($EE52:EI52), IF($N52<=1, IF($N52>0,1/$N52,0), IF(EJ$43=1,0,VDB(1,0,$N52,INT(EJ$43-1-1),MIN($N52,INT(EJ$43-1-1)+1),$DC52,IF($DD52="No",1,0))/ IF(DQ52>=INT($N52),$N52-INT($N52),1)))* IF(EJ$43=1,0, IF(INT(DR52)=INT(DQ52),DR52-DQ52,INT(DR52)-DQ52))+ IF($N52<=1, IF($N52>0,1/$N52,0),VDB(1,0,$N52,INT(EJ$43-1),MIN($N52,INT(EJ$43-1)+1),$DC52,IF($DD52="No",1,0))/ IF(DR52>INT($N52),$N52-INT($N52),1))* IF(EJ$43=1,DR52, IF(INT(DR52)=INT(DQ52),0,DR52-INT(DR52))))) -> 0 | EK52: =+IF(DS52=DR52,0, IF(AND(EK$43>1,DS52=$N52),1-SUM($EE52:EJ52), IF($N52<=1, IF($N52>0,1/$N52,0), IF(EK$43=1,0,VDB(1,0,$N52,INT(EK$43-1-1),MIN($N52,INT(EK$43-1-1)+1),$DC52,IF($DD52="No",1,0))/ IF(DR52>=INT($N52),$N52-INT($N52),1)))* IF(EK$43=1,0, IF(INT(DS52)=INT(DR52),DS52-DR52,INT(DS52)-DR52))+ IF($N52<=1, IF($N52>0,1/$N52,0),VDB(1,0,$N52,INT(EK$43-1),MIN($N52,INT(EK$43-1)+1),$DC52,IF($DD52="No",1,0))/ IF(DS52>INT($N52),$N52-INT($N52),1))* IF(EK$43=1,DS52, IF(INT(DS52)=INT(DR52),0,DS52-INT(DS52))))) -> 0 | EL52: =+IF(DT52=DS52,0, IF(AND(EL$43>1,DT52=$N52),1-SUM($EE52:EK52), IF($N52<=1, IF($N52>0,1/$N52,0), IF(EL$43=1,0,VDB(1,0,$N52,INT(EL$43-1-1),MIN($N52,INT(EL$43-1-1)+1),$DC52,IF($DD52="No",1,0))/ IF(DS52>=INT($N52),$N52-INT($N52),1)))* IF(EL$43=1,0, IF(INT(DT52)=INT(DS52),DT52-DS52,INT(DT52)-DS52))+ IF($N52<=1, IF($N52>0,1/$N52,0),VDB(1,0,$N52,INT(EL$43-1),MIN($N52,INT(EL$43-1)+1),$DC52,IF($DD52="No",1,0))/ IF(DT52>INT($N52),$N52-INT($N52),1))* IF(EL$43=1,DT52, IF(INT(DT52)=INT(DS52),0,DT52-INT(DT52))))) -> 0 | EM52: =+IF(DU52=DT52,0, IF(AND(EM$43>1,DU52=$N52),1-SUM($EE52:EL52), IF($N52<=1, IF($N52>0,1/$N52,0), IF(EM$43=1,0,VDB(1,0,$N52,INT(EM$43-1-1),MIN($N52,INT(EM$43-1-1)+1),$DC52,IF($DD52="No",1,0))/ IF(DT52>=INT($N52),$N52-INT($N52),1)))* IF(EM$43=1,0, IF(INT(DU52)=INT(DT52),DU52-DT52,INT(DU52)-DT52))+ IF($N52<=1, IF($N52>0,1/$N52,0),VDB(1,0,$N52,INT(EM$43-1),MIN($N52,INT(EM$43-1)+1),$DC52,IF($DD52="No",1,0))/ IF(DU52>INT($N52),$N52-INT($N52),1))* IF(EM$43=1,DU52, IF(INT(DU52)=INT(DT52),0,DU52-INT(DU52))))) -> 0 | EO52: =+IF(OR(DW52=DV52,EO$43=1),0, IF(AND(EO$43>1,DW52=$N52),1-SUM($EN52:EN52), IF($N52<=1, IF($N52>0,1/$N52,0), IF(EO$43=2,0,VDB(1,0,$N52,INT(EO$43-2-1),MIN($N52,INT(EO$43-2-1)+1),$DC52,IF($DD52="No",1,0))/ IF(DV52>=INT($N52),$N52-INT($N52),1)))* IF(EO$43=2,0, IF(INT(DW52)=INT(DV52),DW52-DV52,INT(DW52)-DV52))+ IF($N52<=1, IF($N52>0,1/$N52,0),VDB(1,0,$N52,INT(EO$43-2),MIN($N52,INT(EO$43-2)+1),$DC52,IF($DD52="No",1,0))/ IF(DW52>INT($N52),$N52-INT($N52),1))* IF(EO$43=2,DW52, IF(INT(DW52)=INT(DV52),0,DW52-INT(DW52))))) -> 0 | EP52: =+IF(OR(DX52=DW52,EP$43=1),0, IF(AND(EP$43>1,DX52=$N52),1-SUM($EN52:EO52), IF($N52<=1, IF($N52>0,1/$N52,0), IF(EP$43=2,0,VDB(1,0,$N52,INT(EP$43-2-1),MIN($N52,INT(EP$43-2-1)+1),$DC52,IF($DD52="No",1,0))/ IF(DW52>=INT($N52),$N52-INT($N52),1)))* IF(EP$43=2,0, IF(INT(DX52)=INT(DW52),DX52-DW52,INT(DX52)-DW52))+ IF($N52<=1, IF($N52>0,1/$N52,0),VDB(1,0,$N52,INT(EP$43-2),MIN($N52,INT(EP$43-2)+1),$DC52,IF($DD52="No",1,0))/ IF(DX52>INT($N52),$N52-INT($N52),1))* IF(EP$43=2,DX52, IF(INT(DX52)=INT(DW52),0,DX52-INT(DX52))))) -> 0 | EQ52: =+IF(OR(DY52=DX52,EQ$43=1),0, IF(AND(EQ$43>1,DY52=$N52),1-SUM($EN52:EP52), IF($N52<=1, IF($N52>0,1/$N52,0), IF(EQ$43=2,0,VDB(1,0,$N52,INT(EQ$43-2-1),MIN($N52,INT(EQ$43-2-1)+1),$DC52,IF($DD52="No",1,0))/ IF(DX52>=INT($N52),$N52-INT($N52),1)))* IF(EQ$43=2,0, IF(INT(DY52)=INT(DX52),DY52-DX52,INT(DY52)-DX52))+ IF($N52<=1, IF($N52>0,1/$N52,0),VDB(1,0,$N52,INT(EQ$43-2),MIN($N52,INT(EQ$43-2)+1),$DC52,IF($DD52="No",1,0))/ IF(DY52>INT($N52),$N52-INT($N52),1))* IF(EQ$43=2,DY52, IF(INT(DY52)=INT(DX52),0,DY52-INT(DY52))))) -> 0 | ER52: =+IF(OR(DZ52=DY52,ER$43=1),0, IF(AND(ER$43>1,DZ52=$N52),1-SUM($EN52:EQ52), IF($N52<=1, IF($N52>0,1/$N52,0), IF(ER$43=2,0,VDB(1,0,$N52,INT(ER$43-2-1),MIN($N52,INT(ER$43-2-1)+1),$DC52,IF($DD52="No",1,0))/ IF(DY52>=INT($N52),$N52-INT($N52),1)))* IF(ER$43=2,0, IF(INT(DZ52)=INT(DY52),DZ52-DY52,INT(DZ52)-DY52))+ IF($N52<=1, IF($N52>0,1/$N52,0),VDB(1,0,$N52,INT(ER$43-2),MIN($N52,INT(ER$43-2)+1),$DC52,IF($DD52="No",1,0))/ IF(DZ52>INT($N52),$N52-INT($N52),1))* IF(ER$43=2,DZ52, IF(INT(DZ52)=INT(DY52),0,DZ52-INT(DZ52))))) -> 0 | ES52: =+IF(OR(EA52=DZ52,ES$43=1),0, IF(AND(ES$43>1,EA52=$N52),1-SUM($EN52:ER52), IF($N52<=1, IF($N52>0,1/$N52,0), IF(ES$43=2,0,VDB(1,0,$N52,INT(ES$43-2-1),MIN($N52,INT(ES$43-2-1)+1),$DC52,IF($DD52="No",1,0))/ IF(DZ52>=INT($N52),$N52-INT($N52),1)))* IF(ES$43=2,0, IF(INT(EA52)=INT(DZ52),EA52-DZ52,INT(EA52)-DZ52))+ IF($N52<=1, IF($N52>0,1/$N52,0),VDB(1,0,$N52,INT(ES$43-2),MIN($N52,INT(ES$43-2)+1),$DC52,IF($DD52="No",1,0))/ IF(EA52>INT($N52),$N52-INT($N52),1))* IF(ES$43=2,EA52, IF(INT(EA52)=INT(DZ52),0,EA52-INT(EA52))))) -> 0 | ET52: =+IF(OR(EB52=EA52,ET$43=1),0, IF(AND(ET$43>1,EB52=$N52),1-SUM($EN52:ES52), IF($N52<=1, IF($N52>0,1/$N52,0), IF(ET$43=2,0,VDB(1,0,$N52,INT(ET$43-2-1),MIN($N52,INT(ET$43-2-1)+1),$DC52,IF($DD52="No",1,0))/ IF(EA52>=INT($N52),$N52-INT($N52),1)))* IF(ET$43=2,0, IF(INT(EB52)=INT(EA52),EB52-EA52,INT(EB52)-EA52))+ IF($N52<=1, IF($N52>0,1/$N52,0),VDB(1,0,$N52,INT(ET$43-2),MIN($N52,INT(ET$43-2)+1),$DC52,IF($DD52="No",1,0))/ IF(EB52>INT($N52),$N52-INT($N52),1))* IF(ET$43=2,EB52, IF(INT(EB52)=INT(EA52),0,EB52-INT(EB52))))) -> 0 | EU52: =+IF(OR(EC52=EB52,EU$43=1),0, IF(AND(EU$43>1,EC52=$N52),1-SUM($EN52:ET52), IF($N52<=1, IF($N52>0,1/$N52,0), IF(EU$43=2,0,VDB(1,0,$N52,INT(EU$43-2-1),MIN($N52,INT(EU$43-2-1)+1),$DC52,IF($DD52="No",1,0))/ IF(EB52>=INT($N52),$N52-INT($N52),1)))* IF(EU$43=2,0, IF(INT(EC52)=INT(EB52),EC52-EB52,INT(EC52)-EB52))+ IF($N52<=1, IF($N52>0,1/$N52,0),VDB(1,0,$N52,INT(EU$43-2),MIN($N52,INT(EU$43-2)+1),$DC52,IF($DD52="No",1,0))/ IF(EC52>INT($N52),$N52-INT($N52),1))* IF(EU$43=2,EC52, IF(INT(EC52)=INT(EB52),0,EC52-INT(EC52))))) -> 0 | EV52: =+IF(OR(ED52=EC52,EV$43=1),0, IF(AND(EV$43>1,ED52=$N52),1-SUM($EN52:EU52), IF($N52<=1, IF($N52>0,1/$N52,0), IF(EV$43=2,0,VDB(1,0,$N52,INT(EV$43-2-1),MIN($N52,INT(EV$43-2-1)+1),$DC52,IF($DD52="No",1,0))/ IF(EC52>=INT($N52),$N52-INT($N52),1)))* IF(EV$43=2,0, IF(INT(ED52)=INT(EC52),ED52-EC52,INT(ED52)-EC52))+ IF($N52<=1, IF($N52>0,1/$N52,0),VDB(1,0,$N52,INT(EV$43-2),MIN($N52,INT(EV$43-2)+1),$DC52,IF($DD52="No",1,0))/ IF(ED52>INT($N52),$N52-INT($N52),1))* IF(EV$43=2,ED52, IF(INT(ED52)=INT(EC52),0,ED52-INT(ED52))))) -> 0 | EX52: 0 | EY52: 0 | EZ52: 0 | FA52: 0 | FB52: 0 | FC52: 0 | FD52: 0 | FE52: 0 | FG52: 0 | FH52: 0 | FI52: 0 | FJ52: 0 | FK52: 0 | FL52: 0 | FM52: 0 | FN52: 0
B53: 9 | C53: Olinda - Mitcham Water Mains Replacement Stage 1 | E53: Water | F53: Renewals | G53: Pipelines/Network | H53: Top 15 Major Projects | J53: Straight line | K53: 2022/2023 | L53: 150 | M53: Straight line | Q53: 4.62719902 | R53: 33.02840596 | S53: 0 | T53: 0 | U53: 0 | V53: 0 | W53: 0 | X53: 0 | Y53: 0 | Z53: 0 | AX53: 4.62719902 | AY53: 33.02840596 | AZ53: 0 | BA53: 0 | BB53: 0 | BC53: 0 | BD53: 0 | BE53: 0 | BF53: 0 | BG53: 0 | BI53: 0 | BJ53: 0.1255186833 | BK53: 0.2510373666 | BL53: 0.2510373666 | BM53: 0.2510373666 | BN53: 0.2510373666 | BO53: 0.2510373666 | BP53: 0.2510373666 | BQ53: 0.2510373666 | BR53: 0.2510373666 | BT53: =+IF($K53="Ongoing",AX53,IF(RIGHT($K53,2)=RIGHT(BT$42,2),SUM($AX53:AX53),0)+IF(RIGHT(BT$42,2)>RIGHT($K53,2),AX53,0)) -> 0 | BU53: =+IF($K53="Ongoing",AY53,IF(RIGHT($K53,2)=RIGHT(BU$42,2),SUM($AX53:AY53),0)+IF(RIGHT(BU$42,2)>RIGHT($K53,2),AY53,0)) -> 37.65560498 | BV53: =+IF($K53="Ongoing",AZ53,IF(RIGHT($K53,2)=RIGHT(BV$42,2),SUM($AX53:AZ53),0)+IF(RIGHT(BV$42,2)>RIGHT($K53,2),AZ53,0)) -> 0 | BW53: =+IF($K53="Ongoing",BA53,IF(RIGHT($K53,2)=RIGHT(BW$42,2),SUM($AX53:BA53),0)+IF(RIGHT(BW$42,2)>RIGHT($K53,2),BA53,0)) -> 0 | BX53: =+IF($K53="Ongoing",BB53,IF(RIGHT($K53,2)=RIGHT(BX$42,2),SUM($AX53:BB53),0)+IF(RIGHT(BX$42,2)>RIGHT($K53,2),BB53,0)) -> 0 | BY53: =+IF($K53="Ongoing",BC53,IF(RIGHT($K53,2)=RIGHT(BY$42,2),SUM($AX53:BC53),0)+IF(RIGHT(BY$42,2)>RIGHT($K53,2),BC53,0)) -> 0 | BZ53: =+IF($K53="Ongoing",BD53,IF(RIGHT($K53,2)=RIGHT(BZ$42,2),SUM($AX53:BD53),0)+IF(RIGHT(BZ$42,2)>RIGHT($K53,2),BD53,0)) -> 0 | CA53: =+IF($K53="Ongoing",BE53,IF(RIGHT($K53,2)=RIGHT(CA$42,2),SUM($AX53:BE53),0)+IF(RIGHT(CA$42,2)>RIGHT($K53,2),BE53,0)) -> 0 | CB53: =+IF($K53="Ongoing",BF53,IF(RIGHT($K53,2)=RIGHT(CB$42,2),SUM($AX53:BF53),0)+IF(RIGHT(CB$42,2)>RIGHT($K53,2),BF53,0)) -> 0 | CC53: =+IF($K53="Ongoing",BG53,IF(RIGHT($K53,2)=RIGHT(CC$42,2),SUM($AX53:BG53),0)+IF(RIGHT(CC$42,2)>RIGHT($K53,2),BG53,0)) -> 0 | CE53: =+Q53*KeyAssumptionsPriceControl_FO!AA$15 -> 4.705861403 | CF53: =+R53*KeyAssumptionsPriceControl_FO!AB$15 -> 34.16091698 | CG53: =+S53*KeyAssumptionsPriceControl_FO!AC$15 -> 0 | CH53: =+T53*KeyAssumptionsPriceControl_FO!AD$15 -> 0 | CI53: =+U53*KeyAssumptionsPriceControl_FO!AE$15 -> 0 | CJ53: =+V53*KeyAssumptionsPriceControl_FO!AF$15 -> 0 | CK53: =+W53*KeyAssumptionsPriceControl_FO!AG$15 -> 0 | CL53: =+X53*KeyAssumptionsPriceControl_FO!AH$15 -> 0 | CM53: =+Y53*KeyAssumptionsPriceControl_FO!AI$15 -> 0 | CN53: =+Z53*KeyAssumptionsPriceControl_FO!AJ$15 -> 0 | CP53: 0 | CQ53: 0 | CR53: 0 | CS53: 0 | CT53: 0 | CU53: 0 | CV53: 0 | CW53: 0 | CX53: 0 | CY53: 0 | DC53: must be > 0 | DD53: No | DE53: =+IF($K53="ongoing",CE53,IF(RIGHT($K53,2)=RIGHT(DE$42,2),SUM($CD53:CE53),0)+IF(RIGHT(DE$42,2)>RIGHT($K53,2),CE53,0)) -> 0 | DF53: =+IF($K53="ongoing",CF53,IF(RIGHT($K53,2)=RIGHT(DF$42,2),SUM($CD53:CF53),0)+IF(RIGHT(DF$42,2)>RIGHT($K53,2),CF53,0)) -> 0 | DG53: =+IF($K53="ongoing",CG53,IF(RIGHT($K53,2)=RIGHT(DG$42,2),SUM($CD53:CG53),0)+IF(RIGHT(DG$42,2)>RIGHT($K53,2),CG53,0)) -> 38.86677838 | DH53: =+IF($K53="ongoing",CH53,IF(RIGHT($K53,2)=RIGHT(DH$42,2),SUM($CD53:CH53),0)+IF(RIGHT(DH$42,2)>RIGHT($K53,2),CH53,0)) -> 0 | DI53: =+IF($K53="ongoing",CI53,IF(RIGHT($K53,2)=RIGHT(DI$42,2),SUM($CD53:CI53),0)+IF(RIGHT(DI$42,2)>RIGHT($K53,2),CI53,0)) -> 0 | DJ53: =+IF($K53="ongoing",CJ53,IF(RIGHT($K53,2)=RIGHT(DJ$42,2),SUM($CD53:CJ53),0)+IF(RIGHT(DJ$42,2)>RIGHT($K53,2),CJ53,0)) -> 0 | DK53: =+IF($K53="ongoing",CK53,IF(RIGHT($K53,2)=RIGHT(DK$42,2),SUM($CD53:CK53),0)+IF(RIGHT(DK$42,2)>RIGHT($K53,2),CK53,0)) -> 0 | DL53: =+IF($K53="ongoing",CN53,IF(RIGHT($K53,2)=RIGHT(DL$42,2),SUM($CD53:CN53),0)+IF(RIGHT(DL$42,2)>RIGHT($K53,2),CN53,0)) -> 0 | DN53: 0.5 | DO53: 1 | DP53: 1 | DQ53: 1 | DR53: 1 | DS53: 1 | DT53: 1 | DU53: 1 | DW53: 0 | DX53: 0.5 | DY53: 1 | DZ53: 1 | EA53: 1 | EB53: 1 | EC53: 1 | ED53: 1 | EF53: =+IF(DN53=DM53,0, IF(AND(EF$43>1,DN53=$N53),1-SUM($EE53:EE53), IF($N53<=1, IF($N53>0,1/$N53,0), IF(EF$43=1,0,VDB(1,0,$N53,INT(EF$43-1-1),MIN($N53,INT(EF$43-1-1)+1),$DC53,IF($DD53="No",1,0))/ IF(DM53>=INT($N53),$N53-INT($N53),1)))* IF(EF$43=1,0, IF(INT(DN53)=INT(DM53),DN53-DM53,INT(DN53)-DM53))+ IF($N53<=1, IF($N53>0,1/$N53,0),VDB(1,0,$N53,INT(EF$43-1),MIN($N53,INT(EF$43-1)+1),$DC53,IF($DD53="No",1,0))/ IF(DN53>INT($N53),$N53-INT($N53),1))* IF(EF$43=1,DN53, IF(INT(DN53)=INT(DM53),0,DN53-INT(DN53))))) -> 0 | EG53: =+IF(DO53=DN53,0, IF(AND(EG$43>1,DO53=$N53),1-SUM($EE53:EF53), IF($N53<=1, IF($N53>0,1/$N53,0), IF(EG$43=1,0,VDB(1,0,$N53,INT(EG$43-1-1),MIN($N53,INT(EG$43-1-1)+1),$DC53,IF($DD53="No",1,0))/ IF(DN53>=INT($N53),$N53-INT($N53),1)))* IF(EG$43=1,0, IF(INT(DO53)=INT(DN53),DO53-DN53,INT(DO53)-DN53))+ IF($N53<=1, IF($N53>0,1/$N53,0),VDB(1,0,$N53,INT(EG$43-1),MIN($N53,INT(EG$43-1)+1),$DC53,IF($DD53="No",1,0))/ IF(DO53>INT($N53),$N53-INT($N53),1))* IF(EG$43=1,DO53, IF(INT(DO53)=INT(DN53),0,DO53-INT(DO53))))) -> 0 | EH53: =+IF(DP53=DO53,0, IF(AND(EH$43>1,DP53=$N53),1-SUM($EE53:EG53), IF($N53<=1, IF($N53>0,1/$N53,0), IF(EH$43=1,0,VDB(1,0,$N53,INT(EH$43-1-1),MIN($N53,INT(EH$43-1-1)+1),$DC53,IF($DD53="No",1,0))/ IF(DO53>=INT($N53),$N53-INT($N53),1)))* IF(EH$43=1,0, IF(INT(DP53)=INT(DO53),DP53-DO53,INT(DP53)-DO53))+ IF($N53<=1, IF($N53>0,1/$N53,0),VDB(1,0,$N53,INT(EH$43-1),MIN($N53,INT(EH$43-1)+1),$DC53,IF($DD53="No",1,0))/ IF(DP53>INT($N53),$N53-INT($N53),1))* IF(EH$43=1,DP53, IF(INT(DP53)=INT(DO53),0,DP53-INT(DP53))))) -> 0 | EI53: =+IF(DQ53=DP53,0, IF(AND(EI$43>1,DQ53=$N53),1-SUM($EE53:EH53), IF($N53<=1, IF($N53>0,1/$N53,0), IF(EI$43=1,0,VDB(1,0,$N53,INT(EI$43-1-1),MIN($N53,INT(EI$43-1-1)+1),$DC53,IF($DD53="No",1,0))/ IF(DP53>=INT($N53),$N53-INT($N53),1)))* IF(EI$43=1,0, IF(INT(DQ53)=INT(DP53),DQ53-DP53,INT(DQ53)-DP53))+ IF($N53<=1, IF($N53>0,1/$N53,0),VDB(1,0,$N53,INT(EI$43-1),MIN($N53,INT(EI$43-1)+1),$DC53,IF($DD53="No",1,0))/ IF(DQ53>INT($N53),$N53-INT($N53),1))* IF(EI$43=1,DQ53, IF(INT(DQ53)=INT(DP53),0,DQ53-INT(DQ53))))) -> 0 | EJ53: =+IF(DR53=DQ53,0, IF(AND(EJ$43>1,DR53=$N53),1-SUM($EE53:EI53), IF($N53<=1, IF($N53>0,1/$N53,0), IF(EJ$43=1,0,VDB(1,0,$N53,INT(EJ$43-1-1),MIN($N53,INT(EJ$43-1-1)+1),$DC53,IF($DD53="No",1,0))/ IF(DQ53>=INT($N53),$N53-INT($N53),1)))* IF(EJ$43=1,0, IF(INT(DR53)=INT(DQ53),DR53-DQ53,INT(DR53)-DQ53))+ IF($N53<=1, IF($N53>0,1/$N53,0),VDB(1,0,$N53,INT(EJ$43-1),MIN($N53,INT(EJ$43-1)+1),$DC53,IF($DD53="No",1,0))/ IF(DR53>INT($N53),$N53-INT($N53),1))* IF(EJ$43=1,DR53, IF(INT(DR53)=INT(DQ53),0,DR53-INT(DR53))))) -> 0 | EK53: =+IF(DS53=DR53,0, IF(AND(EK$43>1,DS53=$N53),1-SUM($EE53:EJ53), IF($N53<=1, IF($N53>0,1/$N53,0), IF(EK$43=1,0,VDB(1,0,$N53,INT(EK$43-1-1),MIN($N53,INT(EK$43-1-1)+1),$DC53,IF($DD53="No",1,0))/ IF(DR53>=INT($N53),$N53-INT($N53),1)))* IF(EK$43=1,0, IF(INT(DS53)=INT(DR53),DS53-DR53,INT(DS53)-DR53))+ IF($N53<=1, IF($N53>0,1/$N53,0),VDB(1,0,$N53,INT(EK$43-1),MIN($N53,INT(EK$43-1)+1),$DC53,IF($DD53="No",1,0))/ IF(DS53>INT($N53),$N53-INT($N53),1))* IF(EK$43=1,DS53, IF(INT(DS53)=INT(DR53),0,DS53-INT(DS53))))) -> 0 | EL53: =+IF(DT53=DS53,0, IF(AND(EL$43>1,DT53=$N53),1-SUM($EE53:EK53), IF($N53<=1, IF($N53>0,1/$N53,0), IF(EL$43=1,0,VDB(1,0,$N53,INT(EL$43-1-1),MIN($N53,INT(EL$43-1-1)+1),$DC53,IF($DD53="No",1,0))/ IF(DS53>=INT($N53),$N53-INT($N53),1)))* IF(EL$43=1,0, IF(INT(DT53)=INT(DS53),DT53-DS53,INT(DT53)-DS53))+ IF($N53<=1, IF($N53>0,1/$N53,0),VDB(1,0,$N53,INT(EL$43-1),MIN($N53,INT(EL$43-1)+1),$DC53,IF($DD53="No",1,0))/ IF(DT53>INT($N53),$N53-INT($N53),1))* IF(EL$43=1,DT53, IF(INT(DT53)=INT(DS53),0,DT53-INT(DT53))))) -> 0 | EM53: =+IF(DU53=DT53,0, IF(AND(EM$43>1,DU53=$N53),1-SUM($EE53:EL53), IF($N53<=1, IF($N53>0,1/$N53,0), IF(EM$43=1,0,VDB(1,0,$N53,INT(EM$43-1-1),MIN($N53,INT(EM$43-1-1)+1),$DC53,IF($DD53="No",1,0))/ IF(DT53>=INT($N53),$N53-INT($N53),1)))* IF(EM$43=1,0, IF(INT(DU53)=INT(DT53),DU53-DT53,INT(DU53)-DT53))+ IF($N53<=1, IF($N53>0,1/$N53,0),VDB(1,0,$N53,INT(EM$43-1),MIN($N53,INT(EM$43-1)+1),$DC53,IF($DD53="No",1,0))/ IF(DU53>INT($N53),$N53-INT($N53),1))* IF(EM$43=1,DU53, IF(INT(DU53)=INT(DT53),0,DU53-INT(DU53))))) -> 0 | EO53: =+IF(OR(DW53=DV53,EO$43=1),0, IF(AND(EO$43>1,DW53=$N53),1-SUM($EN53:EN53), IF($N53<=1, IF($N53>0,1/$N53,0), IF(EO$43=2,0,VDB(1,0,$N53,INT(EO$43-2-1),MIN($N53,INT(EO$43-2-1)+1),$DC53,IF($DD53="No",1,0))/ IF(DV53>=INT($N53),$N53-INT($N53),1)))* IF(EO$43=2,0, IF(INT(DW53)=INT(DV53),DW53-DV53,INT(DW53)-DV53))+ IF($N53<=1, IF($N53>0,1/$N53,0),VDB(1,0,$N53,INT(EO$43-2),MIN($N53,INT(EO$43-2)+1),$DC53,IF($DD53="No",1,0))/ IF(DW53>INT($N53),$N53-INT($N53),1))* IF(EO$43=2,DW53, IF(INT(DW53)=INT(DV53),0,DW53-INT(DW53))))) -> 0 | EP53: =+IF(OR(DX53=DW53,EP$43=1),0, IF(AND(EP$43>1,DX53=$N53),1-SUM($EN53:EO53), IF($N53<=1, IF($N53>0,1/$N53,0), IF(EP$43=2,0,VDB(1,0,$N53,INT(EP$43-2-1),MIN($N53,INT(EP$43-2-1)+1),$DC53,IF($DD53="No",1,0))/ IF(DW53>=INT($N53),$N53-INT($N53),1)))* IF(EP$43=2,0, IF(INT(DX53)=INT(DW53),DX53-DW53,INT(DX53)-DW53))+ IF($N53<=1, IF($N53>0,1/$N53,0),VDB(1,0,$N53,INT(EP$43-2),MIN($N53,INT(EP$43-2)+1),$DC53,IF($DD53="No",1,0))/ IF(DX53>INT($N53),$N53-INT($N53),1))* IF(EP$43=2,DX53, IF(INT(DX53)=INT(DW53),0,DX53-INT(DX53))))) -> 0 | EQ53: =+IF(OR(DY53=DX53,EQ$43=1),0, IF(AND(EQ$43>1,DY53=$N53),1-SUM($EN53:EP53), IF($N53<=1, IF($N53>0,1/$N53,0), IF(EQ$43=2,0,VDB(1,0,$N53,INT(EQ$43-2-1),MIN($N53,INT(EQ$43-2-1)+1),$DC53,IF($DD53="No",1,0))/ IF(DX53>=INT($N53),$N53-INT($N53),1)))* IF(EQ$43=2,0, IF(INT(DY53)=INT(DX53),DY53-DX53,INT(DY53)-DX53))+ IF($N53<=1, IF($N53>0,1/$N53,0),VDB(1,0,$N53,INT(EQ$43-2),MIN($N53,INT(EQ$43-2)+1),$DC53,IF($DD53="No",1,0))/ IF(DY53>INT($N53),$N53-INT($N53),1))* IF(EQ$43=2,DY53, IF(INT(DY53)=INT(DX53),0,DY53-INT(DY53))))) -> 0 | ER53: =+IF(OR(DZ53=DY53,ER$43=1),0, IF(AND(ER$43>1,DZ53=$N53),1-SUM($EN53:EQ53), IF($N53<=1, IF($N53>0,1/$N53,0), IF(ER$43=2,0,VDB(1,0,$N53,INT(ER$43-2-1),MIN($N53,INT(ER$43-2-1)+1),$DC53,IF($DD53="No",1,0))/ IF(DY53>=INT($N53),$N53-INT($N53),1)))* IF(ER$43=2,0, IF(INT(DZ53)=INT(DY53),DZ53-DY53,INT(DZ53)-DY53))+ IF($N53<=1, IF($N53>0,1/$N53,0),VDB(1,0,$N53,INT(ER$43-2),MIN($N53,INT(ER$43-2)+1),$DC53,IF($DD53="No",1,0))/ IF(DZ53>INT($N53),$N53-INT($N53),1))* IF(ER$43=2,DZ53, IF(INT(DZ53)=INT(DY53),0,DZ53-INT(DZ53))))) -> 0 | ES53: =+IF(OR(EA53=DZ53,ES$43=1),0, IF(AND(ES$43>1,EA53=$N53),1-SUM($EN53:ER53), IF($N53<=1, IF($N53>0,1/$N53,0), IF(ES$43=2,0,VDB(1,0,$N53,INT(ES$43-2-1),MIN($N53,INT(ES$43-2-1)+1),$DC53,IF($DD53="No",1,0))/ IF(DZ53>=INT($N53),$N53-INT($N53),1)))* IF(ES$43=2,0, IF(INT(EA53)=INT(DZ53),EA53-DZ53,INT(EA53)-DZ53))+ IF($N53<=1, IF($N53>0,1/$N53,0),VDB(1,0,$N53,INT(ES$43-2),MIN($N53,INT(ES$43-2)+1),$DC53,IF($DD53="No",1,0))/ IF(EA53>INT($N53),$N53-INT($N53),1))* IF(ES$43=2,EA53, IF(INT(EA53)=INT(DZ53),0,EA53-INT(EA53))))) -> 0 | ET53: =+IF(OR(EB53=EA53,ET$43=1),0, IF(AND(ET$43>1,EB53=$N53),1-SUM($EN53:ES53), IF($N53<=1, IF($N53>0,1/$N53,0), IF(ET$43=2,0,VDB(1,0,$N53,INT(ET$43-2-1),MIN($N53,INT(ET$43-2-1)+1),$DC53,IF($DD53="No",1,0))/ IF(EA53>=INT($N53),$N53-INT($N53),1)))* IF(ET$43=2,0, IF(INT(EB53)=INT(EA53),EB53-EA53,INT(EB53)-EA53))+ IF($N53<=1, IF($N53>0,1/$N53,0),VDB(1,0,$N53,INT(ET$43-2),MIN($N53,INT(ET$43-2)+1),$DC53,IF($DD53="No",1,0))/ IF(EB53>INT($N53),$N53-INT($N53),1))* IF(ET$43=2,EB53, IF(INT(EB53)=INT(EA53),0,EB53-INT(EB53))))) -> 0 | EU53: =+IF(OR(EC53=EB53,EU$43=1),0, IF(AND(EU$43>1,EC53=$N53),1-SUM($EN53:ET53), IF($N53<=1, IF($N53>0,1/$N53,0), IF(EU$43=2,0,VDB(1,0,$N53,INT(EU$43-2-1),MIN($N53,INT(EU$43-2-1)+1),$DC53,IF($DD53="No",1,0))/ IF(EB53>=INT($N53),$N53-INT($N53),1)))* IF(EU$43=2,0, IF(INT(EC53)=INT(EB53),EC53-EB53,INT(EC53)-EB53))+ IF($N53<=1, IF($N53>0,1/$N53,0),VDB(1,0,$N53,INT(EU$43-2),MIN($N53,INT(EU$43-2)+1),$DC53,IF($DD53="No",1,0))/ IF(EC53>INT($N53),$N53-INT($N53),1))* IF(EU$43=2,EC53, IF(INT(EC53)=INT(EB53),0,EC53-INT(EC53))))) -> 0 | EV53: =+IF(OR(ED53=EC53,EV$43=1),0, IF(AND(EV$43>1,ED53=$N53),1-SUM($EN53:EU53), IF($N53<=1, IF($N53>0,1/$N53,0), IF(EV$43=2,0,VDB(1,0,$N53,INT(EV$43-2-1),MIN($N53,INT(EV$43-2-1)+1),$DC53,IF($DD53="No",1,0))/ IF(EC53>=INT($N53),$N53-INT($N53),1)))* IF(EV$43=2,0, IF(INT(ED53)=INT(EC53),ED53-EC53,INT(ED53)-EC53))+ IF($N53<=1, IF($N53>0,1/$N53,0),VDB(1,0,$N53,INT(EV$43-2),MIN($N53,INT(EV$43-2)+1),$DC53,IF($DD53="No",1,0))/ IF(ED53>INT($N53),$N53-INT($N53),1))* IF(EV$43=2,ED53, IF(INT(ED53)=INT(EC53),0,ED53-INT(ED53))))) -> 0 | EX53: 0 | EY53: 0 | EZ53: 0 | FA53: 0 | FB53: 0 | FC53: 0 | FD53: 0 | FE53: 0 | FG53: 0 | FH53: 0 | FI53: 0 | FJ53: 0 | FK53: 0 | FL53: 0 | FM53: 0 | FN53: 0
B54: 10 | C54: Mt Atkinson Reservoir Inlet Pipeline | E54: Water | F54: Growth | G54: Pipelines/Network | H54: Top 15 Major Projects | J54: Straight line | K54: 2023/2024 | L54: 150 | M54: Straight line | Q54: 0.4803921569 | R54: 28.53444556 | S54: 2.440461215 | T54: 0 | U54: 0 | V54: 0 | W54: 0 | X54: 0 | Y54: 0 | Z54: 0 | AX54: =+Q54-AB54-AM54 -> 0.4803921569 | AY54: =+R54-AC54-AN54 -> 28.53444556 | AZ54: =+S54-AD54-AO54 -> 2.440461215 | BA54: =+T54-AE54-AP54 -> 0 | BB54: =+U54-AF54-AQ54 -> 0 | BC54: =+V54-AG54-AR54 -> 0 | BD54: =+W54-AH54-AS54 -> 0 | BE54: =+X54-AI54-AT54 -> 0 | BF54: =+Y54-AJ54-AU54 -> 0 | BG54: =+Z54-AK54-AV54 -> 0 | BI54: =IF($L54=0,0, IF($L54<=0.5,BT54, IF($J54="straight line", IF((LEFT(BI$42,4)*1)-INT($L54)<LEFT($BI$42,4)*1,0,((OFFSET(BT54,0,-INT($L54+0.5),1,1))/$L54)*(IF($L54-INT($L54)>0.5,$L54-0.5-INT($L54),IF($L54-INT($L54)<=0.5,$L54-0.5-INT($L54)+1,0)))) +BT54/$L54*0.5, IF($J54="Declining Balance",-$BI$41,0)))) -> 0 | BJ54: =IF($L54=0,0, IF($L54<=0.5,BU54, IF(AND($J54="straight line",$L54<1.51),(BT54-((BT54/$L54)*0.5))+BU54/$L54*0.5, IF($J54="straight line", IF((LEFT(BJ$42,4)*1)-INT($L54)<LEFT($BI$42,4)*1,0,((OFFSET(BU54,0,-INT($L54+0.5),1,1))/$L54)*(IF($L54-INT($L54)>0.5,$L54-0.5-INT($L54),IF($L54-INT($L54)<=0.5,$L54-0.5-INT($L54)+1,0)))) +BU54/$L54*0.5 +SUM(OFFSET(BU54,0,MAX(-INT($L54+(0.5-(10^-12))),-BJ$43)+1,1,MIN(INT($L54+(0.5-(10^-12))),BJ$43)-1))*1/$L54, IF($J54="Declining Balance",-$BI$41,0))))) -> 0 | BK54: =IF($L54=0,0, IF($L54<=0.5,BV54, IF(AND($J54="straight line",$L54<1.51),(BU54-((BU54/$L54)*0.5))+BV54/$L54*0.5, IF($J54="straight line", IF((LEFT(BK$42,4)*1)-INT($L54)<LEFT($BI$42,4)*1,0,((OFFSET(BV54,0,-INT($L54+0.5),1,1))/$L54)*(IF($L54-INT($L54)>0.5,$L54-0.5-INT($L54),IF($L54-INT($L54)<=0.5,$L54-0.5-INT($L54)+1,0)))) +BV54/$L54*0.5 +SUM(OFFSET(BV54,0,MAX(-INT($L54+(0.5-(10^-12))),-BK$43)+1,1,MIN(INT($L54+(0.5-(10^-12))),BK$43)-1))*1/$L54, IF($J54="Declining Balance",-$BI$41,0))))) -> 0.1048509965 | BL54: =IF($L54=0,0, IF($L54<=0.5,BW54, IF(AND($J54="straight line",$L54<1.51),(BV54-((BV54/$L54)*0.5))+BW54/$L54*0.5, IF($J54="straight line", IF((LEFT(BL$42,4)*1)-INT($L54)<LEFT($BI$42,4)*1,0,((OFFSET(BW54,0,-INT($L54+0.5),1,1))/$L54)*(IF($L54-INT($L54)>0.5,$L54-0.5-INT($L54),IF($L54-INT($L54)<=0.5,$L54-0.5-INT($L54)+1,0)))) +BW54/$L54*0.5 +SUM(OFFSET(BW54,0,MAX(-INT($L54+(0.5-(10^-12))),-BL$43)+1,1,MIN(INT($L54+(0.5-(10^-12))),BL$43)-1))*1/$L54, IF($J54="Declining Balance",-$BI$41,0))))) -> 0.2097019929 | BM54: =IF($L54=0,0, IF($L54<=0.5,BX54, IF(AND($J54="straight line",$L54<1.51),(BW54-((BW54/$L54)*0.5))+BX54/$L54*0.5, IF($J54="straight line", IF((LEFT(BM$42,4)*1)-INT($L54)<LEFT($BI$42,4)*1,0,((OFFSET(BX54,0,-INT($L54+0.5),1,1))/$L54)*(IF($L54-INT($L54)>0.5,$L54-0.5-INT($L54),IF($L54-INT($L54)<=0.5,$L54-0.5-INT($L54)+1,0)))) +BX54/$L54*0.5 +SUM(OFFSET(BX54,0,MAX(-INT($L54+(0.5-(10^-12))),-BM$43)+1,1,MIN(INT($L54+(0.5-(10^-12))),BM$43)-1))*1/$L54, IF($J54="Declining Balance",-$BI$41,0))))) -> 0.2097019929 | BN54: =IF($L54=0,0, IF($L54<=0.5,BY54, IF(AND($J54="straight line",$L54<1.51),(BX54-((BX54/$L54)*0.5))+BY54/$L54*0.5, IF($J54="straight line", IF((LEFT(BN$42,4)*1)-INT($L54)<LEFT($BI$42,4)*1,0,((OFFSET(BY54,0,-INT($L54+0.5),1,1))/$L54)*(IF($L54-INT($L54)>0.5,$L54-0.5-INT($L54),IF($L54-INT($L54)<=0.5,$L54-0.5-INT($L54)+1,0)))) +BY54/$L54*0.5 +SUM(OFFSET(BY54,0,MAX(-INT($L54+(0.5-(10^-12))),-BN$43)+1,1,MIN(INT($L54+(0.5-(10^-12))),BN$43)-1))*1/$L54, IF($J54="Declining Balance",-$BI$41,0))))) -> 0.2097019929 | BO54: =IF($L54=0,0, IF($L54<=0.5,BZ54, IF(AND($J54="straight line",$L54<1.51),(BY54-((BY54/$L54)*0.5))+BZ54/$L54*0.5, IF($J54="straight line", IF((LEFT(BO$42,4)*1)-INT($L54)<LEFT($BI$42,4)*1,0,((OFFSET(BZ54,0,-INT($L54+0.5),1,1))/$L54)*(IF($L54-INT($L54)>0.5,$L54-0.5-INT($L54),IF($L54-INT($L54)<=0.5,$L54-0.5-INT($L54)+1,0)))) +BZ54/$L54*0.5 +SUM(OFFSET(BZ54,0,MAX(-INT($L54+(0.5-(10^-12))),-BO$43)+1,1,MIN(INT($L54+(0.5-(10^-12))),BO$43)-1))*1/$L54, IF($J54="Declining Balance",-$BI$41,0))))) -> 0.2097019929 | BP54: =IF($L54=0,0, IF($L54<=0.5,CA54, IF(AND($J54="straight line",$L54<1.51),(BZ54-((BZ54/$L54)*0.5))+CA54/$L54*0.5, IF($J54="straight line", IF((LEFT(BP$42,4)*1)-INT($L54)<LEFT($BI$42,4)*1,0,((OFFSET(CA54,0,-INT($L54+0.5),1,1))/$L54)*(IF($L54-INT($L54)>0.5,$L54-0.5-INT($L54),IF($L54-INT($L54)<=0.5,$L54-0.5-INT($L54)+1,0)))) +CA54/$L54*0.5 +SUM(OFFSET(CA54,0,MAX(-INT($L54+(0.5-(10^-12))),-BP$43)+1,1,MIN(INT($L54+(0.5-(10^-12))),BP$43)-1))*1/$L54, IF($J54="Declining Balance",-$BI$41,0))))) -> 0.2097019929 | BQ54: =IF($L54=0,0, IF($L54<=0.5,CB54, IF(AND($J54="straight line",$L54<1.51),(CA54-((CA54/$L54)*0.5))+CB54/$L54*0.5, IF($J54="straight line", IF((LEFT(BQ$42,4)*1)-INT($L54)<LEFT($BI$42,4)*1,0,((OFFSET(CB54,0,-INT($L54+0.5),1,1))/$L54)*(IF($L54-INT($L54)>0.5,$L54-0.5-INT($L54),IF($L54-INT($L54)<=0.5,$L54-0.5-INT($L54)+1,0)))) +CB54/$L54*0.5 +SUM(OFFSET(CB54,0,MAX(-INT($L54+(0.5-(10^-12))),-BQ$43)+1,1,MIN(INT($L54+(0.5-(10^-12))),BQ$43)-1))*1/$L54, IF($J54="Declining Balance",-$BI$41,0))))) -> 0.2097019929 | BR54: =IF($L54=0,0, IF($L54<=0.5,CC54, IF(AND($J54="straight line",$L54<1.51),(CB54-((CB54/$L54)*0.5))+CC54/$L54*0.5, IF($J54="straight line", IF((LEFT(BR$42,4)*1)-INT($L54)<LEFT($BI$42,4)*1,0,((OFFSET(CC54,0,-INT($L54+0.5),1,1))/$L54)*(IF($L54-INT($L54)>0.5,$L54-0.5-INT($L54),IF($L54-INT($L54)<=0.5,$L54-0.5-INT($L54)+1,0)))) +CC54/$L54*0.5 +SUM(OFFSET(CC54,0,MAX(-INT($L54+(0.5-(10^-12))),-BR$43)+1,1,MIN(INT($L54+(0.5-(10^-12))),BR$43)-1))*1/$L54, IF($J54="Declining Balance",-$BI$41,0))))) -> 0.2097019929 | BT54: =+IF($K54="Ongoing",AX54,IF(RIGHT($K54,2)=RIGHT(BT$42,2),SUM($AX54:AX54),0)+IF(RIGHT(BT$42,2)>RIGHT($K54,2),AX54,0)) -> 0 | BU54: =+IF($K54="Ongoing",AY54,IF(RIGHT($K54,2)=RIGHT(BU$42,2),SUM($AX54:AY54),0)+IF(RIGHT(BU$42,2)>RIGHT($K54,2),AY54,0)) -> 0 | BV54: =+IF($K54="Ongoing",AZ54,IF(RIGHT($K54,2)=RIGHT(BV$42,2),SUM($AX54:AZ54),0)+IF(RIGHT(BV$42,2)>RIGHT($K54,2),AZ54,0)) -> 31.45529894 | BW54: =+IF($K54="Ongoing",BA54,IF(RIGHT($K54,2)=RIGHT(BW$42,2),SUM($AX54:BA54),0)+IF(RIGHT(BW$42,2)>RIGHT($K54,2),BA54,0)) -> 0 | BX54: =+IF($K54="Ongoing",BB54,IF(RIGHT($K54,2)=RIGHT(BX$42,2),SUM($AX54:BB54),0)+IF(RIGHT(BX$42,2)>RIGHT($K54,2),BB54,0)) -> 0 | BY54: =+IF($K54="Ongoing",BC54,IF(RIGHT($K54,2)=RIGHT(BY$42,2),SUM($AX54:BC54),0)+IF(RIGHT(BY$42,2)>RIGHT($K54,2),BC54,0)) -> 0 | BZ54: =+IF($K54="Ongoing",BD54,IF(RIGHT($K54,2)=RIGHT(BZ$42,2),SUM($AX54:BD54),0)+IF(RIGHT(BZ$42,2)>RIGHT($K54,2),BD54,0)) -> 0 | CA54: =+IF($K54="Ongoing",BE54,IF(RIGHT($K54,2)=RIGHT(CA$42,2),SUM($AX54:BE54),0)+IF(RIGHT(CA$42,2)>RIGHT($K54,2),BE54,0)) -> 0 | CB54: =+IF($K54="Ongoing",BF54,IF(RIGHT($K54,2)=RIGHT(CB$42,2),SUM($AX54:BF54),0)+IF(RIGHT(CB$42,2)>RIGHT($K54,2),BF54,0)) -> 0 | CC54: =+IF($K54="Ongoing",BG54,IF(RIGHT($K54,2)=RIGHT(CC$42,2),SUM($AX54:BG54),0)+IF(RIGHT(CC$42,2)>RIGHT($K54,2),BG54,0)) -> 0 | CE54: =+Q54*KeyAssumptionsPriceControl_FO!AA$15 -> 0.4885588235 | CF54: =+R54*KeyAssumptionsPriceControl_FO!AB$15 -> 29.51286317 | CG54: =+S54*KeyAssumptionsPriceControl_FO!AC$15 -> 2.567052607 | CH54: =+T54*KeyAssumptionsPriceControl_FO!AD$15 -> 0 | CI54: =+U54*KeyAssumptionsPriceControl_FO!AE$15 -> 0 | CJ54: =+V54*KeyAssumptionsPriceControl_FO!AF$15 -> 0 | CK54: =+W54*KeyAssumptionsPriceControl_FO!AG$15 -> 0 | CL54: =+X54*KeyAssumptionsPriceControl_FO!AH$15 -> 0 | CM54: =+Y54*KeyAssumptionsPriceControl_FO!AI$15 -> 0 | CN54: =+Z54*KeyAssumptionsPriceControl_FO!AJ$15 -> 0 | CP54: =IF($M54="straight line",IF($N54=0,0, IF($N54<=0.5,CE54, IF($J54="straight line", IF((LEFT(CP$42,4)*1)-INT($N54)<LEFT($CP$42,4)*1,0,((OFFSET(CE54,0,-INT($N54+0.5),1,1))/$N54)*(IF($N54-INT($N54)>0.5,$N54-0.5-INT($N54),IF($N54-INT($N54)<=0.5,$N54-0.5-INT($N54)+1,0)))) +CE54/$N54*0.5, IF($J54="Declining Balance",-$CP$41,0)))),IFERROR(FG54,0)) -> 0 | CQ54: =IF($M54="straight line",IF($N54=0,0, IF($N54<=0.5,CF54, IF($J54="straight line", IF((LEFT(CQ$42,4)*1)-INT($N54)<LEFT($CP$42,4)*1,0,((OFFSET(CF54,0,-INT($N54+0.5),1,1))/$N54)*(IF($N54-INT($N54)>0.5,$N54-0.5-INT($N54),IF($N54-INT($N54)<=0.5,$N54-0.5-INT($N54)+1,0)))) +CF54/$N54*0.5, IF($J54="Declining Balance",-$CP$41,0)))),IFERROR(FH54,0)) -> 0 | CR54: =IF($M54="straight line",IF($N54=0,0, IF($N54<=0.5,CG54, IF($J54="straight line", IF((LEFT(CR$42,4)*1)-INT($N54)<LEFT($CP$42,4)*1,0,((OFFSET(CG54,0,-INT($N54+0.5),1,1))/$N54)*(IF($N54-INT($N54)>0.5,$N54-0.5-INT($N54),IF($N54-INT($N54)<=0.5,$N54-0.5-INT($N54)+1,0)))) +CG54/$N54*0.5, IF($J54="Declining Balance",-$CP$41,0)))),IFERROR(FI54,0)) -> 0 | CS54: =IF($M54="straight line",IF($N54=0,0, IF($N54<=0.5,CH54, IF($J54="straight line", IF((LEFT(CS$42,4)*1)-INT($N54)<LEFT($CP$42,4)*1,0,((OFFSET(CH54,0,-INT($N54+0.5),1,1))/$N54)*(IF($N54-INT($N54)>0.5,$N54-0.5-INT($N54),IF($N54-INT($N54)<=0.5,$N54-0.5-INT($N54)+1,0)))) +CH54/$N54*0.5, IF($J54="Declining Balance",-$CP$41,0)))),IFERROR(FJ54,0)) -> 0 | CT54: =IF($M54="straight line",IF($N54=0,0, IF($N54<=0.5,CI54, IF($J54="straight line", IF((LEFT(CT$42,4)*1)-INT($N54)<LEFT($CP$42,4)*1,0,((OFFSET(CI54,0,-INT($N54+0.5),1,1))/$N54)*(IF($N54-INT($N54)>0.5,$N54-0.5-INT($N54),IF($N54-INT($N54)<=0.5,$N54-0.5-INT($N54)+1,0)))) +CI54/$N54*0.5, IF($J54="Declining Balance",-$CP$41,0)))),IFERROR(FK54,0)) -> 0 | CU54: =IF($M54="straight line",IF($N54=0,0, IF($N54<=0.5,CJ54, IF($J54="straight line", IF((LEFT(CU$42,4)*1)-INT($N54)<LEFT($CP$42,4)*1,0,((OFFSET(CJ54,0,-INT($N54+0.5),1,1))/$N54)*(IF($N54-INT($N54)>0.5,$N54-0.5-INT($N54),IF($N54-INT($N54)<=0.5,$N54-0.5-INT($N54)+1,0)))) +CJ54/$N54*0.5, IF($J54="Declining Balance",-$CP$41,0)))),IFERROR(FL54,0)) -> 0 | CV54: =IF($M54="straight line",IF($N54=0,0, IF($N54<=0.5,CK54, IF($J54="straight line", IF((LEFT(CV$42,4)*1)-INT($N54)<LEFT($CP$42,4)*1,0,((OFFSET(CK54,0,-INT($N54+0.5),1,1))/$N54)*(IF($N54-INT($N54)>0.5,$N54-0.5-INT($N54),IF($N54-INT($N54)<=0.5,$N54-0.5-INT($N54)+1,0)))) +CK54/$N54*0.5, IF($J54="Declining Balance",-$CP$41,0)))),IFERROR(FM54,0)) -> 0 | CW54: =IF($M54="straight line",IF($N54=0,0, IF($N54<=0.5,CL54, IF($J54="straight line", IF((LEFT(CW$42,4)*1)-INT($N54)<LEFT($CP$42,4)*1,0,((OFFSET(CL54,0,-INT($N54+0.5),1,1))/$N54)*(IF($N54-INT($N54)>0.5,$N54-0.5-INT($N54),IF($N54-INT($N54)<=0.5,$N54-0.5-INT($N54)+1,0)))) +CL54/$N54*0.5, IF($J54="Declining Balance",-$CP$41,0)))),IFERROR(FN54,0)) -> 0 | CX54: =IF($M54="straight line",IF($N54=0,0, IF($N54<=0.5,CM54, IF($J54="straight line", IF((LEFT(CX$42,4)*1)-INT($N54)<LEFT($CP$42,4)*1,0,((OFFSET(CM54,0,-INT($N54+0.5),1,1))/$N54)*(IF($N54-INT($N54)>0.5,$N54-0.5-INT($N54),IF($N54-INT($N54)<=0.5,$N54-0.5-INT($N54)+1,0)))) +CM54/$N54*0.5, IF($J54="Declining Balance",-$CP$41,0)))),IFERROR(FO54,0)) -> 0 | CY54: =IF($M54="straight line",IF($N54=0,0, IF($N54<=0.5,CN54, IF($J54="straight line", IF((LEFT(CY$42,4)*1)-INT($N54)<LEFT($CP$42,4)*1,0,((OFFSET(CN54,0,-INT($N54+0.5),1,1))/$N54)*(IF($N54-INT($N54)>0.5,$N54-0.5-INT($N54),IF($N54-INT($N54)<=0.5,$N54-0.5-INT($N54)+1,0)))) +CN54/$N54*0.5, IF($J54="Declining Balance",-$CP$41,0)))),IFERROR(FP54,0)) -> 0 | DC54: must be > 1 | DD54: No | DE54: =+IF($K54="ongoing",CE54,IF(RIGHT($K54,2)=RIGHT(DE$42,2),SUM($CD54:CE54),0)+IF(RIGHT(DE$42,2)>RIGHT($K54,2),CE54,0)) -> 0 | DF54: =+IF($K54="ongoing",CF54,IF(RIGHT($K54,2)=RIGHT(DF$42,2),SUM($CD54:CF54),0)+IF(RIGHT(DF$42,2)>RIGHT($K54,2),CF54,0)) -> 0 | DG54: =+IF($K54="ongoing",CG54,IF(RIGHT($K54,2)=RIGHT(DG$42,2),SUM($CD54:CG54),0)+IF(RIGHT(DG$42,2)>RIGHT($K54,2),CG54,0)) -> 0 | DH54: =+IF($K54="ongoing",CH54,IF(RIGHT($K54,2)=RIGHT(DH$42,2),SUM($CD54:CH54),0)+IF(RIGHT(DH$42,2)>RIGHT($K54,2),CH54,0)) -> 32.5684746 | DI54: =+IF($K54="ongoing",CI54,IF(RIGHT($K54,2)=RIGHT(DI$42,2),SUM($CD54:CI54),0)+IF(RIGHT(DI$42,2)>RIGHT($K54,2),CI54,0)) -> 0 | DJ54: =+IF($K54="ongoing",CJ54,IF(RIGHT($K54,2)=RIGHT(DJ$42,2),SUM($CD54:CJ54),0)+IF(RIGHT(DJ$42,2)>RIGHT($K54,2),CJ54,0)) -> 0 | DK54: =+IF($K54="ongoing",CK54,IF(RIGHT($K54,2)=RIGHT(DK$42,2),SUM($CD54:CK54),0)+IF(RIGHT(DK$42,2)>RIGHT($K54,2),CK54,0)) -> 0 | DL54: =+IF($K54="ongoing",CN54,IF(RIGHT($K54,2)=RIGHT(DL$42,2),SUM($CD54:CN54),0)+IF(RIGHT(DL$42,2)>RIGHT($K54,2),CN54,0)) -> 0 | DN54: =+MIN(IF($N54<=$DC54,MIN($N54,1),$N54),IF(DN$43=1,0.5,DM54+1)) -> 0.5 | DO54: =+MIN(IF($N54<=$DC54,MIN($N54,1),$N54),IF(DO$43=1,0.5,DN54+1)) -> 1 | DP54: =+MIN(IF($N54<=$DC54,MIN($N54,1),$N54),IF(DP$43=1,0.5,DO54+1)) -> 1 | DQ54: =+MIN(IF($N54<=$DC54,MIN($N54,1),$N54),IF(DQ$43=1,0.5,DP54+1)) -> 1 | DR54: =+MIN(IF($N54<=$DC54,MIN($N54,1),$N54),IF(DR$43=1,0.5,DQ54+1)) -> 1 | DS54: =+MIN(IF($N54<=$DC54,MIN($N54,1),$N54),IF(DS$43=1,0.5,DR54+1)) -> 1 | DT54: =+MIN(IF($N54<=$DC54,MIN($N54,1),$N54),IF(DT$43=1,0.5,DS54+1)) -> 1 | DU54: =+MIN(IF($N54<=$DC54,MIN($N54,1),$N54),IF(DU$43=1,0.5,DT54+1)) -> 1 | DW54: =+IF(DW$43=1,0,MIN(IF($N54<=$DC54,MIN($N54,1),$N54),IF(DW$43=2,0.5,DV54+1))) -> 0 | DX54: =+IF(DX$43=1,0,MIN(IF($N54<=$DC54,MIN($N54,1),$N54),IF(DX$43=2,0.5,DW54+1))) -> 0.5 | DY54: =+IF(DY$43=1,0,MIN(IF($N54<=$DC54,MIN($N54,1),$N54),IF(DY$43=2,0.5,DX54+1))) -> 1 | DZ54: =+IF(DZ$43=1,0,MIN(IF($N54<=$DC54,MIN($N54,1),$N54),IF(DZ$43=2,0.5,DY54+1))) -> 1 | EA54: =+IF(EA$43=1,0,MIN(IF($N54<=$DC54,MIN($N54,1),$N54),IF(EA$43=2,0.5,DZ54+1))) -> 1 | EB54: =+IF(EB$43=1,0,MIN(IF($N54<=$DC54,MIN($N54,1),$N54),IF(EB$43=2,0.5,EA54+1))) -> 1 | EC54: =+IF(EC$43=1,0,MIN(IF($N54<=$DC54,MIN($N54,1),$N54),IF(EC$43=2,0.5,EB54+1))) -> 1 | ED54: =+IF(ED$43=1,0,MIN(IF($N54<=$DC54,MIN($N54,1),$N54),IF(ED$43=2,0.5,EC54+1))) -> 1 | EF54: =+IF(DN54=DM54,0, IF(AND(EF$43>1,DN54=$N54),1-SUM($EE54:EE54), IF($N54<=1, IF($N54>0,1/$N54,0), IF(EF$43=1,0,VDB(1,0,$N54,INT(EF$43-1-1),MIN($N54,INT(EF$43-1-1)+1),$DC54,IF($DD54="No",1,0))/ IF(DM54>=INT($N54),$N54-INT($N54),1)))* IF(EF$43=1,0, IF(INT(DN54)=INT(DM54),DN54-DM54,INT(DN54)-DM54))+ IF($N54<=1, IF($N54>0,1/$N54,0),VDB(1,0,$N54,INT(EF$43-1),MIN($N54,INT(EF$43-1)+1),$DC54,IF($DD54="No",1,0))/ IF(DN54>INT($N54),$N54-INT($N54),1))* IF(EF$43=1,DN54, IF(INT(DN54)=INT(DM54),0,DN54-INT(DN54))))) -> 0 | EG54: =+IF(DO54=DN54,0, IF(AND(EG$43>1,DO54=$N54),1-SUM($EE54:EF54), IF($N54<=1, IF($N54>0,1/$N54,0), IF(EG$43=1,0,VDB(1,0,$N54,INT(EG$43-1-1),MIN($N54,INT(EG$43-1-1)+1),$DC54,IF($DD54="No",1,0))/ IF(DN54>=INT($N54),$N54-INT($N54),1)))* IF(EG$43=1,0, IF(INT(DO54)=INT(DN54),DO54-DN54,INT(DO54)-DN54))+ IF($N54<=1, IF($N54>0,1/$N54,0),VDB(1,0,$N54,INT(EG$43-1),MIN($N54,INT(EG$43-1)+1),$DC54,IF($DD54="No",1,0))/ IF(DO54>INT($N54),$N54-INT($N54),1))* IF(EG$43=1,DO54, IF(INT(DO54)=INT(DN54),0,DO54-INT(DO54))))) -> 0 | EH54: =+IF(DP54=DO54,0, IF(AND(EH$43>1,DP54=$N54),1-SUM($EE54:EG54), IF($N54<=1, IF($N54>0,1/$N54,0), IF(EH$43=1,0,VDB(1,0,$N54,INT(EH$43-1-1),MIN($N54,INT(EH$43-1-1)+1),$DC54,IF($DD54="No",1,0))/ IF(DO54>=INT($N54),$N54-INT($N54),1)))* IF(EH$43=1,0, IF(INT(DP54)=INT(DO54),DP54-DO54,INT(DP54)-DO54))+ IF($N54<=1, IF($N54>0,1/$N54,0),VDB(1,0,$N54,INT(EH$43-1),MIN($N54,INT(EH$43-1)+1),$DC54,IF($DD54="No",1,0))/ IF(DP54>INT($N54),$N54-INT($N54),1))* IF(EH$43=1,DP54, IF(INT(DP54)=INT(DO54),0,DP54-INT(DP54))))) -> 0 | EI54: =+IF(DQ54=DP54,0, IF(AND(EI$43>1,DQ54=$N54),1-SUM($EE54:EH54), IF($N54<=1, IF($N54>0,1/$N54,0), IF(EI$43=1,0,VDB(1,0,$N54,INT(EI$43-1-1),MIN($N54,INT(EI$43-1-1)+1),$DC54,IF($DD54="No",1,0))/ IF(DP54>=INT($N54),$N54-INT($N54),1)))* IF(EI$43=1,0, IF(INT(DQ54)=INT(DP54),DQ54-DP54,INT(DQ54)-DP54))+ IF($N54<=1, IF($N54>0,1/$N54,0),VDB(1,0,$N54,INT(EI$43-1),MIN($N54,INT(EI$43-1)+1),$DC54,IF($DD54="No",1,0))/ IF(DQ54>INT($N54),$N54-INT($N54),1))* IF(EI$43=1,DQ54, IF(INT(DQ54)=INT(DP54),0,DQ54-INT(DQ54))))) -> 0 | EJ54: =+IF(DR54=DQ54,0, IF(AND(EJ$43>1,DR54=$N54),1-SUM($EE54:EI54), IF($N54<=1, IF($N54>0,1/$N54,0), IF(EJ$43=1,0,VDB(1,0,$N54,INT(EJ$43-1-1),MIN($N54,INT(EJ$43-1-1)+1),$DC54,IF($DD54="No",1,0))/ IF(DQ54>=INT($N54),$N54-INT($N54),1)))* IF(EJ$43=1,0, IF(INT(DR54)=INT(DQ54),DR54-DQ54,INT(DR54)-DQ54))+ IF($N54<=1, IF($N54>0,1/$N54,0),VDB(1,0,$N54,INT(EJ$43-1),MIN($N54,INT(EJ$43-1)+1),$DC54,IF($DD54="No",1,0))/ IF(DR54>INT($N54),$N54-INT($N54),1))* IF(EJ$43=1,DR54, IF(INT(DR54)=INT(DQ54),0,DR54-INT(DR54))))) -> 0 | EK54: =+IF(DS54=DR54,0, IF(AND(EK$43>1,DS54=$N54),1-SUM($EE54:EJ54), IF($N54<=1, IF($N54>0,1/$N54,0), IF(EK$43=1,0,VDB(1,0,$N54,INT(EK$43-1-1),MIN($N54,INT(EK$43-1-1)+1),$DC54,IF($DD54="No",1,0))/ IF(DR54>=INT($N54),$N54-INT($N54),1)))* IF(EK$43=1,0, IF(INT(DS54)=INT(DR54),DS54-DR54,INT(DS54)-DR54))+ IF($N54<=1, IF($N54>0,1/$N54,0),VDB(1,0,$N54,INT(EK$43-1),MIN($N54,INT(EK$43-1)+1),$DC54,IF($DD54="No",1,0))/ IF(DS54>INT($N54),$N54-INT($N54),1))* IF(EK$43=1,DS54, IF(INT(DS54)=INT(DR54),0,DS54-INT(DS54))))) -> 0 | EL54: =+IF(DT54=DS54,0, IF(AND(EL$43>1,DT54=$N54),1-SUM($EE54:EK54), IF($N54<=1, IF($N54>0,1/$N54,0), IF(EL$43=1,0,VDB(1,0,$N54,INT(EL$43-1-1),MIN($N54,INT(EL$43-1-1)+1),$DC54,IF($DD54="No",1,0))/ IF(DS54>=INT($N54),$N54-INT($N54),1)))* IF(EL$43=1,0, IF(INT(DT54)=INT(DS54),DT54-DS54,INT(DT54)-DS54))+ IF($N54<=1, IF($N54>0,1/$N54,0),VDB(1,0,$N54,INT(EL$43-1),MIN($N54,INT(EL$43-1)+1),$DC54,IF($DD54="No",1,0))/ IF(DT54>INT($N54),$N54-INT($N54),1))* IF(EL$43=1,DT54, IF(INT(DT54)=INT(DS54),0,DT54-INT(DT54))))) -> 0 | EM54: =+IF(DU54=DT54,0, IF(AND(EM$43>1,DU54=$N54),1-SUM($EE54:EL54), IF($N54<=1, IF($N54>0,1/$N54,0), IF(EM$43=1,0,VDB(1,0,$N54,INT(EM$43-1-1),MIN($N54,INT(EM$43-1-1)+1),$DC54,IF($DD54="No",1,0))/ IF(DT54>=INT($N54),$N54-INT($N54),1)))* IF(EM$43=1,0, IF(INT(DU54)=INT(DT54),DU54-DT54,INT(DU54)-DT54))+ IF($N54<=1, IF($N54>0,1/$N54,0),VDB(1,0,$N54,INT(EM$43-1),MIN($N54,INT(EM$43-1)+1),$DC54,IF($DD54="No",1,0))/ IF(DU54>INT($N54),$N54-INT($N54),1))* IF(EM$43=1,DU54, IF(INT(DU54)=INT(DT54),0,DU54-INT(DU54))))) -> 0 | EO54: =+IF(OR(DW54=DV54,EO$43=1),0, IF(AND(EO$43>1,DW54=$N54),1-SUM($EN54:EN54), IF($N54<=1, IF($N54>0,1/$N54,0), IF(EO$43=2,0,VDB(1,0,$N54,INT(EO$43-2-1),MIN($N54,INT(EO$43-2-1)+1),$DC54,IF($DD54="No",1,0))/ IF(DV54>=INT($N54),$N54-INT($N54),1)))* IF(EO$43=2,0, IF(INT(DW54)=INT(DV54),DW54-DV54,INT(DW54)-DV54))+ IF($N54<=1, IF($N54>0,1/$N54,0),VDB(1,0,$N54,INT(EO$43-2),MIN($N54,INT(EO$43-2)+1),$DC54,IF($DD54="No",1,0))/ IF(DW54>INT($N54),$N54-INT($N54),1))* IF(EO$43=2,DW54, IF(INT(DW54)=INT(DV54),0,DW54-INT(DW54))))) -> 0 | EP54: =+IF(OR(DX54=DW54,EP$43=1),0, IF(AND(EP$43>1,DX54=$N54),1-SUM($EN54:EO54), IF($N54<=1, IF($N54>0,1/$N54,0), IF(EP$43=2,0,VDB(1,0,$N54,INT(EP$43-2-1),MIN($N54,INT(EP$43-2-1)+1),$DC54,IF($DD54="No",1,0))/ IF(DW54>=INT($N54),$N54-INT($N54),1)))* IF(EP$43=2,0, IF(INT(DX54)=INT(DW54),DX54-DW54,INT(DX54)-DW54))+ IF($N54<=1, IF($N54>0,1/$N54,0),VDB(1,0,$N54,INT(EP$43-2),MIN($N54,INT(EP$43-2)+1),$DC54,IF($DD54="No",1,0))/ IF(DX54>INT($N54),$N54-INT($N54),1))* IF(EP$43=2,DX54, IF(INT(DX54)=INT(DW54),0,DX54-INT(DX54))))) -> 0 | EQ54: =+IF(OR(DY54=DX54,EQ$43=1),0, IF(AND(EQ$43>1,DY54=$N54),1-SUM($EN54:EP54), IF($N54<=1, IF($N54>0,1/$N54,0), IF(EQ$43=2,0,VDB(1,0,$N54,INT(EQ$43-2-1),MIN($N54,INT(EQ$43-2-1)+1),$DC54,IF($DD54="No",1,0))/ IF(DX54>=INT($N54),$N54-INT($N54),1)))* IF(EQ$43=2,0, IF(INT(DY54)=INT(DX54),DY54-DX54,INT(DY54)-DX54))+ IF($N54<=1, IF($N54>0,1/$N54,0),VDB(1,0,$N54,INT(EQ$43-2),MIN($N54,INT(EQ$43-2)+1),$DC54,IF($DD54="No",1,0))/ IF(DY54>INT($N54),$N54-INT($N54),1))* IF(EQ$43=2,DY54, IF(INT(DY54)=INT(DX54),0,DY54-INT(DY54))))) -> 0 | ER54: =+IF(OR(DZ54=DY54,ER$43=1),0, IF(AND(ER$43>1,DZ54=$N54),1-SUM($EN54:EQ54), IF($N54<=1, IF($N54>0,1/$N54,0), IF(ER$43=2,0,VDB(1,0,$N54,INT(ER$43-2-1),MIN($N54,INT(ER$43-2-1)+1),$DC54,IF($DD54="No",1,0))/ IF(DY54>=INT($N54),$N54-INT($N54),1)))* IF(ER$43=2,0, IF(INT(DZ54)=INT(DY54),DZ54-DY54,INT(DZ54)-DY54))+ IF($N54<=1, IF($N54>0,1/$N54,0),VDB(1,0,$N54,INT(ER$43-2),MIN($N54,INT(ER$43-2)+1),$DC54,IF($DD54="No",1,0))/ IF(DZ54>INT($N54),$N54-INT($N54),1))* IF(ER$43=2,DZ54, IF(INT(DZ54)=INT(DY54),0,DZ54-INT(DZ54))))) -> 0 | ES54: =+IF(OR(EA54=DZ54,ES$43=1),0, IF(AND(ES$43>1,EA54=$N54),1-SUM($EN54:ER54), IF($N54<=1, IF($N54>0,1/$N54,0), IF(ES$43=2,0,VDB(1,0,$N54,INT(ES$43-2-1),MIN($N54,INT(ES$43-2-1)+1),$DC54,IF($DD54="No",1,0))/ IF(DZ54>=INT($N54),$N54-INT($N54),1)))* IF(ES$43=2,0, IF(INT(EA54)=INT(DZ54),EA54-DZ54,INT(EA54)-DZ54))+ IF($N54<=1, IF($N54>0,1/$N54,0),VDB(1,0,$N54,INT(ES$43-2),MIN($N54,INT(ES$43-2)+1),$DC54,IF($DD54="No",1,0))/ IF(EA54>INT($N54),$N54-INT($N54),1))* IF(ES$43=2,EA54, IF(INT(EA54)=INT(DZ54),0,EA54-INT(EA54))))) -> 0 | ET54: =+IF(OR(EB54=EA54,ET$43=1),0, IF(AND(ET$43>1,EB54=$N54),1-SUM($EN54:ES54), IF($N54<=1, IF($N54>0,1/$N54,0), IF(ET$43=2,0,VDB(1,0,$N54,INT(ET$43-2-1),MIN($N54,INT(ET$43-2-1)+1),$DC54,IF($DD54="No",1,0))/ IF(EA54>=INT($N54),$N54-INT($N54),1)))* IF(ET$43=2,0, IF(INT(EB54)=INT(EA54),EB54-EA54,INT(EB54)-EA54))+ IF($N54<=1, IF($N54>0,1/$N54,0),VDB(1,0,$N54,INT(ET$43-2),MIN($N54,INT(ET$43-2)+1),$DC54,IF($DD54="No",1,0))/ IF(EB54>INT($N54),$N54-INT($N54),1))* IF(ET$43=2,EB54, IF(INT(EB54)=INT(EA54),0,EB54-INT(EB54))))) -> 0 | EU54: =+IF(OR(EC54=EB54,EU$43=1),0, IF(AND(EU$43>1,EC54=$N54),1-SUM($EN54:ET54), IF($N54<=1, IF($N54>0,1/$N54,0), IF(EU$43=2,0,VDB(1,0,$N54,INT(EU$43-2-1),MIN($N54,INT(EU$43-2-1)+1),$DC54,IF($DD54="No",1,0))/ IF(EB54>=INT($N54),$N54-INT($N54),1)))* IF(EU$43=2,0, IF(INT(EC54)=INT(EB54),EC54-EB54,INT(EC54)-EB54))+ IF($N54<=1, IF($N54>0,1/$N54,0),VDB(1,0,$N54,INT(EU$43-2),MIN($N54,INT(EU$43-2)+1),$DC54,IF($DD54="No",1,0))/ IF(EC54>INT($N54),$N54-INT($N54),1))* IF(EU$43=2,EC54, IF(INT(EC54)=INT(EB54),0,EC54-INT(EC54))))) -> 0 | EV54: =+IF(OR(ED54=EC54,EV$43=1),0, IF(AND(EV$43>1,ED54=$N54),1-SUM($EN54:EU54), IF($N54<=1, IF($N54>0,1/$N54,0), IF(EV$43=2,0,VDB(1,0,$N54,INT(EV$43-2-1),MIN($N54,INT(EV$43-2-1)+1),$DC54,IF($DD54="No",1,0))/ IF(EC54>=INT($N54),$N54-INT($N54),1)))* IF(EV$43=2,0, IF(INT(ED54)=INT(EC54),ED54-EC54,INT(ED54)-EC54))+ IF($N54<=1, IF($N54>0,1/$N54,0),VDB(1,0,$N54,INT(EV$43-2),MIN($N54,INT(EV$43-2)+1),$DC54,IF($DD54="No",1,0))/ IF(ED54>INT($N54),$N54-INT($N54),1))* IF(EV$43=2,ED54, IF(INT(ED54)=INT(EC54),0,ED54-INT(ED54))))) -> 0 | EX54: 0 | EY54: 0 | EZ54: 0 | FA54: 0 | FB54: 0 | FC54: 0 | FD54: 0 | FE54: 0 | FG54: =-(-$DE54*(-ISBLANK($DE54)+1)*EF54- IF(FG$43>1,SUMPRODUCT(OFFSET($DF54,0,0,1,FG$43-1)*(-ISBLANK(OFFSET($DF54,0,0,1,FG$43-1))+1),OFFSET($EX54,0,MAX($FG$43:$HY$43)-FG$43,1,FG$43-1)),0)) -> 0 | FH54: =-(-$DE54*(-ISBLANK($DE54)+1)*EG54- IF(FH$43>1,SUMPRODUCT(OFFSET($DF54,0,0,1,FH$43-1)*(-ISBLANK(OFFSET($DF54,0,0,1,FH$43-1))+1),OFFSET($EX54,0,MAX($FG$43:$HY$43)-FH$43,1,FH$43-1)),0)) -> 0 | FI54: =-(-$DE54*(-ISBLANK($DE54)+1)*EH54- IF(FI$43>1,SUMPRODUCT(OFFSET($DF54,0,0,1,FI$43-1)*(-ISBLANK(OFFSET($DF54,0,0,1,FI$43-1))+1),OFFSET($EX54,0,MAX($FG$43:$HY$43)-FI$43,1,FI$43-1)),0)) -> 0 | FJ54: =-(-$DE54*(-ISBLANK($DE54)+1)*EI54- IF(FJ$43>1,SUMPRODUCT(OFFSET($DF54,0,0,1,FJ$43-1)*(-ISBLANK(OFFSET($DF54,0,0,1,FJ$43-1))+1),OFFSET($EX54,0,MAX($FG$43:$HY$43)-FJ$43,1,FJ$43-1)),0)) -> 0 | FK54: =-(-$DE54*(-ISBLANK($DE54)+1)*EJ54- IF(FK$43>1,SUMPRODUCT(OFFSET($DF54,0,0,1,FK$43-1)*(-ISBLANK(OFFSET($DF54,0,0,1,FK$43-1))+1),OFFSET($EX54,0,MAX($FG$43:$HY$43)-FK$43,1,FK$43-1)),0)) -> 0 | FL54: =-(-$DE54*(-ISBLANK($DE54)+1)*EK54- IF(FL$43>1,SUMPRODUCT(OFFSET($DF54,0,0,1,FL$43-1)*(-ISBLANK(OFFSET($DF54,0,0,1,FL$43-1))+1),OFFSET($EX54,0,MAX($FG$43:$HY$43)-FL$43,1,FL$43-1)),0)) -> 0 | FM54: =-(-$DE54*(-ISBLANK($DE54)+1)*EL54- IF(FM$43>1,SUMPRODUCT(OFFSET($DF54,0,0,1,FM$43-1)*(-ISBLANK(OFFSET($DF54,0,0,1,FM$43-1))+1),OFFSET($EX54,0,MAX($FG$43:$HY$43)-FM$43,1,FM$43-1)),0)) -> 0 | FN54: =-(-$DE54*(-ISBLANK($DE54)+1)*EM54- IF(FN$43>1,SUMPRODUCT(OFFSET($DF54,0,0,1,FN$43-1)*(-ISBLANK(OFFSET($DF54,0,0,1,FN$43-1))+1),OFFSET($EX54,0,MAX($FG$43:$HY$43)-FN$43,1,FN$43-1)),0)) -> 0
